Workbook

Sheet ZSS Summary
B2: Redundant System Model - Substations | M2: Sensitivity Modifiers | P2: Scalar | R2: Option Costing | T2: Unit Price | U2: Asset Life | V2: Annual Cost
B3: Input Data - Station Configuration | E3: Constants | M3: Capex/Opex | N3: 0.1 | O3: Normal | P3: =IF(O3="Lower", (1-N3), IF(O3="Upper", 1+N3,1)) -> 1 | R3: Additional Path | T3: =IF(Prices!C2=0,IF(AssetType="Indoor CB",COST_ADDITIONAL_INDOOR_CB,IF(AssetType="Outdoor CB",COST_ADDITIONAL_OUTDOOR_CB)), Prices!C2) -> 5103884.372 | U3: 50 | V3: =-PMT($S$12,U3,T3) -> 189052.5702
B4: Substation: | C4: CM | E4: Major Failure CoC | F4: =COC_TX_MAJOR*(1+$S$13) -> 3051190.8 | M4: PoF | N4: 0.1 | O4: Normal | P4: =IF(O4="Lower", (1-N4), IF(O4="Upper", 1+N4,1)) -> 1 | R4: 1 Replacement | T4: =IF(Prices!C3=0,IF(AssetType="Indoor CB",COST_REPLACE_1_INDOOR_CB,IF(AssetType="Outdoor CB",COST_REPLACE_1_OUTDOOR_CB)), Prices!C3) -> 2595487.507 | U4: 50 | V4: =-PMT($S$12,U4,T4) -> 96139.24381
B5: Parallel Asset | C5: Transformer | E5: Minor Failure CoC | F5: =COC_TX_MINOR -> 136045 | M5: WACC | N5: 0.1 | O5: Normal | P5: =IF(O5="Lower", (1-N5), IF(O5="Upper", 1+N5,1)) -> 1 | R5: 2 Replacements - Same Make | T5: =IF(Prices!C4=0,IF(AssetType="Indoor CB",COST_REPLACE_2_INDOOR_CB_SAME,IF(AssetType="Outdoor CB",COST_REPLACE_2_OUTDOOR_CB_SAME)), Prices!C4) -> 5190975.014 | U5: 50 | V5: =-PMT($S$12,U5,T5) -> 192278.4876
B6: Load Profile | C6: 0.5 | M6: Load Forecast | N6: 0.1 | O6: Normal | P6: =IF(O6="Lower", (1-N6), IF(O6="Upper", 1+N6,1)) -> 1 | R6: 2 Replacements - Different Make | T6: =IF(Prices!C5=0,IF(AssetType="Indoor CB",COST_REPLACE_2_INDOOR_CB_DIFFERENT,IF(AssetType="Outdoor CB",COST_REPLACE_2_OUTDOOR_CB_DIFFERENT)), Prices!C5) -> 5282844.932 | U6: 50 | V6: =-PMT($S$12,U6,T6) -> 195681.4339
M7: Beta | N7: 0.1 | O7: Normal | P7: =IF(O7="Lower", (1-N7), IF(O7="Upper", 1+N7,1)) -> 1 | R7: System spare available | T7: =IF(Prices!C6=0,IF(AssetType="Indoor CB",COST_SPARE_INDOOR_CB,IF(AssetType="Outdoor CB",COST_SPARE_OUTDOOR_CB)), Prices!C6) -> 204155.3749 | U7: 25 | V7: =IF(AssetType="Transformer", -PMT($S$12,U7,T7),0) -> 11400.03072
R8: Non-network Solution
B9: Scenario Modifiers | D9: Comment | F9: Annual Cost | G9: Output Yr | H9: Option/Spare | M9: VCR weight | R9: Online Monitoring System | T9: =IF(Prices!C8=0,IF(AssetType="Indoor CB",COST_MONITOR_INDOOR_CB,IF(AssetType="Outdoor CB",COST_MONITOR_OUTDOOR_CB)), Prices!C8) -> 683034.4715 | U9: 25 | V9: =IF(AssetType="Transformer", -PMT($S$12,U9,T9),40000) -> 38140.62679
B10: Additional Asset | C10: FALSE | E10: Option Cost | F10: =V3 -> 189052.5702 | G10: =IFERROR(MATCH(B10,$E$155:$Y$155,0)+2018,"Not Chosen") -> Not Chosen | H10: =IF(ISNUMBER(G10),HLOOKUP(G10,$E$144:$Y$153,4)/HLOOKUP(G10,$E$144:$Y$153,10)) -> FALSE | M10: 10% PoE | N10: 0.3
B11: Replace 1 asset | C11: FALSE | E11: Option Cost | F11: =V4 -> 96139.24381 | G11: =IFERROR(MATCH(B11,$E$155:$Y$155,0)+2018,"Not Chosen") -> 2019 | H11: =IF(ISNUMBER(G11),HLOOKUP(G11,$E$144:$Y$153,4)/HLOOKUP(G11,$E$144:$Y$153,7)) -> 4.18642794 | M11: 50% PoE | N11: 0.7 | R11: Constants | U11: Safety Constants
B12: Replace 2 Assets - same type | C12: FALSE | E12: Option Cost | F12: 192278.4876 | G12: Not Chosen | H12: =IF(ISNUMBER(G12),HLOOKUP(G12,$E$144:$Y$153,7)/HLOOKUP(G12,$E$144:$Y$153,8)) -> FALSE | R12: WACC | S12: 0.0275 | U12: DF Staff | V12: 3 | W12: POC_LTI | X12: 0.000260274
B13: Replace 2 Assets - Different Type | C13: FALSE | E13: Option Cost | F13: 195681.4339 | G13: 2038 | H13: =IF(ISNUMBER(G13),HLOOKUP(G13,$E$144:$Y$153,7)/HLOOKUP(G13,$E$144:$Y$153,9)) -> 1.024314255 | R13: Failure Premium | S13: 0.2 | U13: VSL | V13: =4900000 -> 4900000 | W13: POC_PUBLIC | X13: 0.000115
B14: Spare/Mobile Asset | C14: FALSE | E14: Option Cost | F14: 11400.03072 | G14: Not Chosen | H14: =IF(ISNUMBER(G14),HLOOKUP(G14,$E$144:$Y$153,4)/HLOOKUP(G14,$E$144:$Y$153,4)) -> FALSE | R14: VCR | S14: =VLOOKUP(ZSS, VCR!A3:B59,2,FALSE) -> 53.25405323 | U14: VLTI | V14: =127000*CPI -> 129638.6631 | W14: POC_STAFF | X14: 0.001960616
B15: Non-Network MW | C15: 0 | D15: Load Reduction | E15: Option Cost | F15: =V8*C15 -> 0 | G15: Not Chosen | U15: DF Public | V15: 3
B16: Online Monitor | C16: FALSE | E16: Option Cost | F16: 38140.62679 | G16: Not Chosen | H16: =IF(ISNUMBER(G16),HLOOKUP(G16,$E$144:$Y$153,4)/HLOOKUP(G16,$E$144:$Y$153,5)) -> FALSE
B19: ="Scenario: "&IF(OR(C10:C13)=FALSE,"Status Quo",IF(ISADDITIONAL,"Additional path",IF(ISREPLACE,"Replace 1 Asset",IF(ISREPLACE2SAME,"Replace with 2 like Assets",IF(ISREPLACE2DIFF,"Replace with 2 different Assets")))))&", "&IF(ISSPAREREADY," Spare Ready","")&", "&IF(ISPROBABILITYREDUCED,"Online Monitor","") -> Scenario: Status Quo, , | C19: Setting | D19: Model Output | E19: 2019 | F19: 2020 | G19: 2021 | H19: 2022 | I19: 2023 | J19: 2024 | K19: 2025 | L19: 2026 | M19: 2027 | N19: 2028 | O19: 2029 | P19: 2030 | Q19: 2031 | R19: 2032 | S19: 2033 | T19: 2034 | U19: 2035 | V19: 2036 | W19: 2037 | X19: 2038 | Y19: 2039
B21: =IF($C$5="Transformer", "Additional Transformer", "Additional Bus") -> Additional Transformer | C21: =ISADDITIONAL -> FALSE | D21: Energy | E21: =VLOOKUP(E19, Engine!$D$4:$K$26,8,FALSE) -> 14470.71458 | F21: =VLOOKUP(F19, Engine!$D$4:$K$26,8,FALSE) -> 13042.49191 | G21: =VLOOKUP(G19, Engine!$D$4:$K$26,8,FALSE) -> 14809.54277 | H21: =VLOOKUP(H19, Engine!$D$4:$K$26,8,FALSE) -> 16705.74754 | I21: =VLOOKUP(I19, Engine!$D$4:$K$26,8,FALSE) -> 18268.51073 | J21: =VLOOKUP(J19, Engine!$D$4:$K$26,8,FALSE) -> 19505.20274 | K21: =VLOOKUP(K19, Engine!$D$4:$K$26,8,FALSE) -> 21114.52798 | L21: =VLOOKUP(L19, Engine!$D$4:$K$26,8,FALSE) -> 22699.97095 | M21: =VLOOKUP(M19, Engine!$D$4:$K$26,8,FALSE) -> 23864.30066 | N21: =VLOOKUP(N19, Engine!$D$4:$K$26,8,FALSE) -> 24964.45413 | O21: =VLOOKUP(O19, Engine!$D$4:$K$26,8,FALSE) -> 26160.99355 | P21: =VLOOKUP(P19, Engine!$D$4:$K$26,8,FALSE) -> 27391.85231 | Q21: =VLOOKUP(Q19, Engine!$D$4:$K$26,8,FALSE) -> 28545.80797 | R21: =VLOOKUP(R19, Engine!$D$4:$K$26,8,FALSE) -> 29732.57012 | S21: =VLOOKUP(S19, Engine!$D$4:$K$26,8,FALSE) -> 30953.81078 | T21: =VLOOKUP(T19, Engine!$D$4:$K$26,8,FALSE) -> 32216.74729 | U21: =VLOOKUP(U19, Engine!$D$4:$K$26,8,FALSE) -> 33514.7698 | V21: =VLOOKUP(V19, Engine!$D$4:$K$26,8,FALSE) -> 34848.46023 | W21: =VLOOKUP(W19, Engine!$D$4:$K$26,8,FALSE) -> 36218.40664 | X21: =VLOOKUP(X19, Engine!$D$4:$K$26,8,FALSE) -> 37625.20336 | Y21: =VLOOKUP(Y19, Engine!$D$4:$K$26,8,FALSE) -> 39069.45108
B22: Replace 1 Path | C22: =ISREPLACE -> FALSE | D22: 10% PoE (MWh, Pr-Adjusted) | E22: 19849.93224 | F22: 18174.39441 | G22: 20409.71697 | H22: 22718.59432 | I22: 24840.29638 | J22: 26639.47688 | K22: 28759.89671 | L22: 30955.56757 | M22: 32606.84872 | N22: 34041.14967 | O22: 35634.26887 | P22: 37264.23269 | Q22: 38808.36096 | R22: 40395.22297 | S22: 42026.03703 | T22: 43704.68669 | U22: 45428.4242 | V22: 47197.95731 | W22: 49014.0011 | X22: 50877.27812 | Y22: 52788.51854
B23: Replace 2 Paths - Same | C23: =ISREPLACE2SAME -> FALSE | D23: 50% PoE (MWh, Pr-Adjusted) | E23: 14470.71458 | F23: 13042.49191 | G23: 14809.54277 | H23: 16705.74754 | I23: 18268.51073 | J23: 19505.20274 | K23: 21114.52798 | L23: 22699.97095 | M23: 23864.30066 | N23: 24964.45413 | O23: 26160.99355 | P23: 27391.85231 | Q23: 28545.80797 | R23: 29732.57012 | S23: 30953.81078 | T23: 32216.74729 | U23: 33514.7698 | V23: 34848.46023 | W23: 36218.40664 | X23: 37625.20336 | Y23: 39069.45108
B24: Replace 2 Paths - different | C24: =ISREPLACE2DIFF -> FALSE | D24: Pr (Terminal Failure) | E24: =(VLOOKUP(E19,Engine!$Q$4:$BB$26,38,FALSE)) -> 0.01119899668 | F24: =(VLOOKUP(F19,Engine!$Q$4:$BB$26,38,FALSE)) -> 0.01170796897 | G24: =(VLOOKUP(G19,Engine!$Q$4:$BB$26,38,FALSE)) -> 0.0122309329 | H24: =(VLOOKUP(H19,Engine!$Q$4:$BB$26,38,FALSE)) -> 0.01276803027 | I24: =(VLOOKUP(I19,Engine!$Q$4:$BB$26,38,FALSE)) -> 0.01331940195 | J24: =(VLOOKUP(J19,Engine!$Q$4:$BB$26,38,FALSE)) -> 0.0138851879 | K24: =(VLOOKUP(K19,Engine!$Q$4:$BB$26,38,FALSE)) -> 0.01446552715 | L24: =(VLOOKUP(L19,Engine!$Q$4:$BB$26,38,FALSE)) -> 0.01506055789 | M24: =(VLOOKUP(M19,Engine!$Q$4:$BB$26,38,FALSE)) -> 0.01567041741 | N24: =(VLOOKUP(N19,Engine!$Q$4:$BB$26,38,FALSE)) -> 0.01629524219 | O24: =(VLOOKUP(O19,Engine!$Q$4:$BB$26,38,FALSE)) -> 0.01693516785 | P24: =(VLOOKUP(P19,Engine!$Q$4:$BB$26,38,FALSE)) -> 0.01759032925 | Q24: =(VLOOKUP(Q19,Engine!$Q$4:$BB$26,38,FALSE)) -> 0.01826086041 | R24: =(VLOOKUP(R19,Engine!$Q$4:$BB$26,38,FALSE)) -> 0.0189468946 | S24: =(VLOOKUP(S19,Engine!$Q$4:$BB$26,38,FALSE)) -> 0.01964856434 | T24: =(VLOOKUP(T19,Engine!$Q$4:$BB$26,38,FALSE)) -> 0.02036600138 | U24: =(VLOOKUP(U19,Engine!$Q$4:$BB$26,38,FALSE)) -> 0.02109933676 | V24: =(VLOOKUP(V19,Engine!$Q$4:$BB$26,38,FALSE)) -> 0.0218487008 | W24: =(VLOOKUP(W19,Engine!$Q$4:$BB$26,38,FALSE)) -> 0.0226142231 | X24: =(VLOOKUP(X19,Engine!$Q$4:$BB$26,38,FALSE)) -> 0.02339603261 | Y24: =(VLOOKUP(Y19,Engine!$Q$4:$BB$26,38,FALSE)) -> 0.02419425755
B25: Spare/Mobile Asset | C25: =ISSPAREREADY -> FALSE | D25: Pr (Repairable Failure) | E25: =VLOOKUP(E19,Engine!$Q$4:$BB$26,37,FALSE) -> 0.01599856668 | F25: =VLOOKUP(F19,Engine!$Q$4:$BB$26,37,FALSE) -> 0.01672566996 | G25: =VLOOKUP(G19,Engine!$Q$4:$BB$26,37,FALSE) -> 0.01747276128 | H25: =VLOOKUP(H19,Engine!$Q$4:$BB$26,37,FALSE) -> 0.01824004324 | I25: =VLOOKUP(I19,Engine!$Q$4:$BB$26,37,FALSE) -> 0.01902771707 | J25: =VLOOKUP(J19,Engine!$Q$4:$BB$26,37,FALSE) -> 0.01983598271 | K25: =VLOOKUP(K19,Engine!$Q$4:$BB$26,37,FALSE) -> 0.02066503879 | L25: =VLOOKUP(L19,Engine!$Q$4:$BB$26,37,FALSE) -> 0.0215150827 | M25: =VLOOKUP(M19,Engine!$Q$4:$BB$26,37,FALSE) -> 0.02238631059 | N25: =VLOOKUP(N19,Engine!$Q$4:$BB$26,37,FALSE) -> 0.02327891741 | O25: =VLOOKUP(O19,Engine!$Q$4:$BB$26,37,FALSE) -> 0.02419309694 | P25: =VLOOKUP(P19,Engine!$Q$4:$BB$26,37,FALSE) -> 0.02512904178 | Q25: =VLOOKUP(Q19,Engine!$Q$4:$BB$26,37,FALSE) -> 0.02608694344 | R25: =VLOOKUP(R19,Engine!$Q$4:$BB$26,37,FALSE) -> 0.02706699229 | S25: =VLOOKUP(S19,Engine!$Q$4:$BB$26,37,FALSE) -> 0.02806937762 | T25: =VLOOKUP(T19,Engine!$Q$4:$BB$26,37,FALSE) -> 0.02909428768 | U25: =VLOOKUP(U19,Engine!$Q$4:$BB$26,37,FALSE) -> 0.03014190966 | V25: =VLOOKUP(V19,Engine!$Q$4:$BB$26,37,FALSE) -> 0.03121242971 | W25: =VLOOKUP(W19,Engine!$Q$4:$BB$26,37,FALSE) -> 0.03230603301 | X25: =VLOOKUP(X19,Engine!$Q$4:$BB$26,37,FALSE) -> 0.03342290372 | Y25: =VLOOKUP(Y19,Engine!$Q$4:$BB$26,37,FALSE) -> 0.03456322508
B26: Non-Network MW | C26: =C15 -> 0
B27: Probability Reduction | C27: =C16 -> FALSE
B29: Scenario Capture Below
B32: Scenario: Status Quo, , | C32: Setting | D32: Model Output | E32: 2019 | F32: 2020 | G32: 2021 | H32: 2022 | I32: 2023 | J32: 2024 | K32: 2025 | L32: 2026 | M32: 2027 | N32: 2028 | O32: 2029 | P32: 2030 | Q32: 2031 | R32: 2032 | S32: 2033 | T32: 2034 | U32: 2035 | V32: 2036 | W32: 2037 | X32: 2038 | Y32: 2039
B34: Additional Transformer | C34: FALSE | D34: 10% PoE (MWh, Pr-Adjusted) | E34: 19849.93224 | F34: 18174.39441 | G34: 20409.71697 | H34: 22718.59432 | I34: 24840.29638 | J34: 26639.47688 | K34: 28759.89671 | L34: 30955.56757 | M34: 32606.84872 | N34: 34041.14967 | O34: 35634.26887 | P34: 37264.23269 | Q34: 38808.36096 | R34: 40395.22297 | S34: 42026.03703 | T34: 43704.68669 | U34: 45428.4242 | V34: 47197.95731 | W34: 49014.0011 | X34: 50877.27812 | Y34: 52788.51854
B35: Replace 1 Path | C35: FALSE | D35: 50% PoE (MWh, Pr-Adjusted) | E35: 14470.71458 | F35: 13042.49191 | G35: 14809.54277 | H35: 16705.74754 | I35: 18268.51073 | J35: 19505.20274 | K35: 21114.52798 | L35: 22699.97095 | M35: 23864.30066 | N35: 24964.45413 | O35: 26160.99355 | P35: 27391.85231 | Q35: 28545.80797 | R35: 29732.57012 | S35: 30953.81078 | T35: 32216.74729 | U35: 33514.7698 | V35: 34848.46023 | W35: 36218.40664 | X35: 37625.20336 | Y35: 39069.45108
B36: Replace 2 Paths - Same | C36: FALSE | D36: Pr (Terminal Failure) | E36: 0.01119899668 | F36: 0.01170796897 | G36: 0.0122309329 | H36: 0.01276803027 | I36: 0.01331940195 | J36: 0.0138851879 | K36: 0.01446552715 | L36: 0.01506055789 | M36: 0.01567041741 | N36: 0.01629524219 | O36: 0.01693516785 | P36: 0.01759032925 | Q36: 0.01826086041 | R36: 0.0189468946 | S36: 0.01964856434 | T36: 0.02036600138 | U36: 0.02109933676 | V36: 0.0218487008 | W36: 0.0226142231 | X36: 0.02339603261 | Y36: 0.02419425755
B37: Replace 2 Paths - different | C37: FALSE | D37: Pr (Repairable Failure) | E37: 0.01599856668 | F37: 0.01672566996 | G37: 0.01747276128 | H37: 0.01824004324 | I37: 0.01902771707 | J37: 0.01983598271 | K37: 0.02066503879 | L37: 0.0215150827 | M37: 0.02238631059 | N37: 0.02327891741 | O37: 0.02419309694 | P37: 0.02512904178 | Q37: 0.02608694344 | R37: 0.02706699229 | S37: 0.02806937762 | T37: 0.02909428768 | U37: 0.03014190966 | V37: 0.03121242971 | W37: 0.03230603301 | X37: 0.03342290372 | Y37: 0.03456322508
B38: Spare/Mobile Asset | C38: FALSE
B39: Non-Network MW | C39: 0 | D39: Energy at Risk (Weighted) | E39: =SUMPRODUCT(E34:E35,$N$10:$N$11)*VCR -> 856563.7476 | F39: =SUMPRODUCT(F34:F35,$N$10:$N$11)*VCR -> 776553.941 | G39: =SUMPRODUCT(G34:G35,$N$10:$N$11)*VCR -> 878137.7716 | H39: 985711.3073 | I39: 1077864.509 | J39: 1152709.81 | K39: 1246578.259 | L39: 1340758.656 | M39: 1410543.574 | N39: 1474469.617 | O39: 1544526.036 | P39: 1616450.442 | Q39: 1684136.74 | R39: 1753728.716 | S39: 1825308.165 | T39: 1899206.176 | U39: 1975132.451 | V39: 2053119.989 | W39: 2133202.136 | X39: 2215412.591 | Y39: 2299785.412
B40: Probability Reduction | C40: FALSE | D40: Safety Risk | E40: =(E36+E37)*(VSL*DF_PUBLIC*POC_PUBLIC+VSL*DF_STAFF*POC_STAFF+VLTI*DF_STAFF*POC_LTI) -> 763.1013975 | F40: =(F36+F37)*(VSL*DF_PUBLIC*POC_PUBLIC+VSL*DF_STAFF*POC_STAFF+VLTI*DF_STAFF*POC_LTI) -> 797.7828498 | G40: 833.4176941 | H40: 870.0155935 | I40: 907.5861469 | J40: 946.1388903 | K40: 985.6832987 | L40: 1026.228787 | M40: 1067.784711 | N40: 1110.360369 | O40: 1153.965005 | P40: 1198.607805 | Q40: 1244.297904 | R40: 1291.044382 | S40: 1338.856269 | T40: 1387.742542 | U40: 1437.71213 | V40: 1488.773914 | W40: 1540.936724 | X40: 1594.209347 | Y40: 1648.60052
D41: Unplanned Replacement Risk | E41: =E36*$F$4 -> 34170.27563 | F41: =F36*$F$4 -> 35723.24721 | G41: =G36*$F$4 -> 37318.90993 | H41: 38957.69649 | I41: 40640.0367 | J41: 42366.35757 | K41: 44137.08337 | L41: 45952.63568 | M41: 47813.43344 | N41: 49719.89305 | O41: 51672.42835 | P41: 53671.45077 | Q41: 55717.36927 | R41: 57810.59049 | S41: 59951.51874 | T41: 62140.55604 | U41: 64378.10221 | V41: 66664.55486 | W41: 69000.30948 | X41: 71385.75945 | Y41: 73821.29606
B42: This scenario is the status quo, with no investment or improvements made historically. | D42: Unplanned Fault Risk | E42: =E37*$F$5 -> 2176.525004 | F42: =F37*$F$5 -> 2275.44377 | G42: 2377.081809 | H42: 2481.466683 | I42: 2588.625769 | J42: 2698.586268 | K42: 2811.375202 | L42: 2927.019426 | M42: 3045.545624 | N42: 3166.980319 | O42: 3291.349873 | P42: 3418.680489 | Q42: 3548.99822 | R42: 3682.328966 | S42: 3818.698479 | T42: 3958.132368 | U42: 4100.656099 | V42: 4246.295 | W42: 4395.07426 | X42: 4547.018937 | Y42: 4702.153956
D43: Option Capital Cost | E43: 0 | F43: 0 | G43: 0 | H43: 0 | I43: 0 | J43: 0 | K43: 0 | L43: 0 | M43: 0 | N43: 0 | O43: 0 | P43: 0 | Q43: 0 | R43: 0 | S43: 0 | T43: 0 | U43: 0 | V43: 0 | W43: 0 | X43: 0 | Y43: 0
D44: Total Cost | E44: =SUM(E39:E43) -> 893673.6496 | F44: =SUM(F39:F43) -> 815350.4148 | G44: 918667.1811 | H44: 1028020.486 | I44: 1122000.758 | J44: 1198720.892 | K44: 1294512.401 | L44: 1390664.54 | M44: 1462470.337 | N44: 1528466.851 | O44: 1600643.779 | P44: 1674739.181 | Q44: 1744647.406 | R44: 1816512.68 | S44: 1890417.238 | T44: 1966692.607 | U44: 2045048.921 | V44: 2125519.612 | W44: 2208138.456 | X44: 2292939.579 | Y44: 2379957.463
B46: Scenario: Status Quo, Spare Ready, | C46: Setting | D46: Model Output | E46: 2019 | F46: 2020 | G46: 2021 | H46: 2022 | I46: 2023 | J46: 2024 | K46: 2025 | L46: 2026 | M46: 2027 | N46: 2028 | O46: 2029 | P46: 2030 | Q46: 2031 | R46: 2032 | S46: 2033 | T46: 2034 | U46: 2035 | V46: 2036 | W46: 2037 | X46: 2038 | Y46: 2039
B48: Additional Transformer | C48: FALSE | D48: 10% PoE (MWh, Pr-Adjusted) | E48: 10090.20317 | F48: 9243.927167 | G48: 10387.13518 | H48: 11569.35312 | I48: 12657.84662 | J48: 13583.47315 | K48: 14674.42906 | L48: 15805.49555 | M48: 16660.20545 | N48: 17405.42645 | O48: 18233.24611 | P48: 19081.42492 | Q48: 19887.17988 | R48: 20716.38671 | S48: 21569.76277 | T48: 22449.39873 | U48: 23353.98514 | V48: 24283.98828 | W48: 25239.88186 | X48: 26222.14718 | Y48: 27231.27323
B49: Replace 1 Path | C49: FALSE | D49: 50% PoE (MWh, Pr-Adjusted) | E49: 7355.816046 | F49: 6633.720085 | G49: 7537.033605 | H49: 8507.334993 | I49: 9309.067943 | J49: 9945.705729 | K49: 10773.4616 | L49: 11590.29919 | M49: 12193.27127 | N49: 12764.46225 | O49: 13385.98627 | P49: 14026.1998 | Q49: 14628.17815 | R49: 15248.12528 | S49: 15886.96919 | T49: 16548.4908 | U49: 17229.37675 | V49: 17930.00477 | W49: 18650.75865 | X49: 19392.02836 | Y49: 20154.21017
B50: Replace 2 Paths - Same | C50: FALSE | D50: Pr (Terminal Failure) | E50: 0.01119899668 | F50: 0.01170796897 | G50: 0.0122309329 | H50: 0.01276803027 | I50: 0.01331940195 | J50: 0.0138851879 | K50: 0.01446552715 | L50: 0.01506055789 | M50: 0.01567041741 | N50: 0.01629524219 | O50: 0.01693516785 | P50: 0.01759032925 | Q50: 0.01826086041 | R50: 0.0189468946 | S50: 0.01964856434 | T50: 0.02036600138 | U50: 0.02109933676 | V50: 0.0218487008 | W50: 0.0226142231 | X50: 0.02339603261 | Y50: 0.02419425755
B51: Replace 2 Paths - different | C51: FALSE | D51: Pr (Repairable Failure) | E51: 0.01599856668 | F51: 0.01672566996 | G51: 0.01747276128 | H51: 0.01824004324 | I51: 0.01902771707 | J51: 0.01983598271 | K51: 0.02066503879 | L51: 0.0215150827 | M51: 0.02238631059 | N51: 0.02327891741 | O51: 0.02419309694 | P51: 0.02512904178 | Q51: 0.02608694344 | R51: 0.02706699229 | S51: 0.02806937762 | T51: 0.02909428768 | U51: 0.03014190966 | V51: 0.03121242971 | W51: 0.03230603301 | X51: 0.03342290372 | Y51: 0.03456322508
B52: Spare/Mobile Asset | C52: TRUE
B53: Non-Network MW | C53: 0 | D53: Energy at Risk (Weighted) | E53: =SUMPRODUCT(E48:E49,$N$10:$N$11)*VCR -> 435412.1785 | F53: =SUMPRODUCT(F48:F49,$N$10:$N$11)*VCR -> 394973.7146 | G53: 446911.427 | H53: 501969.5335 | I53: 549246.4111 | J53: 587766.9003 | K53: 636053.1962 | L53: 684573.2974 | M53: 720705.8225 | N53: 753904.3986 | O53: 790298.8955 | P53: 827715.3592 | Q53: 863028.7252 | R53: 899386.6007 | S53: 936835.0403 | T53: 975548.3894 | U53: 1015382.213 | V53: 1056358.041 | W53: 1098497.749 | X53: 1141823.564 | Y53: 1186358.069
B54: Probability Reduction | C54: FALSE | D54: Safety Risk | E54: =(E50+E51)*(VSL*DF_PUBLIC*POC_PUBLIC+VSL*DF_STAFF*POC_STAFF+VLTI*DF_STAFF*POC_LTI) -> 763.1013975 | F54: 797.7828498 | G54: 833.4176941 | H54: 870.0155935 | I54: 907.5861469 | J54: 946.1388903 | K54: 985.6832987 | L54: 1026.228787 | M54: 1067.784711 | N54: 1110.360369 | O54: 1153.965005 | P54: 1198.607805 | Q54: 1244.297904 | R54: 1291.044382 | S54: 1338.856269 | T54: 1387.742542 | U54: 1437.71213 | V54: 1488.773914 | W54: 1540.936724 | X54: 1594.209347 | Y54: 1648.60052
D55: Unplanned Replacement Risk | E55: =E50*$F$4 -> 34170.27563 | F55: =F50*$F$4 -> 35723.24721 | G55: 37318.90993 | H55: 38957.69649 | I55: 40640.0367 | J55: 42366.35757 | K55: 44137.08337 | L55: 45952.63568 | M55: 47813.43344 | N55: 49719.89305 | O55: 51672.42835 | P55: 53671.45077 | Q55: 55717.36927 | R55: 57810.59049 | S55: 59951.51874 | T55: 62140.55604 | U55: 64378.10221 | V55: 66664.55486 | W55: 69000.30948 | X55: 71385.75945 | Y55: 73821.29606
B56: This scenario models the availbility of a spare asset, reducing outage duration. This may be the status uo depending on the station configuration and if spares are already available. | D56: Unplanned Fault Risk | E56: =E51*$F$5 -> 2176.525004 | F56: =F51*$F$5 -> 2275.44377 | G56: 2377.081809 | H56: 2481.466683 | I56: 2588.625769 | J56: 2698.586268 | K56: 2811.375202 | L56: 2927.019426 | M56: 3045.545624 | N56: 3166.980319 | O56: 3291.349873 | P56: 3418.680489 | Q56: 3548.99822 | R56: 3682.328966 | S56: 3818.698479 | T56: 3958.132368 | U56: 4100.656099 | V56: 4246.295 | W56: 4395.07426 | X56: 4547.018937 | Y56: 4702.153956
D57: Option Capital Cost | E57: =$F$14 -> 11400.03072 | F57: =$F$14 -> 11400.03072 | G57: 11400.03072 | H57: 11400.03072 | I57: 11400.03072 | J57: 11400.03072 | K57: 11400.03072 | L57: 11400.03072 | M57: 11400.03072 | N57: 11400.03072 | O57: 11400.03072 | P57: 11400.03072 | Q57: 11400.03072 | R57: 11400.03072 | S57: 11400.03072 | T57: 11400.03072 | U57: 11400.03072 | V57: 11400.03072 | W57: 11400.03072 | X57: 11400.03072 | Y57: 11400.03072
D58: Total Cost | E58: =SUM(E53:E57) -> 483922.1112 | F58: =SUM(F53:F57) -> 445170.2192 | G58: 498840.8672 | H58: 555678.743 | I58: 604782.6904 | J58: 645178.0138 | K58: 695387.3688 | L58: 745879.212 | M58: 784032.617 | N58: 819301.663 | O58: 857816.6695 | P58: 897404.129 | Q58: 934939.4213 | R58: 973570.5953 | S58: 1013344.144 | T58: 1054434.851 | U58: 1096698.714 | V58: 1140157.696 | W58: 1184834.101 | X58: 1230750.582 | Y58: 1277930.15
B60: Scenario: Status Quo, , Online Monitor | C60: Setting | D60: Model Output | E60: 2019 | F60: 2020 | G60: 2021 | H60: 2022 | I60: 2023 | J60: 2024 | K60: 2025 | L60: 2026 | M60: 2027 | N60: 2028 | O60: 2029 | P60: 2030 | Q60: 2031 | R60: 2032 | S60: 2033 | T60: 2034 | U60: 2035 | V60: 2036 | W60: 2037 | X60: 2038 | Y60: 2039
B62: Additional Transformer | C62: FALSE | D62: 10% PoE (MWh, Pr-Adjusted) | E62: 15837.71487 | F62: 14499.11644 | G62: 16280.40862 | H62: 18119.87206 | I62: 19809.5408 | J62: 21241.53493 | K62: 22929.18871 | L62: 24676.29122 | M62: 25988.92233 | N62: 27128.17373 | O62: 28393.54704 | P62: 29687.79844 | Q62: 30913.17912 | R62: 32172.10507 | S62: 33465.51715 | T62: 34796.47678 | U62: 36162.7638 | V62: 37564.909 | W62: 39003.44779 | X62: 40478.92039 | Y62: 41991.87183
B63: Replace 1 Path | C63: FALSE | D63: 50% PoE (MWh, Pr-Adjusted) | E63: 11545.78508 | F63: 10405.00193 | G63: 11813.26562 | H63: 13324.15219 | I63: 14568.69931 | J63: 15552.87467 | K63: 16833.82251 | L63: 18095.32623 | M63: 19020.77264 | N63: 19894.74666 | O63: 20845.1983 | P63: 21822.63612 | Q63: 22738.44226 | R63: 23680.01213 | S63: 24648.65495 | T63: 25650.09348 | U63: 26679.03907 | V63: 27735.92994 | W63: 28821.20825 | X63: 29935.3202 | Y63: 31078.71612
B64: Replace 2 Paths - Same | C64: FALSE | D64: Pr (Terminal Failure) | E64: 0.01119899668 | F64: 0.01170796897 | G64: 0.0122309329 | H64: 0.01276803027 | I64: 0.01331940195 | J64: 0.0138851879 | K64: 0.01446552715 | L64: 0.01506055789 | M64: 0.01567041741 | N64: 0.01629524219 | O64: 0.01693516785 | P64: 0.01759032925 | Q64: 0.01826086041 | R64: 0.0189468946 | S64: 0.01964856434 | T64: 0.02036600138 | U64: 0.02109933676 | V64: 0.0218487008 | W64: 0.0226142231 | X64: 0.02339603261 | Y64: 0.02419425755
B65: Replace 2 Paths - different | C65: FALSE | D65: Pr (Repairable Failure) | E65: 0.01599856668 | F65: 0.01672566996 | G65: 0.01747276128 | H65: 0.01824004324 | I65: 0.01902771707 | J65: 0.01983598271 | K65: 0.02066503879 | L65: 0.0215150827 | M65: 0.02238631059 | N65: 0.02327891741 | O65: 0.02419309694 | P65: 0.02512904178 | Q65: 0.02608694344 | R65: 0.02706699229 | S65: 0.02806937762 | T65: 0.02909428768 | U65: 0.03014190966 | V65: 0.03121242971 | W65: 0.03230603301 | X65: 0.03342290372 | Y65: 0.03456322508
B66: Spare/Mobile Asset | C66: FALSE
B67: Non-Network MW | C67: 0 | D67: Energy at Risk (Weighted) | E67: =SUMPRODUCT(E62:E63,$N$10:$N$11)*VCR -> 683428.6505 | F67: 619516.9841 | G67: 700472.3174 | H67: 786182.5663 | I67: 859571.1041 | J67: 919136.8806 | K67: 993850.1667 | L67: 1068788.384 | M67: 1124257.903 | N67: 1175038.691 | O67: 1230685.35 | P67: 1287799.357 | Q67: 1341515.576 | R67: 1396728.137 | S67: 1453500.877 | T67: 1512096.038 | U67: 1572281.001 | V67: 1634080.582 | W67: 1697519.816 | X67: 1762623.969 | Y67: 1829418.535
B68: Probability Reduction | C68: TRUE | D68: Safety Risk | E68: =(E64+E65)*(VSL*DF_PUBLIC*POC_PUBLIC+VSL*DF_STAFF*POC_STAFF+VLTI*DF_STAFF*POC_LTI) -> 763.1013975 | F68: 797.7828498 | G68: 833.4176941 | H68: 870.0155935 | I68: 907.5861469 | J68: 946.1388903 | K68: 985.6832987 | L68: 1026.228787 | M68: 1067.784711 | N68: 1110.360369 | O68: 1153.965005 | P68: 1198.607805 | Q68: 1244.297904 | R68: 1291.044382 | S68: 1338.856269 | T68: 1387.742542 | U68: 1437.71213 | V68: 1488.773914 | W68: 1540.936724 | X68: 1594.209347 | Y68: 1648.60052
D69: Unplanned Replacement Risk | E69: =E64*$F$4 -> 34170.27563 | F69: =F64*$F$4 -> 35723.24721 | G69: 37318.90993 | H69: 38957.69649 | I69: 40640.0367 | J69: 42366.35757 | K69: 44137.08337 | L69: 45952.63568 | M69: 47813.43344 | N69: 49719.89305 | O69: 51672.42835 | P69: 53671.45077 | Q69: 55717.36927 | R69: 57810.59049 | S69: 59951.51874 | T69: 62140.55604 | U69: 64378.10221 | V69: 66664.55486 | W69: 69000.30948 | X69: 71385.75945 | Y69: 73821.29606
B70: This scenario involves the installation of an online monitor to reduce the probability of failure of the assets. This may be the true status quo depending on what is installed at the substation. | D70: Unplanned Fault Risk | E70: =E65*$F$5 -> 2176.525004 | F70: =F65*$F$5 -> 2275.44377 | G70: 2377.081809 | H70: 2481.466683 | I70: 2588.625769 | J70: 2698.586268 | K70: 2811.375202 | L70: 2927.019426 | M70: 3045.545624 | N70: 3166.980319 | O70: 3291.349873 | P70: 3418.680489 | Q70: 3548.99822 | R70: 3682.328966 | S70: 3818.698479 | T70: 3958.132368 | U70: 4100.656099 | V70: 4246.295 | W70: 4395.07426 | X70: 4547.018937 | Y70: 4702.153956
D71: Option Capital Cost | E71: =$F$16 -> 38140.62679 | F71: =$F$16 -> 38140.62679 | G71: 38140.62679 | H71: 38140.62679 | I71: 38140.62679 | J71: 38140.62679 | K71: 38140.62679 | L71: 38140.62679 | M71: 38140.62679 | N71: 38140.62679 | O71: 38140.62679 | P71: 38140.62679 | Q71: 38140.62679 | R71: 38140.62679 | S71: 38140.62679 | T71: 38140.62679 | U71: 38140.62679 | V71: 38140.62679 | W71: 38140.62679 | X71: 38140.62679 | Y71: 38140.62679
D72: Total Cost | E72: =SUM(E67:E71) -> 758679.1793 | F72: =SUM(F67:F71) -> 696454.0848 | G72: 779142.3536 | H72: 866632.3718 | I72: 941847.9795 | J72: 1003288.59 | K72: 1079924.935 | L72: 1156834.895 | M72: 1214325.294 | N72: 1267176.551 | O72: 1324943.72 | P72: 1384228.723 | Q72: 1440166.868 | R72: 1497652.728 | S72: 1556750.578 | T72: 1617723.096 | U72: 1680338.099 | V72: 1744620.832 | W72: 1810596.763 | X72: 1878291.584 | Y72: 1947731.213
B74: Scenario: Status Quo, Spare Ready, Online Monitor | C74: Setting | D74: Model Output | E74: 2019 | F74: 2020 | G74: 2021 | H74: 2022 | I74: 2023 | J74: 2024 | K74: 2025 | L74: 2026 | M74: 2027 | N74: 2028 | O74: 2029 | P74: 2030 | Q74: 2031 | R74: 2032 | S74: 2033 | T74: 2034 | U74: 2035 | V74: 2036 | W74: 2037 | X74: 2038 | Y74: 2039
B76: Additional Transformer | C76: FALSE | D76: 10% PoE (MWh, Pr-Adjusted) | E76: 8029.763355 | F76: 7354.581686 | G76: 8262.154465 | H76: 9200.259959 | I76: 10063.3312 | J76: 10796.45286 | K76: 11660.50091 | L76: 12555.88233 | M76: 13231.223 | N76: 13819.17781 | O76: 14472.27515 | P76: 15141.05981 | Q76: 15775.70231 | R76: 16428.46204 | S76: 17099.87893 | T76: 17791.57995 | U76: 18502.49548 | V76: 19232.96299 | W76: 19983.32466 | X76: 20753.92753 | Y76: 21545.12357
B77: Replace 1 Path | C77: FALSE | D77: 50% PoE (MWh, Pr-Adjusted) | E77: 5853.743591 | F77: 5277.868959 | G77: 5995.12135 | H77: 6765.261003 | I77: 7400.961371 | J77: 7905.072719 | K77: 8560.739115 | L77: 9207.331236 | M77: 9683.667574 | N77: 10134.4471 | O77: 10624.85941 | P77: 11129.75216 | Q77: 11603.94713 | R77: 12092.03375 | S77: 12594.72589 | T77: 13114.997 | U77: 13650.19562 | V77: 14200.59647 | W77: 14766.4782 | X77: 15348.12342 | Y77: 15945.8188
B78: Replace 2 Paths - Same | C78: FALSE | D78: Pr (Terminal Failure) | E78: 0.01119899668 | F78: 0.01170796897 | G78: 0.0122309329 | H78: 0.01276803027 | I78: 0.01331940195 | J78: 0.0138851879 | K78: 0.01446552715 | L78: 0.01506055789 | M78: 0.01567041741 | N78: 0.01629524219 | O78: 0.01693516785 | P78: 0.01759032925 | Q78: 0.01826086041 | R78: 0.0189468946 | S78: 0.01964856434 | T78: 0.02036600138 | U78: 0.02109933676 | V78: 0.0218487008 | W78: 0.0226142231 | X78: 0.02339603261 | Y78: 0.02419425755
B79: Replace 2 Paths - different | C79: FALSE | D79: Pr (Repairable Failure) | E79: 0.01599856668 | F79: 0.01672566996 | G79: 0.01747276128 | H79: 0.01824004324 | I79: 0.01902771707 | J79: 0.01983598271 | K79: 0.02066503879 | L79: 0.0215150827 | M79: 0.02238631059 | N79: 0.02327891741 | O79: 0.02419309694 | P79: 0.02512904178 | Q79: 0.02608694344 | R79: 0.02706699229 | S79: 0.02806937762 | T79: 0.02909428768 | U79: 0.03014190966 | V79: 0.03121242971 | W79: 0.03230603301 | X79: 0.03342290372 | Y79: 0.03456322508
B80: Spare/Mobile Asset | C80: TRUE
B81: Non-Network MW | C81: 0 | D81: Energy at Risk (Weighted) | E81: =SUMPRODUCT(E76:E77,$N$10:$N$11)*VCR -> 346500.1345 | F81: 314245.9255 | G81: 355483.1221 | H81: 399179.6388 | I81: 436665.7861 | J81: 467170.477 | K81: 505416.5204 | L81: 543824.8833 | M81: 572371.0601 | N81: 598568.439 | O81: 627283.9732 | P81: 656789.9314 | Q81: 684606.0798 | R81: 713229.5239 | S81: 742695.5011 | T81: 773140.8477 | U81: 804449.6345 | V81: 836637.4945 | W81: 869720.2817 | X81: 903714.0755 | Y81: 938635.1852
B82: Probability Reduction | C82: TRUE | D82: Safety Risk | E82: =(E78+E79)*(VSL*DF_PUBLIC*POC_PUBLIC+VSL*DF_STAFF*POC_STAFF+VLTI*DF_STAFF*POC_LTI) -> 763.1013975 | F82: 797.7828498 | G82: 833.4176941 | H82: 870.0155935 | I82: 907.5861469 | J82: 946.1388903 | K82: 985.6832987 | L82: 1026.228787 | M82: 1067.784711 | N82: 1110.360369 | O82: 1153.965005 | P82: 1198.607805 | Q82: 1244.297904 | R82: 1291.044382 | S82: 1338.856269 | T82: 1387.742542 | U82: 1437.71213 | V82: 1488.773914 | W82: 1540.936724 | X82: 1594.209347 | Y82: 1648.60052
D83: Unplanned Replacement Risk | E83: =E78*$F$4 -> 34170.27563 | F83: =F78*$F$4 -> 35723.24721 | G83: 37318.90993 | H83: 38957.69649 | I83: 40640.0367 | J83: 42366.35757 | K83: 44137.08337 | L83: 45952.63568 | M83: 47813.43344 | N83: 49719.89305 | O83: 51672.42835 | P83: 53671.45077 | Q83: 55717.36927 | R83: 57810.59049 | S83: 59951.51874 | T83: 62140.55604 | U83: 64378.10221 | V83: 66664.55486 | W83: 69000.30948 | X83: 71385.75945 | Y83: 73821.29606
B84: This scenario models the cumulative benefit of two lower-cost options; installation of an online monitor to reduce the probability of failure of the assets, as well as having a spare available. | D84: Unplanned Fault Risk | E84: =E79*$F$5 -> 2176.525004 | F84: =F79*$F$5 -> 2275.44377 | G84: 2377.081809 | H84: 2481.466683 | I84: 2588.625769 | J84: 2698.586268 | K84: 2811.375202 | L84: 2927.019426 | M84: 3045.545624 | N84: 3166.980319 | O84: 3291.349873 | P84: 3418.680489 | Q84: 3548.99822 | R84: 3682.328966 | S84: 3818.698479 | T84: 3958.132368 | U84: 4100.656099 | V84: 4246.295 | W84: 4395.07426 | X84: 4547.018937 | Y84: 4702.153956
D85: Option Capital Cost | E85: =$F$14+$F$16 -> 49540.65751 | F85: =$F$14+$F$16 -> 49540.65751 | G85: 49540.65751 | H85: 49540.65751 | I85: 49540.65751 | J85: 49540.65751 | K85: 49540.65751 | L85: 49540.65751 | M85: 49540.65751 | N85: 49540.65751 | O85: 49540.65751 | P85: 49540.65751 | Q85: 49540.65751 | R85: 49540.65751 | S85: 49540.65751 | T85: 49540.65751 | U85: 49540.65751 | V85: 49540.65751 | W85: 49540.65751 | X85: 49540.65751 | Y85: 49540.65751
D86: Total Cost | E86: =SUM(E81:E85) -> 433150.694 | F86: =SUM(F81:F85) -> 402583.0568 | G86: 445553.1891 | H86: 491029.4751 | I86: 530342.6923 | J86: 562722.2172 | K86: 602891.3198 | L86: 643271.4247 | M86: 673838.4814 | N86: 702106.3303 | O86: 732942.3739 | P86: 764619.3279 | Q86: 794657.4027 | R86: 825554.1453 | S86: 857345.2321 | T86: 890167.9361 | U86: 923906.7625 | V86: 958577.7758 | W86: 994197.2597 | X86: 1030781.721 | Y86: 1068347.893
B88: Scenario: Replace 1 Asset, , | C88: Setting | D88: Model Output | E88: 2019 | F88: 2020 | G88: 2021 | H88: 2022 | I88: 2023 | J88: 2024 | K88: 2025 | L88: 2026 | M88: 2027 | N88: 2028 | O88: 2029 | P88: 2030 | Q88: 2031 | R88: 2032 | S88: 2033 | T88: 2034 | U88: 2035 | V88: 2036 | W88: 2037 | X88: 2038 | Y88: 2039
B90: Additional Transformer | C90: FALSE | D90: 10% PoE (MWh, Pr-Adjusted) | E90: 20.8195658 | F90: 45.91318224 | G90: 85.4842527 | H90: 135.4298151 | I90: 193.8811128 | J90: 258.2821399 | K90: 334.0611277 | L90: 419.551274 | M90: 505.4117956 | N90: 594.000346 | O90: 691.1732516 | P90: 795.1029946 | Q90: 903.0076167 | R90: 1017.49905 | S90: 1138.735156 | T90: 1266.965716 | U90: 1402.269436 | V90: 1544.821116 | W90: 1694.804329 | X90: 1852.41111 | Y90: 2017.841741
B91: Replace 1 Path | C91: TRUE | D91: 50% PoE (MWh, Pr-Adjusted) | E91: 15.17758301 | F91: 32.94868011 | G91: 62.02842982 | H91: 99.58610419 | I91: 142.5876381 | J91: 189.1120282 | K91: 245.2562017 | L91: 307.6603816 | M91: 369.9007883 | N91: 435.6167325 | O91: 507.4266865 | P91: 584.4570578 | Q91: 664.2146534 | R91: 748.9217689 | S91: 838.7227313 | T91: 933.9390667 | U91: 1034.522729 | V91: 1140.613711 | W91: 1252.358734 | X91: 1369.911035 | Y91: 1493.430227
B92: Replace 2 Paths - Same | C92: FALSE | D92: Pr (Terminal Failure) | E92: 0.005599643964 | F92: 0.005854867391 | G92: 0.006118000128 | H92: 0.006389368073 | I92: 0.006669263187 | J92: 0.006957955306 | K92: 0.007255698181 | L92: 0.0075627331 | M92: 0.007879291272 | N92: 0.008205595504 | O92: 0.008541861434 | P92: 0.008888298478 | Q92: 0.009245110565 | R92: 0.009612496736 | S92: 0.00999065163 | T92: 0.01037976589 | U92: 0.0107800265 | V92: 0.0111916171 | W92: 0.01161471819 | X92: 0.0120495074 | Y92: 0.01249615965
B93: Replace 2 Paths - different | C93: FALSE | D93: Pr (Repairable Failure) | E93: 0.007999491377 | F93: 0.008364096273 | G93: 0.008740000183 | H93: 0.009127668676 | I93: 0.009527518839 | J93: 0.009939936151 | K93: 0.01036528312 | L93: 0.01080390443 | M93: 0.01125613039 | N93: 0.01172227929 | O93: 0.01220265919 | P93: 0.01269756925 | Q93: 0.01320730081 | R93: 0.01373213819 | S93: 0.01427235947 | T93: 0.01482823699 | U93: 0.01540003786 | V93: 0.01598802442 | W93: 0.01659245455 | X93: 0.017213582 | Y93: 0.01785165665
B94: Spare/Mobile Asset | C94: FALSE
B95: Non-Network MW | C95: 0 | D95: Energy at Risk (Weighted) | E95: =SUMPRODUCT(E90:E91,$N$10:$N$11)*VCR -> 898.4053489 | F95: 1961.774451 | G95: 3678.000595 | H95: 5876.01056 | I95: 8412.845299 | J95: 11176.05866 | K95: 14479.6535 | L95: 18171.7554 | M95: 21863.66939 | N95: 25728.72747 | O95: 29958.10258 | P95: 34490.03225 | Q95: 39187.13046 | R95: 44173.96839 | S95: 49458.44827 | T95: 55056.54645 | U95: 60967.72928 | V95: 67200.00806 | W95: 73761.78506 | X95: 80661.84056 | Y95: 87909.32439
B96: Probability Reduction | C96: FALSE | D96: Safety Risk | E96: =(E92+E93)*(VSL*DF_PUBLIC*POC_PUBLIC+VSL*DF_STAFF*POC_STAFF+VLTI*DF_STAFF*POC_LTI) -> 381.5606217 | F96: 398.9515862 | G96: 416.8814923 | H96: 435.3725469 | I96: 454.444644 | J96: 474.1161705 | K96: 494.4044169 | L96: 515.3258246 | M96: 536.8961483 | N96: 559.13057 | O96: 582.0437835 | P96: 605.6500582 | Q96: 629.96329 | R96: 654.9970416 | S96: 680.7645756 | T96: 707.2788826 | U96: 734.5527039 | V96: 762.5985518 | W96: 791.4287267 | X96: 821.0553319 | Y96: 851.4902871
D97: Unplanned Replacement Risk | E97: =E92*$F$4 -> 17085.58215 | F97: =F92*$F$4 -> 17864.31752 | G97: 18667.1857 | H97: 19495.18108 | I97: 20349.19448 | J97: 21230.04922 | K97: 22138.51954 | L97: 23075.34166 | M97: 24041.22104 | N97: 25036.83751 | O97: 26062.84902 | P97: 27119.89454 | Q97: 28208.5963 | R97: 29329.5616 | S97: 30483.38434 | T97: 31670.64619 | U97: 32891.91769 | V97: 34147.75912 | W97: 35438.72128 | X97: 36765.34612 | Y97: 38128.16737
B98: This scenario involves the replacement of 1 of n redundant assets in the system. | D98: Unplanned Fault Risk | E98: =E93*$F$5 -> 1088.290804 | F98: =F93*$F$5 -> 1137.893478 | G98: 1189.033325 | H98: 1241.773685 | I98: 1296.1713 | J98: 1352.278614 | K98: 1410.144941 | L98: 1469.817178 | M98: 1531.340259 | N98: 1594.757486 | O98: 1660.11077 | P98: 1727.440809 | Q98: 1796.787238 | R98: 1868.188741 | S98: 1941.683144 | T98: 2017.307501 | U98: 2095.098151 | V98: 2175.090783 | W98: 2257.32048 | X98: 2341.821763 | Y98: 2428.628629
D99: Option Capital Cost | E99: =$F$11 -> 96139.24381 | F99: =$F$11 -> 96139.24381 | G99: 96139.24381 | H99: 96139.24381 | I99: 96139.24381 | J99: 96139.24381 | K99: 96139.24381 | L99: 96139.24381 | M99: 96139.24381 | N99: 96139.24381 | O99: 96139.24381 | P99: 96139.24381 | Q99: 96139.24381 | R99: 96139.24381 | S99: 96139.24381 | T99: 96139.24381 | U99: 96139.24381 | V99: 96139.24381 | W99: 96139.24381 | X99: 96139.24381 | Y99: 96139.24381
D100: Total Cost | E100: =SUM(E95:E99) -> 115593.0827 | F100: =SUM(F95:F99) -> 117502.1808 | G100: 120090.3449 | H100: 123187.5817 | I100: 126651.8995 | J100: 130371.7465 | K100: 134661.9662 | L100: 139371.4839 | M100: 144112.3706 | N100: 149058.6968 | O100: 154402.35 | P100: 160082.2615 | Q100: 165961.7211 | R100: 172165.9596 | S100: 178703.5241 | T100: 185591.0228 | U100: 192828.5416 | V100: 200424.7003 | W100: 208388.4993 | X100: 216729.3076 | Y100: 225456.8545
B102: Scenario: Replace with 2 like Assets, , | C102: Setting | D102: Model Output | E102: 2019 | F102: 2020 | G102: 2021 | H102: 2022 | I102: 2023 | J102: 2024 | K102: 2025 | L102: 2026 | M102: 2027 | N102: 2028 | O102: 2029 | P102: 2030 | Q102: 2031 | R102: 2032 | S102: 2033 | T102: 2034 | U102: 2035 | V102: 2036 | W102: 2037 | X102: 2038 | Y102: 2039
B104: Additional Transformer | C104: FALSE | D104: 10% PoE (MWh, Pr-Adjusted) | E104: 0.5093694275 | F104: 2.703010508 | G104: 8.333286722 | H104: 18.76132956 | I104: 35.10466607 | J104: 57.97664925 | K104: 89.64036299 | L104: 131.0484041 | M104: 180.0769277 | N104: 237.5947442 | O104: 306.3951773 | P104: 386.5060848 | Q104: 477.0931216 | R104: 579.8905466 | S104: 695.530578 | T104: 824.6908442 | U104: 967.9306004 | V104: 1125.851355 | W104: 1299.048294 | X104: 1488.111091 | Y104: 1693.624617
B105: Replace 1 Path | C105: FALSE | D105: 50% PoE (MWh, Pr-Adjusted) | E105: 0.3713332373 | F105: 1.939761615 | G105: 6.046735794 | H105: 13.79583749 | I105: 25.81732355 | J105: 42.45001893 | K105: 65.81087449 | L105: 96.09886681 | M105: 131.794703 | N105: 174.2427371 | O105: 224.9408368 | P105: 284.1093678 | Q105: 350.9297557 | R105: 426.8236457 | S105: 512.2853219 | T105: 607.9177894 | U105: 714.0897319 | V105: 831.268733 | W105: 959.9187645 | X105: 1100.500744 | Y105: 1253.473027
B106: Replace 2 Paths - Same | C106: TRUE | D106: Pr (Terminal Failure) | E106: 2.912502672e-07 | F106: 1.76581142e-06 | G106: 5.067358085e-06 | H106: 1.070587849e-05 | I106: 1.912442312e-05 | J106: 3.072271439e-05 | K106: 4.586920748e-05 | L106: 6.490830956e-05 | M106: 8.816513098e-05 | N106: 0.0001159488198 | O106: 0.0001485550138 | P106: 0.0001862677087 | Q106: 0.0002293607228 | R106: 0.0002780988707 | S106: 0.0003327389226 | T106: 0.0003935304004 | U106: 0.0004607162474 | V106: 0.0005345333985 | W106: 0.0006152132707 | X106: 0.0007029821882 | Y106: 0.0007980617549
B107: Replace 2 Paths - different | C107: FALSE | D107: Pr (Repairable Failure) | E107: 4.160718103e-07 | F107: 2.522587743e-06 | G107: 7.239082978e-06 | H107: 1.529411213e-05 | I107: 2.732060446e-05 | J107: 4.388959199e-05 | K107: 6.552743926e-05 | L107: 9.272615651e-05 | M107: 0.0001259501871 | N107: 0.0001656411712 | O107: 0.0002122214482 | P107: 0.0002660967267 | Q107: 0.0003276581754 | R107: 0.000397284101 | S107: 0.000475341318 | T107: 0.0005621862863 | U107: 0.0006581660676 | V107: 0.0007636191407 | W107: 0.000878876101 | X107: 0.001004260269 | Y107: 0.001140088221
B108: Spare/Mobile Asset | C108: FALSE
B109: Non-Network MW | C109: 0 | D109: Energy at Risk (Weighted) | E109: =SUMPRODUCT(E104:E105,$N$10:$N$11)*VCR -> 21.98029597 | F109: 115.4939975 | G109: 358.5436213 | H109: 814.0140378 | I109: 1523.253713 | J109: 2508.692367 | K109: 3885.400868 | L109: 5676.015524 | M109: 7789.96938 | N109: 10291.25734 | O109: 13280.34343 | P109: 16765.88746 | Q109: 20704.04507 | R109: 25175.51901 | S109: 30208.83559 | T109: 35837.29946 | U109: 42083.58913 | V109: 48974.74494 | W109: 56537.57159 | X109: 64798.67184 | Y109: 73784.47616
B110: Probability Reduction | C110: FALSE | D110: Safety Risk | E110: =(E106+E107)*(VSL*DF_PUBLIC*POC_PUBLIC+VSL*DF_STAFF*POC_STAFF+VLTI*DF_STAFF*POC_LTI) -> 0.01984583908 | F110: 0.1203226683 | G110: 0.345290578 | H110: 0.7295002467 | I110: 1.303141204 | J110: 2.093450598 | K110: 3.125535022 | L110: 4.422862437 | M110: 6.007585912 | N110: 7.900770845 | O110: 10.12256204 | P110: 12.69231101 | Q110: 15.62867578 | R110: 18.94970085 | S110: 22.6728826 | T110: 26.81522347 | U110: 31.39327766 | V110: 36.42318996 | W110: 41.92072916 | X110: 47.90131703 | Y110: 54.38005368
D111: Unplanned Replacement Risk | E111: =E106*$F$4 -> 0.8886601359 | F111: =F106*$F$4 -> 5.38782756 | G111: 15.46147637 | H111: 32.66567796 | I111: 58.35226389 | J111: 93.7408635 | K111: 139.9557039 | L111: 198.047637 | M111: 269.0086365 | N111: 353.7819723 | O111: 453.2696913 | P111: 568.3383191 | Q111: 699.8233272 | R111: 848.5327158 | S111: 1015.249939 | T111: 1200.736337 | U111: 1405.733175 | V111: 1630.963388 | W111: 1877.133072 | X111: 2144.932785 | Y111: 2435.038684
B112: This scenario involves replacing 2 of n redundant assets (n>=2) in a single station. When coupled in the time model with the 'replace 1 asset' option, this refers to the replacement of the second asset. | D112: Unplanned Fault Risk | E112: =E107*$F$5 -> 0.05660448944 | F112: =F107*$F$5 -> 0.3431854495 | G112: 0.9848410438 | H112: 2.080687485 | I112: 3.716831634 | J112: 5.970959542 | K112: 8.914680474 | L112: 12.61492996 | M112: 17.13489321 | N112: 22.53465313 | O112: 28.87166693 | P112: 36.20112918 | Q112: 44.57625647 | R112: 54.04851552 | S112: 64.66780961 | T112: 76.48263332 | U112: 89.54020267 | V112: 103.886566 | W112: 119.5666992 | X112: 136.6245883 | Y112: 155.1033021
D113: Option Capital Cost | E113: =$F$12 -> 192278.4876 | F113: =$F$12 -> 192278.4876 | G113: 192278.4876 | H113: 192278.4876 | I113: 192278.4876 | J113: 192278.4876 | K113: 192278.4876 | L113: 192278.4876 | M113: 192278.4876 | N113: 192278.4876 | O113: 192278.4876 | P113: 192278.4876 | Q113: 192278.4876 | R113: 192278.4876 | S113: 192278.4876 | T113: 192278.4876 | U113: 192278.4876 | V113: 192278.4876 | W113: 192278.4876 | X113: 192278.4876 | Y113: 192278.4876
D114: Total Cost | E114: =SUM(E109:E113) -> 192301.433 | F114: =SUM(F109:F113) -> 192399.8329 | G114: 192653.8228 | H114: 193127.9775 | I114: 193865.1136 | J114: 194888.9853 | K114: 196315.8844 | L114: 198169.5886 | M114: 200360.6081 | N114: 202953.9624 | O114: 206051.095 | P114: 209661.6068 | Q114: 213742.5609 | R114: 218375.5376 | S114: 223589.9138 | T114: 229419.8213 | U114: 235888.7434 | V114: 243024.5057 | W114: 250854.6797 | X114: 259406.6181 | Y114: 268707.4858
B116: Scenario: Replace with 2 different Assets, , | C116: Setting | D116: Model Output | E116: 2019 | F116: 2020 | G116: 2021 | H116: 2022 | I116: 2023 | J116: 2024 | K116: 2025 | L116: 2026 | M116: 2027 | N116: 2028 | O116: 2029 | P116: 2030 | Q116: 2031 | R116: 2032 | S116: 2033 | T116: 2034 | U116: 2035 | V116: 2036 | W116: 2037 | X116: 2038 | Y116: 2039
B118: Additional Transformer | C118: FALSE | D118: 10% PoE (MWh, Pr-Adjusted) | E118: 0.1061188725 | F118: 0.5631349667 | G118: 1.736170211 | H118: 3.90893762 | I118: 7.314566058 | J118: 12.08137098 | K118: 18.68177538 | L118: 27.31561062 | M118: 37.54189485 | N118: 49.54378998 | O118: 63.90648518 | P118: 80.63938928 | Q118: 99.57266301 | R118: 121.0732293 | S118: 145.2791714 | T118: 172.3391862 | U118: 202.3784734 | V118: 235.5323851 | W118: 271.936392 | X118: 311.7263632 | Y118: 355.0388275
B119: Replace 1 Path | C119: FALSE | D119: 50% PoE (MWh, Pr-Adjusted) | E119: 0.07736126734 | F119: 0.4041225847 | G119: 1.259786553 | H119: 2.874373481 | I119: 5.379413613 | J119: 8.845879045 | K119: 13.71551758 | L119: 20.03076074 | M119: 27.47616225 | N119: 36.33348709 | O119: 46.91711658 | P119: 59.27566683 | Q119: 73.24148835 | R119: 89.1149501 | S119: 107.00376 | T119: 127.0391903 | U119: 149.3044953 | V119: 173.9045803 | W119: 200.9446812 | X119: 230.5305677 | Y119: 262.7687324
B120: Replace 2 Paths - Same | C120: FALSE | D120: Pr (Terminal Failure) | E120: 2.912502672e-07 | F120: 1.76581142e-06 | G120: 5.067358085e-06 | H120: 1.070587849e-05 | I120: 1.912442312e-05 | J120: 3.072271439e-05 | K120: 4.586920748e-05 | L120: 6.490830956e-05 | M120: 8.816513098e-05 | N120: 0.0001159488198 | O120: 0.0001485550138 | P120: 0.0001862677087 | Q120: 0.0002293607228 | R120: 0.0002780988707 | S120: 0.0003327389226 | T120: 0.0003935304004 | U120: 0.0004607162474 | V120: 0.0005345333985 | W120: 0.0006152132707 | X120: 0.0007029821882 | Y120: 0.0007980617549
B121: Replace 2 Paths - different | C121: TRUE | D121: Pr (Repairable Failure) | E121: 4.160718103e-07 | F121: 2.522587743e-06 | G121: 7.239082978e-06 | H121: 1.529411213e-05 | I121: 2.732060446e-05 | J121: 4.388959199e-05 | K121: 6.552743926e-05 | L121: 9.272615651e-05 | M121: 0.0001259501871 | N121: 0.0001656411712 | O121: 0.0002122214482 | P121: 0.0002660967267 | Q121: 0.0003276581754 | R121: 0.000397284101 | S121: 0.000475341318 | T121: 0.0005621862863 | U121: 0.0006581660676 | V121: 0.0007636191407 | W121: 0.000878876101 | X121: 0.001004260269 | Y121: 0.001140088221
B122: Spare/Mobile Asset | C122: FALSE
B123: Non-Network MW | C123: 0 | D123: Energy at Risk (Weighted) | E123: =SUMPRODUCT(E118:E119,$N$10:$N$11)*VCR -> 4.579238759 | F123: 24.06158179 | G123: 74.69954836 | H123: 169.6004585 | I123: 317.3919923 | J123: 522.7698314 | K123: 809.7489105 | L123: 1183.103534 | M123: 1624.029325 | N123: 2145.956108 | O123: 2769.952445 | P123: 3497.98096 | Q123: 4321.078652 | R123: 5256.304666 | S123: 6309.880171 | T123: 7489.074319 | U123: 8798.990878 | V123: 10245.70289 | W123: 11835.29765 | X123: 13573.88869 | Y123: 15467.62703
B124: Probability Reduction | C124: FALSE | D124: Safety Risk | E124: =(E120+E121)*(VSL*DF_PUBLIC*POC_PUBLIC+VSL*DF_STAFF*POC_STAFF+VLTI*DF_STAFF*POC_LTI) -> 0.01984583908 | F124: 0.1203226683 | G124: 0.345290578 | H124: 0.7295002467 | I124: 1.303141204 | J124: 2.093450598 | K124: 3.125535022 | L124: 4.422862437 | M124: 6.007585912 | N124: 7.900770845 | O124: 10.12256204 | P124: 12.69231101 | Q124: 15.62867578 | R124: 18.94970085 | S124: 22.6728826 | T124: 26.81522347 | U124: 31.39327766 | V124: 36.42318996 | W124: 41.92072916 | X124: 47.90131703 | Y124: 54.38005368
D125: Unplanned Replacement Risk | E125: =E120*$F$4 -> 0.8886601359 | F125: =F120*$F$4 -> 5.38782756 | G125: 15.46147637 | H125: 32.66567796 | I125: 58.35226389 | J125: 93.7408635 | K125: 139.9557039 | L125: 198.047637 | M125: 269.0086365 | N125: 353.7819723 | O125: 453.2696913 | P125: 568.3383191 | Q125: 699.8233272 | R125: 848.5327158 | S125: 1015.249939 | T125: 1200.736337 | U125: 1405.733175 | V125: 1630.963388 | W125: 1877.133072 | X125: 2144.932785 | Y125: 2435.038684
B126: This scenario involves replacing 2 of n redundant assets (n>=2) in a single station. When coupled in the time model with the 'replace 1 asset' option, this refers to the replacement of the second asset. | D126: Unplanned Fault Risk | E126: =E121*$F$5 -> 0.05660448944 | F126: =F121*$F$5 -> 0.3431854495 | G126: 0.9848410438 | H126: 2.080687485 | I126: 3.716831634 | J126: 5.970959542 | K126: 8.914680474 | L126: =L121*$F$5 -> 12.61492996 | M126: 17.13489321 | N126: 22.53465313 | O126: 28.87166693 | P126: 36.20112918 | Q126: 44.57625647 | R126: 54.04851552 | S126: 64.66780961 | T126: 76.48263332 | U126: 89.54020267 | V126: 103.886566 | W126: 119.5666992 | X126: 136.6245883 | Y126: 155.1033021
D127: Option Capital Cost | E127: =$F$13 -> 195681.4339 | F127: =$F$13 -> 195681.4339 | G127: 195681.4339 | H127: 195681.4339 | I127: 195681.4339 | J127: 195681.4339 | K127: 195681.4339 | L127: 195681.4339 | M127: 195681.4339 | N127: 195681.4339 | O127: 195681.4339 | P127: 195681.4339 | Q127: 195681.4339 | R127: 195681.4339 | S127: 195681.4339 | T127: 195681.4339 | U127: 195681.4339 | V127: 195681.4339 | W127: 195681.4339 | X127: 195681.4339 | Y127: 195681.4339
D128: Total Cost | E128: =SUM(E123:E127) -> 195686.9782 | F128: =SUM(F123:F127) -> 195711.3468 | G128: 195772.925 | H128: 195886.5102 | I128: 196062.1981 | J128: 196306.009 | K128: 196643.1787 | L128: 197079.6228 | M128: 197597.6143 | N128: 198211.6074 | O128: 198943.6502 | P128: 199796.6466 | Q128: 200762.5408 | R128: 201859.2695 | S128: 203093.9047 | T128: 204474.5424 | U128: 206007.0914 | V128: 207698.4099 | W128: 209555.352 | X128: 211584.7813 | Y128: 213793.5829
B130: Scenario: Additional path, , | C130: Setting | D130: Model Output | E130: 2019 | F130: 2020 | G130: 2021 | H130: 2022 | I130: 2023 | J130: 2024 | K130: 2025 | L130: 2026 | M130: 2027 | N130: 2028 | O130: 2029 | P130: 2030 | Q130: 2031 | R130: 2032 | S130: 2033 | T130: 2034 | U130: 2035 | V130: 2036 | W130: 2037 | X130: 2038 | Y130: 2039
B132: Additional Bus | C132: TRUE | D132: 10% PoE (MWh, Pr-Adjusted) | E132: 19849.93224 | F132: 18174.39441 | G132: 20409.71697 | H132: 22718.59432 | I132: 24840.29638 | J132: 26639.47688 | K132: 28759.89671 | L132: 30955.56757 | M132: 32606.84872 | N132: 34041.14967 | O132: 35634.26887 | P132: 37264.23269 | Q132: 38808.36096 | R132: 40395.22297 | S132: 42026.03703 | T132: 43704.68669 | U132: 45428.4242 | V132: 47197.95731 | W132: 49014.0011 | X132: 50877.27812 | Y132: 52788.51854
B133: Replace 1 Path | C133: FALSE | D133: 50% PoE (MWh, Pr-Adjusted) | E133: 14470.71458 | F133: 13042.49191 | G133: 14809.54277 | H133: 16705.74754 | I133: 18268.51073 | J133: 19505.20274 | K133: 21114.52798 | L133: 22699.97095 | M133: 23864.30066 | N133: 24964.45413 | O133: 26160.99355 | P133: 27391.85231 | Q133: 28545.80797 | R133: 29732.57012 | S133: 30953.81078 | T133: 32216.74729 | U133: 33514.7698 | V133: 34848.46023 | W133: 36218.40664 | X133: 37625.20336 | Y133: 39069.45108
B134: Replace 2 Paths - Same | C134: FALSE | D134: Pr (Terminal Failure) | E134: 0.01119899668 | F134: 0.01170796897 | G134: 0.0122309329 | H134: 0.01276803027 | I134: 0.01331940195 | J134: 0.0138851879 | K134: 0.01446552715 | L134: 0.01506055789 | M134: 0.01567041741 | N134: 0.01629524219 | O134: 0.01693516785 | P134: 0.01759032925 | Q134: 0.01826086041 | R134: 0.0189468946 | S134: 0.01964856434 | T134: 0.02036600138 | U134: 0.02109933676 | V134: 0.0218487008 | W134: 0.0226142231 | X134: 0.02339603261 | Y134: 0.02419425755
B135: Replace 2 Paths - different | C135: FALSE | D135: Pr (Repairable Failure) | E135: 0.01599856668 | F135: 0.01672566996 | G135: 0.01747276128 | H135: 0.01824004324 | I135: 0.01902771707 | J135: 0.01983598271 | K135: 0.02066503879 | L135: 0.0215150827 | M135: 0.02238631059 | N135: 0.02327891741 | O135: 0.02419309694 | P135: 0.02512904178 | Q135: 0.02608694344 | R135: 0.02706699229 | S135: 0.02806937762 | T135: 0.02909428768 | U135: 0.03014190966 | V135: 0.03121242971 | W135: 0.03230603301 | X135: 0.03342290372 | Y135: 0.03456322508
B136: Spare/Mobile Asset | C136: FALSE
B137: Non-Network MW | C137: 0 | D137: Energy at Risk (Weighted) | E137: =SUMPRODUCT(E132:E133,$N$10:$N$11)*VCR -> 856563.7476 | F137: 776553.941 | G137: 878137.7716 | H137: 985711.3073 | I137: 1077864.509 | J137: =SUMPRODUCT(J132:J133,$N$10:$N$11)*VCR -> 1152709.81 | K137: 1246578.259 | L137: 1340758.656 | M137: 1410543.574 | N137: 1474469.617 | O137: 1544526.036 | P137: 1616450.442 | Q137: 1684136.74 | R137: 1753728.716 | S137: 1825308.165 | T137: 1899206.176 | U137: 1975132.451 | V137: 2053119.989 | W137: 2133202.136 | X137: 2215412.591 | Y137: 2299785.412
B138: Probability Reduction | C138: FALSE | D138: Safety Risk | E138: =(E134+E135)*(VSL*DF_PUBLIC*POC_PUBLIC+VSL*DF_STAFF*POC_STAFF+VLTI*DF_STAFF*POC_LTI) -> 763.1013975 | F138: 797.7828498 | G138: 833.4176941 | H138: 870.0155935 | I138: 907.5861469 | J138: 946.1388903 | K138: 985.6832987 | L138: 1026.228787 | M138: 1067.784711 | N138: 1110.360369 | O138: 1153.965005 | P138: 1198.607805 | Q138: 1244.297904 | R138: 1291.044382 | S138: 1338.856269 | T138: 1387.742542 | U138: 1437.71213 | V138: 1488.773914 | W138: 1540.936724 | X138: 1594.209347 | Y138: 1648.60052
D139: Unplanned Replacement Risk | E139: =E134*$F$4 -> 34170.27563 | F139: =F134*$F$4 -> 35723.24721 | G139: 37318.90993 | H139: 38957.69649 | I139: 40640.0367 | J139: 42366.35757 | K139: 44137.08337 | L139: 45952.63568 | M139: 47813.43344 | N139: 49719.89305 | O139: 51672.42835 | P139: 53671.45077 | Q139: 55717.36927 | R139: 57810.59049 | S139: 59951.51874 | T139: 62140.55604 | U139: 64378.10221 | V139: 66664.55486 | W139: 69000.30948 | X139: 71385.75945 | Y139: 73821.29606
B140: This scenario involves the installation of an additional asset in parallel to increase redundancy (e.g. install a 3rd transformer in a 2-transformer station | D140: Unplanned Fault Risk | E140: =E135*$F$5 -> 2176.525004 | F140: =F135*$F$5 -> 2275.44377 | G140: 2377.081809 | H140: 2481.466683 | I140: 2588.625769 | J140: 2698.586268 | K140: 2811.375202 | L140: 2927.019426 | M140: 3045.545624 | N140: 3166.980319 | O140: 3291.349873 | P140: 3418.680489 | Q140: 3548.99822 | R140: 3682.328966 | S140: 3818.698479 | T140: 3958.132368 | U140: 4100.656099 | V140: 4246.295 | W140: 4395.07426 | X140: 4547.018937 | Y140: 4702.153956
D141: Option Capital Cost | E141: =$F$10 -> 189052.5702 | F141: =$F$10 -> 189052.5702 | G141: 189052.5702 | H141: 189052.5702 | I141: 189052.5702 | J141: 189052.5702 | K141: 189052.5702 | L141: 189052.5702 | M141: 189052.5702 | N141: 189052.5702 | O141: 189052.5702 | P141: 189052.5702 | Q141: 189052.5702 | R141: 189052.5702 | S141: 189052.5702 | T141: 189052.5702 | U141: 189052.5702 | V141: 189052.5702 | W141: 189052.5702 | X141: 189052.5702 | Y141: 189052.5702
D142: Total Cost | E142: =SUM(E137:E141) -> 1082726.22 | F142: =SUM(F137:F141) -> 1004402.985 | G142: 1107719.751 | H142: 1217073.056 | I142: 1311053.328 | J142: 1387773.462 | K142: 1483564.971 | L142: 1579717.11 | M142: 1651522.907 | N142: 1717519.421 | O142: 1789696.349 | P142: 1863791.751 | Q142: 1933699.976 | R142: 2005565.25 | S142: 2079469.808 | T142: 2155745.177 | U142: 2234101.491 | V142: 2314572.183 | W142: 2397191.026 | X142: 2481992.149 | Y142: 2569010.033
B144: Scenario selected | C144: Setting | D144: Model Output | E144: 2019 | F144: 2020 | G144: 2021 | H144: 2022 | I144: 2023 | J144: 2024 | K144: 2025 | L144: 2026 | M144: 2027 | N144: 2028 | O144: 2029 | P144: 2030 | Q144: 2031 | R144: 2032 | S144: 2033 | T144: 2034 | U144: 2035 | V144: 2036 | W144: 2037 | X144: 2038 | Y144: 2039
D146: Status Quo | E146: =E44 -> 893673.6496 | F146: 815350.4148 | G146: 918667.1811 | H146: 1028020.486 | I146: 1122000.758 | J146: 1198720.892 | K146: 1294512.401 | L146: 1390664.54 | M146: 1462470.337 | N146: 1528466.851 | O146: 1600643.779 | P146: 1674739.181 | Q146: 1744647.406 | R146: 1816512.68 | S146: 1890417.238 | T146: 1966692.607 | U146: 2045048.921 | V146: 2125519.612 | W146: 2208138.456 | X146: 2292939.579 | Y146: 2379957.463
D147: Spare/Mobile Asset | E147: =E58 -> 483922.1112 | F147: 445170.2192 | G147: 498840.8672 | H147: 555678.743 | I147: 604782.6904 | J147: 645178.0138 | K147: 695387.3688 | L147: 745879.212 | M147: 784032.617 | N147: 819301.663 | O147: 857816.6695 | P147: 897404.129 | Q147: 934939.4213 | R147: 973570.5953 | S147: 1013344.144 | T147: 1054434.851 | U147: 1096698.714 | V147: 1140157.696 | W147: 1184834.101 | X147: 1230750.582 | Y147: 1277930.15
D148: Online Monitor | E148: =E72 -> 758679.1793 | F148: 696454.0848 | G148: 779142.3536 | H148: 866632.3718 | I148: 941847.9795 | J148: 1003288.59 | K148: 1079924.935 | L148: 1156834.895 | M148: 1214325.294 | N148: 1267176.551 | O148: 1324943.72 | P148: 1384228.723 | Q148: 1440166.868 | R148: 1497652.728 | S148: 1556750.578 | T148: 1617723.096 | U148: 1680338.099 | V148: 1744620.832 | W148: 1810596.763 | X148: 1878291.584 | Y148: 1947731.213
D149: Spare and Online monitor | E149: =E86 -> 433150.694 | F149: 402583.0568 | G149: 445553.1891 | H149: 491029.4751 | I149: 530342.6923 | J149: 562722.2172 | K149: 602891.3198 | L149: 643271.4247 | M149: 673838.4814 | N149: 702106.3303 | O149: 732942.3739 | P149: 764619.3279 | Q149: 794657.4027 | R149: 825554.1453 | S149: 857345.2321 | T149: 890167.9361 | U149: 923906.7625 | V149: 958577.7758 | W149: 994197.2597 | X149: 1030781.721 | Y149: 1068347.893
D150: Replace 1 asset | E150: =E100 -> 115593.0827 | F150: 117502.1808 | G150: 120090.3449 | H150: 123187.5817 | I150: 126651.8995 | J150: 130371.7465 | K150: 134661.9662 | L150: 139371.4839 | M150: 144112.3706 | N150: 149058.6968 | O150: 154402.35 | P150: 160082.2615 | Q150: 165961.7211 | R150: 172165.9596 | S150: 178703.5241 | T150: 185591.0228 | U150: 192828.5416 | V150: 200424.7003 | W150: 208388.4993 | X150: 216729.3076 | Y150: 225456.8545
D151: Replace 2 Assets - same type | E151: =E114 -> 192301.433 | F151: 192399.8329 | G151: 192653.8228 | H151: 193127.9775 | I151: 193865.1136 | J151: 194888.9853 | K151: 196315.8844 | L151: 198169.5886 | M151: 200360.6081 | N151: 202953.9624 | O151: 206051.095 | P151: 209661.6068 | Q151: 213742.5609 | R151: 218375.5376 | S151: 223589.9138 | T151: 229419.8213 | U151: 235888.7434 | V151: 243024.5057 | W151: 250854.6797 | X151: 259406.6181 | Y151: 268707.4858
D152: Replace 2 Assets - Different Type | E152: =E128 -> 195686.9782 | F152: 195711.3468 | G152: 195772.925 | H152: 195886.5102 | I152: 196062.1981 | J152: 196306.009 | K152: 196643.1787 | L152: 197079.6228 | M152: 197597.6143 | N152: 198211.6074 | O152: 198943.6502 | P152: 199796.6466 | Q152: 200762.5408 | R152: 201859.2695 | S152: 203093.9047 | T152: 204474.5424 | U152: 206007.0914 | V152: 207698.4099 | W152: 209555.352 | X152: 211584.7813 | Y152: 213793.5829
D153: Additional Asset | E153: =E142 -> 1082726.22 | F153: 1004402.985 | G153: 1107719.751 | H153: 1217073.056 | I153: 1311053.328 | J153: 1387773.462 | K153: 1483564.971 | L153: 1579717.11 | M153: 1651522.907 | N153: 1717519.421 | O153: 1789696.349 | P153: 1863791.751 | Q153: 1933699.976 | R153: 2005565.25 | S153: 2079469.808 | T153: 2155745.177 | U153: 2234101.491 | V153: 2314572.183 | W153: 2397191.026 | X153: 2481992.149 | Y153: 2569010.033
D154: Min Cost | E154: =MIN(E146:E153) -> 115593.0827 | F154: =MIN(F146:F153) -> 117502.1808 | G154: =MIN(G146:G153) -> 120090.3449 | H154: 123187.5817 | I154: 126651.8995 | J154: 130371.7465 | K154: 134661.9662 | L154: 139371.4839 | M154: 144112.3706 | N154: 149058.6968 | O154: 154402.35 | P154: 160082.2615 | Q154: 165961.7211 | R154: 172165.9596 | S154: 178703.5241 | T154: 185591.0228 | U154: 192828.5416 | V154: 200424.7003 | W154: 208388.4993 | X154: 211584.7813 | Y154: 213793.5829
D155: Preferred option | E155: =INDEX($D$146:$D$153,MATCH(E154,E$146:E$153,0)) -> Replace 1 asset | F155: =INDEX($D$146:$D$153,MATCH(F154,F$146:F$153,0)) -> Replace 1 asset | G155: =INDEX($D$146:$D$153,MATCH(G154,G$146:G$153,0)) -> Replace 1 asset | H155: Replace 1 asset | I155: Replace 1 asset | J155: Replace 1 asset | K155: Replace 1 asset | L155: Replace 1 asset | M155: Replace 1 asset | N155: Replace 1 asset | O155: Replace 1 asset | P155: Replace 1 asset | Q155: Replace 1 asset | R155: Replace 1 asset | S155: Replace 1 asset | T155: Replace 1 asset | U155: Replace 1 asset | V155: Replace 1 asset | W155: Replace 1 asset | X155: Replace 2 Assets - Different Type | Y155: Replace 2 Assets - Different Type

Sheet Workings >

Sheet Engine
A1: Substation | C1: =ZSS -> CM | R1: Station Load and Capacity Data | Z1: Asset Probability Data | AK1: =BETA_NIL*SENSITIVITY_BETA -> 0.05 | AL1: =IF(ISREPLACE2SAME, IF(AssetType="Transformer", BETA_6MONTH, BETA_4MONTH), IF(ISREPLACE2DIFF, BETA_NIL, IF(ISSPAREREADY, BETA_1MONTH, IF(AssetType="Transformer", BETA_6MONTH, BETA_4MONTH))))*SENSITIVITY_BETA -> 0.24
A2: BAse Max | C2: =R4 -> 21.7307916 | D2: Risk Table | N2: Year | Q2: Year | R2: Base | S2: Peak Load | T2: Base Load Growth | U2: Peak Load Growth | V2: N Rating | W2: N-1 Cyclic | X2: N-1 2Hr | Y2: N-2 Cyclic | Z2: N-3 Cyclic | AA2: N-4 Cyclic | AB2: Load Transfers | AC2: PoF (Tx1) | AD2: PoF (Tx2) | AE2: PoF (Tx3) | AF2: PoF (Tx4) | AG2: # of Tx | AH2: λ (Annual failure rate per asset | AI2: Age (Tx1) | AJ2: Age (Tx2) | AK2: Age (Tx3) | AL2: Age (Tx4) | AM2: B12 | AN2: B23 | AO2: B13 | AP2: B14 | AQ2: B24 | AR2: B34 | AS2: Q1 | AT2: Q2 | AU2: Q3 | AV2: Q4 | AW2: PoF (1 Path) | AX2: PoF (2 Path) | AY2: PoF (3 Path) | AZ2: PoF (4 Path) | BA2: PoF (Minor Fault) | BB2: PoF(Major Fault)
D3: Year | E3: N Risk | F3: 1x Failure | G3: 2x Failure | H3: 3x Failure | I3: 4x Failure | J3: Minor Fault | K3: Total kWh | L3: Feeder Fault | N3: 2017 | Q3: 2017 | R3: =MAX($G$34:$G$3336) -> 0 | S3: =MAX($G$34:$G$3336) -> 0 | V3: =V4 -> 61.68181818 | W3: 30.84090909 | X3: 33.89363636 | Y3: 0 | Z3: 0 | AA3: 0 | AW3: =AW4 -> 0.009419408449 | AX3: =AX4 -> 0.001301009116 | AY3: =AY4 -> FALSE | AZ3: =AZ4 -> FALSE | BC3: Year | BD3: N-1 Rating | BE3: N-2 Rating | BF3: Load at Risk N-2 | BG3: Hours 2x Failure | BH3: Energy at risk N-2 | BI3: EUSE (all)
D4: 2018 | E4: =SUMIFS($T$37:$T$3336,$A$37:$A$3336,$D4) -> 0 | F4: =SUMIFS($U$37:$U$3336,$A$37:$A$3336,$D4) -> 0 | G4: =SUMIFS($V$37:$V$3336,$A$37:$A$3336,$D4) -> 16715.97562 | H4: =SUMIFS($W$37:$W$3336,$A$37:$A$3336,$D4) -> 0 | I4: =SUMIFS($X$37:$X$3336,$A$37:$A$3336,$D4) -> 0 | J4: =SUMIFS($Y$37:$Y$3336,$A$37:$A$3336,$D4) -> 0 | K4: =(SUM(E4:I4,L4)) -> 16715.97562 | L4: =HLOOKUP(D4,Assets!$E$21:$AA$30,10,FALSE) -> 0 | N4: 2018 | Q4: 2018 | R4: =S4 -> 21.7307916 | S4: =Load!K6*SENSITIVITY_FORECAST_FACTOR -> 21.7307916 | T4: =R4/$C$2-1 -> 0 | U4: =S4/($C$2)-1 -> 0 | V4: =HLOOKUP($Q4,Assets!$E$2:$AA$18,11,FALSE) -> 61.68181818 | W4: =HLOOKUP($Q4,Assets!$E$2:$AA$18,14,FALSE) -> 30.84090909 | X4: =HLOOKUP($Q4,Assets!$E$2:$AA$18,13,FALSE) -> 33.89363636 | Y4: =HLOOKUP($Q4,Assets!$E$2:$AA$18,15,FALSE) -> 0 | Z4: =HLOOKUP($Q4,Assets!$E$2:$AA$18,16,FALSE) -> 0 | AA4: =HLOOKUP($Q4,Assets!$E$2:$AA$18,17,FALSE) -> 0 | AB4: =(IF($AB$30="Yes",VLOOKUP(Engine!Q4,Load!$A$6:$P$29,16,FALSE),0)+NN_LOAD_TRANSFER) -> 5.226879221 | AC4: =HLOOKUP($Q4, Assets!$E$2:$AA$6,2,FALSE) -> 0.005351936619 | AD4: =HLOOKUP($Q4, Assets!$E$2:$AA$6,3,FALSE) -> 0.005351936619 | AE4: =HLOOKUP($Q4, Assets!$E$2:$AA$6,4,FALSE) -> TRUE | AF4: =HLOOKUP($Q4, Assets!$E$2:$AA$6,5,FALSE) -> TRUE | AG4: =COUNTIF(AC4:AF4, "<>"&TRUE) -> 2 | AH4: =(AC4*AD4*AE4*AF4)^(1/AG4)*SENSITIVITY_PoF_FACTOR*IF(ISPROBABILITYREDUCED,0.8,1) -> 0.005351936619 | AI4: =HLOOKUP($Q4, Assets!$E$2:$AA$10,6,FALSE) -> 1961 | AJ4: =HLOOKUP($Q4, Assets!$E$2:$AA$10,7,FALSE) -> 1961 | AK4: =HLOOKUP($Q4, Assets!$E$2:$AA$10,8,FALSE) -> 9999 | AL4: =HLOOKUP($Q4, Assets!$E$2:$AA$10,9,FALSE) -> 9999 | AM4: =IF(OR(AI4=9999,AJ4=9999), TRUE, IFERROR(IF(ABS(AI4-AJ4)>1, $AK$1,$AL$1),0)) -> 0.24 | AN4: =IF(OR(AJ4=9999,AK4=9999), TRUE, IFERROR(IF(ABS(AJ4-AK4)>1, $AK$1,$AL$1),0)) -> TRUE | AO4: =IF(OR(AI4=9999,AK4=9999), TRUE, IFERROR(IF(ABS(AI4-AK4)>1, $AK$1,$AL$1),0)) -> TRUE | AP4: =IF(OR(AI4=9999,AL4=9999), TRUE, IFERROR(IF(ABS(AI4-AL4)>1, $AK$1,$AL$1),0)) -> TRUE | AQ4: =IF(OR(AJ4=9999,AL4=9999), TRUE, IFERROR(IF(ABS(AJ4-AL4)>1, $AK$1,$AL$1),0)) -> TRUE | AR4: =IF(OR(AK4=9999,AL4=9999), TRUE, IFERROR(IF(ABS(AK4-AL4)>1, $AK$1,$AL$1),0)) -> TRUE | AS4: =IF(AG4=1,AH4,(1-MAX(AM4:AR4))*AH4) -> 0.00406747183 | AT4: =IF(AG4=1,0,IF(AG4=2,MAX(AM4:AR4)*AH4,IF(AG4=3,0.5*MAX(AM4:AR4)*(1-$AK$1)*AH4, IF(AG4=4,0.33*MAX(AM4:AR4)*$AK$1*(1-$AK$1)*AH4,FALSE)))) -> 0.001284464789 | AU4: =IF(AG4=1,FALSE,IF(AG4=2,FALSE,IF(AG4=3,MAX(AN4:AS4)*$AK$1*AH4,IF(AG4=4,0.33*MAX(AN4:AS4)*$AK$1*(1-$AK$1)*AH4,FALSE)))) -> FALSE | AV4: =IF(AG4=4,MAX(AM4:AR4)*$AK$1*$AK$1*AH4,FALSE) -> FALSE | AW4: =IF(AG4=1,AH4,IF(AG4=2,2*AS4+AT4,IF(AG4=3,3*AS4+3*AT4+AU4,IF(AG4=4,4*AS4+6*AT4+4*AU4+AV4)))) -> 0.009419408449 | AX4: =IF(AG4=1,FALSE,IF(AG4=2,AS4^2+AT4,IF(AG4=3,3*AS4^2+3*AT4+AU4,IF(AG4=4,6*AS4^2+6*AT4+4*AU4+AV4)))) -> 0.001301009116 | AY4: =IF(AG4=3,AS4^3+3*AS4*AT4+AU4,IF(AG4=4,4*AS4^3+12*AS4*AT4+3*AT4^2+4*AU4+AV4,FALSE)) -> FALSE | AZ4: =IF(AG4=4,AS4^4+3*AT4^2+4*AS4*AU4+AV4+6*AS4^2*AT4,FALSE) -> FALSE | BA4: =(IF(AC4<>TRUE,VLOOKUP(AC4,MAJORMINORPOF,2,FALSE),0)+IF(AD4<>TRUE,VLOOKUP(AD4,MAJORMINORPOF,2,FALSE),0)+IF(AE4<>TRUE,VLOOKUP(AE4,MAJORMINORPOF,2,FALSE),0)+IF(AF4<>TRUE,VLOOKUP(AF4,MAJORMINORPOF,2,FALSE),0)) -> 0.01529124748 | BB4: =SUM(AC4:AF4) -> 0.01070387324 | BC4: =D4 -> 2018 | BD4: =W4 -> 30.84090909 | BE4: =X4 -> 33.89363636 | BF4: =S4-Y4 -> 21.7307916 | BG4: =COUNTIF((OFFSET(Origin,$P4,19):OFFSET(Origin,$P5-1,19)),">0") ->  | BH4: =SUM(OFFSET(Origin,$P4,19):OFFSET(Origin,$P5-1,19)) ->  | BI4: =SUM(E4:I4,L4) -> 16715.97562
D5: 2019 | E5: 0 | F5: 0 | G5: =SUMIFS($V$37:$V$3336,$A$37:$A$3336,$D5) -> 14470.71458 | H5: 0 | I5: 0 | J5: 0 | K5: =(SUM(E5:I5,L5)) -> 14470.71458 | L5: =HLOOKUP(D5,Assets!$E$21:$AA$30,10,FALSE) -> 0 | N5: 2019 | Q5: 2019 | R5: =S5 -> 24.89719114 | S5: =Load!K7*SENSITIVITY_FORECAST_FACTOR -> 24.89719114 | T5: =R5/$C$2-1 -> 0.1457102715 | U5: =S5/($C$2)-1 -> 0.1457102715 | V5: =HLOOKUP($Q5,Assets!$E$2:$AA$18,11,FALSE) -> 61.68181818 | W5: =HLOOKUP($Q5,Assets!$E$2:$AA$18,14,FALSE) -> 30.84090909 | X5: =HLOOKUP($Q5,Assets!$E$2:$AA$18,13,FALSE) -> 33.89363636 | Y5: =HLOOKUP($Q5,Assets!$E$2:$AA$18,15,FALSE) -> 0 | Z5: =HLOOKUP($Q5,Assets!$E$2:$AA$18,16,FALSE) -> 0 | AA5: =HLOOKUP($Q5,Assets!$E$2:$AA$18,17,FALSE) -> 0 | AB5: =(IF($AB$30="Yes",VLOOKUP(Engine!Q5,Load!$A$6:$P$29,16,FALSE),0)+NN_LOAD_TRANSFER) -> 5.211302361 | AC5: =HLOOKUP($Q5, Assets!$E$2:$AA$6,2,FALSE) -> 0.005599498339 | AD5: =HLOOKUP($Q5, Assets!$E$2:$AA$6,3,FALSE) -> 0.005599498339 | AE5: =HLOOKUP($Q5, Assets!$E$2:$AA$6,4,FALSE) -> TRUE | AF5: =HLOOKUP($Q5, Assets!$E$2:$AA$6,5,FALSE) -> TRUE | AG5: =COUNTIF(AC5:AF5, "<>"&TRUE) -> 2 | AH5: =(AC5*AD5*AE5*AF5)^(1/AG5)*SENSITIVITY_PoF_FACTOR*IF(ISPROBABILITYREDUCED,0.8,1) -> 0.005599498339 | AI5: =HLOOKUP($Q5, Assets!$E$2:$AA$10,6,FALSE) -> 1961 | AJ5: =HLOOKUP($Q5, Assets!$E$2:$AA$10,7,FALSE) -> 1961 | AK5: =HLOOKUP($Q5, Assets!$E$2:$AA$10,8,FALSE) -> 9999 | AL5: =HLOOKUP($Q5, Assets!$E$2:$AA$10,9,FALSE) -> 9999 | AM5: =IF(OR(AI5=9999,AJ5=9999), TRUE, IFERROR(IF(ABS(AI5-AJ5)>1, $AK$1,$AL$1),0)) -> 0.24 | AN5: TRUE | AO5: =IF(OR(AI5=9999,AK5=9999), TRUE, IFERROR(IF(ABS(AI5-AK5)>1, $AK$1,$AL$1),0)) -> TRUE | AP5: TRUE | AQ5: TRUE | AR5: TRUE | AS5: =IF(AG5=1,AH5,(1-MAX(AM5:AR5))*AH5) -> 0.004255618737 | AT5: =IF(AG5=1,0,IF(AG5=2,MAX(AM5:AR5)*AH5,IF(AG5=3,0.5*MAX(AM5:AR5)*(1-$AK$1)*AH5, IF(AG5=4,0.33*MAX(AM5:AR5)*$AK$1*(1-$AK$1)*AH5,FALSE)))) -> 0.001343879601 | AU5: =AT5*$AK$1 -> 6.719398006e-05 | AV5: =IF(AG5=4,MAX(AM5:AR5)*$AK$1*$AK$1*AH5,FALSE) -> FALSE | AW5: =IF(AG5=1,AH5,IF(AG5=2,2*AS5+AT5,IF(AG5=3,3*AS5+3*AT5+AU5,IF(AG5=4,4*AS5+6*AT5+4*AU5+AV5)))) -> 0.009855117076 | AX5: =IF(AG5=1,FALSE,IF(AG5=2,AS5^2+AT5,IF(AG5=3,3*AS5^2+3*AT5+AU5,IF(AG5=4,6*AS5^2+6*AT5+4*AU5+AV5)))) -> 0.001361989892 | AY5: =IF(AG5=3,AS5^3+3*AS5*AT5+AU5,IF(AG5=4,4*AS5^3+12*AS5*AT5+3*AT5^2+4*AU5+AV5,FALSE)) -> FALSE | AZ5: =IF(AG5=4,AS5^4+3*AT5^2+4*AS5*AU5+AV5+6*AS5^2*AT5,FALSE) -> FALSE | BA5: =(IF(AC5<>TRUE,VLOOKUP(AC5,MAJORMINORPOF,2,FALSE),0)+IF(AD5<>TRUE,VLOOKUP(AD5,MAJORMINORPOF,2,FALSE),0)+IF(AE5<>TRUE,VLOOKUP(AE5,MAJORMINORPOF,2,FALSE),0)+IF(AF5<>TRUE,VLOOKUP(AF5,MAJORMINORPOF,2,FALSE),0)) -> 0.01599856668 | BB5: =SUM(AC5:AF5) -> 0.01119899668 | BC5: =D5 -> 2019 | BD5: =W5 -> 30.84090909 | BE5: =X5 -> 33.89363636 | BF5: 24.89719114 | BG5: =COUNTIF((OFFSET(Origin,$P5,19):OFFSET(Origin,$P6-1,19)),">0") ->  | BH5: =SUM(OFFSET(Origin,$P5,19):OFFSET(Origin,$P6-1,19)) ->  | BI5: =SUM(E5:I5,L5) -> 14470.71458
D6: 2020 | E6: 0 | F6: 0 | G6: =SUMIFS($V$37:$V$3336,$A$37:$A$3336,$D6) -> 13042.49191 | H6: 0 | I6: 0 | J6: 0 | K6: =(SUM(E6:I6,L6)) -> 13042.49191 | L6: =HLOOKUP(D6,Assets!$E$21:$AA$30,10,FALSE) -> 0 | N6: 2020 | Q6: 2020 | R6: =S6 -> 18.28575915 | S6: =Load!K8*SENSITIVITY_FORECAST_FACTOR -> 18.28575915 | T6: -0.1585323034 | U6: -0.1585323034 | V6: =HLOOKUP($Q6,Assets!$E$2:$AA$18,11,FALSE) -> 61.68181818 | W6: =HLOOKUP($Q6,Assets!$E$2:$AA$18,14,FALSE) -> 30.84090909 | X6: =HLOOKUP($Q6,Assets!$E$2:$AA$18,13,FALSE) -> 33.89363636 | Y6: =HLOOKUP($Q6,Assets!$E$2:$AA$18,15,FALSE) -> 0 | Z6: =HLOOKUP($Q6,Assets!$E$2:$AA$18,16,FALSE) -> 0 | AA6: =HLOOKUP($Q6,Assets!$E$2:$AA$18,17,FALSE) -> 0 | AB6: =(IF($AB$30="Yes",VLOOKUP(Engine!Q6,Load!$A$6:$P$29,16,FALSE),0)+NN_LOAD_TRANSFER) -> 5.195771922 | AC6: =HLOOKUP($Q6, Assets!$E$2:$AA$6,2,FALSE) -> 0.005853984486 | AD6: =HLOOKUP($Q6, Assets!$E$2:$AA$6,3,FALSE) -> 0.005853984486 | AE6: =HLOOKUP($Q6, Assets!$E$2:$AA$6,4,FALSE) -> TRUE | AF6: =HLOOKUP($Q6, Assets!$E$2:$AA$6,5,FALSE) -> TRUE | AG6: 2 | AH6: 0.005853984486 | AI6: =HLOOKUP($Q6, Assets!$E$2:$AA$10,6,FALSE) -> 1961 | AJ6: =HLOOKUP($Q6, Assets!$E$2:$AA$10,7,FALSE) -> 1961 | AK6: =HLOOKUP($Q6, Assets!$E$2:$AA$10,8,FALSE) -> 9999 | AL6: =HLOOKUP($Q6, Assets!$E$2:$AA$10,9,FALSE) -> 9999 | AM6: 0.24 | AN6: TRUE | AO6: TRUE | AP6: TRUE | AQ6: TRUE | AR6: TRUE | AS6: =IF(AG6=1,AH6,(1-MAX(AM6:AR6))*AH6) -> 0.004449028209 | AT6: 0.001404956277 | AU6: 7.024781383e-05 | AV6: FALSE | AW6: 0.01030301269 | AX6: 0.001424750129 | AY6: FALSE | AZ6: FALSE | BA6: 0.01672566996 | BB6: 0.01170796897 | BC6: 2020 | BD6: 30.84090909 | BE6: 33.89363636 | BF6: 18.28575915 | BG6: =COUNTIF((OFFSET(Origin,$P6,19):OFFSET(Origin,$P7-1,19)),">0") ->  | BH6: =SUM(OFFSET(Origin,$P6,19):OFFSET(Origin,$P7-1,19)) ->  | BI6: 13042.49191
D7: 2021 | E7: 0 | F7: 0 | G7: 14809.54277 | H7: 0 | I7: 0 | J7: 0 | K7: =(SUM(E7:I7,L7)) -> 14809.54277 | L7: =HLOOKUP(D7,Assets!$E$21:$AA$30,10,FALSE) -> 0 | N7: 2021 | Q7: 2021 | R7: 18.91730794 | S7: =Load!K9*SENSITIVITY_FORECAST_FACTOR -> 18.91730794 | T7: -0.1294699113 | U7: -0.1294699113 | V7: =HLOOKUP($Q7,Assets!$E$2:$AA$18,11,FALSE) -> 61.68181818 | W7: =HLOOKUP($Q7,Assets!$E$2:$AA$18,14,FALSE) -> 30.84090909 | X7: =HLOOKUP($Q7,Assets!$E$2:$AA$18,13,FALSE) -> 33.89363636 | Y7: =HLOOKUP($Q7,Assets!$E$2:$AA$18,15,FALSE) -> 0 | Z7: =HLOOKUP($Q7,Assets!$E$2:$AA$18,16,FALSE) -> 0 | AA7: =HLOOKUP($Q7,Assets!$E$2:$AA$18,17,FALSE) -> 0 | AB7: =(IF($AB$30="Yes",VLOOKUP(Engine!Q7,Load!$A$6:$P$29,16,FALSE),0)+NN_LOAD_TRANSFER) -> 5.180287765 | AC7: =HLOOKUP($Q7, Assets!$E$2:$AA$6,2,FALSE) -> 0.006115466449 | AD7: =HLOOKUP($Q7, Assets!$E$2:$AA$6,3,FALSE) -> 0.006115466449 | AE7: =HLOOKUP($Q7, Assets!$E$2:$AA$6,4,FALSE) -> TRUE | AF7: =HLOOKUP($Q7, Assets!$E$2:$AA$6,5,FALSE) -> TRUE | AG7: =COUNTIF(AC7:AF7, "<>"&TRUE) -> 2 | AH7: 0.006115466449 | AI7: =HLOOKUP($Q7, Assets!$E$2:$AA$10,6,FALSE) -> 1961 | AJ7: =HLOOKUP($Q7, Assets!$E$2:$AA$10,7,FALSE) -> 1961 | AK7: =HLOOKUP($Q7, Assets!$E$2:$AA$10,8,FALSE) -> 9999 | AL7: =HLOOKUP($Q7, Assets!$E$2:$AA$10,9,FALSE) -> 9999 | AM7: 0.24 | AN7: TRUE | AO7: =IF(OR(AI7=9999,AK7=9999), TRUE, IFERROR(IF(ABS(AI7-AK7)>1, $AK$1,$AL$1),0)) -> TRUE | AP7: =IF(OR(AI7=9999,AL7=9999), TRUE, IFERROR(IF(ABS(AI7-AL7)>1, $AK$1,$AL$1),0)) -> TRUE | AQ7: =IF(OR(AJ7=9999,AL7=9999), TRUE, IFERROR(IF(ABS(AJ7-AL7)>1, $AK$1,$AL$1),0)) -> TRUE | AR7: TRUE | AS7: 0.004647754501 | AT7: 0.001467711948 | AU7: 7.338559739e-05 | AV7: FALSE | AW7: 0.01076322095 | AX7: 0.00148931357 | AY7: FALSE | AZ7: FALSE | BA7: 0.01747276128 | BB7: 0.0122309329 | BC7: 2021 | BD7: 30.84090909 | BE7: 33.89363636 | BF7: 18.91730794 | BG7: =COUNTIF((OFFSET(Origin,$P7,19):OFFSET(Origin,$P8-1,19)),">0") ->  | BH7: =SUM(OFFSET(Origin,$P7,19):OFFSET(Origin,$P8-1,19)) ->  | BI7: 14809.54277
D8: 2022 | E8: 0 | F8: 0 | G8: 16705.74754 | H8: 0 | I8: 0 | J8: 0 | K8: 16705.74754 | L8: =HLOOKUP(D8,Assets!$E$21:$AA$30,10,FALSE) -> 0 | N8: 2022 | Q8: 2022 | R8: 19.55199935 | S8: =Load!K10*SENSITIVITY_FORECAST_FACTOR -> 19.55199935 | T8: -0.1002629028 | U8: -0.1002629028 | V8: =HLOOKUP($Q8,Assets!$E$2:$AA$18,11,FALSE) -> 61.68181818 | W8: =HLOOKUP($Q8,Assets!$E$2:$AA$18,14,FALSE) -> 30.84090909 | X8: =HLOOKUP($Q8,Assets!$E$2:$AA$18,13,FALSE) -> 33.89363636 | Y8: =HLOOKUP($Q8,Assets!$E$2:$AA$18,15,FALSE) -> 0 | Z8: =HLOOKUP($Q8,Assets!$E$2:$AA$18,16,FALSE) -> 0 | AA8: =HLOOKUP($Q8,Assets!$E$2:$AA$18,17,FALSE) -> 0 | AB8: =(IF($AB$30="Yes",VLOOKUP(Engine!Q8,Load!$A$6:$P$29,16,FALSE),0)+NN_LOAD_TRANSFER) -> 5.164849754 | AC8: =HLOOKUP($Q8, Assets!$E$2:$AA$6,2,FALSE) -> 0.006384015134 | AD8: =HLOOKUP($Q8, Assets!$E$2:$AA$6,3,FALSE) -> 0.006384015134 | AE8: =HLOOKUP($Q8, Assets!$E$2:$AA$6,4,FALSE) -> TRUE | AF8: =HLOOKUP($Q8, Assets!$E$2:$AA$6,5,FALSE) -> TRUE | AG8: =COUNTIF(AC8:AF8, "<>"&TRUE) -> 2 | AH8: 0.006384015134 | AI8: =HLOOKUP($Q8, Assets!$E$2:$AA$10,6,FALSE) -> 1961 | AJ8: =HLOOKUP($Q8, Assets!$E$2:$AA$10,7,FALSE) -> 1961 | AK8: =HLOOKUP($Q8, Assets!$E$2:$AA$10,8,FALSE) -> 9999 | AL8: =HLOOKUP($Q8, Assets!$E$2:$AA$10,9,FALSE) -> 9999 | AM8: 0.24 | AN8: TRUE | AO8: =IF(OR(AI8=9999,AK8=9999), TRUE, IFERROR(IF(ABS(AI8-AK8)>1, $AK$1,$AL$1),0)) -> TRUE | AP8: TRUE | AQ8: TRUE | AR8: TRUE | AS8: 0.004851851502 | AT8: 0.001532163632 | AU8: 7.660818161e-05 | AV8: FALSE | AW8: 0.01123586664 | AX8: 0.001555704095 | AY8: FALSE | AZ8: FALSE | BA8: 0.01824004324 | BB8: 0.01276803027 | BC8: 2022 | BD8: 30.84090909 | BE8: 33.89363636 | BF8: 19.55199935 | BG8: =COUNTIF((OFFSET(Origin,$P8,19):OFFSET(Origin,$P9-1,19)),">0") ->  | BH8: =SUM(OFFSET(Origin,$P8,19):OFFSET(Origin,$P9-1,19)) ->  | BI8: 16705.74754
D9: 2023 | E9: 0 | F9: 0 | G9: 18268.51073 | H9: 0 | I9: 0 | J9: 0 | K9: 18268.51073 | L9: =HLOOKUP(D9,Assets!$E$21:$AA$30,10,FALSE) -> 0 | N9: 2023 | Q9: 2023 | R9: 20.09376063 | S9: =Load!K11*SENSITIVITY_FORECAST_FACTOR -> 20.09376063 | T9: -0.07533232106 | U9: =S9/($C$2)-1 -> -0.07533232106 | V9: =HLOOKUP($Q9,Assets!$E$2:$AA$18,11,FALSE) -> 61.68181818 | W9: =HLOOKUP($Q9,Assets!$E$2:$AA$18,14,FALSE) -> 30.84090909 | X9: =HLOOKUP($Q9,Assets!$E$2:$AA$18,13,FALSE) -> 33.89363636 | Y9: =HLOOKUP($Q9,Assets!$E$2:$AA$18,15,FALSE) -> 0 | Z9: =HLOOKUP($Q9,Assets!$E$2:$AA$18,16,FALSE) -> 0 | AA9: =HLOOKUP($Q9,Assets!$E$2:$AA$18,17,FALSE) -> 0 | AB9: =(IF($AB$30="Yes",VLOOKUP(Engine!Q9,Load!$A$6:$P$29,16,FALSE),0)+NN_LOAD_TRANSFER) -> 5.14945775 | AC9: =HLOOKUP($Q9, Assets!$E$2:$AA$6,2,FALSE) -> 0.006659700976 | AD9: =HLOOKUP($Q9, Assets!$E$2:$AA$6,3,FALSE) -> 0.006659700976 | AE9: =HLOOKUP($Q9, Assets!$E$2:$AA$6,4,FALSE) -> TRUE | AF9: =HLOOKUP($Q9, Assets!$E$2:$AA$6,5,FALSE) -> TRUE | AG9: 2 | AH9: 0.006659700976 | AI9: =HLOOKUP($Q9, Assets!$E$2:$AA$10,6,FALSE) -> 1961 | AJ9: =HLOOKUP($Q9, Assets!$E$2:$AA$10,7,FALSE) -> 1961 | AK9: =HLOOKUP($Q9, Assets!$E$2:$AA$10,8,FALSE) -> 9999 | AL9: =HLOOKUP($Q9, Assets!$E$2:$AA$10,9,FALSE) -> 9999 | AM9: 0.24 | AN9: TRUE | AO9: TRUE | AP9: TRUE | AQ9: TRUE | AR9: TRUE | AS9: 0.005061372742 | AT9: 0.001598328234 | AU9: 7.991641171e-05 | AV9: FALSE | AW9: 0.01172107372 | AX9: 0.001623945728 | AY9: FALSE | AZ9: FALSE | BA9: 0.01902771707 | BB9: 0.01331940195 | BC9: 2023 | BD9: 30.84090909 | BE9: 33.89363636 | BF9: 20.09376063 | BG9: =COUNTIF((OFFSET(Origin,$P9,19):OFFSET(Origin,$P10-1,19)),">0") ->  | BH9: =SUM(OFFSET(Origin,$P9,19):OFFSET(Origin,$P10-1,19)) ->  | BI9: 18268.51073
D10: 2024 | E10: 0 | F10: 0 | G10: 19505.20274 | H10: 0 | I10: 0 | J10: 0 | K10: 19505.20274 | L10: =HLOOKUP(D10,Assets!$E$21:$AA$30,10,FALSE) -> 0 | N10: 2024 | Q10: 2024 | R10: 20.27432517 | S10: =Load!K12*SENSITIVITY_FORECAST_FACTOR -> 20.27432517 | T10: -0.06702316496 | U10: =S10/($C$2)-1 -> -0.06702316496 | V10: =HLOOKUP($Q10,Assets!$E$2:$AA$18,11,FALSE) -> 61.68181818 | W10: =HLOOKUP($Q10,Assets!$E$2:$AA$18,14,FALSE) -> 30.84090909 | X10: =HLOOKUP($Q10,Assets!$E$2:$AA$18,13,FALSE) -> 33.89363636 | Y10: =HLOOKUP($Q10,Assets!$E$2:$AA$18,15,FALSE) -> 0 | Z10: =HLOOKUP($Q10,Assets!$E$2:$AA$18,16,FALSE) -> 0 | AA10: =HLOOKUP($Q10,Assets!$E$2:$AA$18,17,FALSE) -> 0 | AB10: =(IF($AB$30="Yes",VLOOKUP(Engine!Q10,Load!$A$6:$P$29,16,FALSE),0)+NN_LOAD_TRANSFER) -> 5.134111617 | AC10: =HLOOKUP($Q10, Assets!$E$2:$AA$6,2,FALSE) -> 0.006942593949 | AD10: =HLOOKUP($Q10, Assets!$E$2:$AA$6,3,FALSE) -> 0.006942593949 | AE10: =HLOOKUP($Q10, Assets!$E$2:$AA$6,4,FALSE) -> TRUE | AF10: =HLOOKUP($Q10, Assets!$E$2:$AA$6,5,FALSE) -> TRUE | AG10: 2 | AH10: 0.006942593949 | AI10: =HLOOKUP($Q10, Assets!$E$2:$AA$10,6,FALSE) -> 1961 | AJ10: =HLOOKUP($Q10, Assets!$E$2:$AA$10,7,FALSE) -> 1961 | AK10: =HLOOKUP($Q10, Assets!$E$2:$AA$10,8,FALSE) -> 9999 | AL10: =HLOOKUP($Q10, Assets!$E$2:$AA$10,9,FALSE) -> 9999 | AM10: 0.24 | AN10: =IF(OR(AJ10=9999,AK10=9999), TRUE, IFERROR(IF(ABS(AJ10-AK10)>1, $AK$1,$AL$1),0)) -> TRUE | AO10: TRUE | AP10: TRUE | AQ10: TRUE | AR10: TRUE | AS10: 0.005276371401 | AT10: =IF(AG10=1,0,IF(AG10=2,MAX(AM10:AR10)*AH10,IF(AG10=3,0.5*MAX(AM10:AR10)*(1-$AK$1)*AH10, IF(AG10=4,0.33*MAX(AM10:AR10)*$AK$1*(1-$AK$1)*AH10,FALSE)))) -> 0.001666222548 | AU10: 8.331112738e-05 | AV10: FALSE | AW10: 0.01221896535 | AX10: 0.001694062643 | AY10: FALSE | AZ10: FALSE | BA10: 0.01983598271 | BB10: 0.0138851879 | BC10: 2024 | BD10: 30.84090909 | BE10: 33.89363636 | BF10: 20.27432517 | BG10: =COUNTIF((OFFSET(Origin,$P10,19):OFFSET(Origin,$P11-1,19)),">0") ->  | BH10: =SUM(OFFSET(Origin,$P10,19):OFFSET(Origin,$P11-1,19)) ->  | BI10: =SUM(E10:I10,L10) -> 19505.20274
D11: 2025 | E11: 0 | F11: 0 | G11: 21114.52798 | H11: 0 | I11: 0 | J11: 0 | K11: 21114.52798 | L11: =HLOOKUP(D11,Assets!$E$21:$AA$30,10,FALSE) -> 0 | N11: 2025 | Q11: 2025 | R11: 20.45048857 | S11: =Load!K13*SENSITIVITY_FORECAST_FACTOR -> 20.45048857 | T11: -0.05891653899 | U11: -0.05891653899 | V11: =HLOOKUP($Q11,Assets!$E$2:$AA$18,11,FALSE) -> 61.68181818 | W11: =HLOOKUP($Q11,Assets!$E$2:$AA$18,14,FALSE) -> 30.84090909 | X11: =HLOOKUP($Q11,Assets!$E$2:$AA$18,13,FALSE) -> 33.89363636 | Y11: =HLOOKUP($Q11,Assets!$E$2:$AA$18,15,FALSE) -> 0 | Z11: =HLOOKUP($Q11,Assets!$E$2:$AA$18,16,FALSE) -> 0 | AA11: =HLOOKUP($Q11,Assets!$E$2:$AA$18,17,FALSE) -> 0 | AB11: =(IF($AB$30="Yes",VLOOKUP(Engine!Q11,Load!$A$6:$P$29,16,FALSE),0)+NN_LOAD_TRANSFER) -> 5.118811218 | AC11: =HLOOKUP($Q11, Assets!$E$2:$AA$6,2,FALSE) -> 0.007232763577 | AD11: =HLOOKUP($Q11, Assets!$E$2:$AA$6,3,FALSE) -> 0.007232763577 | AE11: =HLOOKUP($Q11, Assets!$E$2:$AA$6,4,FALSE) -> TRUE | AF11: =HLOOKUP($Q11, Assets!$E$2:$AA$6,5,FALSE) -> TRUE | AG11: 2 | AH11: 0.007232763577 | AI11: =HLOOKUP($Q11, Assets!$E$2:$AA$10,6,FALSE) -> 1961 | AJ11: =HLOOKUP($Q11, Assets!$E$2:$AA$10,7,FALSE) -> 1961 | AK11: =HLOOKUP($Q11, Assets!$E$2:$AA$10,8,FALSE) -> 9999 | AL11: =HLOOKUP($Q11, Assets!$E$2:$AA$10,9,FALSE) -> 9999 | AM11: 0.24 | AN11: TRUE | AO11: TRUE | AP11: TRUE | AQ11: TRUE | AR11: TRUE | AS11: 0.005496900319 | AT11: 0.001735863259 | AU11: 8.679316293e-05 | AV11: FALSE | AW11: 0.0127296639 | AX11: 0.001766079172 | AY11: FALSE | AZ11: FALSE | BA11: 0.02066503879 | BB11: 0.01446552715 | BC11: 2025 | BD11: 30.84090909 | BE11: 33.89363636 | BF11: 20.45048857 | BG11: =COUNTIF((OFFSET(Origin,$P11,19):OFFSET(Origin,$P12-1,19)),">0") ->  | BH11: =SUM(OFFSET(Origin,$P11,19):OFFSET(Origin,$P12-1,19)) ->  | BI11: 21114.52798
D12: 2026 | E12: 0 | F12: 0 | G12: 22699.97095 | H12: 0 | I12: 0 | J12: 0 | K12: 22699.97095 | L12: =HLOOKUP(D12,Assets!$E$21:$AA$30,10,FALSE) -> 0 | N12: 2026 | Q12: 2026 | R12: 20.89499028 | S12: =Load!K14*SENSITIVITY_FORECAST_FACTOR -> 20.89499028 | T12: -0.03846161396 | U12: -0.03846161396 | V12: =HLOOKUP($Q12,Assets!$E$2:$AA$18,11,FALSE) -> 61.68181818 | W12: =HLOOKUP($Q12,Assets!$E$2:$AA$18,14,FALSE) -> 30.84090909 | X12: =HLOOKUP($Q12,Assets!$E$2:$AA$18,13,FALSE) -> 33.89363636 | Y12: =HLOOKUP($Q12,Assets!$E$2:$AA$18,15,FALSE) -> 0 | Z12: =HLOOKUP($Q12,Assets!$E$2:$AA$18,16,FALSE) -> 0 | AA12: =HLOOKUP($Q12,Assets!$E$2:$AA$18,17,FALSE) -> 0 | AB12: =(IF($AB$30="Yes",VLOOKUP(Engine!Q12,Load!$A$6:$P$29,16,FALSE),0)+NN_LOAD_TRANSFER) -> 5.103556415 | AC12: =HLOOKUP($Q12, Assets!$E$2:$AA$6,2,FALSE) -> 0.007530278945 | AD12: =HLOOKUP($Q12, Assets!$E$2:$AA$6,3,FALSE) -> 0.007530278945 | AE12: =HLOOKUP($Q12, Assets!$E$2:$AA$6,4,FALSE) -> TRUE | AF12: =HLOOKUP($Q12, Assets!$E$2:$AA$6,5,FALSE) -> TRUE | AG12: 2 | AH12: 0.007530278945 | AI12: =HLOOKUP($Q12, Assets!$E$2:$AA$10,6,FALSE) -> 1961 | AJ12: =HLOOKUP($Q12, Assets!$E$2:$AA$10,7,FALSE) -> 1961 | AK12: =HLOOKUP($Q12, Assets!$E$2:$AA$10,8,FALSE) -> 9999 | AL12: =HLOOKUP($Q12, Assets!$E$2:$AA$10,9,FALSE) -> 9999 | AM12: 0.24 | AN12: TRUE | AO12: TRUE | AP12: TRUE | AQ12: TRUE | AR12: TRUE | AS12: 0.005723011998 | AT12: 0.001807266947 | AU12: 9.036334734e-05 | AV12: FALSE | AW12: 0.01325329094 | AX12: 0.001840019813 | AY12: FALSE | AZ12: FALSE | BA12: 0.0215150827 | BB12: 0.01506055789 | BC12: 2026 | BD12: 30.84090909 | BE12: 33.89363636 | BF12: 20.89499028 | BG12: =COUNTIF((OFFSET(Origin,$P12,19):OFFSET(Origin,$P13-1,19)),">0") ->  | BH12: =SUM(OFFSET(Origin,$P12,19):OFFSET(Origin,$P13-1,19)) ->  | BI12: 22699.97095
D13: 2027 | E13: 0 | F13: 0 | G13: 23864.30066 | H13: 0 | I13: 0 | J13: 0 | K13: 23864.30066 | L13: =HLOOKUP(D13,Assets!$E$21:$AA$30,10,FALSE) -> 0 | N13: 2027 | Q13: 2027 | R13: 21.0013817 | S13: =Load!K15*SENSITIVITY_FORECAST_FACTOR -> 21.0013817 | T13: -0.03356573073 | U13: -0.03356573073 | V13: =HLOOKUP($Q13,Assets!$E$2:$AA$18,11,FALSE) -> 61.68181818 | W13: =HLOOKUP($Q13,Assets!$E$2:$AA$18,14,FALSE) -> 30.84090909 | X13: =HLOOKUP($Q13,Assets!$E$2:$AA$18,13,FALSE) -> 33.89363636 | Y13: =HLOOKUP($Q13,Assets!$E$2:$AA$18,15,FALSE) -> 0 | Z13: =HLOOKUP($Q13,Assets!$E$2:$AA$18,16,FALSE) -> 0 | AA13: =HLOOKUP($Q13,Assets!$E$2:$AA$18,17,FALSE) -> 0 | AB13: =(IF($AB$30="Yes",VLOOKUP(Engine!Q13,Load!$A$6:$P$29,16,FALSE),0)+NN_LOAD_TRANSFER) -> 5.088347075 | AC13: =HLOOKUP($Q13, Assets!$E$2:$AA$6,2,FALSE) -> 0.007835208706 | AD13: =HLOOKUP($Q13, Assets!$E$2:$AA$6,3,FALSE) -> 0.007835208706 | AE13: =HLOOKUP($Q13, Assets!$E$2:$AA$6,4,FALSE) -> TRUE | AF13: =HLOOKUP($Q13, Assets!$E$2:$AA$6,5,FALSE) -> TRUE | AG13: 2 | AH13: 0.007835208706 | AI13: =HLOOKUP($Q13, Assets!$E$2:$AA$10,6,FALSE) -> 1961 | AJ13: =HLOOKUP($Q13, Assets!$E$2:$AA$10,7,FALSE) -> 1961 | AK13: =HLOOKUP($Q13, Assets!$E$2:$AA$10,8,FALSE) -> 9999 | AL13: =HLOOKUP($Q13, Assets!$E$2:$AA$10,9,FALSE) -> 9999 | AM13: 0.24 | AN13: TRUE | AO13: TRUE | AP13: TRUE | AQ13: TRUE | AR13: TRUE | AS13: 0.005954758617 | AT13: 0.00188045009 | AU13: 9.402250448e-05 | AV13: FALSE | AW13: 0.01378996732 | AX13: 0.00191590924 | AY13: FALSE | AZ13: FALSE | BA13: 0.02238631059 | BB13: 0.01567041741 | BC13: 2027 | BD13: 30.84090909 | BE13: 33.89363636 | BF13: 21.0013817 | BG13: =COUNTIF((OFFSET(Origin,$P13,19):OFFSET(Origin,$P14-1,19)),">0") ->  | BH13: =SUM(OFFSET(Origin,$P13,19):OFFSET(Origin,$P14-1,19)) ->  | BI13: 23864.30066
D14: 2028 | E14: 0 | F14: 0 | G14: 24964.45413 | H14: 0 | I14: 0 | J14: 0 | K14: 24964.45413 | L14: =HLOOKUP(D14,Assets!$E$21:$AA$30,10,FALSE) -> 0 | N14: 2028 | Q14: 2028 | R14: 21.03026601 | S14: =Load!K16*SENSITIVITY_FORECAST_FACTOR -> 21.03026601 | T14: -0.03223654266 | U14: -0.03223654266 | V14: =HLOOKUP($Q14,Assets!$E$2:$AA$18,11,FALSE) -> 61.68181818 | W14: =HLOOKUP($Q14,Assets!$E$2:$AA$18,14,FALSE) -> 30.84090909 | X14: =HLOOKUP($Q14,Assets!$E$2:$AA$18,13,FALSE) -> 33.89363636 | Y14: =HLOOKUP($Q14,Assets!$E$2:$AA$18,15,FALSE) -> 0 | Z14: =HLOOKUP($Q14,Assets!$E$2:$AA$18,16,FALSE) -> 0 | AA14: =HLOOKUP($Q14,Assets!$E$2:$AA$18,17,FALSE) -> 0 | AB14: =(IF($AB$30="Yes",VLOOKUP(Engine!Q14,Load!$A$6:$P$29,16,FALSE),0)+NN_LOAD_TRANSFER) -> 5.07318306 | AC14: =HLOOKUP($Q14, Assets!$E$2:$AA$6,2,FALSE) -> 0.008147621094 | AD14: =HLOOKUP($Q14, Assets!$E$2:$AA$6,3,FALSE) -> 0.008147621094 | AE14: =HLOOKUP($Q14, Assets!$E$2:$AA$6,4,FALSE) -> TRUE | AF14: =HLOOKUP($Q14, Assets!$E$2:$AA$6,5,FALSE) -> TRUE | AG14: 2 | AH14: 0.008147621094 | AI14: =HLOOKUP($Q14, Assets!$E$2:$AA$10,6,FALSE) -> 1961 | AJ14: =HLOOKUP($Q14, Assets!$E$2:$AA$10,7,FALSE) -> 1961 | AK14: =HLOOKUP($Q14, Assets!$E$2:$AA$10,8,FALSE) -> 9999 | AL14: =HLOOKUP($Q14, Assets!$E$2:$AA$10,9,FALSE) -> 9999 | AM14: 0.24 | AN14: TRUE | AO14: TRUE | AP14: TRUE | AQ14: TRUE | AR14: TRUE | AS14: 0.006192192031 | AT14: 0.001955429063 | AU14: 9.777145313e-05 | AV14: FALSE | AW14: 0.01433981313 | AX14: 0.001993772305 | AY14: FALSE | AZ14: FALSE | BA14: 0.02327891741 | BB14: 0.01629524219 | BC14: 2028 | BD14: 30.84090909 | BE14: 33.89363636 | BF14: 21.03026601 | BG14: =COUNTIF((OFFSET(Origin,$P14,19):OFFSET(Origin,$P15-1,19)),">0") ->  | BH14: =SUM(OFFSET(Origin,$P14,19):OFFSET(Origin,$P15-1,19)) ->  | BI14: 24964.45413
D15: 2029 | E15: 0 | F15: 0 | G15: 26160.99355 | H15: 0 | I15: 0 | J15: 0 | K15: 26160.99355 | L15: =HLOOKUP(D15,Assets!$E$21:$AA$30,10,FALSE) -> 0 | N15: 2029 | Q15: 2029 | R15: 21.04435649 | S15: =Load!K17*SENSITIVITY_FORECAST_FACTOR -> 21.04435649 | T15: -0.03158813153 | U15: -0.03158813153 | V15: =HLOOKUP($Q15,Assets!$E$2:$AA$18,11,FALSE) -> 61.68181818 | W15: =HLOOKUP($Q15,Assets!$E$2:$AA$18,14,FALSE) -> 30.84090909 | X15: =HLOOKUP($Q15,Assets!$E$2:$AA$18,13,FALSE) -> 33.89363636 | Y15: =HLOOKUP($Q15,Assets!$E$2:$AA$18,15,FALSE) -> 0 | Z15: =HLOOKUP($Q15,Assets!$E$2:$AA$18,16,FALSE) -> 0 | AA15: =HLOOKUP($Q15,Assets!$E$2:$AA$18,17,FALSE) -> 0 | AB15: =(IF($AB$30="Yes",VLOOKUP(Engine!Q15,Load!$A$6:$P$29,16,FALSE),0)+NN_LOAD_TRANSFER) -> 5.058064237 | AC15: =HLOOKUP($Q15, Assets!$E$2:$AA$6,2,FALSE) -> 0.008467583927 | AD15: =HLOOKUP($Q15, Assets!$E$2:$AA$6,3,FALSE) -> 0.008467583927 | AE15: =HLOOKUP($Q15, Assets!$E$2:$AA$6,4,FALSE) -> TRUE | AF15: =HLOOKUP($Q15, Assets!$E$2:$AA$6,5,FALSE) -> TRUE | AG15: 2 | AH15: 0.008467583927 | AI15: =HLOOKUP($Q15, Assets!$E$2:$AA$10,6,FALSE) -> 1961 | AJ15: =HLOOKUP($Q15, Assets!$E$2:$AA$10,7,FALSE) -> 1961 | AK15: =HLOOKUP($Q15, Assets!$E$2:$AA$10,8,FALSE) -> 9999 | AL15: =HLOOKUP($Q15, Assets!$E$2:$AA$10,9,FALSE) -> 9999 | AM15: 0.24 | AN15: TRUE | AO15: TRUE | AP15: TRUE | AQ15: TRUE | AR15: TRUE | AS15: 0.006435363785 | AT15: 0.002032220143 | AU15: 0.0001016110071 | AV15: FALSE | AW15: 0.01490294771 | AX15: 0.00207363405 | AY15: FALSE | AZ15: FALSE | BA15: 0.02419309694 | BB15: 0.01693516785 | BC15: 2029 | BD15: 30.84090909 | BE15: 33.89363636 | BF15: 21.04435649 | BG15: =COUNTIF((OFFSET(Origin,$P15,19):OFFSET(Origin,$P16-1,19)),">0") ->  | BH15: =SUM(OFFSET(Origin,$P15,19):OFFSET(Origin,$P16-1,19)) ->  | BI15: 26160.99355
D16: 2030 | E16: 0 | F16: 0 | G16: 27391.85231 | H16: 0 | I16: 0 | J16: 0 | K16: 27391.85231 | L16: =HLOOKUP(D16,Assets!$E$21:$AA$30,10,FALSE) -> 0 | N16: 2030 | Q16: 2030 | R16: 21.12095654 | S16: =Load!K18*SENSITIVITY_FORECAST_FACTOR -> 21.12095654 | T16: -0.02806317717 | U16: -0.02806317717 | V16: =HLOOKUP($Q16,Assets!$E$2:$AA$18,11,FALSE) -> 61.68181818 | W16: =HLOOKUP($Q16,Assets!$E$2:$AA$18,14,FALSE) -> 30.84090909 | X16: =HLOOKUP($Q16,Assets!$E$2:$AA$18,13,FALSE) -> 33.89363636 | Y16: =HLOOKUP($Q16,Assets!$E$2:$AA$18,15,FALSE) -> 0 | Z16: =HLOOKUP($Q16,Assets!$E$2:$AA$18,16,FALSE) -> 0 | AA16: =HLOOKUP($Q16,Assets!$E$2:$AA$18,17,FALSE) -> 0 | AB16: =(IF($AB$30="Yes",VLOOKUP(Engine!Q16,Load!$A$6:$P$29,16,FALSE),0)+NN_LOAD_TRANSFER) -> 5.042990469 | AC16: =HLOOKUP($Q16, Assets!$E$2:$AA$6,2,FALSE) -> 0.008795164623 | AD16: =HLOOKUP($Q16, Assets!$E$2:$AA$6,3,FALSE) -> 0.008795164623 | AE16: =HLOOKUP($Q16, Assets!$E$2:$AA$6,4,FALSE) -> TRUE | AF16: =HLOOKUP($Q16, Assets!$E$2:$AA$6,5,FALSE) -> TRUE | AG16: 2 | AH16: 0.008795164623 | AI16: =HLOOKUP($Q16, Assets!$E$2:$AA$10,6,FALSE) -> 1961 | AJ16: =HLOOKUP($Q16, Assets!$E$2:$AA$10,7,FALSE) -> 1961 | AK16: =HLOOKUP($Q16, Assets!$E$2:$AA$10,8,FALSE) -> 9999 | AL16: =HLOOKUP($Q16, Assets!$E$2:$AA$10,9,FALSE) -> 9999 | AM16: 0.24 | AN16: TRUE | AO16: TRUE | AP16: TRUE | AQ16: TRUE | AR16: TRUE | AS16: 0.006684325114 | AT16: 0.00211083951 | AU16: 0.0001055419755 | AV16: FALSE | AW16: 0.01547948974 | AX16: 0.002155519712 | AY16: FALSE | AZ16: FALSE | BA16: 0.02512904178 | BB16: 0.01759032925 | BC16: 2030 | BD16: 30.84090909 | BE16: 33.89363636 | BF16: 21.12095654 | BG16: =COUNTIF((OFFSET(Origin,$P16,19):OFFSET(Origin,$P17-1,19)),">0") ->  | BH16: =SUM(OFFSET(Origin,$P16,19):OFFSET(Origin,$P17-1,19)) ->  | BI16: 27391.85231
D17: 2031 | E17: 0 | F17: 0 | G17: 28545.80797 | H17: 0 | I17: 0 | J17: 0 | K17: 28545.80797 | L17: =HLOOKUP(D17,Assets!$E$21:$AA$30,10,FALSE) -> 0 | N17: 2031 | Q17: 2031 | R17: 21.12095654 | S17: =Load!K19*SENSITIVITY_FORECAST_FACTOR -> 21.12095654 | T17: -0.02806317717 | U17: -0.02806317717 | V17: =HLOOKUP($Q17,Assets!$E$2:$AA$18,11,FALSE) -> 61.68181818 | W17: =HLOOKUP($Q17,Assets!$E$2:$AA$18,14,FALSE) -> 30.84090909 | X17: =HLOOKUP($Q17,Assets!$E$2:$AA$18,13,FALSE) -> 33.89363636 | Y17: =HLOOKUP($Q17,Assets!$E$2:$AA$18,15,FALSE) -> 0 | Z17: =HLOOKUP($Q17,Assets!$E$2:$AA$18,16,FALSE) -> 0 | AA17: =HLOOKUP($Q17,Assets!$E$2:$AA$18,17,FALSE) -> 0 | AB17: =(IF($AB$30="Yes",VLOOKUP(Engine!Q17,Load!$A$6:$P$29,16,FALSE),0)+NN_LOAD_TRANSFER) -> 5.027961624 | AC17: =HLOOKUP($Q17, Assets!$E$2:$AA$6,2,FALSE) -> 0.009130430203 | AD17: =HLOOKUP($Q17, Assets!$E$2:$AA$6,3,FALSE) -> 0.009130430203 | AE17: =HLOOKUP($Q17, Assets!$E$2:$AA$6,4,FALSE) -> TRUE | AF17: =HLOOKUP($Q17, Assets!$E$2:$AA$6,5,FALSE) -> TRUE | AG17: 2 | AH17: 0.009130430203 | AI17: =HLOOKUP($Q17, Assets!$E$2:$AA$10,6,FALSE) -> 1961 | AJ17: =HLOOKUP($Q17, Assets!$E$2:$AA$10,7,FALSE) -> 1961 | AK17: =HLOOKUP($Q17, Assets!$E$2:$AA$10,8,FALSE) -> 9999 | AL17: =HLOOKUP($Q17, Assets!$E$2:$AA$10,9,FALSE) -> 9999 | AM17: 0.24 | AN17: TRUE | AO17: TRUE | AP17: TRUE | AQ17: TRUE | AR17: TRUE | AS17: 0.006939126954 | AT17: 0.002191303249 | AU17: 0.0001095651624 | AV17: FALSE | AW17: 0.01606955716 | AX17: 0.002239454732 | AY17: FALSE | AZ17: FALSE | BA17: 0.02608694344 | BB17: 0.01826086041 | BC17: 2031 | BD17: 30.84090909 | BE17: 33.89363636 | BF17: 21.12095654 | BG17: =COUNTIF((OFFSET(Origin,$P17,19):OFFSET(Origin,$P18-1,19)),">0") ->  | BH17: =SUM(OFFSET(Origin,$P17,19):OFFSET(Origin,$P18-1,19)) ->  | BI17: 28545.80797
D18: 2032 | E18: 0 | F18: 0 | G18: 29732.57012 | H18: 0 | I18: 0 | J18: 0 | K18: 29732.57012 | L18: =HLOOKUP(D18,Assets!$E$21:$AA$30,10,FALSE) -> 0 | N18: 2032 | Q18: 2032 | R18: 21.12095654 | S18: =Load!K20*SENSITIVITY_FORECAST_FACTOR -> 21.12095654 | T18: -0.02806317717 | U18: -0.02806317717 | V18: =HLOOKUP($Q18,Assets!$E$2:$AA$18,11,FALSE) -> 61.68181818 | W18: =HLOOKUP($Q18,Assets!$E$2:$AA$18,14,FALSE) -> 30.84090909 | X18: =HLOOKUP($Q18,Assets!$E$2:$AA$18,13,FALSE) -> 33.89363636 | Y18: =HLOOKUP($Q18,Assets!$E$2:$AA$18,15,FALSE) -> 0 | Z18: =HLOOKUP($Q18,Assets!$E$2:$AA$18,16,FALSE) -> 0 | AA18: =HLOOKUP($Q18,Assets!$E$2:$AA$18,17,FALSE) -> 0 | AB18: =(IF($AB$30="Yes",VLOOKUP(Engine!Q18,Load!$A$6:$P$29,16,FALSE),0)+NN_LOAD_TRANSFER) -> 5.012977567 | AC18: =HLOOKUP($Q18, Assets!$E$2:$AA$6,2,FALSE) -> 0.0094734473 | AD18: =HLOOKUP($Q18, Assets!$E$2:$AA$6,3,FALSE) -> 0.0094734473 | AE18: =HLOOKUP($Q18, Assets!$E$2:$AA$6,4,FALSE) -> TRUE | AF18: =HLOOKUP($Q18, Assets!$E$2:$AA$6,5,FALSE) -> TRUE | AG18: 2 | AH18: 0.0094734473 | AI18: =HLOOKUP($Q18, Assets!$E$2:$AA$10,6,FALSE) -> 1961 | AJ18: =HLOOKUP($Q18, Assets!$E$2:$AA$10,7,FALSE) -> 1961 | AK18: =HLOOKUP($Q18, Assets!$E$2:$AA$10,8,FALSE) -> 9999 | AL18: =HLOOKUP($Q18, Assets!$E$2:$AA$10,9,FALSE) -> 9999 | AM18: 0.24 | AN18: TRUE | AO18: TRUE | AP18: TRUE | AQ18: TRUE | AR18: TRUE | AS18: 0.007199819948 | AT18: 0.002273627352 | AU18: 0.0001136813676 | AV18: FALSE | AW18: 0.01667326725 | AX18: 0.002325464759 | AY18: FALSE | AZ18: FALSE | BA18: 0.02706699229 | BB18: 0.0189468946 | BC18: 2032 | BD18: 30.84090909 | BE18: 33.89363636 | BF18: 21.12095654 | BG18: =COUNTIF((OFFSET(Origin,$P18,19):OFFSET(Origin,$P19-1,19)),">0") ->  | BH18: =SUM(OFFSET(Origin,$P18,19):OFFSET(Origin,$P19-1,19)) ->  | BI18: 29732.57012
D19: 2033 | E19: 0 | F19: 0 | G19: 30953.81078 | H19: 0 | I19: 0 | J19: 0 | K19: 30953.81078 | L19: =HLOOKUP(D19,Assets!$E$21:$AA$30,10,FALSE) -> 0 | N19: 2033 | Q19: 2033 | R19: 21.12095654 | S19: =Load!K21*SENSITIVITY_FORECAST_FACTOR -> 21.12095654 | T19: -0.02806317717 | U19: -0.02806317717 | V19: =HLOOKUP($Q19,Assets!$E$2:$AA$18,11,FALSE) -> 61.68181818 | W19: =HLOOKUP($Q19,Assets!$E$2:$AA$18,14,FALSE) -> 30.84090909 | X19: =HLOOKUP($Q19,Assets!$E$2:$AA$18,13,FALSE) -> 33.89363636 | Y19: =HLOOKUP($Q19,Assets!$E$2:$AA$18,15,FALSE) -> 0 | Z19: =HLOOKUP($Q19,Assets!$E$2:$AA$18,16,FALSE) -> 0 | AA19: =HLOOKUP($Q19,Assets!$E$2:$AA$18,17,FALSE) -> 0 | AB19: =(IF($AB$30="Yes",VLOOKUP(Engine!Q19,Load!$A$6:$P$29,16,FALSE),0)+NN_LOAD_TRANSFER) -> 4.998038164 | AC19: =HLOOKUP($Q19, Assets!$E$2:$AA$6,2,FALSE) -> 0.009824282168 | AD19: =HLOOKUP($Q19, Assets!$E$2:$AA$6,3,FALSE) -> 0.009824282168 | AE19: =HLOOKUP($Q19, Assets!$E$2:$AA$6,4,FALSE) -> TRUE | AF19: =HLOOKUP($Q19, Assets!$E$2:$AA$6,5,FALSE) -> TRUE | AG19: 2 | AH19: 0.009824282168 | AI19: =HLOOKUP($Q19, Assets!$E$2:$AA$10,6,FALSE) -> 1961 | AJ19: =HLOOKUP($Q19, Assets!$E$2:$AA$10,7,FALSE) -> 1961 | AK19: =HLOOKUP($Q19, Assets!$E$2:$AA$10,8,FALSE) -> 9999 | AL19: =HLOOKUP($Q19, Assets!$E$2:$AA$10,9,FALSE) -> 9999 | AM19: 0.24 | AN19: TRUE | AO19: TRUE | AP19: TRUE | AQ19: TRUE | AR19: TRUE | AS19: 0.007466454448 | AT19: 0.00235782772 | AU19: 0.000117891386 | AV19: FALSE | AW19: 0.01729073662 | AX19: 0.002413575662 | AY19: FALSE | AZ19: FALSE | BA19: 0.02806937762 | BB19: 0.01964856434 | BC19: 2033 | BD19: 30.84090909 | BE19: 33.89363636 | BF19: 21.12095654 | BG19: =COUNTIF((OFFSET(Origin,$P19,19):OFFSET(Origin,$P20-1,19)),">0") ->  | BH19: =SUM(OFFSET(Origin,$P19,19):OFFSET(Origin,$P20-1,19)) ->  | BI19: 30953.81078
D20: 2034 | E20: 0 | F20: 0 | G20: 32216.74729 | H20: 0 | I20: 0 | J20: 0 | K20: 32216.74729 | L20: =HLOOKUP(D20,Assets!$E$21:$AA$30,10,FALSE) -> 0 | N20: 2034 | Q20: 2034 | R20: 21.12095654 | S20: =Load!K22*SENSITIVITY_FORECAST_FACTOR -> 21.12095654 | T20: -0.02806317717 | U20: -0.02806317717 | V20: =HLOOKUP($Q20,Assets!$E$2:$AA$18,11,FALSE) -> 61.68181818 | W20: =HLOOKUP($Q20,Assets!$E$2:$AA$18,14,FALSE) -> 30.84090909 | X20: =HLOOKUP($Q20,Assets!$E$2:$AA$18,13,FALSE) -> 33.89363636 | Y20: =HLOOKUP($Q20,Assets!$E$2:$AA$18,15,FALSE) -> 0 | Z20: =HLOOKUP($Q20,Assets!$E$2:$AA$18,16,FALSE) -> 0 | AA20: =HLOOKUP($Q20,Assets!$E$2:$AA$18,17,FALSE) -> 0 | AB20: =(IF($AB$30="Yes",VLOOKUP(Engine!Q20,Load!$A$6:$P$29,16,FALSE),0)+NN_LOAD_TRANSFER) -> 4.983143284 | AC20: =HLOOKUP($Q20, Assets!$E$2:$AA$6,2,FALSE) -> 0.01018300069 | AD20: =HLOOKUP($Q20, Assets!$E$2:$AA$6,3,FALSE) -> 0.01018300069 | AE20: =HLOOKUP($Q20, Assets!$E$2:$AA$6,4,FALSE) -> TRUE | AF20: =HLOOKUP($Q20, Assets!$E$2:$AA$6,5,FALSE) -> TRUE | AG20: 2 | AH20: 0.01018300069 | AI20: =HLOOKUP($Q20, Assets!$E$2:$AA$10,6,FALSE) -> 1961 | AJ20: =HLOOKUP($Q20, Assets!$E$2:$AA$10,7,FALSE) -> 1961 | AK20: =HLOOKUP($Q20, Assets!$E$2:$AA$10,8,FALSE) -> 9999 | AL20: =HLOOKUP($Q20, Assets!$E$2:$AA$10,9,FALSE) -> 9999 | AM20: 0.24 | AN20: TRUE | AO20: TRUE | AP20: TRUE | AQ20: TRUE | AR20: TRUE | AS20: 0.007739080524 | AT20: 0.002443920165 | AU20: 0.0001221960083 | AV20: FALSE | AW20: 0.01792208121 | AX20: 0.002503813533 | AY20: FALSE | AZ20: FALSE | BA20: 0.02909428768 | BB20: 0.02036600138 | BC20: 2034 | BD20: 30.84090909 | BE20: 33.89363636 | BF20: 21.12095654 | BG20: =COUNTIF((OFFSET(Origin,$P20,19):OFFSET(Origin,$P21-1,19)),">0") ->  | BH20: =SUM(OFFSET(Origin,$P20,19):OFFSET(Origin,$P21-1,19)) ->  | BI20: 32216.74729
D21: 2035 | E21: 0 | F21: 0 | G21: 33514.7698 | H21: 0 | I21: 0 | J21: 0 | K21: 33514.7698 | L21: =HLOOKUP(D21,Assets!$E$21:$AA$30,10,FALSE) -> 0 | N21: 2035 | Q21: 2035 | R21: 21.12095654 | S21: =Load!K23*SENSITIVITY_FORECAST_FACTOR -> 21.12095654 | T21: -0.02806317717 | U21: -0.02806317717 | V21: =HLOOKUP($Q21,Assets!$E$2:$AA$18,11,FALSE) -> 61.68181818 | W21: =HLOOKUP($Q21,Assets!$E$2:$AA$18,14,FALSE) -> 30.84090909 | X21: =HLOOKUP($Q21,Assets!$E$2:$AA$18,13,FALSE) -> 33.89363636 | Y21: =HLOOKUP($Q21,Assets!$E$2:$AA$18,15,FALSE) -> 0 | Z21: =HLOOKUP($Q21,Assets!$E$2:$AA$18,16,FALSE) -> 0 | AA21: =HLOOKUP($Q21,Assets!$E$2:$AA$18,17,FALSE) -> 0 | AB21: =(IF($AB$30="Yes",VLOOKUP(Engine!Q21,Load!$A$6:$P$29,16,FALSE),0)+NN_LOAD_TRANSFER) -> 4.968292792 | AC21: =HLOOKUP($Q21, Assets!$E$2:$AA$6,2,FALSE) -> 0.01054966838 | AD21: =HLOOKUP($Q21, Assets!$E$2:$AA$6,3,FALSE) -> 0.01054966838 | AE21: =HLOOKUP($Q21, Assets!$E$2:$AA$6,4,FALSE) -> TRUE | AF21: =HLOOKUP($Q21, Assets!$E$2:$AA$6,5,FALSE) -> TRUE | AG21: 2 | AH21: 0.01054966838 | AI21: =HLOOKUP($Q21, Assets!$E$2:$AA$10,6,FALSE) -> 1961 | AJ21: =HLOOKUP($Q21, Assets!$E$2:$AA$10,7,FALSE) -> 1961 | AK21: =HLOOKUP($Q21, Assets!$E$2:$AA$10,8,FALSE) -> 9999 | AL21: =HLOOKUP($Q21, Assets!$E$2:$AA$10,9,FALSE) -> 9999 | AM21: 0.24 | AN21: TRUE | AO21: TRUE | AP21: TRUE | AQ21: TRUE | AR21: TRUE | AS21: 0.008017747969 | AT21: 0.002531920411 | AU21: 0.0001265960206 | AV21: FALSE | AW21: 0.01856741635 | AX21: 0.002596204694 | AY21: FALSE | AZ21: FALSE | BA21: 0.03014190966 | BB21: 0.02109933676 | BC21: 2035 | BD21: 30.84090909 | BE21: 33.89363636 | BF21: 21.12095654 | BG21: =COUNTIF((OFFSET(Origin,$P21,19):OFFSET(Origin,$P22-1,19)),">0") ->  | BH21: =SUM(OFFSET(Origin,$P21,19):OFFSET(Origin,$P22-1,19)) ->  | BI21: 33514.7698
D22: 2036 | E22: 0 | F22: 0 | G22: 34848.46023 | H22: 0 | I22: 0 | J22: 0 | K22: 34848.46023 | L22: =HLOOKUP(D22,Assets!$E$21:$AA$30,10,FALSE) -> 0 | N22: 2036 | Q22: 2036 | R22: 21.12095654 | S22: =Load!K24*SENSITIVITY_FORECAST_FACTOR -> 21.12095654 | T22: -0.02806317717 | U22: -0.02806317717 | V22: =HLOOKUP($Q22,Assets!$E$2:$AA$18,11,FALSE) -> 61.68181818 | W22: =HLOOKUP($Q22,Assets!$E$2:$AA$18,14,FALSE) -> 30.84090909 | X22: =HLOOKUP($Q22,Assets!$E$2:$AA$18,13,FALSE) -> 33.89363636 | Y22: =HLOOKUP($Q22,Assets!$E$2:$AA$18,15,FALSE) -> 0 | Z22: =HLOOKUP($Q22,Assets!$E$2:$AA$18,16,FALSE) -> 0 | AA22: =HLOOKUP($Q22,Assets!$E$2:$AA$18,17,FALSE) -> 0 | AB22: =(IF($AB$30="Yes",VLOOKUP(Engine!Q22,Load!$A$6:$P$29,16,FALSE),0)+NN_LOAD_TRANSFER) -> 4.953486556 | AC22: =HLOOKUP($Q22, Assets!$E$2:$AA$6,2,FALSE) -> 0.0109243504 | AD22: =HLOOKUP($Q22, Assets!$E$2:$AA$6,3,FALSE) -> 0.0109243504 | AE22: =HLOOKUP($Q22, Assets!$E$2:$AA$6,4,FALSE) -> TRUE | AF22: =HLOOKUP($Q22, Assets!$E$2:$AA$6,5,FALSE) -> TRUE | AG22: 2 | AH22: 0.0109243504 | AI22: =HLOOKUP($Q22, Assets!$E$2:$AA$10,6,FALSE) -> 1961 | AJ22: =HLOOKUP($Q22, Assets!$E$2:$AA$10,7,FALSE) -> 1961 | AK22: =HLOOKUP($Q22, Assets!$E$2:$AA$10,8,FALSE) -> 9999 | AL22: =HLOOKUP($Q22, Assets!$E$2:$AA$10,9,FALSE) -> 9999 | AM22: 0.24 | AN22: TRUE | AO22: TRUE | AP22: TRUE | AQ22: TRUE | AR22: TRUE | AS22: 0.008302506303 | AT22: 0.002621844096 | AU22: 0.0001310922048 | AV22: FALSE | AW22: 0.0192268567 | AX22: 0.002690775706 | AY22: FALSE | AZ22: FALSE | BA22: 0.03121242971 | BB22: 0.0218487008 | BC22: 2036 | BD22: 30.84090909 | BE22: 33.89363636 | BF22: 21.12095654 | BG22: =COUNTIF((OFFSET(Origin,$P22,19):OFFSET(Origin,$P23-1,19)),">0") ->  | BH22: =SUM(OFFSET(Origin,$P22,19):OFFSET(Origin,$P23-1,19)) ->  | BI22: 34848.46023
D23: 2037 | E23: 0 | F23: 0 | G23: 36218.40664 | H23: 0 | I23: 0 | J23: 0 | K23: 36218.40664 | L23: =HLOOKUP(D23,Assets!$E$21:$AA$30,10,FALSE) -> 0 | N23: 2037 | Q23: 2037 | R23: 21.12095654 | S23: =Load!K25*SENSITIVITY_FORECAST_FACTOR -> 21.12095654 | T23: -0.02806317717 | U23: -0.02806317717 | V23: =HLOOKUP($Q23,Assets!$E$2:$AA$18,11,FALSE) -> 61.68181818 | W23: =HLOOKUP($Q23,Assets!$E$2:$AA$18,14,FALSE) -> 30.84090909 | X23: =HLOOKUP($Q23,Assets!$E$2:$AA$18,13,FALSE) -> 33.89363636 | Y23: =HLOOKUP($Q23,Assets!$E$2:$AA$18,15,FALSE) -> 0 | Z23: =HLOOKUP($Q23,Assets!$E$2:$AA$18,16,FALSE) -> 0 | AA23: =HLOOKUP($Q23,Assets!$E$2:$AA$18,17,FALSE) -> 0 | AB23: =(IF($AB$30="Yes",VLOOKUP(Engine!Q23,Load!$A$6:$P$29,16,FALSE),0)+NN_LOAD_TRANSFER) -> 4.938724446 | AC23: =HLOOKUP($Q23, Assets!$E$2:$AA$6,2,FALSE) -> 0.01130711155 | AD23: =HLOOKUP($Q23, Assets!$E$2:$AA$6,3,FALSE) -> 0.01130711155 | AE23: =HLOOKUP($Q23, Assets!$E$2:$AA$6,4,FALSE) -> TRUE | AF23: =HLOOKUP($Q23, Assets!$E$2:$AA$6,5,FALSE) -> TRUE | AG23: 2 | AH23: 0.01130711155 | AI23: =HLOOKUP($Q23, Assets!$E$2:$AA$10,6,FALSE) -> 1961 | AJ23: =HLOOKUP($Q23, Assets!$E$2:$AA$10,7,FALSE) -> 1961 | AK23: =HLOOKUP($Q23, Assets!$E$2:$AA$10,8,FALSE) -> 9999 | AL23: =HLOOKUP($Q23, Assets!$E$2:$AA$10,9,FALSE) -> 9999 | AM23: 0.24 | AN23: TRUE | AO23: TRUE | AP23: TRUE | AQ23: TRUE | AR23: TRUE | AS23: 0.008593404779 | AT23: 0.002713706772 | AU23: 0.0001356853386 | AV23: FALSE | AW23: 0.01990051633 | AX23: 0.002787553378 | AY23: FALSE | AZ23: FALSE | BA23: 0.03230603301 | BB23: 0.0226142231 | BC23: 2037 | BD23: 30.84090909 | BE23: 33.89363636 | BF23: 21.12095654 | BG23: =COUNTIF((OFFSET(Origin,$P23,19):OFFSET(Origin,$P24-1,19)),">0") ->  | BH23: =SUM(OFFSET(Origin,$P23,19):OFFSET(Origin,$P24-1,19)) ->  | BI23: 36218.40664
D24: 2038 | E24: 0 | F24: 0 | G24: 37625.20336 | H24: 0 | I24: 0 | J24: 0 | K24: 37625.20336 | L24: =HLOOKUP(D24,Assets!$E$21:$AA$30,10,FALSE) -> 0 | N24: 2038 | Q24: 2038 | R24: 21.12095654 | S24: =Load!K26*SENSITIVITY_FORECAST_FACTOR -> 21.12095654 | T24: -0.02806317717 | U24: -0.02806317717 | V24: =HLOOKUP($Q24,Assets!$E$2:$AA$18,11,FALSE) -> 61.68181818 | W24: =HLOOKUP($Q24,Assets!$E$2:$AA$18,14,FALSE) -> 30.84090909 | X24: =HLOOKUP($Q24,Assets!$E$2:$AA$18,13,FALSE) -> 33.89363636 | Y24: =HLOOKUP($Q24,Assets!$E$2:$AA$18,15,FALSE) -> 0 | Z24: =HLOOKUP($Q24,Assets!$E$2:$AA$18,16,FALSE) -> 0 | AA24: =HLOOKUP($Q24,Assets!$E$2:$AA$18,17,FALSE) -> 0 | AB24: =(IF($AB$30="Yes",VLOOKUP(Engine!Q24,Load!$A$6:$P$29,16,FALSE),0)+NN_LOAD_TRANSFER) -> 4.924006328 | AC24: =HLOOKUP($Q24, Assets!$E$2:$AA$6,2,FALSE) -> 0.0116980163 | AD24: =HLOOKUP($Q24, Assets!$E$2:$AA$6,3,FALSE) -> 0.0116980163 | AE24: =HLOOKUP($Q24, Assets!$E$2:$AA$6,4,FALSE) -> TRUE | AF24: =HLOOKUP($Q24, Assets!$E$2:$AA$6,5,FALSE) -> TRUE | AG24: 2 | AH24: 0.0116980163 | AI24: =HLOOKUP($Q24, Assets!$E$2:$AA$10,6,FALSE) -> 1961 | AJ24: =HLOOKUP($Q24, Assets!$E$2:$AA$10,7,FALSE) -> 1961 | AK24: =HLOOKUP($Q24, Assets!$E$2:$AA$10,8,FALSE) -> 9999 | AL24: =HLOOKUP($Q24, Assets!$E$2:$AA$10,9,FALSE) -> 9999 | AM24: 0.24 | AN24: TRUE | AO24: TRUE | AP24: TRUE | AQ24: TRUE | AR24: TRUE | AS24: 0.008890492391 | AT24: 0.002807523913 | AU24: 0.0001403761956 | AV24: FALSE | AW24: 0.02058850869 | AX24: 0.002886564768 | AY24: FALSE | AZ24: FALSE | BA24: 0.03342290372 | BB24: 0.02339603261 | BC24: 2038 | BD24: 30.84090909 | BE24: 33.89363636 | BF24: 21.12095654 | BG24: =COUNTIF((OFFSET(Origin,$P24,19):OFFSET(Origin,$P25-1,19)),">0") ->  | BH24: =SUM(OFFSET(Origin,$P24,19):OFFSET(Origin,$P25-1,19)) ->  | BI24: 37625.20336
D25: 2039 | E25: 0 | F25: 0 | G25: 39069.45108 | H25: 0 | I25: 0 | J25: 0 | K25: 39069.45108 | L25: =HLOOKUP(D25,Assets!$E$21:$AA$30,10,FALSE) -> 0 | N25: 2039 | Q25: 2039 | R25: 21.12095654 | S25: =Load!K27*SENSITIVITY_FORECAST_FACTOR -> 21.12095654 | T25: -0.02806317717 | U25: -0.02806317717 | V25: =HLOOKUP($Q25,Assets!$E$2:$AA$18,11,FALSE) -> 61.68181818 | W25: =HLOOKUP($Q25,Assets!$E$2:$AA$18,14,FALSE) -> 30.84090909 | X25: =HLOOKUP($Q25,Assets!$E$2:$AA$18,13,FALSE) -> 33.89363636 | Y25: =HLOOKUP($Q25,Assets!$E$2:$AA$18,15,FALSE) -> 0 | Z25: =HLOOKUP($Q25,Assets!$E$2:$AA$18,16,FALSE) -> 0 | AA25: =HLOOKUP($Q25,Assets!$E$2:$AA$18,17,FALSE) -> 0 | AB25: =(IF($AB$30="Yes",VLOOKUP(Engine!Q25,Load!$A$6:$P$29,16,FALSE),0)+NN_LOAD_TRANSFER) -> 4.909332073 | AC25: =HLOOKUP($Q25, Assets!$E$2:$AA$6,2,FALSE) -> 0.01209712878 | AD25: =HLOOKUP($Q25, Assets!$E$2:$AA$6,3,FALSE) -> 0.01209712878 | AE25: =HLOOKUP($Q25, Assets!$E$2:$AA$6,4,FALSE) -> TRUE | AF25: =HLOOKUP($Q25, Assets!$E$2:$AA$6,5,FALSE) -> TRUE | AG25: 2 | AH25: 0.01209712878 | AI25: =HLOOKUP($Q25, Assets!$E$2:$AA$10,6,FALSE) -> 1961 | AJ25: =HLOOKUP($Q25, Assets!$E$2:$AA$10,7,FALSE) -> 1961 | AK25: =HLOOKUP($Q25, Assets!$E$2:$AA$10,8,FALSE) -> 9999 | AL25: =HLOOKUP($Q25, Assets!$E$2:$AA$10,9,FALSE) -> 9999 | AM25: 0.24 | AN25: TRUE | AO25: TRUE | AP25: TRUE | AQ25: TRUE | AR25: TRUE | AS25: 0.009193817871 | AT25: 0.002903310906 | AU25: 0.0001451655453 | AV25: FALSE | AW25: 0.02129094665 | AX25: 0.002987837194 | AY25: FALSE | AZ25: FALSE | BA25: 0.03456322508 | BB25: 0.02419425755 | BC25: 2039 | BD25: 30.84090909 | BE25: 33.89363636 | BF25: 21.12095654 | BG25: =COUNTIF((OFFSET(Origin,$P25,19):OFFSET(Origin,$P26-1,19)),">0") ->  | BH25: =SUM(OFFSET(Origin,$P25,19):OFFSET(Origin,$P26-1,19)) ->  | BI25: 39069.45108
J26: 0 | N26: 2040 | Q26: 2040 | R26: 21.12095654 | S26: =Load!K28*SENSITIVITY_FORECAST_FACTOR -> 21.12095654 | T26: -0.02806317717 | U26: -0.02806317717 | V26: =HLOOKUP($Q26,Assets!$E$2:$AA$18,11,FALSE) -> 61.68181818 | W26: =HLOOKUP($Q26,Assets!$E$2:$AA$18,14,FALSE) -> 30.84090909 | X26: =HLOOKUP($Q26,Assets!$E$2:$AA$18,13,FALSE) -> 33.89363636 | Y26: =HLOOKUP($Q26,Assets!$E$2:$AA$18,15,FALSE) -> 0 | Z26: =HLOOKUP($Q26,Assets!$E$2:$AA$18,16,FALSE) -> 0 | AA26: =HLOOKUP($Q26,Assets!$E$2:$AA$18,17,FALSE) -> 0 | AB26: =(IF($AB$30="Yes",VLOOKUP(Engine!Q26,Load!$A$6:$P$29,16,FALSE),0)+NN_LOAD_TRANSFER) -> 4.894701549 | AC26: =HLOOKUP($Q26, Assets!$E$2:$AA$6,2,FALSE) -> 0.01250451276 | AD26: =HLOOKUP($Q26, Assets!$E$2:$AA$6,3,FALSE) -> 0.01250451276 | AE26: =HLOOKUP($Q26, Assets!$E$2:$AA$6,4,FALSE) -> TRUE | AF26: =HLOOKUP($Q26, Assets!$E$2:$AA$6,5,FALSE) -> TRUE | AG26: 2 | AH26: 0.01250451276 | AI26: =HLOOKUP($Q26, Assets!$E$2:$AA$10,6,FALSE) -> 1961 | AJ26: =HLOOKUP($Q26, Assets!$E$2:$AA$10,7,FALSE) -> 1961 | AK26: =HLOOKUP($Q26, Assets!$E$2:$AA$10,8,FALSE) -> 9999 | AL26: =HLOOKUP($Q26, Assets!$E$2:$AA$10,9,FALSE) -> 9999 | AM26: 0.24 | AN26: TRUE | AO26: TRUE | AP26: TRUE | AQ26: TRUE | AR26: TRUE | AS26: 0.009503429701 | AT26: 0.003001083063 | AU26: 0.0001500541532 | AV26: FALSE | AW26: 0.02200794247 | AX26: 0.00309139824 | AY26: FALSE | AZ26: FALSE | BA26: 0.03572717933 | BB26: 0.02500902553
X29: After Mobile | Y29: =IF(ISSPAREREADY, 75,0) -> 0 | Z29: =Y29/2 -> 0 | AA29: =Z29/2 -> 0
X30: Power factor | Y30: =VLOOKUP(C1,Load!$AP$3:$AU$54,6,FALSE) -> 0.9912680354 | AA30: Load Transfers | AB30: YES
A31: 0 | B31: 1 | C31: 2 | D31: 3 | E31: 4 | F31: 5 | G31: 6 | H31: 7 | I31: 8 | J31: 9 | K31: 10 | L31: 11 | M31: 12 | N31: 13 | O31: 14 | P31: 15 | Q31: 16 | R31: 17 | S31: 18 | T31: 19 | U31: 20 | V31: 21 | W31: 22 | X31: 23 | Y31: 24 | Z31: 25 | AA31: 26 | AB31: 27 | AC31: 28 | AD31: 29 | AE31: 30 | AF31: 31 | AG31: 32
D32: Probability of fault: | W32: Expected energy at risk
D33: PI Point: | E33: =C40-C41 -> 124 | G33: =VLOOKUP($C$1,Load!$Q$58:$R$109,2,FALSE) -> CM:-:66/11kV:Trans Summation:MW | W33: Outage (Days) | X33: 24
E34: =C39-C40 -> 5 | S34: 365 | T34: =IF(ISSPAREREADY, 30, IF(AssetType="Transformer", 152,120)) -> 152 | U34: =IF(ISSPAREREADY, (152-T34)/5*4,T34/5*4) -> 121.6 | V34: =U34/5*4 -> 97.28 | W34: =V34/5*4 -> 77.824 | X34: 25
E35: Station Capacity | I35: MWh over Capacity (Inc Xfers | N35: Probability of Outage | S35: kWh at risk
A36: Year | B36: MVA | C36: Hours at or below MVA | D36: N rating (MVA) | E36: N-1 Rating | F36: N-2 | G36: N-3 | H36: N-4 | I36: MVA After Xfers | J36: N | K36: N-1 | L36: N-2 | M36: N-3 | N36: N-4 | O36: 1 Failure | P36: 2 Failures | Q36: 3 Failures | R36: 4 Failures | S36: Minor | T36: N | U36: N-1 | V36: N-2 | W36: N-3 | X36: N-4 | Y36: Minor
A37: 2018 | B37: 1 | C37: =IF(LOADPROFILE=0.1,Results_10PoE!C8,IF(LOADPROFILE=0.5,Results_50PoE!C8,"Invalid Load Profile %")) -> 8760 | D37: =VLOOKUP($A37,$Q$4:$AB$26,6,FALSE) -> 61.68181818 | E37: =VLOOKUP($A37,$Q$4:$AB$26,7,FALSE) -> 30.84090909 | F37: =VLOOKUP($A37,$Q$4:$AB$26,9,FALSE) -> 0 | G37: =VLOOKUP($A37,$Q$4:$AB$26,10,FALSE) -> 0 | H37: =VLOOKUP($A37,$Q$4:$AB$26,11,FALSE) -> 0 | I37: =IF(B37-VLOOKUP(A37,$Q$4:$AB$26,12,FALSE)<0,0,B37-VLOOKUP(A37,$Q$4:$AB$26,12,FALSE)) -> 0 | J37: =IF(B37=150,0,IF(IF($I37>D37,($I37-D37)*($C37-$C38),0)<0,0,IF($I37>D37,($I37-D37)*($C37-$C38),0)))*$Y$30 -> 0 | K37: =IF(C37=150,0,IF(IF($I37>E37,($I37-E37)*($C37-$C38),0)<0,0,IF($I37>E37,($I37-E37)*($C37-$C38),0)))*$Y$30 -> 0 | L37: =IF(D37=150,0,IF(IF($I37>F37,($I37-F37)*($C37-$C38),0)<0,0,IF($I37>F37,($I37-F37)*($C37-$C38),0)))*$Y$30 -> 0 | M37: =IF(E37=150,0,IF(IF($I37>G37,($I37-G37)*($C37-$C38),0)<0,0,IF($I37>G37,($I37-G37)*($C37-$C38),0)))*$Y$30 -> 0 | N37: =IF(F37=150,0,IF(IF($I37>H37,($I37-H37)*($C37-$C38),0)<0,0,IF($I37>H37,($I37-H37)*($C37-$C38),0)))*$Y$30 -> 0 | O37: =VLOOKUP($A37, $Q$4:$BB$26,33,FALSE) -> 0.009419408449 | P37: =VLOOKUP($A37, $Q$4:$BB$26,34,FALSE) -> 0.001301009116 | Q37: =VLOOKUP($A37, $Q$4:$BB$26,35,FALSE) -> FALSE | R37: =VLOOKUP($A37, $Q$4:$BB$26,36,FALSE) -> FALSE | S37: =VLOOKUP($A37, $Q$4:$BB$26,37,FALSE) -> 0.01529124748 | T37: =J37*1000*($S$34/365) -> 0 | U37: =O37*K37*1000*($T$34/365) -> 0 | V37: =P37*L37*1000*($U$34/365) -> 0 | W37: =Q37*M37*1000*($V$34/365) -> 0 | X37: =R37*N37*1000*($W$34/365) -> 0 | Y37: =S37*K37*1000*($X$34/365) -> 0
A38: 2018 | B38: 2 | C38: =IF(LOADPROFILE=0.1,Results_10PoE!C9,IF(LOADPROFILE=0.5,Results_50PoE!C9,"Invalid Load Profile %")) -> 8760 | D38: =VLOOKUP($A38,$Q$4:$AB$26,6,FALSE) -> 61.68181818 | E38: =VLOOKUP($A38,$Q$4:$AB$26,7,FALSE) -> 30.84090909 | F38: =VLOOKUP($A38,$Q$4:$AB$26,9,FALSE) -> 0 | G38: =VLOOKUP($A38,$Q$4:$AB$26,10,FALSE) -> 0 | H38: =VLOOKUP($A38,$Q$4:$AB$26,11,FALSE) -> 0 | I38: =IF(B38-VLOOKUP(A38,$Q$4:$AB$26,12,FALSE)<0,0,B38-VLOOKUP(A38,$Q$4:$AB$26,12,FALSE)) -> 0 | J38: =IF(B38=150,0,IF(IF($I38>D38,($I38-D38)*($C38-$C39),0)<0,0,IF($I38>D38,($I38-D38)*($C38-$C39),0)))*$Y$30 -> 0 | K38: =IF(C38=150,0,IF(IF($I38>E38,($I38-E38)*($C38-$C39),0)<0,0,IF($I38>E38,($I38-E38)*($C38-$C39),0)))*$Y$30 -> 0 | L38: =IF(D38=150,0,IF(IF($I38>F38,($I38-F38)*($C38-$C39),0)<0,0,IF($I38>F38,($I38-F38)*($C38-$C39),0)))*$Y$30 -> 0 | M38: =IF(E38=150,0,IF(IF($I38>G38,($I38-G38)*($C38-$C39),0)<0,0,IF($I38>G38,($I38-G38)*($C38-$C39),0)))*$Y$30 -> 0 | N38: =IF(F38=150,0,IF(IF($I38>H38,($I38-H38)*($C38-$C39),0)<0,0,IF($I38>H38,($I38-H38)*($C38-$C39),0)))*$Y$30 -> 0 | O38: =VLOOKUP($A38, $Q$4:$BB$26,33,FALSE) -> 0.009419408449 | P38: =VLOOKUP($A38, $Q$4:$BB$26,34,FALSE) -> 0.001301009116 | Q38: =VLOOKUP($A38, $Q$4:$BB$26,35,FALSE) -> FALSE | R38: =VLOOKUP($A38, $Q$4:$BB$26,36,FALSE) -> FALSE | S38: =VLOOKUP($A38, $Q$4:$BB$26,37,FALSE) -> 0.01529124748 | T38: =J38*1000*($S$34/365) -> 0 | U38: =O38*K38*1000*($T$34/365) -> 0 | V38: =P38*L38*1000*($U$34/365) -> 0 | W38: =Q38*M38*1000*($V$34/365) -> 0 | X38: =R38*N38*1000*($W$34/365) -> 0 | Y38: =S38*K38*1000*($X$34/365) -> 0
A39: 2018 | B39: 3 | C39: =IF(LOADPROFILE=0.1,Results_10PoE!C10,IF(LOADPROFILE=0.5,Results_50PoE!C10,"Invalid Load Profile %")) -> 8760 | D39: 61.68181818 | E39: 30.84090909 | F39: 0 | G39: 0 | H39: 0 | I39: 0 | J39: 0 | K39: 0 | L39: 0 | M39: 0 | N39: 0 | O39: 0.009419408449 | P39: =VLOOKUP($A39, $Q$4:$BB$26,34,FALSE) -> 0.001301009116 | Q39: FALSE | R39: FALSE | S39: 0.01529124748 | T39: 0 | U39: 0 | V39: 0 | W39: 0 | X39: 0 | Y39: 0
A40: 2018 | B40: 4 | C40: =IF(LOADPROFILE=0.1,Results_10PoE!C11,IF(LOADPROFILE=0.5,Results_50PoE!C11,"Invalid Load Profile %")) -> 8755 | D40: 61.68181818 | E40: 30.84090909 | F40: 0 | G40: 0 | H40: 0 | I40: 0 | J40: 0 | K40: 0 | L40: 0 | M40: 0 | N40: 0 | O40: 0.009419408449 | P40: 0.001301009116 | Q40: FALSE | R40: FALSE | S40: 0.01529124748 | T40: 0 | U40: 0 | V40: 0 | W40: 0 | X40: 0 | Y40: =S40*K40*1000*($X$34/365) -> 0
A41: 2018 | B41: 5 | C41: =IF(LOADPROFILE=0.1,Results_10PoE!C12,IF(LOADPROFILE=0.5,Results_50PoE!C12,"Invalid Load Profile %")) -> 8631 | D41: 61.68181818 | E41: 30.84090909 | F41: 0 | G41: 0 | H41: 0 | I41: 0 | J41: 0 | K41: 0 | L41: 0 | M41: 0 | N41: 0 | O41: 0.009419408449 | P41: 0.001301009116 | Q41: FALSE | R41: FALSE | S41: 0.01529124748 | T41: 0 | U41: 0 | V41: 0 | W41: 0 | X41: 0 | Y41: 0
A42: 2018 | B42: 6 | C42: =IF(LOADPROFILE=0.1,Results_10PoE!C13,IF(LOADPROFILE=0.5,Results_50PoE!C13,"Invalid Load Profile %")) -> 7959 | D42: 61.68181818 | E42: 30.84090909 | F42: 0 | G42: 0 | H42: 0 | I42: 0.7731207787 | J42: 0 | K42: 0 | L42: 789.3610129 | M42: 789.3610129 | N42: 789.3610129 | O42: 0.009419408449 | P42: 0.001301009116 | Q42: FALSE | R42: FALSE | S42: 0.01529124748 | T42: 0 | U42: 0 | V42: 342.1343841 | W42: 0 | X42: 0 | Y42: 0
A43: 2018 | B43: 7 | C43: =IF(LOADPROFILE=0.1,Results_10PoE!C14,IF(LOADPROFILE=0.5,Results_50PoE!C14,"Invalid Load Profile %")) -> 6929 | D43: 61.68181818 | E43: 30.84090909 | F43: 0 | G43: 0 | H43: 0 | I43: 1.773120779 | J43: 0 | K43: 0 | L43: 2167.167593 | M43: 2167.167593 | N43: 2167.167593 | O43: 0.009419408449 | P43: 0.001301009116 | Q43: FALSE | R43: FALSE | S43: 0.01529124748 | T43: 0 | U43: 0 | V43: =P43*L43*1000*($U$34/365) -> 939.3199533 | W43: 0 | X43: 0 | Y43: 0
A44: 2018 | B44: 8 | C44: =IF(LOADPROFILE=0.1,Results_10PoE!C15,IF(LOADPROFILE=0.5,Results_50PoE!C15,"Invalid Load Profile %")) -> 5696 | D44: 61.68181818 | E44: 30.84090909 | F44: 0 | G44: 0 | H44: 0 | I44: 2.773120779 | J44: 0 | K44: 0 | L44: =IF(D44=150,0,IF(IF($I44>F44,($I44-F44)*($C44-$C45),0)<0,0,IF($I44>F44,($I44-F44)*($C44-$C45),0)))*$Y$30 -> 2149.644481 | M44: 2149.644481 | N44: 2149.644481 | O44: 0.009419408449 | P44: =VLOOKUP($A44, $Q$4:$BB$26,34,FALSE) -> 0.001301009116 | Q44: FALSE | R44: FALSE | S44: 0.01529124748 | T44: 0 | U44: 0 | V44: =P44*L44*1000*($U$34/365) -> 931.7248744 | W44: 0 | X44: 0 | Y44: 0
A45: 2018 | B45: 9 | C45: =IF(LOADPROFILE=0.1,Results_10PoE!C16,IF(LOADPROFILE=0.5,Results_50PoE!C16,"Invalid Load Profile %")) -> 4914 | D45: 61.68181818 | E45: 30.84090909 | F45: 0 | G45: 0 | H45: 0 | I45: 3.773120779 | J45: 0 | K45: 0 | L45: 2367.530156 | M45: 2367.530156 | N45: 2367.530156 | O45: 0.009419408449 | P45: 0.001301009116 | Q45: FALSE | R45: FALSE | S45: 0.01529124748 | T45: 0 | U45: 0 | V45: 1026.163515 | W45: 0 | X45: 0 | Y45: 0
A46: 2018 | B46: 10 | C46: =IF(LOADPROFILE=0.1,Results_10PoE!C17,IF(LOADPROFILE=0.5,Results_50PoE!C17,"Invalid Load Profile %")) -> 4281 | D46: 61.68181818 | E46: 30.84090909 | F46: 0 | G46: 0 | H46: 0 | I46: 4.773120779 | J46: 0 | K46: 0 | L46: 3846.662392 | M46: 3846.662392 | N46: 3846.662392 | O46: 0.009419408449 | P46: 0.001301009116 | Q46: FALSE | R46: FALSE | S46: 0.01529124748 | T46: 0 | U46: 0 | V46: 1667.266874 | W46: 0 | X46: 0 | Y46: 0
A47: 2018 | B47: 11 | C47: =IF(LOADPROFILE=0.1,Results_10PoE!C18,IF(LOADPROFILE=0.5,Results_50PoE!C18,"Invalid Load Profile %")) -> 3468 | D47: 61.68181818 | E47: 30.84090909 | F47: 0 | G47: 0 | H47: 0 | I47: 5.773120779 | J47: 0 | K47: 0 | L47: 3502.298577 | M47: 3502.298577 | N47: 3502.298577 | O47: 0.009419408449 | P47: =VLOOKUP($A47, $Q$4:$BB$26,34,FALSE) -> 0.001301009116 | Q47: FALSE | R47: FALSE | S47: 0.01529124748 | T47: 0 | U47: 0 | V47: 1518.00855 | W47: 0 | X47: 0 | Y47: 0
A48: 2018 | B48: 12 | C48: =IF(LOADPROFILE=0.1,Results_10PoE!C19,IF(LOADPROFILE=0.5,Results_50PoE!C19,"Invalid Load Profile %")) -> 2856 | D48: 61.68181818 | E48: 30.84090909 | F48: 0 | G48: 0 | H48: 0 | I48: 6.773120779 | J48: 0 | K48: 0 | L48: 4155.952461 | M48: 4155.952461 | N48: 4155.952461 | O48: 0.009419408449 | P48: 0.001301009116 | Q48: FALSE | R48: FALSE | S48: 0.01529124748 | T48: 0 | U48: 0 | V48: 1801.323111 | W48: 0 | X48: 0 | Y48: 0
A49: 2018 | B49: 13 | C49: =IF(LOADPROFILE=0.1,Results_10PoE!C20,IF(LOADPROFILE=0.5,Results_50PoE!C20,"Invalid Load Profile %")) -> 2237 | D49: 61.68181818 | E49: 30.84090909 | F49: 0 | G49: 0 | H49: 0 | I49: 7.773120779 | J49: 0 | K49: 0 | L49: 6957.837285 | M49: 6957.837285 | N49: 6957.837285 | O49: 0.009419408449 | P49: 0.001301009116 | Q49: FALSE | R49: FALSE | S49: 0.01529124748 | T49: 0 | U49: 0 | V49: 3015.749873 | W49: 0 | X49: 0 | Y49: 0
A50: 2018 | B50: 14 | C50: =IF(LOADPROFILE=0.1,Results_10PoE!C21,IF(LOADPROFILE=0.5,Results_50PoE!C21,"Invalid Load Profile %")) -> 1334 | D50: 61.68181818 | E50: 30.84090909 | F50: 0 | G50: 0 | H50: 0 | I50: 8.773120779 | J50: 0 | K50: 0 | L50: 6591.957762 | M50: 6591.957762 | N50: 6591.957762 | O50: 0.009419408449 | P50: 0.001301009116 | Q50: FALSE | R50: FALSE | S50: 0.01529124748 | T50: 0 | U50: 0 | V50: 2857.165951 | W50: 0 | X50: 0 | Y50: 0
A51: 2018 | B51: 15 | C51: =IF(LOADPROFILE=0.1,Results_10PoE!C22,IF(LOADPROFILE=0.5,Results_50PoE!C22,"Invalid Load Profile %")) -> 576 | D51: 61.68181818 | E51: 30.84090909 | F51: 0 | G51: 0 | H51: 0 | I51: 9.773120779 | J51: 0 | K51: 0 | L51: 3129.153662 | M51: 3129.153662 | N51: 3129.153662 | O51: 0.009419408449 | P51: 0.001301009116 | Q51: FALSE | R51: FALSE | S51: 0.01529124748 | T51: 0 | U51: 0 | V51: 1356.275574 | W51: 0 | X51: 0 | Y51: 0
A52: 2018 | B52: 16 | C52: =IF(LOADPROFILE=0.1,Results_10PoE!C23,IF(LOADPROFILE=0.5,Results_50PoE!C23,"Invalid Load Profile %")) -> 253 | D52: 61.68181818 | E52: 30.84090909 | F52: 0 | G52: 0 | H52: 0 | I52: 10.77312078 | J52: 0 | K52: 0 | L52: 1366.918434 | M52: 1366.918434 | N52: 1366.918434 | O52: 0.009419408449 | P52: 0.001301009116 | Q52: FALSE | R52: FALSE | S52: 0.01529124748 | T52: 0 | U52: 0 | V52: 592.4662975 | W52: 0 | X52: 0 | Y52: 0
A53: 2018 | B53: 17 | C53: =IF(LOADPROFILE=0.1,Results_10PoE!C24,IF(LOADPROFILE=0.5,Results_50PoE!C24,"Invalid Load Profile %")) -> 125 | D53: 61.68181818 | E53: 30.84090909 | F53: 0 | G53: 0 | H53: 0 | I53: 11.77312078 | J53: 0 | K53: 0 | L53: 863.6035545 | M53: 863.6035545 | N53: 863.6035545 | O53: 0.009419408449 | P53: 0.001301009116 | Q53: FALSE | R53: FALSE | S53: 0.01529124748 | T53: 0 | U53: 0 | V53: 374.3134832 | W53: 0 | X53: 0 | Y53: 0
A54: 2018 | B54: 18 | C54: =IF(LOADPROFILE=0.1,Results_10PoE!C25,IF(LOADPROFILE=0.5,Results_50PoE!C25,"Invalid Load Profile %")) -> 51 | D54: 61.68181818 | E54: 30.84090909 | F54: 0 | G54: 0 | H54: 0 | I54: 12.77312078 | J54: 0 | K54: 0 | L54: 354.5244175 | M54: 354.5244175 | N54: 354.5244175 | O54: 0.009419408449 | P54: 0.001301009116 | Q54: FALSE | R54: FALSE | S54: 0.01529124748 | T54: 0 | U54: 0 | V54: 153.662255 | W54: 0 | X54: 0 | Y54: 0
A55: 2018 | B55: 19 | C55: =IF(LOADPROFILE=0.1,Results_10PoE!C26,IF(LOADPROFILE=0.5,Results_50PoE!C26,"Invalid Load Profile %")) -> 23 | D55: 61.68181818 | E55: 30.84090909 | F55: 0 | G55: 0 | H55: 0 | I55: 13.77312078 | J55: 0 | K55: 0 | L55: 204.7928156 | M55: 204.7928156 | N55: 204.7928156 | O55: 0.009419408449 | P55: 0.001301009116 | Q55: FALSE | R55: FALSE | S55: 0.01529124748 | T55: 0 | U55: 0 | V55: 88.76377563 | W55: 0 | X55: 0 | Y55: 0
A56: 2018 | B56: 20 | C56: =IF(LOADPROFILE=0.1,Results_10PoE!C27,IF(LOADPROFILE=0.5,Results_50PoE!C27,"Invalid Load Profile %")) -> 8 | D56: 61.68181818 | E56: 30.84090909 | F56: 0 | G56: 0 | H56: 0 | I56: 14.77312078 | J56: 0 | K56: 0 | L56: 87.86473446 | M56: 87.86473446 | N56: 87.86473446 | O56: 0.009419408449 | P56: 0.001301009116 | Q56: FALSE | R56: FALSE | S56: 0.01529124748 | T56: 0 | U56: 0 | V56: 38.08339444 | W56: 0 | X56: 0 | Y56: 0
A57: 2018 | B57: 21 | C57: =IF(LOADPROFILE=0.1,Results_10PoE!C28,IF(LOADPROFILE=0.5,Results_50PoE!C28,"Invalid Load Profile %")) -> 2 | D57: 61.68181818 | E57: 30.84090909 | F57: 0 | G57: 0 | H57: 0 | I57: 15.77312078 | J57: 0 | K57: 0 | L57: 31.27078089 | M57: 31.27078089 | N57: 31.27078089 | O57: 0.009419408449 | P57: 0.001301009116 | Q57: FALSE | R57: FALSE | S57: 0.01529124748 | T57: 0 | U57: 0 | V57: 13.55375954 | W57: 0 | X57: 0 | Y57: 0
A58: 2018 | B58: 22 | C58: =IF(LOADPROFILE=0.1,Results_10PoE!C29,IF(LOADPROFILE=0.5,Results_50PoE!C29,"Invalid Load Profile %")) -> 0 | D58: 61.68181818 | E58: 30.84090909 | F58: 0 | G58: 0 | H58: 0 | I58: 16.77312078 | J58: 0 | K58: 0 | L58: 0 | M58: 0 | N58: 0 | O58: 0.009419408449 | P58: 0.001301009116 | Q58: FALSE | R58: FALSE | S58: 0.01529124748 | T58: 0 | U58: 0 | V58: 0 | W58: 0 | X58: 0 | Y58: 0
A59: 2018 | B59: 23 | C59: =IF(LOADPROFILE=0.1,Results_10PoE!C30,IF(LOADPROFILE=0.5,Results_50PoE!C30,"Invalid Load Profile %")) -> 0 | D59: 61.68181818 | E59: 30.84090909 | F59: 0 | G59: 0 | H59: 0 | I59: 17.77312078 | J59: 0 | K59: 0 | L59: 0 | M59: 0 | N59: 0 | O59: 0.009419408449 | P59: 0.001301009116 | Q59: FALSE | R59: FALSE | S59: 0.01529124748 | T59: 0 | U59: 0 | V59: 0 | W59: 0 | X59: 0 | Y59: 0
A60: 2018 | B60: 24 | C60: =IF(LOADPROFILE=0.1,Results_10PoE!C31,IF(LOADPROFILE=0.5,Results_50PoE!C31,"Invalid Load Profile %")) -> 0 | D60: 61.68181818 | E60: 30.84090909 | F60: 0 | G60: 0 | H60: 0 | I60: 18.77312078 | J60: 0 | K60: 0 | L60: 0 | M60: 0 | N60: 0 | O60: 0.009419408449 | P60: 0.001301009116 | Q60: FALSE | R60: FALSE | S60: 0.01529124748 | T60: 0 | U60: 0 | V60: 0 | W60: 0 | X60: 0 | Y60: 0
A61: 2018 | B61: 25 | C61: =IF(LOADPROFILE=0.1,Results_10PoE!C32,IF(LOADPROFILE=0.5,Results_50PoE!C32,"Invalid Load Profile %")) -> 0 | D61: 61.68181818 | E61: 30.84090909 | F61: 0 | G61: 0 | H61: 0 | I61: 19.77312078 | J61: 0 | K61: 0 | L61: 0 | M61: 0 | N61: 0 | O61: 0.009419408449 | P61: 0.001301009116 | Q61: FALSE | R61: FALSE | S61: 0.01529124748 | T61: 0 | U61: 0 | V61: 0 | W61: 0 | X61: 0 | Y61: 0
A62: 2018 | B62: 26 | C62: =IF(LOADPROFILE=0.1,Results_10PoE!C33,IF(LOADPROFILE=0.5,Results_50PoE!C33,"Invalid Load Profile %")) -> 0 | D62: 61.68181818 | E62: 30.84090909 | F62: 0 | G62: 0 | H62: 0 | I62: 20.77312078 | J62: 0 | K62: 0 | L62: 0 | M62: 0 | N62: 0 | O62: 0.009419408449 | P62: 0.001301009116 | Q62: FALSE | R62: FALSE | S62: 0.01529124748 | T62: 0 | U62: 0 | V62: 0 | W62: 0 | X62: 0 | Y62: 0
A63: 2018 | B63: 27 | C63: =IF(LOADPROFILE=0.1,Results_10PoE!C34,IF(LOADPROFILE=0.5,Results_50PoE!C34,"Invalid Load Profile %")) -> 0 | D63: 61.68181818 | E63: 30.84090909 | F63: 0 | G63: 0 | H63: 0 | I63: 21.77312078 | J63: 0 | K63: 0 | L63: 0 | M63: 0 | N63: 0 | O63: 0.009419408449 | P63: 0.001301009116 | Q63: FALSE | R63: FALSE | S63: 0.01529124748 | T63: 0 | U63: 0 | V63: 0 | W63: 0 | X63: 0 | Y63: 0
A64: 2018 | B64: 28 | C64: =IF(LOADPROFILE=0.1,Results_10PoE!C35,IF(LOADPROFILE=0.5,Results_50PoE!C35,"Invalid Load Profile %")) -> 0 | D64: 61.68181818 | E64: 30.84090909 | F64: 0 | G64: 0 | H64: 0 | I64: 22.77312078 | J64: 0 | K64: 0 | L64: 0 | M64: 0 | N64: 0 | O64: 0.009419408449 | P64: 0.001301009116 | Q64: FALSE | R64: FALSE | S64: 0.01529124748 | T64: 0 | U64: 0 | V64: 0 | W64: 0 | X64: 0 | Y64: 0
A65: 2018 | B65: 29 | C65: =IF(LOADPROFILE=0.1,Results_10PoE!C36,IF(LOADPROFILE=0.5,Results_50PoE!C36,"Invalid Load Profile %")) -> 0 | D65: 61.68181818 | E65: 30.84090909 | F65: 0 | G65: 0 | H65: 0 | I65: 23.77312078 | J65: 0 | K65: 0 | L65: 0 | M65: 0 | N65: 0 | O65: 0.009419408449 | P65: 0.001301009116 | Q65: FALSE | R65: FALSE | S65: 0.01529124748 | T65: 0 | U65: 0 | V65: 0 | W65: 0 | X65: 0 | Y65: 0
A66: 2018 | B66: 30 | C66: =IF(LOADPROFILE=0.1,Results_10PoE!C37,IF(LOADPROFILE=0.5,Results_50PoE!C37,"Invalid Load Profile %")) -> 0 | D66: 61.68181818 | E66: 30.84090909 | F66: 0 | G66: 0 | H66: 0 | I66: 24.77312078 | J66: 0 | K66: 0 | L66: 0 | M66: 0 | N66: 0 | O66: 0.009419408449 | P66: 0.001301009116 | Q66: FALSE | R66: FALSE | S66: 0.01529124748 | T66: 0 | U66: 0 | V66: 0 | W66: 0 | X66: 0 | Y66: 0
A67: 2018 | B67: 31 | C67: =IF(LOADPROFILE=0.1,Results_10PoE!C38,IF(LOADPROFILE=0.5,Results_50PoE!C38,"Invalid Load Profile %")) -> 0 | D67: 61.68181818 | E67: 30.84090909 | F67: 0 | G67: 0 | H67: 0 | I67: 25.77312078 | J67: 0 | K67: 0 | L67: 0 | M67: 0 | N67: 0 | O67: 0.009419408449 | P67: 0.001301009116 | Q67: FALSE | R67: FALSE | S67: 0.01529124748 | T67: 0 | U67: 0 | V67: 0 | W67: 0 | X67: 0 | Y67: 0
A68: 2018 | B68: 32 | C68: =IF(LOADPROFILE=0.1,Results_10PoE!C39,IF(LOADPROFILE=0.5,Results_50PoE!C39,"Invalid Load Profile %")) -> 0 | D68: 61.68181818 | E68: 30.84090909 | F68: 0 | G68: 0 | H68: 0 | I68: 26.77312078 | J68: 0 | K68: 0 | L68: 0 | M68: 0 | N68: 0 | O68: 0.009419408449 | P68: 0.001301009116 | Q68: FALSE | R68: FALSE | S68: 0.01529124748 | T68: 0 | U68: 0 | V68: 0 | W68: 0 | X68: 0 | Y68: 0
A69: 2018 | B69: 33 | C69: =IF(LOADPROFILE=0.1,Results_10PoE!C40,IF(LOADPROFILE=0.5,Results_50PoE!C40,"Invalid Load Profile %")) -> 0 | D69: 61.68181818 | E69: 30.84090909 | F69: 0 | G69: 0 | H69: 0 | I69: 27.77312078 | J69: 0 | K69: 0 | L69: 0 | M69: 0 | N69: 0 | O69: 0.009419408449 | P69: 0.001301009116 | Q69: FALSE | R69: FALSE | S69: 0.01529124748 | T69: 0 | U69: 0 | V69: 0 | W69: 0 | X69: 0 | Y69: 0
A70: 2018 | B70: 34 | C70: =IF(LOADPROFILE=0.1,Results_10PoE!C41,IF(LOADPROFILE=0.5,Results_50PoE!C41,"Invalid Load Profile %")) -> 0 | D70: 61.68181818 | E70: 30.84090909 | F70: 0 | G70: 0 | H70: 0 | I70: 28.77312078 | J70: 0 | K70: 0 | L70: 0 | M70: 0 | N70: 0 | O70: 0.009419408449 | P70: 0.001301009116 | Q70: FALSE | R70: FALSE | S70: 0.01529124748 | T70: 0 | U70: 0 | V70: 0 | W70: 0 | X70: 0 | Y70: 0
A71: 2018 | B71: 35 | C71: =IF(LOADPROFILE=0.1,Results_10PoE!C42,IF(LOADPROFILE=0.5,Results_50PoE!C42,"Invalid Load Profile %")) -> 0 | D71: 61.68181818 | E71: 30.84090909 | F71: 0 | G71: 0 | H71: 0 | I71: 29.77312078 | J71: 0 | K71: 0 | L71: 0 | M71: 0 | N71: 0 | O71: 0.009419408449 | P71: 0.001301009116 | Q71: FALSE | R71: FALSE | S71: 0.01529124748 | T71: 0 | U71: 0 | V71: 0 | W71: 0 | X71: 0 | Y71: 0
A72: 2018 | B72: 36 | C72: =IF(LOADPROFILE=0.1,Results_10PoE!C43,IF(LOADPROFILE=0.5,Results_50PoE!C43,"Invalid Load Profile %")) -> 0 | D72: 61.68181818 | E72: 30.84090909 | F72: 0 | G72: 0 | H72: 0 | I72: 30.77312078 | J72: 0 | K72: 0 | L72: 0 | M72: 0 | N72: 0 | O72: 0.009419408449 | P72: 0.001301009116 | Q72: FALSE | R72: FALSE | S72: 0.01529124748 | T72: 0 | U72: 0 | V72: 0 | W72: 0 | X72: 0 | Y72: 0
A73: 2018 | B73: 37 | C73: =IF(LOADPROFILE=0.1,Results_10PoE!C44,IF(LOADPROFILE=0.5,Results_50PoE!C44,"Invalid Load Profile %")) -> 0 | D73: 61.68181818 | E73: 30.84090909 | F73: 0 | G73: 0 | H73: 0 | I73: 31.77312078 | J73: 0 | K73: 0 | L73: 0 | M73: 0 | N73: 0 | O73: 0.009419408449 | P73: 0.001301009116 | Q73: FALSE | R73: FALSE | S73: 0.01529124748 | T73: 0 | U73: 0 | V73: 0 | W73: 0 | X73: 0 | Y73: 0
A74: 2018 | B74: 38 | C74: =IF(LOADPROFILE=0.1,Results_10PoE!C45,IF(LOADPROFILE=0.5,Results_50PoE!C45,"Invalid Load Profile %")) -> 0 | D74: 61.68181818 | E74: 30.84090909 | F74: 0 | G74: 0 | H74: 0 | I74: 32.77312078 | J74: 0 | K74: 0 | L74: 0 | M74: 0 | N74: 0 | O74: 0.009419408449 | P74: 0.001301009116 | Q74: FALSE | R74: FALSE | S74: 0.01529124748 | T74: 0 | U74: 0 | V74: 0 | W74: 0 | X74: 0 | Y74: 0
A75: 2018 | B75: 39 | C75: =IF(LOADPROFILE=0.1,Results_10PoE!C46,IF(LOADPROFILE=0.5,Results_50PoE!C46,"Invalid Load Profile %")) -> 0 | D75: 61.68181818 | E75: 30.84090909 | F75: 0 | G75: 0 | H75: 0 | I75: 33.77312078 | J75: 0 | K75: 0 | L75: 0 | M75: 0 | N75: 0 | O75: 0.009419408449 | P75: 0.001301009116 | Q75: FALSE | R75: FALSE | S75: 0.01529124748 | T75: 0 | U75: 0 | V75: 0 | W75: 0 | X75: 0 | Y75: 0
A76: 2018 | B76: 40 | C76: =IF(LOADPROFILE=0.1,Results_10PoE!C47,IF(LOADPROFILE=0.5,Results_50PoE!C47,"Invalid Load Profile %")) -> 0 | D76: 61.68181818 | E76: 30.84090909 | F76: 0 | G76: 0 | H76: 0 | I76: 34.77312078 | J76: 0 | K76: 0 | L76: 0 | M76: 0 | N76: 0 | O76: 0.009419408449 | P76: 0.001301009116 | Q76: FALSE | R76: FALSE | S76: 0.01529124748 | T76: 0 | U76: 0 | V76: 0 | W76: 0 | X76: 0 | Y76: 0
A77: 2018 | B77: 41 | C77: =IF(LOADPROFILE=0.1,Results_10PoE!C48,IF(LOADPROFILE=0.5,Results_50PoE!C48,"Invalid Load Profile %")) -> 0 | D77: 61.68181818 | E77: 30.84090909 | F77: 0 | G77: 0 | H77: 0 | I77: 35.77312078 | J77: 0 | K77: 0 | L77: 0 | M77: 0 | N77: 0 | O77: 0.009419408449 | P77: 0.001301009116 | Q77: FALSE | R77: FALSE | S77: 0.01529124748 | T77: 0 | U77: 0 | V77: 0 | W77: 0 | X77: 0 | Y77: 0
A78: 2018 | B78: 42 | C78: =IF(LOADPROFILE=0.1,Results_10PoE!C49,IF(LOADPROFILE=0.5,Results_50PoE!C49,"Invalid Load Profile %")) -> 0 | D78: 61.68181818 | E78: 30.84090909 | F78: 0 | G78: 0 | H78: 0 | I78: 36.77312078 | J78: 0 | K78: 0 | L78: 0 | M78: 0 | N78: 0 | O78: 0.009419408449 | P78: 0.001301009116 | Q78: FALSE | R78: FALSE | S78: 0.01529124748 | T78: 0 | U78: 0 | V78: 0 | W78: 0 | X78: 0 | Y78: 0
A79: 2018 | B79: 43 | C79: =IF(LOADPROFILE=0.1,Results_10PoE!C50,IF(LOADPROFILE=0.5,Results_50PoE!C50,"Invalid Load Profile %")) -> 0 | D79: 61.68181818 | E79: 30.84090909 | F79: 0 | G79: 0 | H79: 0 | I79: 37.77312078 | J79: 0 | K79: 0 | L79: 0 | M79: 0 | N79: 0 | O79: 0.009419408449 | P79: 0.001301009116 | Q79: FALSE | R79: FALSE | S79: 0.01529124748 | T79: 0 | U79: 0 | V79: 0 | W79: 0 | X79: 0 | Y79: 0
A80: 2018 | B80: 44 | C80: =IF(LOADPROFILE=0.1,Results_10PoE!C51,IF(LOADPROFILE=0.5,Results_50PoE!C51,"Invalid Load Profile %")) -> 0 | D80: 61.68181818 | E80: 30.84090909 | F80: 0 | G80: 0 | H80: 0 | I80: 38.77312078 | J80: 0 | K80: 0 | L80: 0 | M80: 0 | N80: 0 | O80: 0.009419408449 | P80: 0.001301009116 | Q80: FALSE | R80: FALSE | S80: 0.01529124748 | T80: 0 | U80: 0 | V80: 0 | W80: 0 | X80: 0 | Y80: 0
A81: 2018 | B81: 45 | C81: =IF(LOADPROFILE=0.1,Results_10PoE!C52,IF(LOADPROFILE=0.5,Results_50PoE!C52,"Invalid Load Profile %")) -> 0 | D81: 61.68181818 | E81: 30.84090909 | F81: 0 | G81: 0 | H81: 0 | I81: 39.77312078 | J81: 0 | K81: 0 | L81: 0 | M81: 0 | N81: 0 | O81: 0.009419408449 | P81: 0.001301009116 | Q81: FALSE | R81: FALSE | S81: 0.01529124748 | T81: 0 | U81: 0 | V81: 0 | W81: 0 | X81: 0 | Y81: 0
A82: 2018 | B82: 46 | C82: =IF(LOADPROFILE=0.1,Results_10PoE!C53,IF(LOADPROFILE=0.5,Results_50PoE!C53,"Invalid Load Profile %")) -> 0 | D82: 61.68181818 | E82: 30.84090909 | F82: 0 | G82: 0 | H82: 0 | I82: 40.77312078 | J82: 0 | K82: 0 | L82: 0 | M82: 0 | N82: 0 | O82: 0.009419408449 | P82: 0.001301009116 | Q82: FALSE | R82: FALSE | S82: 0.01529124748 | T82: 0 | U82: 0 | V82: 0 | W82: 0 | X82: 0 | Y82: 0
A83: 2018 | B83: 47 | C83: =IF(LOADPROFILE=0.1,Results_10PoE!C54,IF(LOADPROFILE=0.5,Results_50PoE!C54,"Invalid Load Profile %")) -> 0 | D83: 61.68181818 | E83: 30.84090909 | F83: 0 | G83: 0 | H83: 0 | I83: 41.77312078 | J83: 0 | K83: 0 | L83: 0 | M83: 0 | N83: 0 | O83: 0.009419408449 | P83: 0.001301009116 | Q83: FALSE | R83: FALSE | S83: 0.01529124748 | T83: 0 | U83: 0 | V83: 0 | W83: 0 | X83: 0 | Y83: 0
A84: 2018 | B84: 48 | C84: =IF(LOADPROFILE=0.1,Results_10PoE!C55,IF(LOADPROFILE=0.5,Results_50PoE!C55,"Invalid Load Profile %")) -> 0 | D84: 61.68181818 | E84: 30.84090909 | F84: 0 | G84: 0 | H84: 0 | I84: 42.77312078 | J84: 0 | K84: 0 | L84: 0 | M84: 0 | N84: 0 | O84: 0.009419408449 | P84: 0.001301009116 | Q84: FALSE | R84: FALSE | S84: 0.01529124748 | T84: 0 | U84: 0 | V84: 0 | W84: 0 | X84: 0 | Y84: 0
A85: 2018 | B85: 49 | C85: =IF(LOADPROFILE=0.1,Results_10PoE!C56,IF(LOADPROFILE=0.5,Results_50PoE!C56,"Invalid Load Profile %")) -> 0 | D85: 61.68181818 | E85: 30.84090909 | F85: 0 | G85: 0 | H85: 0 | I85: 43.77312078 | J85: 0 | K85: 0 | L85: 0 | M85: 0 | N85: 0 | O85: 0.009419408449 | P85: 0.001301009116 | Q85: FALSE | R85: FALSE | S85: 0.01529124748 | T85: 0 | U85: 0 | V85: 0 | W85: 0 | X85: 0 | Y85: 0
A86: 2018 | B86: 50 | C86: =IF(LOADPROFILE=0.1,Results_10PoE!C57,IF(LOADPROFILE=0.5,Results_50PoE!C57,"Invalid Load Profile %")) -> 0 | D86: 61.68181818 | E86: 30.84090909 | F86: 0 | G86: 0 | H86: 0 | I86: 44.77312078 | J86: 0 | K86: 0 | L86: 0 | M86: 0 | N86: 0 | O86: 0.009419408449 | P86: 0.001301009116 | Q86: FALSE | R86: FALSE | S86: 0.01529124748 | T86: 0 | U86: 0 | V86: 0 | W86: 0 | X86: 0 | Y86: 0
A87: 2018 | B87: 51 | C87: =IF(LOADPROFILE=0.1,Results_10PoE!C58,IF(LOADPROFILE=0.5,Results_50PoE!C58,"Invalid Load Profile %")) -> 0 | D87: 61.68181818 | E87: 30.84090909 | F87: 0 | G87: 0 | H87: 0 | I87: 45.77312078 | J87: 0 | K87: 0 | L87: 0 | M87: 0 | N87: 0 | O87: 0.009419408449 | P87: 0.001301009116 | Q87: FALSE | R87: FALSE | S87: 0.01529124748 | T87: 0 | U87: 0 | V87: 0 | W87: 0 | X87: 0 | Y87: 0
A88: 2018 | B88: 52 | C88: =IF(LOADPROFILE=0.1,Results_10PoE!C59,IF(LOADPROFILE=0.5,Results_50PoE!C59,"Invalid Load Profile %")) -> 0 | D88: 61.68181818 | E88: 30.84090909 | F88: 0 | G88: 0 | H88: 0 | I88: 46.77312078 | J88: 0 | K88: 0 | L88: 0 | M88: 0 | N88: 0 | O88: 0.009419408449 | P88: 0.001301009116 | Q88: FALSE | R88: FALSE | S88: 0.01529124748 | T88: 0 | U88: 0 | V88: 0 | W88: 0 | X88: 0 | Y88: 0
A89: 2018 | B89: 53 | C89: =IF(LOADPROFILE=0.1,Results_10PoE!C60,IF(LOADPROFILE=0.5,Results_50PoE!C60,"Invalid Load Profile %")) -> 0 | D89: 61.68181818 | E89: 30.84090909 | F89: 0 | G89: 0 | H89: 0 | I89: 47.77312078 | J89: 0 | K89: 0 | L89: 0 | M89: 0 | N89: 0 | O89: 0.009419408449 | P89: 0.001301009116 | Q89: FALSE | R89: FALSE | S89: 0.01529124748 | T89: 0 | U89: 0 | V89: 0 | W89: 0 | X89: 0 | Y89: 0
A90: 2018 | B90: 54 | C90: =IF(LOADPROFILE=0.1,Results_10PoE!C61,IF(LOADPROFILE=0.5,Results_50PoE!C61,"Invalid Load Profile %")) -> 0 | D90: 61.68181818 | E90: 30.84090909 | F90: 0 | G90: 0 | H90: 0 | I90: 48.77312078 | J90: 0 | K90: 0 | L90: 0 | M90: 0 | N90: 0 | O90: 0.009419408449 | P90: 0.001301009116 | Q90: FALSE | R90: FALSE | S90: 0.01529124748 | T90: 0 | U90: 0 | V90: 0 | W90: 0 | X90: 0 | Y90: 0
A91: 2018 | B91: 55 | C91: =IF(LOADPROFILE=0.1,Results_10PoE!C62,IF(LOADPROFILE=0.5,Results_50PoE!C62,"Invalid Load Profile %")) -> 0 | D91: 61.68181818 | E91: 30.84090909 | F91: 0 | G91: 0 | H91: 0 | I91: 49.77312078 | J91: 0 | K91: 0 | L91: 0 | M91: 0 | N91: 0 | O91: 0.009419408449 | P91: 0.001301009116 | Q91: FALSE | R91: FALSE | S91: 0.01529124748 | T91: 0 | U91: 0 | V91: 0 | W91: 0 | X91: 0 | Y91: 0
A92: 2018 | B92: 56 | C92: =IF(LOADPROFILE=0.1,Results_10PoE!C63,IF(LOADPROFILE=0.5,Results_50PoE!C63,"Invalid Load Profile %")) -> 0 | D92: 61.68181818 | E92: 30.84090909 | F92: 0 | G92: 0 | H92: 0 | I92: 50.77312078 | J92: 0 | K92: 0 | L92: 0 | M92: 0 | N92: 0 | O92: 0.009419408449 | P92: 0.001301009116 | Q92: FALSE | R92: FALSE | S92: 0.01529124748 | T92: 0 | U92: 0 | V92: 0 | W92: 0 | X92: 0 | Y92: 0
A93: 2018 | B93: 57 | C93: =IF(LOADPROFILE=0.1,Results_10PoE!C64,IF(LOADPROFILE=0.5,Results_50PoE!C64,"Invalid Load Profile %")) -> 0 | D93: 61.68181818 | E93: 30.84090909 | F93: 0 | G93: 0 | H93: 0 | I93: 51.77312078 | J93: 0 | K93: 0 | L93: 0 | M93: 0 | N93: 0 | O93: 0.009419408449 | P93: 0.001301009116 | Q93: FALSE | R93: FALSE | S93: 0.01529124748 | T93: 0 | U93: 0 | V93: 0 | W93: 0 | X93: 0 | Y93: 0
A94: 2018 | B94: 58 | C94: =IF(LOADPROFILE=0.1,Results_10PoE!C65,IF(LOADPROFILE=0.5,Results_50PoE!C65,"Invalid Load Profile %")) -> 0 | D94: 61.68181818 | E94: 30.84090909 | F94: 0 | G94: 0 | H94: 0 | I94: 52.77312078 | J94: 0 | K94: 0 | L94: 0 | M94: 0 | N94: 0 | O94: 0.009419408449 | P94: 0.001301009116 | Q94: FALSE | R94: FALSE | S94: 0.01529124748 | T94: 0 | U94: 0 | V94: 0 | W94: 0 | X94: 0 | Y94: 0
A95: 2018 | B95: 59 | C95: =IF(LOADPROFILE=0.1,Results_10PoE!C66,IF(LOADPROFILE=0.5,Results_50PoE!C66,"Invalid Load Profile %")) -> 0 | D95: 61.68181818 | E95: 30.84090909 | F95: 0 | G95: 0 | H95: 0 | I95: 53.77312078 | J95: 0 | K95: 0 | L95: 0 | M95: 0 | N95: 0 | O95: 0.009419408449 | P95: 0.001301009116 | Q95: FALSE | R95: FALSE | S95: 0.01529124748 | T95: 0 | U95: 0 | V95: 0 | W95: 0 | X95: 0 | Y95: 0
A96: 2018 | B96: 60 | C96: =IF(LOADPROFILE=0.1,Results_10PoE!C67,IF(LOADPROFILE=0.5,Results_50PoE!C67,"Invalid Load Profile %")) -> 0 | D96: 61.68181818 | E96: 30.84090909 | F96: 0 | G96: 0 | H96: 0 | I96: 54.77312078 | J96: 0 | K96: 0 | L96: 0 | M96: 0 | N96: 0 | O96: 0.009419408449 | P96: 0.001301009116 | Q96: FALSE | R96: FALSE | S96: 0.01529124748 | T96: 0 | U96: 0 | V96: 0 | W96: 0 | X96: 0 | Y96: 0
A97: 2018 | B97: 61 | C97: =IF(LOADPROFILE=0.1,Results_10PoE!C68,IF(LOADPROFILE=0.5,Results_50PoE!C68,"Invalid Load Profile %")) -> 0 | D97: 61.68181818 | E97: 30.84090909 | F97: 0 | G97: 0 | H97: 0 | I97: 55.77312078 | J97: 0 | K97: 0 | L97: 0 | M97: 0 | N97: 0 | O97: 0.009419408449 | P97: 0.001301009116 | Q97: FALSE | R97: FALSE | S97: 0.01529124748 | T97: 0 | U97: 0 | V97: 0 | W97: 0 | X97: 0 | Y97: 0
A98: 2018 | B98: 62 | C98: =IF(LOADPROFILE=0.1,Results_10PoE!C69,IF(LOADPROFILE=0.5,Results_50PoE!C69,"Invalid Load Profile %")) -> 0 | D98: 61.68181818 | E98: 30.84090909 | F98: 0 | G98: 0 | H98: 0 | I98: 56.77312078 | J98: 0 | K98: 0 | L98: 0 | M98: 0 | N98: 0 | O98: 0.009419408449 | P98: 0.001301009116 | Q98: FALSE | R98: FALSE | S98: 0.01529124748 | T98: 0 | U98: 0 | V98: 0 | W98: 0 | X98: 0 | Y98: 0
A99: 2018 | B99: 63 | C99: =IF(LOADPROFILE=0.1,Results_10PoE!C70,IF(LOADPROFILE=0.5,Results_50PoE!C70,"Invalid Load Profile %")) -> 0 | D99: 61.68181818 | E99: 30.84090909 | F99: 0 | G99: 0 | H99: 0 | I99: 57.77312078 | J99: 0 | K99: 0 | L99: 0 | M99: 0 | N99: 0 | O99: 0.009419408449 | P99: 0.001301009116 | Q99: FALSE | R99: FALSE | S99: 0.01529124748 | T99: 0 | U99: 0 | V99: 0 | W99: 0 | X99: 0 | Y99: 0
A100: 2018 | B100: 64 | C100: =IF(LOADPROFILE=0.1,Results_10PoE!C71,IF(LOADPROFILE=0.5,Results_50PoE!C71,"Invalid Load Profile %")) -> 0 | D100: 61.68181818 | E100: 30.84090909 | F100: 0 | G100: 0 | H100: 0 | I100: 58.77312078 | J100: 0 | K100: 0 | L100: 0 | M100: 0 | N100: 0 | O100: 0.009419408449 | P100: 0.001301009116 | Q100: FALSE | R100: FALSE | S100: 0.01529124748 | T100: 0 | U100: 0 | V100: 0 | W100: 0 | X100: 0 | Y100: 0
A101: 2018 | B101: 65 | C101: =IF(LOADPROFILE=0.1,Results_10PoE!C72,IF(LOADPROFILE=0.5,Results_50PoE!C72,"Invalid Load Profile %")) -> 0 | D101: 61.68181818 | E101: 30.84090909 | F101: 0 | G101: 0 | H101: 0 | I101: 59.77312078 | J101: 0 | K101: 0 | L101: 0 | M101: 0 | N101: 0 | O101: 0.009419408449 | P101: 0.001301009116 | Q101: FALSE | R101: FALSE | S101: 0.01529124748 | T101: 0 | U101: 0 | V101: 0 | W101: 0 | X101: 0 | Y101: 0
A102: 2018 | B102: 66 | C102: =IF(LOADPROFILE=0.1,Results_10PoE!C73,IF(LOADPROFILE=0.5,Results_50PoE!C73,"Invalid Load Profile %")) -> 0 | D102: =VLOOKUP($A102,$Q$4:$AB$26,6,FALSE) -> 61.68181818 | E102: =VLOOKUP($A102,$Q$4:$AB$26,7,FALSE) -> 30.84090909 | F102: =VLOOKUP($A102,$Q$4:$AB$26,9,FALSE) -> 0 | G102: =VLOOKUP($A102,$Q$4:$AB$26,10,FALSE) -> 0 | H102: =VLOOKUP($A102,$Q$4:$AB$26,11,FALSE) -> 0 | I102: =IF(B102-VLOOKUP(A102,$Q$4:$AB$26,12,FALSE)<0,0,B102-VLOOKUP(A102,$Q$4:$AB$26,12,FALSE)) -> 60.77312078 | J102: =IF(B102=150,0,IF(IF($I102>D102,($I102-D102)*($C102-$C103),0)<0,0,IF($I102>D102,($I102-D102)*($C102-$C103),0)))*$Y$30 -> 0 | K102: =IF(C102=150,0,IF(IF($I102>E102,($I102-E102)*($C102-$C103),0)<0,0,IF($I102>E102,($I102-E102)*($C102-$C103),0)))*$Y$30 -> 0 | L102: =IF(D102=150,0,IF(IF($I102>F102,($I102-F102)*($C102-$C103),0)<0,0,IF($I102>F102,($I102-F102)*($C102-$C103),0)))*$Y$30 -> 0 | M102: =IF(E102=150,0,IF(IF($I102>G102,($I102-G102)*($C102-$C103),0)<0,0,IF($I102>G102,($I102-G102)*($C102-$C103),0)))*$Y$30 -> 0 | N102: =IF(F102=150,0,IF(IF($I102>H102,($I102-H102)*($C102-$C103),0)<0,0,IF($I102>H102,($I102-H102)*($C102-$C103),0)))*$Y$30 -> 0 | O102: =VLOOKUP($A102, $Q$4:$BB$26,33,FALSE) -> 0.009419408449 | P102: =VLOOKUP($A102, $Q$4:$BB$26,34,FALSE) -> 0.001301009116 | Q102: =VLOOKUP($A102, $Q$4:$BB$26,35,FALSE) -> FALSE | R102: =VLOOKUP($A102, $Q$4:$BB$26,36,FALSE) -> FALSE | S102: =VLOOKUP($A102, $Q$4:$BB$26,37,FALSE) -> 0.01529124748 | T102: =J102*1000*($S$34/365) -> 0 | U102: =O102*K102*1000*($T$34/365) -> 0 | V102: =P102*L102*1000*($U$34/365) -> 0 | W102: =Q102*M102*1000*($V$34/365) -> 0 | X102: =R102*N102*1000*($W$34/365) -> 0 | Y102: =S102*K102*1000*($X$34/365) -> 0
A103: 2018 | B103: 67 | C103: =IF(LOADPROFILE=0.1,Results_10PoE!C74,IF(LOADPROFILE=0.5,Results_50PoE!C74,"Invalid Load Profile %")) -> 0 | D103: 61.68181818 | E103: 30.84090909 | F103: 0 | G103: 0 | H103: 0 | I103: 61.77312078 | J103: 0 | K103: 0 | L103: 0 | M103: 0 | N103: 0 | O103: 0.009419408449 | P103: 0.001301009116 | Q103: FALSE | R103: FALSE | S103: 0.01529124748 | T103: 0 | U103: 0 | V103: 0 | W103: 0 | X103: 0 | Y103: 0
A104: 2018 | B104: 68 | C104: =IF(LOADPROFILE=0.1,Results_10PoE!C75,IF(LOADPROFILE=0.5,Results_50PoE!C75,"Invalid Load Profile %")) -> 0 | D104: 61.68181818 | E104: 30.84090909 | F104: 0 | G104: 0 | H104: 0 | I104: 62.77312078 | J104: 0 | K104: 0 | L104: 0 | M104: 0 | N104: 0 | O104: 0.009419408449 | P104: 0.001301009116 | Q104: FALSE | R104: FALSE | S104: 0.01529124748 | T104: 0 | U104: 0 | V104: 0 | W104: 0 | X104: 0 | Y104: 0
A105: 2018 | B105: 69 | C105: =IF(LOADPROFILE=0.1,Results_10PoE!C76,IF(LOADPROFILE=0.5,Results_50PoE!C76,"Invalid Load Profile %")) -> 0 | D105: 61.68181818 | E105: 30.84090909 | F105: 0 | G105: 0 | H105: 0 | I105: 63.77312078 | J105: 0 | K105: 0 | L105: 0 | M105: 0 | N105: 0 | O105: 0.009419408449 | P105: 0.001301009116 | Q105: FALSE | R105: FALSE | S105: 0.01529124748 | T105: 0 | U105: 0 | V105: 0 | W105: 0 | X105: 0 | Y105: 0
A106: 2018 | B106: 70 | C106: =IF(LOADPROFILE=0.1,Results_10PoE!C77,IF(LOADPROFILE=0.5,Results_50PoE!C77,"Invalid Load Profile %")) -> 0 | D106: 61.68181818 | E106: 30.84090909 | F106: 0 | G106: 0 | H106: 0 | I106: 64.77312078 | J106: 0 | K106: 0 | L106: 0 | M106: 0 | N106: 0 | O106: 0.009419408449 | P106: 0.001301009116 | Q106: FALSE | R106: FALSE | S106: 0.01529124748 | T106: 0 | U106: 0 | V106: 0 | W106: 0 | X106: 0 | Y106: 0
A107: 2018 | B107: 71 | C107: =IF(LOADPROFILE=0.1,Results_10PoE!C78,IF(LOADPROFILE=0.5,Results_50PoE!C78,"Invalid Load Profile %")) -> 0 | D107: 61.68181818 | E107: 30.84090909 | F107: 0 | G107: 0 | H107: 0 | I107: 65.77312078 | J107: 0 | K107: 0 | L107: 0 | M107: 0 | N107: 0 | O107: 0.009419408449 | P107: 0.001301009116 | Q107: FALSE | R107: FALSE | S107: 0.01529124748 | T107: 0 | U107: 0 | V107: 0 | W107: 0 | X107: 0 | Y107: 0
A108: 2018 | B108: 72 | C108: =IF(LOADPROFILE=0.1,Results_10PoE!C79,IF(LOADPROFILE=0.5,Results_50PoE!C79,"Invalid Load Profile %")) -> 0 | D108: 61.68181818 | E108: 30.84090909 | F108: 0 | G108: 0 | H108: 0 | I108: 66.77312078 | J108: 0 | K108: 0 | L108: 0 | M108: 0 | N108: 0 | O108: 0.009419408449 | P108: 0.001301009116 | Q108: FALSE | R108: FALSE | S108: 0.01529124748 | T108: 0 | U108: 0 | V108: 0 | W108: 0 | X108: 0 | Y108: 0
A109: 2018 | B109: 73 | C109: =IF(LOADPROFILE=0.1,Results_10PoE!C80,IF(LOADPROFILE=0.5,Results_50PoE!C80,"Invalid Load Profile %")) -> 0 | D109: 61.68181818 | E109: 30.84090909 | F109: 0 | G109: 0 | H109: 0 | I109: 67.77312078 | J109: 0 | K109: 0 | L109: 0 | M109: 0 | N109: 0 | O109: 0.009419408449 | P109: 0.001301009116 | Q109: FALSE | R109: FALSE | S109: 0.01529124748 | T109: 0 | U109: 0 | V109: 0 | W109: 0 | X109: 0 | Y109: 0
A110: 2018 | B110: 74 | C110: =IF(LOADPROFILE=0.1,Results_10PoE!C81,IF(LOADPROFILE=0.5,Results_50PoE!C81,"Invalid Load Profile %")) -> 0 | D110: 61.68181818 | E110: 30.84090909 | F110: 0 | G110: 0 | H110: 0 | I110: 68.77312078 | J110: 0 | K110: 0 | L110: 0 | M110: 0 | N110: 0 | O110: 0.009419408449 | P110: 0.001301009116 | Q110: FALSE | R110: FALSE | S110: 0.01529124748 | T110: 0 | U110: 0 | V110: 0 | W110: 0 | X110: 0 | Y110: 0
A111: 2018 | B111: 75 | C111: =IF(LOADPROFILE=0.1,Results_10PoE!C82,IF(LOADPROFILE=0.5,Results_50PoE!C82,"Invalid Load Profile %")) -> 0 | D111: 61.68181818 | E111: 30.84090909 | F111: 0 | G111: 0 | H111: 0 | I111: 69.77312078 | J111: 0 | K111: 0 | L111: 0 | M111: 0 | N111: 0 | O111: 0.009419408449 | P111: 0.001301009116 | Q111: FALSE | R111: FALSE | S111: 0.01529124748 | T111: 0 | U111: 0 | V111: 0 | W111: 0 | X111: 0 | Y111: 0
A112: 2018 | B112: 76 | C112: =IF(LOADPROFILE=0.1,Results_10PoE!C83,IF(LOADPROFILE=0.5,Results_50PoE!C83,"Invalid Load Profile %")) -> 0 | D112: 61.68181818 | E112: 30.84090909 | F112: 0 | G112: 0 | H112: 0 | I112: 70.77312078 | J112: 0 | K112: 0 | L112: 0 | M112: 0 | N112: 0 | O112: 0.009419408449 | P112: 0.001301009116 | Q112: FALSE | R112: FALSE | S112: 0.01529124748 | T112: 0 | U112: 0 | V112: 0 | W112: 0 | X112: 0 | Y112: 0
A113: 2018 | B113: 77 | C113: =IF(LOADPROFILE=0.1,Results_10PoE!C84,IF(LOADPROFILE=0.5,Results_50PoE!C84,"Invalid Load Profile %")) -> 0 | D113: 61.68181818 | E113: 30.84090909 | F113: 0 | G113: 0 | H113: 0 | I113: 71.77312078 | J113: 0 | K113: 0 | L113: 0 | M113: 0 | N113: 0 | O113: 0.009419408449 | P113: 0.001301009116 | Q113: FALSE | R113: FALSE | S113: 0.01529124748 | T113: 0 | U113: 0 | V113: 0 | W113: 0 | X113: 0 | Y113: 0
A114: 2018 | B114: 78 | C114: =IF(LOADPROFILE=0.1,Results_10PoE!C85,IF(LOADPROFILE=0.5,Results_50PoE!C85,"Invalid Load Profile %")) -> 0 | D114: 61.68181818 | E114: 30.84090909 | F114: 0 | G114: 0 | H114: 0 | I114: 72.77312078 | J114: 0 | K114: 0 | L114: 0 | M114: 0 | N114: 0 | O114: 0.009419408449 | P114: 0.001301009116 | Q114: FALSE | R114: FALSE | S114: 0.01529124748 | T114: 0 | U114: 0 | V114: 0 | W114: 0 | X114: 0 | Y114: 0
A115: 2018 | B115: 79 | C115: =IF(LOADPROFILE=0.1,Results_10PoE!C86,IF(LOADPROFILE=0.5,Results_50PoE!C86,"Invalid Load Profile %")) -> 0 | D115: 61.68181818 | E115: 30.84090909 | F115: 0 | G115: 0 | H115: 0 | I115: 73.77312078 | J115: 0 | K115: 0 | L115: 0 | M115: 0 | N115: 0 | O115: 0.009419408449 | P115: 0.001301009116 | Q115: FALSE | R115: FALSE | S115: 0.01529124748 | T115: 0 | U115: 0 | V115: 0 | W115: 0 | X115: 0 | Y115: 0
A116: 2018 | B116: 80 | C116: =IF(LOADPROFILE=0.1,Results_10PoE!C87,IF(LOADPROFILE=0.5,Results_50PoE!C87,"Invalid Load Profile %")) -> 0 | D116: 61.68181818 | E116: 30.84090909 | F116: 0 | G116: 0 | H116: 0 | I116: 74.77312078 | J116: 0 | K116: 0 | L116: 0 | M116: 0 | N116: 0 | O116: 0.009419408449 | P116: 0.001301009116 | Q116: FALSE | R116: FALSE | S116: 0.01529124748 | T116: 0 | U116: 0 | V116: 0 | W116: 0 | X116: 0 | Y116: 0
A117: 2018 | B117: 81 | C117: =IF(LOADPROFILE=0.1,Results_10PoE!C88,IF(LOADPROFILE=0.5,Results_50PoE!C88,"Invalid Load Profile %")) -> 0 | D117: 61.68181818 | E117: 30.84090909 | F117: 0 | G117: 0 | H117: 0 | I117: 75.77312078 | J117: 0 | K117: 0 | L117: 0 | M117: 0 | N117: 0 | O117: 0.009419408449 | P117: 0.001301009116 | Q117: FALSE | R117: FALSE | S117: 0.01529124748 | T117: 0 | U117: 0 | V117: 0 | W117: 0 | X117: 0 | Y117: 0
A118: 2018 | B118: 82 | C118: =IF(LOADPROFILE=0.1,Results_10PoE!C89,IF(LOADPROFILE=0.5,Results_50PoE!C89,"Invalid Load Profile %")) -> 0 | D118: 61.68181818 | E118: 30.84090909 | F118: 0 | G118: 0 | H118: 0 | I118: 76.77312078 | J118: 0 | K118: 0 | L118: 0 | M118: 0 | N118: 0 | O118: 0.009419408449 | P118: 0.001301009116 | Q118: FALSE | R118: FALSE | S118: 0.01529124748 | T118: 0 | U118: 0 | V118: 0 | W118: 0 | X118: 0 | Y118: 0
A119: 2018 | B119: 83 | C119: =IF(LOADPROFILE=0.1,Results_10PoE!C90,IF(LOADPROFILE=0.5,Results_50PoE!C90,"Invalid Load Profile %")) -> 0 | D119: 61.68181818 | E119: 30.84090909 | F119: 0 | G119: 0 | H119: 0 | I119: 77.77312078 | J119: 0 | K119: 0 | L119: 0 | M119: 0 | N119: 0 | O119: 0.009419408449 | P119: 0.001301009116 | Q119: FALSE | R119: FALSE | S119: 0.01529124748 | T119: 0 | U119: 0 | V119: 0 | W119: 0 | X119: 0 | Y119: 0
A120: 2018 | B120: 84 | C120: =IF(LOADPROFILE=0.1,Results_10PoE!C91,IF(LOADPROFILE=0.5,Results_50PoE!C91,"Invalid Load Profile %")) -> 0 | D120: 61.68181818 | E120: 30.84090909 | F120: 0 | G120: 0 | H120: 0 | I120: 78.77312078 | J120: 0 | K120: 0 | L120: 0 | M120: 0 | N120: 0 | O120: 0.009419408449 | P120: 0.001301009116 | Q120: FALSE | R120: FALSE | S120: 0.01529124748 | T120: 0 | U120: 0 | V120: 0 | W120: 0 | X120: 0 | Y120: 0
A121: 2018 | B121: 85 | C121: =IF(LOADPROFILE=0.1,Results_10PoE!C92,IF(LOADPROFILE=0.5,Results_50PoE!C92,"Invalid Load Profile %")) -> 0 | D121: 61.68181818 | E121: 30.84090909 | F121: 0 | G121: 0 | H121: 0 | I121: 79.77312078 | J121: 0 | K121: 0 | L121: 0 | M121: 0 | N121: 0 | O121: 0.009419408449 | P121: 0.001301009116 | Q121: FALSE | R121: FALSE | S121: 0.01529124748 | T121: 0 | U121: 0 | V121: 0 | W121: 0 | X121: 0 | Y121: 0
A122: 2018 | B122: 86 | C122: =IF(LOADPROFILE=0.1,Results_10PoE!C93,IF(LOADPROFILE=0.5,Results_50PoE!C93,"Invalid Load Profile %")) -> 0 | D122: 61.68181818 | E122: 30.84090909 | F122: 0 | G122: 0 | H122: 0 | I122: 80.77312078 | J122: 0 | K122: 0 | L122: 0 | M122: 0 | N122: 0 | O122: 0.009419408449 | P122: 0.001301009116 | Q122: FALSE | R122: FALSE | S122: 0.01529124748 | T122: 0 | U122: 0 | V122: 0 | W122: 0 | X122: 0 | Y122: 0
A123: 2018 | B123: 87 | C123: =IF(LOADPROFILE=0.1,Results_10PoE!C94,IF(LOADPROFILE=0.5,Results_50PoE!C94,"Invalid Load Profile %")) -> 0 | D123: 61.68181818 | E123: 30.84090909 | F123: 0 | G123: 0 | H123: 0 | I123: 81.77312078 | J123: 0 | K123: 0 | L123: 0 | M123: 0 | N123: 0 | O123: 0.009419408449 | P123: 0.001301009116 | Q123: FALSE | R123: FALSE | S123: 0.01529124748 | T123: 0 | U123: 0 | V123: 0 | W123: 0 | X123: 0 | Y123: 0
A124: 2018 | B124: 88 | C124: =IF(LOADPROFILE=0.1,Results_10PoE!C95,IF(LOADPROFILE=0.5,Results_50PoE!C95,"Invalid Load Profile %")) -> 0 | D124: 61.68181818 | E124: 30.84090909 | F124: 0 | G124: 0 | H124: 0 | I124: 82.77312078 | J124: 0 | K124: 0 | L124: 0 | M124: 0 | N124: 0 | O124: 0.009419408449 | P124: 0.001301009116 | Q124: FALSE | R124: FALSE | S124: 0.01529124748 | T124: 0 | U124: 0 | V124: 0 | W124: 0 | X124: 0 | Y124: 0
A125: 2018 | B125: 89 | C125: =IF(LOADPROFILE=0.1,Results_10PoE!C96,IF(LOADPROFILE=0.5,Results_50PoE!C96,"Invalid Load Profile %")) -> 0 | D125: 61.68181818 | E125: 30.84090909 | F125: 0 | G125: 0 | H125: 0 | I125: 83.77312078 | J125: 0 | K125: 0 | L125: 0 | M125: 0 | N125: 0 | O125: 0.009419408449 | P125: 0.001301009116 | Q125: FALSE | R125: FALSE | S125: 0.01529124748 | T125: 0 | U125: 0 | V125: 0 | W125: 0 | X125: 0 | Y125: 0
A126: 2018 | B126: 90 | C126: =IF(LOADPROFILE=0.1,Results_10PoE!C97,IF(LOADPROFILE=0.5,Results_50PoE!C97,"Invalid Load Profile %")) -> 0 | D126: 61.68181818 | E126: 30.84090909 | F126: 0 | G126: 0 | H126: 0 | I126: 84.77312078 | J126: 0 | K126: 0 | L126: 0 | M126: 0 | N126: 0 | O126: 0.009419408449 | P126: 0.001301009116 | Q126: FALSE | R126: FALSE | S126: 0.01529124748 | T126: 0 | U126: 0 | V126: 0 | W126: 0 | X126: 0 | Y126: 0
A127: 2018 | B127: 91 | C127: =IF(LOADPROFILE=0.1,Results_10PoE!C98,IF(LOADPROFILE=0.5,Results_50PoE!C98,"Invalid Load Profile %")) -> 0 | D127: 61.68181818 | E127: 30.84090909 | F127: 0 | G127: 0 | H127: 0 | I127: 85.77312078 | J127: 0 | K127: 0 | L127: 0 | M127: 0 | N127: 0 | O127: 0.009419408449 | P127: 0.001301009116 | Q127: FALSE | R127: FALSE | S127: 0.01529124748 | T127: 0 | U127: 0 | V127: 0 | W127: 0 | X127: 0 | Y127: 0
A128: 2018 | B128: 92 | C128: =IF(LOADPROFILE=0.1,Results_10PoE!C99,IF(LOADPROFILE=0.5,Results_50PoE!C99,"Invalid Load Profile %")) -> 0 | D128: 61.68181818 | E128: 30.84090909 | F128: 0 | G128: 0 | H128: 0 | I128: 86.77312078 | J128: 0 | K128: 0 | L128: 0 | M128: 0 | N128: 0 | O128: 0.009419408449 | P128: 0.001301009116 | Q128: FALSE | R128: FALSE | S128: 0.01529124748 | T128: 0 | U128: 0 | V128: 0 | W128: 0 | X128: 0 | Y128: 0
A129: 2018 | B129: 93 | C129: =IF(LOADPROFILE=0.1,Results_10PoE!C100,IF(LOADPROFILE=0.5,Results_50PoE!C100,"Invalid Load Profile %")) -> 0 | D129: 61.68181818 | E129: 30.84090909 | F129: 0 | G129: 0 | H129: 0 | I129: 87.77312078 | J129: 0 | K129: 0 | L129: 0 | M129: 0 | N129: 0 | O129: 0.009419408449 | P129: 0.001301009116 | Q129: FALSE | R129: FALSE | S129: 0.01529124748 | T129: 0 | U129: 0 | V129: 0 | W129: 0 | X129: 0 | Y129: 0
A130: 2018 | B130: 94 | C130: =IF(LOADPROFILE=0.1,Results_10PoE!C101,IF(LOADPROFILE=0.5,Results_50PoE!C101,"Invalid Load Profile %")) -> 0 | D130: 61.68181818 | E130: 30.84090909 | F130: 0 | G130: 0 | H130: 0 | I130: 88.77312078 | J130: 0 | K130: 0 | L130: 0 | M130: 0 | N130: 0 | O130: 0.009419408449 | P130: 0.001301009116 | Q130: FALSE | R130: FALSE | S130: 0.01529124748 | T130: 0 | U130: 0 | V130: 0 | W130: 0 | X130: 0 | Y130: 0
A131: 2018 | B131: 95 | C131: =IF(LOADPROFILE=0.1,Results_10PoE!C102,IF(LOADPROFILE=0.5,Results_50PoE!C102,"Invalid Load Profile %")) -> 0 | D131: 61.68181818 | E131: 30.84090909 | F131: 0 | G131: 0 | H131: 0 | I131: 89.77312078 | J131: 0 | K131: 0 | L131: 0 | M131: 0 | N131: 0 | O131: 0.009419408449 | P131: 0.001301009116 | Q131: FALSE | R131: FALSE | S131: 0.01529124748 | T131: 0 | U131: 0 | V131: 0 | W131: 0 | X131: 0 | Y131: 0
A132: 2018 | B132: 96 | C132: =IF(LOADPROFILE=0.1,Results_10PoE!C103,IF(LOADPROFILE=0.5,Results_50PoE!C103,"Invalid Load Profile %")) -> 0 | D132: 61.68181818 | E132: 30.84090909 | F132: 0 | G132: 0 | H132: 0 | I132: 90.77312078 | J132: 0 | K132: 0 | L132: 0 | M132: 0 | N132: 0 | O132: 0.009419408449 | P132: 0.001301009116 | Q132: FALSE | R132: FALSE | S132: 0.01529124748 | T132: 0 | U132: 0 | V132: 0 | W132: 0 | X132: 0 | Y132: 0
A133: 2018 | B133: 97 | C133: =IF(LOADPROFILE=0.1,Results_10PoE!C104,IF(LOADPROFILE=0.5,Results_50PoE!C104,"Invalid Load Profile %")) -> 0 | D133: 61.68181818 | E133: 30.84090909 | F133: 0 | G133: 0 | H133: 0 | I133: 91.77312078 | J133: 0 | K133: 0 | L133: 0 | M133: 0 | N133: 0 | O133: 0.009419408449 | P133: 0.001301009116 | Q133: FALSE | R133: FALSE | S133: 0.01529124748 | T133: 0 | U133: 0 | V133: 0 | W133: 0 | X133: 0 | Y133: 0
A134: 2018 | B134: 98 | C134: =IF(LOADPROFILE=0.1,Results_10PoE!C105,IF(LOADPROFILE=0.5,Results_50PoE!C105,"Invalid Load Profile %")) -> 0 | D134: 61.68181818 | E134: 30.84090909 | F134: 0 | G134: 0 | H134: 0 | I134: 92.77312078 | J134: 0 | K134: 0 | L134: 0 | M134: 0 | N134: 0 | O134: 0.009419408449 | P134: 0.001301009116 | Q134: FALSE | R134: FALSE | S134: 0.01529124748 | T134: 0 | U134: 0 | V134: 0 | W134: 0 | X134: 0 | Y134: 0
A135: 2018 | B135: 99 | C135: =IF(LOADPROFILE=0.1,Results_10PoE!C106,IF(LOADPROFILE=0.5,Results_50PoE!C106,"Invalid Load Profile %")) -> 0 | D135: 61.68181818 | E135: 30.84090909 | F135: 0 | G135: 0 | H135: 0 | I135: 93.77312078 | J135: 0 | K135: 0 | L135: 0 | M135: 0 | N135: 0 | O135: 0.009419408449 | P135: 0.001301009116 | Q135: FALSE | R135: FALSE | S135: 0.01529124748 | T135: 0 | U135: 0 | V135: 0 | W135: 0 | X135: 0 | Y135: 0
A136: 2018 | B136: 100 | C136: =IF(LOADPROFILE=0.1,Results_10PoE!C107,IF(LOADPROFILE=0.5,Results_50PoE!C107,"Invalid Load Profile %")) -> 0 | D136: 61.68181818 | E136: 30.84090909 | F136: 0 | G136: 0 | H136: 0 | I136: 94.77312078 | J136: 0 | K136: 0 | L136: 0 | M136: 0 | N136: 0 | O136: 0.009419408449 | P136: 0.001301009116 | Q136: FALSE | R136: FALSE | S136: 0.01529124748 | T136: 0 | U136: 0 | V136: 0 | W136: 0 | X136: 0 | Y136: 0
A137: 2018 | B137: 101 | C137: =IF(LOADPROFILE=0.1,Results_10PoE!C108,IF(LOADPROFILE=0.5,Results_50PoE!C108,"Invalid Load Profile %")) -> 0 | D137: 61.68181818 | E137: 30.84090909 | F137: 0 | G137: 0 | H137: 0 | I137: 95.77312078 | J137: 0 | K137: 0 | L137: 0 | M137: 0 | N137: 0 | O137: 0.009419408449 | P137: 0.001301009116 | Q137: FALSE | R137: FALSE | S137: 0.01529124748 | T137: 0 | U137: 0 | V137: 0 | W137: 0 | X137: 0 | Y137: 0
A138: 2018 | B138: 102 | C138: =IF(LOADPROFILE=0.1,Results_10PoE!C109,IF(LOADPROFILE=0.5,Results_50PoE!C109,"Invalid Load Profile %")) -> 0 | D138: 61.68181818 | E138: 30.84090909 | F138: 0 | G138: 0 | H138: 0 | I138: 96.77312078 | J138: 0 | K138: 0 | L138: 0 | M138: 0 | N138: 0 | O138: 0.009419408449 | P138: 0.001301009116 | Q138: FALSE | R138: FALSE | S138: 0.01529124748 | T138: 0 | U138: 0 | V138: 0 | W138: 0 | X138: 0 | Y138: 0
A139: 2018 | B139: 103 | C139: =IF(LOADPROFILE=0.1,Results_10PoE!C110,IF(LOADPROFILE=0.5,Results_50PoE!C110,"Invalid Load Profile %")) -> 0 | D139: 61.68181818 | E139: 30.84090909 | F139: 0 | G139: 0 | H139: 0 | I139: 97.77312078 | J139: 0 | K139: 0 | L139: 0 | M139: 0 | N139: 0 | O139: 0.009419408449 | P139: 0.001301009116 | Q139: FALSE | R139: FALSE | S139: 0.01529124748 | T139: 0 | U139: 0 | V139: 0 | W139: 0 | X139: 0 | Y139: 0
A140: 2018 | B140: 104 | C140: =IF(LOADPROFILE=0.1,Results_10PoE!C111,IF(LOADPROFILE=0.5,Results_50PoE!C111,"Invalid Load Profile %")) -> 0 | D140: 61.68181818 | E140: 30.84090909 | F140: 0 | G140: 0 | H140: 0 | I140: 98.77312078 | J140: 0 | K140: 0 | L140: 0 | M140: 0 | N140: 0 | O140: 0.009419408449 | P140: 0.001301009116 | Q140: FALSE | R140: FALSE | S140: 0.01529124748 | T140: 0 | U140: 0 | V140: 0 | W140: 0 | X140: 0 | Y140: 0
A141: 2018 | B141: 105 | C141: =IF(LOADPROFILE=0.1,Results_10PoE!C112,IF(LOADPROFILE=0.5,Results_50PoE!C112,"Invalid Load Profile %")) -> 0 | D141: 61.68181818 | E141: 30.84090909 | F141: 0 | G141: 0 | H141: 0 | I141: 99.77312078 | J141: 0 | K141: 0 | L141: 0 | M141: 0 | N141: 0 | O141: 0.009419408449 | P141: 0.001301009116 | Q141: FALSE | R141: FALSE | S141: 0.01529124748 | T141: 0 | U141: 0 | V141: 0 | W141: 0 | X141: 0 | Y141: 0
A142: 2018 | B142: 106 | C142: =IF(LOADPROFILE=0.1,Results_10PoE!C113,IF(LOADPROFILE=0.5,Results_50PoE!C113,"Invalid Load Profile %")) -> 0 | D142: 61.68181818 | E142: 30.84090909 | F142: 0 | G142: 0 | H142: 0 | I142: 100.7731208 | J142: 0 | K142: 0 | L142: 0 | M142: 0 | N142: 0 | O142: 0.009419408449 | P142: 0.001301009116 | Q142: FALSE | R142: FALSE | S142: 0.01529124748 | T142: 0 | U142: 0 | V142: 0 | W142: 0 | X142: 0 | Y142: 0
A143: 2018 | B143: 107 | C143: =IF(LOADPROFILE=0.1,Results_10PoE!C114,IF(LOADPROFILE=0.5,Results_50PoE!C114,"Invalid Load Profile %")) -> 0 | D143: 61.68181818 | E143: 30.84090909 | F143: 0 | G143: 0 | H143: 0 | I143: 101.7731208 | J143: 0 | K143: 0 | L143: 0 | M143: 0 | N143: 0 | O143: 0.009419408449 | P143: 0.001301009116 | Q143: FALSE | R143: FALSE | S143: 0.01529124748 | T143: 0 | U143: 0 | V143: 0 | W143: 0 | X143: 0 | Y143: 0
A144: 2018 | B144: 108 | C144: =IF(LOADPROFILE=0.1,Results_10PoE!C115,IF(LOADPROFILE=0.5,Results_50PoE!C115,"Invalid Load Profile %")) -> 0 | D144: 61.68181818 | E144: 30.84090909 | F144: 0 | G144: 0 | H144: 0 | I144: 102.7731208 | J144: 0 | K144: 0 | L144: 0 | M144: 0 | N144: 0 | O144: 0.009419408449 | P144: 0.001301009116 | Q144: FALSE | R144: FALSE | S144: 0.01529124748 | T144: 0 | U144: 0 | V144: 0 | W144: 0 | X144: 0 | Y144: 0
A145: 2018 | B145: 109 | C145: =IF(LOADPROFILE=0.1,Results_10PoE!C116,IF(LOADPROFILE=0.5,Results_50PoE!C116,"Invalid Load Profile %")) -> 0 | D145: 61.68181818 | E145: 30.84090909 | F145: 0 | G145: 0 | H145: 0 | I145: 103.7731208 | J145: 0 | K145: 0 | L145: 0 | M145: 0 | N145: 0 | O145: 0.009419408449 | P145: 0.001301009116 | Q145: FALSE | R145: FALSE | S145: 0.01529124748 | T145: 0 | U145: 0 | V145: 0 | W145: 0 | X145: 0 | Y145: 0
A146: 2018 | B146: 110 | C146: =IF(LOADPROFILE=0.1,Results_10PoE!C117,IF(LOADPROFILE=0.5,Results_50PoE!C117,"Invalid Load Profile %")) -> 0 | D146: 61.68181818 | E146: 30.84090909 | F146: 0 | G146: 0 | H146: 0 | I146: 104.7731208 | J146: 0 | K146: 0 | L146: 0 | M146: 0 | N146: 0 | O146: 0.009419408449 | P146: 0.001301009116 | Q146: FALSE | R146: FALSE | S146: 0.01529124748 | T146: 0 | U146: 0 | V146: 0 | W146: 0 | X146: 0 | Y146: 0
A147: 2018 | B147: 111 | C147: =IF(LOADPROFILE=0.1,Results_10PoE!C118,IF(LOADPROFILE=0.5,Results_50PoE!C118,"Invalid Load Profile %")) -> 0 | D147: 61.68181818 | E147: 30.84090909 | F147: 0 | G147: 0 | H147: 0 | I147: 105.7731208 | J147: 0 | K147: 0 | L147: 0 | M147: 0 | N147: 0 | O147: 0.009419408449 | P147: 0.001301009116 | Q147: FALSE | R147: FALSE | S147: 0.01529124748 | T147: 0 | U147: 0 | V147: 0 | W147: 0 | X147: 0 | Y147: 0
A148: 2018 | B148: 112 | C148: =IF(LOADPROFILE=0.1,Results_10PoE!C119,IF(LOADPROFILE=0.5,Results_50PoE!C119,"Invalid Load Profile %")) -> 0 | D148: 61.68181818 | E148: 30.84090909 | F148: 0 | G148: 0 | H148: 0 | I148: 106.7731208 | J148: 0 | K148: 0 | L148: 0 | M148: 0 | N148: 0 | O148: 0.009419408449 | P148: 0.001301009116 | Q148: FALSE | R148: FALSE | S148: 0.01529124748 | T148: 0 | U148: 0 | V148: 0 | W148: 0 | X148: 0 | Y148: 0
A149: 2018 | B149: 113 | C149: =IF(LOADPROFILE=0.1,Results_10PoE!C120,IF(LOADPROFILE=0.5,Results_50PoE!C120,"Invalid Load Profile %")) -> 0 | D149: 61.68181818 | E149: 30.84090909 | F149: 0 | G149: 0 | H149: 0 | I149: 107.7731208 | J149: 0 | K149: 0 | L149: 0 | M149: 0 | N149: 0 | O149: 0.009419408449 | P149: 0.001301009116 | Q149: FALSE | R149: FALSE | S149: 0.01529124748 | T149: 0 | U149: 0 | V149: 0 | W149: 0 | X149: 0 | Y149: 0
A150: 2018 | B150: 114 | C150: =IF(LOADPROFILE=0.1,Results_10PoE!C121,IF(LOADPROFILE=0.5,Results_50PoE!C121,"Invalid Load Profile %")) -> 0 | D150: 61.68181818 | E150: 30.84090909 | F150: 0 | G150: 0 | H150: 0 | I150: 108.7731208 | J150: 0 | K150: 0 | L150: 0 | M150: 0 | N150: 0 | O150: 0.009419408449 | P150: 0.001301009116 | Q150: FALSE | R150: FALSE | S150: 0.01529124748 | T150: 0 | U150: 0 | V150: 0 | W150: 0 | X150: 0 | Y150: 0
A151: 2018 | B151: 115 | C151: =IF(LOADPROFILE=0.1,Results_10PoE!C122,IF(LOADPROFILE=0.5,Results_50PoE!C122,"Invalid Load Profile %")) -> 0 | D151: 61.68181818 | E151: 30.84090909 | F151: 0 | G151: 0 | H151: 0 | I151: 109.7731208 | J151: 0 | K151: 0 | L151: 0 | M151: 0 | N151: 0 | O151: 0.009419408449 | P151: 0.001301009116 | Q151: FALSE | R151: FALSE | S151: 0.01529124748 | T151: 0 | U151: 0 | V151: 0 | W151: 0 | X151: 0 | Y151: 0
A152: 2018 | B152: 116 | C152: =IF(LOADPROFILE=0.1,Results_10PoE!C123,IF(LOADPROFILE=0.5,Results_50PoE!C123,"Invalid Load Profile %")) -> 0 | D152: 61.68181818 | E152: 30.84090909 | F152: 0 | G152: 0 | H152: 0 | I152: 110.7731208 | J152: 0 | K152: 0 | L152: 0 | M152: 0 | N152: 0 | O152: 0.009419408449 | P152: 0.001301009116 | Q152: FALSE | R152: FALSE | S152: 0.01529124748 | T152: 0 | U152: 0 | V152: 0 | W152: 0 | X152: 0 | Y152: 0
A153: 2018 | B153: 117 | C153: =IF(LOADPROFILE=0.1,Results_10PoE!C124,IF(LOADPROFILE=0.5,Results_50PoE!C124,"Invalid Load Profile %")) -> 0 | D153: 61.68181818 | E153: 30.84090909 | F153: 0 | G153: 0 | H153: 0 | I153: 111.7731208 | J153: 0 | K153: 0 | L153: 0 | M153: 0 | N153: 0 | O153: 0.009419408449 | P153: 0.001301009116 | Q153: FALSE | R153: FALSE | S153: 0.01529124748 | T153: 0 | U153: 0 | V153: 0 | W153: 0 | X153: 0 | Y153: 0
A154: 2018 | B154: 118 | C154: =IF(LOADPROFILE=0.1,Results_10PoE!C125,IF(LOADPROFILE=0.5,Results_50PoE!C125,"Invalid Load Profile %")) -> 0 | D154: 61.68181818 | E154: 30.84090909 | F154: 0 | G154: 0 | H154: 0 | I154: 112.7731208 | J154: 0 | K154: 0 | L154: 0 | M154: 0 | N154: 0 | O154: 0.009419408449 | P154: 0.001301009116 | Q154: FALSE | R154: FALSE | S154: 0.01529124748 | T154: 0 | U154: 0 | V154: 0 | W154: 0 | X154: 0 | Y154: 0
A155: 2018 | B155: 119 | C155: =IF(LOADPROFILE=0.1,Results_10PoE!C126,IF(LOADPROFILE=0.5,Results_50PoE!C126,"Invalid Load Profile %")) -> 0 | D155: 61.68181818 | E155: 30.84090909 | F155: 0 | G155: 0 | H155: 0 | I155: 113.7731208 | J155: 0 | K155: 0 | L155: 0 | M155: 0 | N155: 0 | O155: 0.009419408449 | P155: 0.001301009116 | Q155: FALSE | R155: FALSE | S155: 0.01529124748 | T155: 0 | U155: 0 | V155: 0 | W155: 0 | X155: 0 | Y155: 0
A156: 2018 | B156: 120 | C156: =IF(LOADPROFILE=0.1,Results_10PoE!C127,IF(LOADPROFILE=0.5,Results_50PoE!C127,"Invalid Load Profile %")) -> 0 | D156: 61.68181818 | E156: 30.84090909 | F156: 0 | G156: 0 | H156: 0 | I156: 114.7731208 | J156: 0 | K156: 0 | L156: 0 | M156: 0 | N156: 0 | O156: 0.009419408449 | P156: 0.001301009116 | Q156: FALSE | R156: FALSE | S156: 0.01529124748 | T156: 0 | U156: 0 | V156: 0 | W156: 0 | X156: 0 | Y156: 0
A157: 2018 | B157: 121 | C157: =IF(LOADPROFILE=0.1,Results_10PoE!C128,IF(LOADPROFILE=0.5,Results_50PoE!C128,"Invalid Load Profile %")) -> 0 | D157: 61.68181818 | E157: 30.84090909 | F157: 0 | G157: 0 | H157: 0 | I157: 115.7731208 | J157: 0 | K157: 0 | L157: 0 | M157: 0 | N157: 0 | O157: 0.009419408449 | P157: 0.001301009116 | Q157: FALSE | R157: FALSE | S157: 0.01529124748 | T157: 0 | U157: 0 | V157: 0 | W157: 0 | X157: 0 | Y157: 0
A158: 2018 | B158: 122 | C158: =IF(LOADPROFILE=0.1,Results_10PoE!C129,IF(LOADPROFILE=0.5,Results_50PoE!C129,"Invalid Load Profile %")) -> 0 | D158: 61.68181818 | E158: 30.84090909 | F158: 0 | G158: 0 | H158: 0 | I158: 116.7731208 | J158: 0 | K158: 0 | L158: 0 | M158: 0 | N158: 0 | O158: 0.009419408449 | P158: 0.001301009116 | Q158: FALSE | R158: FALSE | S158: 0.01529124748 | T158: 0 | U158: 0 | V158: 0 | W158: 0 | X158: 0 | Y158: 0
A159: 2018 | B159: 123 | C159: =IF(LOADPROFILE=0.1,Results_10PoE!C130,IF(LOADPROFILE=0.5,Results_50PoE!C130,"Invalid Load Profile %")) -> 0 | D159: 61.68181818 | E159: 30.84090909 | F159: 0 | G159: 0 | H159: 0 | I159: 117.7731208 | J159: 0 | K159: 0 | L159: 0 | M159: 0 | N159: 0 | O159: 0.009419408449 | P159: 0.001301009116 | Q159: FALSE | R159: FALSE | S159: 0.01529124748 | T159: 0 | U159: 0 | V159: 0 | W159: 0 | X159: 0 | Y159: 0
A160: 2018 | B160: 124 | C160: =IF(LOADPROFILE=0.1,Results_10PoE!C131,IF(LOADPROFILE=0.5,Results_50PoE!C131,"Invalid Load Profile %")) -> 0 | D160: 61.68181818 | E160: 30.84090909 | F160: 0 | G160: 0 | H160: 0 | I160: 118.7731208 | J160: 0 | K160: 0 | L160: 0 | M160: 0 | N160: 0 | O160: 0.009419408449 | P160: 0.001301009116 | Q160: FALSE | R160: FALSE | S160: 0.01529124748 | T160: 0 | U160: 0 | V160: 0 | W160: 0 | X160: 0 | Y160: 0
A161: 2018 | B161: 125 | C161: =IF(LOADPROFILE=0.1,Results_10PoE!C132,IF(LOADPROFILE=0.5,Results_50PoE!C132,"Invalid Load Profile %")) -> 0 | D161: 61.68181818 | E161: 30.84090909 | F161: 0 | G161: 0 | H161: 0 | I161: 119.7731208 | J161: 0 | K161: 0 | L161: 0 | M161: 0 | N161: 0 | O161: 0.009419408449 | P161: 0.001301009116 | Q161: FALSE | R161: FALSE | S161: 0.01529124748 | T161: 0 | U161: 0 | V161: 0 | W161: 0 | X161: 0 | Y161: 0
A162: 2018 | B162: 126 | C162: =IF(LOADPROFILE=0.1,Results_10PoE!C133,IF(LOADPROFILE=0.5,Results_50PoE!C133,"Invalid Load Profile %")) -> 0 | D162: 61.68181818 | E162: 30.84090909 | F162: 0 | G162: 0 | H162: 0 | I162: 120.7731208 | J162: 0 | K162: 0 | L162: 0 | M162: 0 | N162: 0 | O162: 0.009419408449 | P162: 0.001301009116 | Q162: FALSE | R162: FALSE | S162: 0.01529124748 | T162: 0 | U162: 0 | V162: 0 | W162: 0 | X162: 0 | Y162: 0
A163: 2018 | B163: 127 | C163: =IF(LOADPROFILE=0.1,Results_10PoE!C134,IF(LOADPROFILE=0.5,Results_50PoE!C134,"Invalid Load Profile %")) -> 0 | D163: 61.68181818 | E163: 30.84090909 | F163: 0 | G163: 0 | H163: 0 | I163: 121.7731208 | J163: 0 | K163: 0 | L163: 0 | M163: 0 | N163: 0 | O163: 0.009419408449 | P163: 0.001301009116 | Q163: FALSE | R163: FALSE | S163: 0.01529124748 | T163: 0 | U163: 0 | V163: 0 | W163: 0 | X163: 0 | Y163: 0
A164: 2018 | B164: 128 | C164: =IF(LOADPROFILE=0.1,Results_10PoE!C135,IF(LOADPROFILE=0.5,Results_50PoE!C135,"Invalid Load Profile %")) -> 0 | D164: 61.68181818 | E164: 30.84090909 | F164: 0 | G164: 0 | H164: 0 | I164: 122.7731208 | J164: 0 | K164: 0 | L164: 0 | M164: 0 | N164: 0 | O164: 0.009419408449 | P164: 0.001301009116 | Q164: FALSE | R164: FALSE | S164: 0.01529124748 | T164: 0 | U164: 0 | V164: 0 | W164: 0 | X164: 0 | Y164: 0
A165: 2018 | B165: 129 | C165: =IF(LOADPROFILE=0.1,Results_10PoE!C136,IF(LOADPROFILE=0.5,Results_50PoE!C136,"Invalid Load Profile %")) -> 0 | D165: 61.68181818 | E165: 30.84090909 | F165: 0 | G165: 0 | H165: 0 | I165: 123.7731208 | J165: 0 | K165: 0 | L165: 0 | M165: 0 | N165: 0 | O165: 0.009419408449 | P165: 0.001301009116 | Q165: FALSE | R165: FALSE | S165: 0.01529124748 | T165: 0 | U165: 0 | V165: 0 | W165: 0 | X165: 0 | Y165: 0
A166: 2018 | B166: 130 | C166: =IF(LOADPROFILE=0.1,Results_10PoE!C137,IF(LOADPROFILE=0.5,Results_50PoE!C137,"Invalid Load Profile %")) -> 0 | D166: =VLOOKUP($A166,$Q$4:$AB$26,6,FALSE) -> 61.68181818 | E166: =VLOOKUP($A166,$Q$4:$AB$26,7,FALSE) -> 30.84090909 | F166: =VLOOKUP($A166,$Q$4:$AB$26,9,FALSE) -> 0 | G166: =VLOOKUP($A166,$Q$4:$AB$26,10,FALSE) -> 0 | H166: =VLOOKUP($A166,$Q$4:$AB$26,11,FALSE) -> 0 | I166: =IF(B166-VLOOKUP(A166,$Q$4:$AB$26,12,FALSE)<0,0,B166-VLOOKUP(A166,$Q$4:$AB$26,12,FALSE)) -> 124.7731208 | J166: =IF(B166=150,0,IF(IF($I166>D166,($I166-D166)*($C166-$C167),0)<0,0,IF($I166>D166,($I166-D166)*($C166-$C167),0)))*$Y$30 -> 0 | K166: =IF(C166=150,0,IF(IF($I166>E166,($I166-E166)*($C166-$C167),0)<0,0,IF($I166>E166,($I166-E166)*($C166-$C167),0)))*$Y$30 -> 0 | L166: =IF(D166=150,0,IF(IF($I166>F166,($I166-F166)*($C166-$C167),0)<0,0,IF($I166>F166,($I166-F166)*($C166-$C167),0)))*$Y$30 -> 0 | M166: =IF(E166=150,0,IF(IF($I166>G166,($I166-G166)*($C166-$C167),0)<0,0,IF($I166>G166,($I166-G166)*($C166-$C167),0)))*$Y$30 -> 0 | N166: =IF(F166=150,0,IF(IF($I166>H166,($I166-H166)*($C166-$C167),0)<0,0,IF($I166>H166,($I166-H166)*($C166-$C167),0)))*$Y$30 -> 0 | O166: =VLOOKUP($A166, $Q$4:$BB$26,33,FALSE) -> 0.009419408449 | P166: =VLOOKUP($A166, $Q$4:$BB$26,34,FALSE) -> 0.001301009116 | Q166: =VLOOKUP($A166, $Q$4:$BB$26,35,FALSE) -> FALSE | R166: =VLOOKUP($A166, $Q$4:$BB$26,36,FALSE) -> FALSE | S166: =VLOOKUP($A166, $Q$4:$BB$26,37,FALSE) -> 0.01529124748 | T166: =J166*1000*($S$34/365) -> 0 | U166: =O166*K166*1000*($T$34/365) -> 0 | V166: =P166*L166*1000*($U$34/365) -> 0 | W166: =Q166*M166*1000*($V$34/365) -> 0 | X166: =R166*N166*1000*($W$34/365) -> 0 | Y166: =S166*K166*1000*($X$34/365) -> 0
A167: 2018 | B167: 131 | C167: =IF(LOADPROFILE=0.1,Results_10PoE!C138,IF(LOADPROFILE=0.5,Results_50PoE!C138,"Invalid Load Profile %")) -> 0 | D167: 61.68181818 | E167: 30.84090909 | F167: 0 | G167: 0 | H167: 0 | I167: 125.7731208 | J167: 0 | K167: 0 | L167: 0 | M167: 0 | N167: 0 | O167: 0.009419408449 | P167: 0.001301009116 | Q167: FALSE | R167: FALSE | S167: 0.01529124748 | T167: 0 | U167: 0 | V167: 0 | W167: 0 | X167: 0 | Y167: 0
A168: 2018 | B168: 132 | C168: =IF(LOADPROFILE=0.1,Results_10PoE!C139,IF(LOADPROFILE=0.5,Results_50PoE!C139,"Invalid Load Profile %")) -> 0 | D168: 61.68181818 | E168: 30.84090909 | F168: 0 | G168: 0 | H168: 0 | I168: 126.7731208 | J168: 0 | K168: 0 | L168: 0 | M168: 0 | N168: 0 | O168: 0.009419408449 | P168: 0.001301009116 | Q168: FALSE | R168: FALSE | S168: 0.01529124748 | T168: 0 | U168: 0 | V168: 0 | W168: 0 | X168: 0 | Y168: 0
A169: 2018 | B169: 133 | C169: =IF(LOADPROFILE=0.1,Results_10PoE!C140,IF(LOADPROFILE=0.5,Results_50PoE!C140,"Invalid Load Profile %")) -> 0 | D169: 61.68181818 | E169: 30.84090909 | F169: 0 | G169: 0 | H169: 0 | I169: 127.7731208 | J169: 0 | K169: 0 | L169: 0 | M169: 0 | N169: 0 | O169: 0.009419408449 | P169: 0.001301009116 | Q169: FALSE | R169: FALSE | S169: 0.01529124748 | T169: 0 | U169: 0 | V169: 0 | W169: 0 | X169: 0 | Y169: 0
A170: 2018 | B170: 134 | C170: =IF(LOADPROFILE=0.1,Results_10PoE!C141,IF(LOADPROFILE=0.5,Results_50PoE!C141,"Invalid Load Profile %")) -> 0 | D170: 61.68181818 | E170: 30.84090909 | F170: 0 | G170: 0 | H170: 0 | I170: 128.7731208 | J170: 0 | K170: 0 | L170: 0 | M170: 0 | N170: 0 | O170: 0.009419408449 | P170: 0.001301009116 | Q170: FALSE | R170: FALSE | S170: 0.01529124748 | T170: 0 | U170: 0 | V170: 0 | W170: 0 | X170: 0 | Y170: 0
A171: 2018 | B171: 135 | C171: =IF(LOADPROFILE=0.1,Results_10PoE!C142,IF(LOADPROFILE=0.5,Results_50PoE!C142,"Invalid Load Profile %")) -> 0 | D171: 61.68181818 | E171: 30.84090909 | F171: 0 | G171: 0 | H171: 0 | I171: 129.7731208 | J171: 0 | K171: 0 | L171: 0 | M171: 0 | N171: 0 | O171: 0.009419408449 | P171: 0.001301009116 | Q171: FALSE | R171: FALSE | S171: 0.01529124748 | T171: 0 | U171: 0 | V171: 0 | W171: 0 | X171: 0 | Y171: 0
A172: 2018 | B172: 136 | C172: =IF(LOADPROFILE=0.1,Results_10PoE!C143,IF(LOADPROFILE=0.5,Results_50PoE!C143,"Invalid Load Profile %")) -> 0 | D172: 61.68181818 | E172: 30.84090909 | F172: 0 | G172: 0 | H172: 0 | I172: 130.7731208 | J172: 0 | K172: 0 | L172: 0 | M172: 0 | N172: 0 | O172: 0.009419408449 | P172: 0.001301009116 | Q172: FALSE | R172: FALSE | S172: 0.01529124748 | T172: 0 | U172: 0 | V172: 0 | W172: 0 | X172: 0 | Y172: 0
A173: 2018 | B173: 137 | C173: =IF(LOADPROFILE=0.1,Results_10PoE!C144,IF(LOADPROFILE=0.5,Results_50PoE!C144,"Invalid Load Profile %")) -> 0 | D173: 61.68181818 | E173: 30.84090909 | F173: 0 | G173: 0 | H173: 0 | I173: 131.7731208 | J173: 0 | K173: 0 | L173: 0 | M173: 0 | N173: 0 | O173: 0.009419408449 | P173: 0.001301009116 | Q173: FALSE | R173: FALSE | S173: 0.01529124748 | T173: 0 | U173: 0 | V173: 0 | W173: 0 | X173: 0 | Y173: 0
A174: 2018 | B174: 138 | C174: =IF(LOADPROFILE=0.1,Results_10PoE!C145,IF(LOADPROFILE=0.5,Results_50PoE!C145,"Invalid Load Profile %")) -> 0 | D174: 61.68181818 | E174: 30.84090909 | F174: 0 | G174: 0 | H174: 0 | I174: 132.7731208 | J174: 0 | K174: 0 | L174: 0 | M174: 0 | N174: 0 | O174: 0.009419408449 | P174: 0.001301009116 | Q174: FALSE | R174: FALSE | S174: 0.01529124748 | T174: 0 | U174: 0 | V174: 0 | W174: 0 | X174: 0 | Y174: 0
A175: 2018 | B175: 139 | C175: =IF(LOADPROFILE=0.1,Results_10PoE!C146,IF(LOADPROFILE=0.5,Results_50PoE!C146,"Invalid Load Profile %")) -> 0 | D175: 61.68181818 | E175: 30.84090909 | F175: 0 | G175: 0 | H175: 0 | I175: 133.7731208 | J175: 0 | K175: 0 | L175: 0 | M175: 0 | N175: 0 | O175: 0.009419408449 | P175: 0.001301009116 | Q175: FALSE | R175: FALSE | S175: 0.01529124748 | T175: 0 | U175: 0 | V175: 0 | W175: 0 | X175: 0 | Y175: 0
A176: 2018 | B176: 140 | C176: =IF(LOADPROFILE=0.1,Results_10PoE!C147,IF(LOADPROFILE=0.5,Results_50PoE!C147,"Invalid Load Profile %")) -> 0 | D176: 61.68181818 | E176: 30.84090909 | F176: 0 | G176: 0 | H176: 0 | I176: 134.7731208 | J176: 0 | K176: 0 | L176: 0 | M176: 0 | N176: 0 | O176: 0.009419408449 | P176: 0.001301009116 | Q176: FALSE | R176: FALSE | S176: 0.01529124748 | T176: 0 | U176: 0 | V176: 0 | W176: 0 | X176: 0 | Y176: 0
A177: 2018 | B177: 141 | C177: =IF(LOADPROFILE=0.1,Results_10PoE!C148,IF(LOADPROFILE=0.5,Results_50PoE!C148,"Invalid Load Profile %")) -> 0 | D177: 61.68181818 | E177: 30.84090909 | F177: 0 | G177: 0 | H177: 0 | I177: 135.7731208 | J177: 0 | K177: 0 | L177: 0 | M177: 0 | N177: 0 | O177: 0.009419408449 | P177: 0.001301009116 | Q177: FALSE | R177: FALSE | S177: 0.01529124748 | T177: 0 | U177: 0 | V177: 0 | W177: 0 | X177: 0 | Y177: 0
A178: 2018 | B178: 142 | C178: =IF(LOADPROFILE=0.1,Results_10PoE!C149,IF(LOADPROFILE=0.5,Results_50PoE!C149,"Invalid Load Profile %")) -> 0 | D178: 61.68181818 | E178: 30.84090909 | F178: 0 | G178: 0 | H178: 0 | I178: 136.7731208 | J178: 0 | K178: 0 | L178: 0 | M178: 0 | N178: 0 | O178: 0.009419408449 | P178: 0.001301009116 | Q178: FALSE | R178: FALSE | S178: 0.01529124748 | T178: 0 | U178: 0 | V178: 0 | W178: 0 | X178: 0 | Y178: 0
A179: 2018 | B179: 143 | C179: =IF(LOADPROFILE=0.1,Results_10PoE!C150,IF(LOADPROFILE=0.5,Results_50PoE!C150,"Invalid Load Profile %")) -> 0 | D179: 61.68181818 | E179: 30.84090909 | F179: 0 | G179: 0 | H179: 0 | I179: 137.7731208 | J179: 0 | K179: 0 | L179: 0 | M179: 0 | N179: 0 | O179: 0.009419408449 | P179: 0.001301009116 | Q179: FALSE | R179: FALSE | S179: 0.01529124748 | T179: 0 | U179: 0 | V179: 0 | W179: 0 | X179: 0 | Y179: 0
A180: 2018 | B180: 144 | C180: =IF(LOADPROFILE=0.1,Results_10PoE!C151,IF(LOADPROFILE=0.5,Results_50PoE!C151,"Invalid Load Profile %")) -> 0 | D180: 61.68181818 | E180: 30.84090909 | F180: 0 | G180: 0 | H180: 0 | I180: 138.7731208 | J180: 0 | K180: 0 | L180: 0 | M180: 0 | N180: 0 | O180: 0.009419408449 | P180: 0.001301009116 | Q180: FALSE | R180: FALSE | S180: 0.01529124748 | T180: 0 | U180: 0 | V180: 0 | W180: 0 | X180: 0 | Y180: 0
A181: 2018 | B181: 145 | C181: =IF(LOADPROFILE=0.1,Results_10PoE!C152,IF(LOADPROFILE=0.5,Results_50PoE!C152,"Invalid Load Profile %")) -> 0 | D181: 61.68181818 | E181: 30.84090909 | F181: 0 | G181: 0 | H181: 0 | I181: 139.7731208 | J181: 0 | K181: 0 | L181: 0 | M181: 0 | N181: 0 | O181: 0.009419408449 | P181: 0.001301009116 | Q181: FALSE | R181: FALSE | S181: 0.01529124748 | T181: 0 | U181: 0 | V181: 0 | W181: 0 | X181: 0 | Y181: 0
A182: 2018 | B182: 146 | C182: =IF(LOADPROFILE=0.1,Results_10PoE!C153,IF(LOADPROFILE=0.5,Results_50PoE!C153,"Invalid Load Profile %")) -> 0 | D182: 61.68181818 | E182: 30.84090909 | F182: 0 | G182: 0 | H182: 0 | I182: 140.7731208 | J182: 0 | K182: 0 | L182: 0 | M182: 0 | N182: 0 | O182: 0.009419408449 | P182: 0.001301009116 | Q182: FALSE | R182: FALSE | S182: 0.01529124748 | T182: 0 | U182: 0 | V182: 0 | W182: 0 | X182: 0 | Y182: 0
A183: 2018 | B183: 147 | C183: =IF(LOADPROFILE=0.1,Results_10PoE!C154,IF(LOADPROFILE=0.5,Results_50PoE!C154,"Invalid Load Profile %")) -> 0 | D183: 61.68181818 | E183: 30.84090909 | F183: 0 | G183: 0 | H183: 0 | I183: 141.7731208 | J183: 0 | K183: 0 | L183: 0 | M183: 0 | N183: 0 | O183: 0.009419408449 | P183: 0.001301009116 | Q183: FALSE | R183: FALSE | S183: 0.01529124748 | T183: 0 | U183: 0 | V183: 0 | W183: 0 | X183: 0 | Y183: 0
A184: 2018 | B184: 148 | C184: =IF(LOADPROFILE=0.1,Results_10PoE!C155,IF(LOADPROFILE=0.5,Results_50PoE!C155,"Invalid Load Profile %")) -> 0 | D184: 61.68181818 | E184: 30.84090909 | F184: 0 | G184: 0 | H184: 0 | I184: 142.7731208 | J184: 0 | K184: 0 | L184: 0 | M184: 0 | N184: 0 | O184: 0.009419408449 | P184: 0.001301009116 | Q184: FALSE | R184: FALSE | S184: 0.01529124748 | T184: 0 | U184: 0 | V184: 0 | W184: 0 | X184: 0 | Y184: 0
A185: 2018 | B185: 149 | C185: =IF(LOADPROFILE=0.1,Results_10PoE!C156,IF(LOADPROFILE=0.5,Results_50PoE!C156,"Invalid Load Profile %")) -> 0 | D185: 61.68181818 | E185: 30.84090909 | F185: 0 | G185: 0 | H185: 0 | I185: 143.7731208 | J185: 0 | K185: 0 | L185: 0 | M185: 0 | N185: 0 | O185: 0.009419408449 | P185: 0.001301009116 | Q185: FALSE | R185: FALSE | S185: 0.01529124748 | T185: 0 | U185: 0 | V185: 0 | W185: 0 | X185: 0 | Y185: 0
A186: 2018 | B186: 150 | C186: =IF(LOADPROFILE=0.1,Results_10PoE!C157,IF(LOADPROFILE=0.5,Results_50PoE!C157,"Invalid Load Profile %")) -> 0 | D186: 61.68181818 | E186: 30.84090909 | F186: 0 | G186: 0 | H186: 0 | I186: 144.7731208 | J186: 0 | K186: 0 | L186: 0 | M186: 0 | N186: 0 | O186: 0.009419408449 | P186: 0.001301009116 | Q186: FALSE | R186: FALSE | S186: 0.01529124748 | T186: 0 | U186: 0 | V186: 0 | W186: 0 | X186: 0 | Y186: 0
A187: 2019 | B187: 1 | C187: =IF(LOADPROFILE=0.1,Results_10PoE!C158,IF(LOADPROFILE=0.5,Results_50PoE!C158,"Invalid Load Profile %")) -> 8760 | D187: 61.68181818 | E187: 30.84090909 | F187: 0 | G187: 0 | H187: 0 | I187: 0 | J187: 0 | K187: 0 | L187: 0 | M187: 0 | N187: 0 | O187: 0.009855117076 | P187: 0.001361989892 | Q187: FALSE | R187: FALSE | S187: 0.01599856668 | T187: 0 | U187: 0 | V187: 0 | W187: 0 | X187: 0 | Y187: 0
A188: 2019 | B188: 2 | C188: =IF(LOADPROFILE=0.1,Results_10PoE!C159,IF(LOADPROFILE=0.5,Results_50PoE!C159,"Invalid Load Profile %")) -> 8760 | D188: 61.68181818 | E188: 30.84090909 | F188: 0 | G188: 0 | H188: 0 | I188: 0 | J188: 0 | K188: 0 | L188: 0 | M188: 0 | N188: 0 | O188: 0.009855117076 | P188: 0.001361989892 | Q188: FALSE | R188: FALSE | S188: 0.01599856668 | T188: 0 | U188: 0 | V188: 0 | W188: 0 | X188: 0 | Y188: 0
A189: 2019 | B189: 3 | C189: =IF(LOADPROFILE=0.1,Results_10PoE!C160,IF(LOADPROFILE=0.5,Results_50PoE!C160,"Invalid Load Profile %")) -> 8760 | D189: 61.68181818 | E189: 30.84090909 | F189: 0 | G189: 0 | H189: 0 | I189: 0 | J189: 0 | K189: 0 | L189: 0 | M189: 0 | N189: 0 | O189: 0.009855117076 | P189: 0.001361989892 | Q189: FALSE | R189: FALSE | S189: 0.01599856668 | T189: 0 | U189: 0 | V189: 0 | W189: 0 | X189: 0 | Y189: 0
A190: 2019 | B190: 4 | C190: =IF(LOADPROFILE=0.1,Results_10PoE!C161,IF(LOADPROFILE=0.5,Results_50PoE!C161,"Invalid Load Profile %")) -> 8735 | D190: 61.68181818 | E190: 30.84090909 | F190: 0 | G190: 0 | H190: 0 | I190: 0 | J190: 0 | K190: 0 | L190: 0 | M190: 0 | N190: 0 | O190: 0.009855117076 | P190: 0.001361989892 | Q190: FALSE | R190: FALSE | S190: 0.01599856668 | T190: 0 | U190: 0 | V190: 0 | W190: 0 | X190: 0 | Y190: 0
A191: 2019 | B191: 5 | C191: =IF(LOADPROFILE=0.1,Results_10PoE!C162,IF(LOADPROFILE=0.5,Results_50PoE!C162,"Invalid Load Profile %")) -> 8367 | D191: 61.68181818 | E191: 30.84090909 | F191: 0 | G191: 0 | H191: 0 | I191: 0 | J191: 0 | K191: 0 | L191: 0 | M191: 0 | N191: 0 | O191: 0.009855117076 | P191: 0.001361989892 | Q191: FALSE | R191: FALSE | S191: 0.01599856668 | T191: 0 | U191: 0 | V191: 0 | W191: 0 | X191: 0 | Y191: 0
A192: 2019 | B192: 6 | C192: =IF(LOADPROFILE=0.1,Results_10PoE!C163,IF(LOADPROFILE=0.5,Results_50PoE!C163,"Invalid Load Profile %")) -> 7409 | D192: 61.68181818 | E192: 30.84090909 | F192: 0 | G192: 0 | H192: 0 | I192: 0.7886976393 | J192: 0 | K192: 0 | L192: 1023.390284 | M192: 1023.390284 | N192: 1023.390284 | O192: 0.009855117076 | P192: 0.001361989892 | Q192: FALSE | R192: FALSE | S192: 0.01599856668 | T192: 0 | U192: 0 | V192: 464.3611569 | W192: 0 | X192: 0 | Y192: 0
A193: 2019 | B193: 7 | C193: =IF(LOADPROFILE=0.1,Results_10PoE!C164,IF(LOADPROFILE=0.5,Results_50PoE!C164,"Invalid Load Profile %")) -> 6100 | D193: 61.68181818 | E193: 30.84090909 | F193: 0 | G193: 0 | H193: 0 | I193: 1.788697639 | J193: 0 | K193: 0 | L193: 1703.928722 | M193: 1703.928722 | N193: 1703.928722 | O193: 0.009855117076 | P193: 0.001361989892 | Q193: FALSE | R193: FALSE | S193: 0.01599856668 | T193: 0 | U193: 0 | V193: 773.1540203 | W193: 0 | X193: 0 | Y193: 0
A194: 2019 | B194: 8 | C194: =IF(LOADPROFILE=0.1,Results_10PoE!C165,IF(LOADPROFILE=0.5,Results_50PoE!C165,"Invalid Load Profile %")) -> 5139 | D194: 61.68181818 | E194: 30.84090909 | F194: 0 | G194: 0 | H194: 0 | I194: 2.788697639 | J194: 0 | K194: 0 | L194: 2217.006158 | M194: 2217.006158 | N194: 2217.006158 | O194: 0.009855117076 | P194: 0.001361989892 | Q194: FALSE | R194: FALSE | S194: 0.01599856668 | T194: 0 | U194: 0 | V194: 1005.961812 | W194: 0 | X194: 0 | Y194: 0
A195: 2019 | B195: 9 | C195: =IF(LOADPROFILE=0.1,Results_10PoE!C166,IF(LOADPROFILE=0.5,Results_50PoE!C166,"Invalid Load Profile %")) -> 4337 | D195: 61.68181818 | E195: 30.84090909 | F195: 0 | G195: 0 | H195: 0 | I195: 3.788697639 | J195: 0 | K195: 0 | L195: 3060.826115 | M195: 3060.826115 | N195: 3060.826115 | O195: 0.009855117076 | P195: 0.001361989892 | Q195: FALSE | R195: FALSE | S195: 0.01599856668 | T195: 0 | U195: 0 | V195: 1388.843316 | W195: 0 | X195: 0 | Y195: 0
A196: 2019 | B196: 10 | C196: =IF(LOADPROFILE=0.1,Results_10PoE!C167,IF(LOADPROFILE=0.5,Results_50PoE!C167,"Invalid Load Profile %")) -> 3522 | D196: 61.68181818 | E196: 30.84090909 | F196: 0 | G196: 0 | H196: 0 | I196: 4.788697639 | J196: 0 | K196: 0 | L196: 3332.311796 | M196: 3332.311796 | N196: 3332.311796 | O196: 0.009855117076 | P196: 0.001361989892 | Q196: FALSE | R196: FALSE | S196: 0.01599856668 | T196: 0 | U196: 0 | V196: 1512.029365 | W196: 0 | X196: 0 | Y196: 0
A197: 2019 | B197: 11 | C197: =IF(LOADPROFILE=0.1,Results_10PoE!C168,IF(LOADPROFILE=0.5,Results_50PoE!C168,"Invalid Load Profile %")) -> 2820 | D197: 61.68181818 | E197: 30.84090909 | F197: 0 | G197: 0 | H197: 0 | I197: 5.788697639 | J197: 0 | K197: 0 | L197: 4659.37856 | M197: 4659.37856 | N197: 4659.37856 | O197: 0.009855117076 | P197: 0.001361989892 | Q197: FALSE | R197: FALSE | S197: 0.01599856668 | T197: 0 | U197: 0 | V197: 2114.183076 | W197: 0 | X197: 0 | Y197: 0
A198: 2019 | B198: 12 | C198: =IF(LOADPROFILE=0.1,Results_10PoE!C169,IF(LOADPROFILE=0.5,Results_50PoE!C169,"Invalid Load Profile %")) -> 2008 | D198: 61.68181818 | E198: 30.84090909 | F198: 0 | G198: 0 | H198: 0 | I198: 6.788697639 | J198: 0 | K198: 0 | L198: 5376.805758 | M198: 5376.805758 | N198: 5376.805758 | O198: 0.009855117076 | P198: 0.001361989892 | Q198: FALSE | R198: FALSE | S198: 0.01599856668 | T198: 0 | U198: 0 | V198: 2439.714136 | W198: 0 | X198: 0 | Y198: 0
A199: 2019 | B199: 13 | C199: =IF(LOADPROFILE=0.1,Results_10PoE!C170,IF(LOADPROFILE=0.5,Results_50PoE!C170,"Invalid Load Profile %")) -> 1209 | D199: 61.68181818 | E199: 30.84090909 | F199: 0 | G199: 0 | H199: 0 | I199: 7.788697639 | J199: 0 | K199: 0 | L199: 4423.953655 | M199: 4423.953655 | N199: 4423.953655 | O199: 0.009855117076 | P199: 0.001361989892 | Q199: FALSE | R199: FALSE | S199: 0.01599856668 | T199: 0 | U199: 0 | V199: 2007.359528 | W199: 0 | X199: 0 | Y199: 0
A200: 2019 | B200: 14 | C200: =IF(LOADPROFILE=0.1,Results_10PoE!C171,IF(LOADPROFILE=0.5,Results_50PoE!C171,"Invalid Load Profile %")) -> 636 | D200: 61.68181818 | E200: 30.84090909 | F200: 0 | G200: 0 | H200: 0 | I200: 8.788697639 | J200: 0 | K200: 0 | L200: 2883.657119 | M200: 2883.657119 | N200: 2883.657119 | O200: 0.009855117076 | P200: 0.001361989892 | Q200: FALSE | R200: FALSE | S200: 0.01599856668 | T200: 0 | U200: 0 | V200: 1308.453262 | W200: 0 | X200: 0 | Y200: 0
A201: 2019 | B201: 15 | C201: =IF(LOADPROFILE=0.1,Results_10PoE!C172,IF(LOADPROFILE=0.5,Results_50PoE!C172,"Invalid Load Profile %")) -> 305 | D201: 61.68181818 | E201: 30.84090909 | F201: 0 | G201: 0 | H201: 0 | I201: 9.788697639 | J201: 0 | K201: 0 | L201: 1620.438254 | M201: 1620.438254 | N201: 1620.438254 | O201: 0.009855117076 | P201: 0.001361989892 | Q201: FALSE | R201: FALSE | S201: 0.01599856668 | T201: 0 | U201: 0 | V201: 735.2703988 | W201: 0 | X201: 0 | Y201: 0
A202: 2019 | B202: 16 | C202: =IF(LOADPROFILE=0.1,Results_10PoE!C173,IF(LOADPROFILE=0.5,Results_50PoE!C173,"Invalid Load Profile %")) -> 138 | D202: 61.68181818 | E202: 30.84090909 | F202: 0 | G202: 0 | H202: 0 | I202: 10.78869764 | J202: 0 | K202: 0 | L202: 759.308869 | M202: 759.308869 | N202: 759.308869 | O202: 0.009855117076 | P202: 0.001361989892 | Q202: FALSE | R202: FALSE | S202: 0.01599856668 | T202: 0 | U202: 0 | V202: 344.5347785 | W202: 0 | X202: 0 | Y202: 0
... 3134 more rows

Sheet Q_Tables
O2: Source: NUREG CR-5485
H6: λ
A7: // Branches | B7: # Required | C7: # failures | D7: Term
A8: m | B8: k | E8: p(k+1) | F8: Part A | G8: Part B | H8: Part C | I8: Expression | J8: Simplified | K8: xref NUREG
A9: 2 | B9: 1 | C9: 2 | D9: Q2_1 | E9: β | F9: =ROUND(1/((FACT(A9-1)/FACT((A9-1)-(B9-1)))/(FACT(B9-1))),2) -> 1 | G9: 1 | H9: ="(1-"&E9&")"&$H$6 -> (1-β)λ | I9: =F9&"."&G9&"."&H9 -> 1.1.(1-β)λ | J9: (1-β)λ | K9: OK
A10: 2 | B10: 2 | C10: 1 | D10: Q2_2 | E10: 0 | F10: =ROUND(1/((FACT(A10-1)/FACT((A10-1)-(B10-1)))/(FACT(B10-1))),2) -> 1 | G10: =E9 -> β | H10: ="(1-"&E10&")"&$H$6 -> (1-0)λ | I10: =F10&"."&G10&"."&H10 -> 1.β.(1-0)λ | J10: βλ | K10: OK
A13: 3 | B13: 1 | C13: 3 | D13: Q3_1 | E13: β | F13: =ROUND(1/((FACT(A13-1)/FACT((A13-1)-(B13-1)))/(FACT(B13-1))),2) -> 1 | G13: 1 | H13: ="(1-"&E13&")"&$H$6 -> (1-β)λ | I13: =F13&"."&G13&"."&H13 -> 1.1.(1-β)λ | J13: (1-β)λ | K13: OK
A14: 3 | B14: 2 | C14: 2 | D14: Q3_2 | E14: ϒ | F14: =ROUND(1/((FACT(A14-1)/FACT((A14-1)-(B14-1)))/(FACT(B14-1))),2) -> 0.5 | G14: =E13 -> β | H14: ="(1-"&E14&")"&$H$6 -> (1-ϒ)λ | I14: =F14&"."&G14&"."&H14 -> 0.5.β.(1-ϒ)λ | J14: 0.5β(1-ϒ)λ | K14: OK
A15: 3 | B15: 3 | C15: 1 | D15: Q3_3 | E15: 0 | F15: =ROUND(1/((FACT(A15-1)/FACT((A15-1)-(B15-1)))/(FACT(B15-1))),2) -> 1 | G15: βϒ | H15: (1-0)λ | I15: =F15&"."&G15&"."&H15 -> 1.βϒ.(1-0)λ | J15: βϒλ | K15: OK
A17: 4 | B17: 1 | C17: 4 | D17: Q4_1 | E17: β | F17: =ROUND(1/((FACT(A17-1)/FACT((A17-1)-(B17-1)))/(FACT(B17-1))),2) -> 1 | G17: 1 | H17: (1-β)λ | I17: =F17&"."&G17&"."&H17 -> 1.1.(1-β)λ | J17: (1-β)λ | K17: N/A
A18: 4 | B18: 2 | C18: 3 | D18: Q4_2 | E18: γ | F18: =ROUND(1/((FACT(A18-1)/FACT((A18-1)-(B18-1)))/(FACT(B18-1))),2) -> 0.33 | G18: =E17 -> β | H18: (1-γ)λ | I18: =F18&"."&G18&"."&H18 -> 0.33.β.(1-γ)λ | J18: 0.33β(1-ϒ)λ | K18: N/A
A19: 4 | B19: 3 | C19: 2 | D19: Q4_3 | E19: δ | F19: =ROUND(1/((FACT(A19-1)/FACT((A19-1)-(B19-1)))/(FACT(B19-1))),2) -> 0.33 | G19: βϒ | H19: (1-δ)λ | I19: =F19&"."&G19&"."&H19 -> 0.33.βϒ.(1-δ)λ | J19: 0.33βϒ(1-δ)λ | K19: N/A
A20: 4 | B20: 4 | C20: 1 | D20: Q4_4 | E20: 0 | F20: =ROUND(1/((FACT(A20-1)/FACT((A20-1)-(B20-1)))/(FACT(B20-1))),2) -> 1 | G20: βϒδ | H20: (1-0)λ | I20: =F20&"."&G20&"."&H20 -> 1.βϒδ.(1-0)λ | J20: βϒδλ | K20: N/A
O42: https://en.wikipedia.org/wiki/List_of_mathematical_symbols

Sheet Load
A1: =Engine!$C$1 -> CM | B1: MVA | D1: based on 2018 forecasts | Q1: Load Forecast | R1: Actual > | AB1: Trend (Linear) >
B2: 10% Forecast | C2: 50% Forecast | D2: NIEIR 10% | E2: NIEIR 50% | F2: Difference | G2: =CONCATENATE("Growth Profile ",A14,"+") -> Growth Profile 2026+ | H2: 10% Forecast | I2: 50% Forecast | J2: 10% POE Growth | K2: Selected Load | M2: Change in forecast | N2: 0 | P2: Load transfer (MW) | Q2: ZSS | R2: =2018 -> 2018 | S2: =R2+1 -> 2019 | T2: =S2+1 -> 2020 | U2: 2021 | V2: 2022 | W2: 2023 | X2: 2024 | Y2: 2025 | Z2: 2026 | AA2: 2027 | AB2: 2028 | AC2: =AB2+1 -> 2029 | AD2: =AC2+1 -> 2030 | AE2: 2031 | AF2: 2032 | AG2: 2033 | AH2: 2034 | AI2: 2035 | AJ2: 2036 | AK2: 2037 | AL2: 2038 | AM2: 2039 | AN2: 2040 | AO2: 2041 | AP2: ZSS | AQ2: Extra xFer | AR2: Extra xFer Yr | AS2: Extra xFer Cost | AT2: 2020 | AU2: Power factor
Q3: BH | R3: 44.20046147 | S3: 47.80115364 | T3: 46.61363982 | U3: 48.08669055 | V3: 49.39216092 | W3: 51.11590935 | X3: 51.62654928 | Y3: 52.84729302 | Z3: 53.92814764 | AA3: 54.42698532 | AB3: 54.39520358 | AC3: 54.31636009 | AD3: 54.42530006 | AE3: =AD3 -> 54.42530006 | AF3: =AE3 -> 54.42530006 | AG3: 54.42530006 | AH3: 54.42530006 | AI3: 54.42530006 | AJ3: 54.42530006 | AK3: 54.42530006 | AL3: 54.42530006 | AM3: 54.42530006 | AN3: 54.42530006 | AO3: 54.42530006 | AP3: =Q3 -> BH | AR3: 9999 | AT3: 14.71185347 | AU3: 0.999864422
M4: POE | N4: =LOADPROFILE -> 0.5 | Q4: BR | R4: 29.54094376 | S4: 30.95904485 | T4: 28.68001523 | U4: 29.59209605 | V4: 30.00644179 | W4: 30.54218993 | X4: 30.52456 | Y4: 30.64657135 | Z4: 31.32629169 | AA4: 31.66953055 | AB4: 31.72154994 | AC4: 31.7425672 | AD4: 31.87224076 | AE4: =AD4 -> 31.87224076 | AF4: 31.87224076 | AG4: 31.87224076 | AH4: 31.87224076 | AI4: 31.87224076 | AJ4: 31.87224076 | AK4: 31.87224076 | AL4: 31.87224076 | AM4: 31.87224076 | AN4: 31.87224076 | AO4: 31.87224076 | AP4: BR | AR4: 9999 | AT4: 8.002484864 | AU4: 0.9873851522
Q5: BT | R5: 30.36363154 | S5: 31.8679515 | T5: 30.94554708 | U5: 31.95254449 | V5: 32.5313828 | W5: 32.96415324 | X5: 32.8676839 | Y5: 32.91513334 | Z5: 33.6166541 | AA5: 33.94382748 | AB5: 33.9574901 | AC5: 33.9792037 | AD5: 34.10402295 | AE5: =AD5 -> 34.10402295 | AF5: 34.10402295 | AG5: 34.10402295 | AH5: 34.10402295 | AI5: 34.10402295 | AJ5: 34.10402295 | AK5: 34.10402295 | AL5: 34.10402295 | AM5: 34.10402295 | AN5: 34.10402295 | AO5: 34.10402295 | AP5: BT | AR5: 9999 | AT5: 6.631633315 | AU5: 0.9957983583
A6: =2018 -> 2018 | B6: =K6*(1+$N$2) -> 21.7307916 | C6: =I6 -> 21.7307916 | D6: 2101.537033 | E6: 1914.687656 | F6: =(D6-E6)/E6 -> 0.09758739342 | H6: =VLOOKUP($A$1, $Q$3:$AO$54, MATCH($A6,$Q$2:$AO$2,0), FALSE) -> 23.85144291 | I6: =H6/(1+F6) -> 21.7307916 | K6: =IF($N$4=0.1,H6,I6) -> 21.7307916 | L6: =MATCH(A6, $Q$2:$AC$2,0) -> 2 | N6: NIEIR 10% | O6: NIEIR 50% | P6: =VLOOKUP($A$1,AP3:AT54,5,FALSE) -> 5.226879221 | Q6: BU | R6: 30.03966883 | S6: 31.64685526 | T6: 32.27822798 | U6: 32.75798099 | V6: 33.12486524 | W6: 33.59995768 | X6: 33.39101115 | Y6: 33.40468355 | Z6: 34.15145428 | AA6: 34.63493692 | AB6: 34.80004279 | AC6: 34.91512603 | AD6: 35.16035809 | AE6: =AD6 -> 35.16035809 | AF6: 35.16035809 | AG6: 35.16035809 | AH6: 35.16035809 | AI6: 35.16035809 | AJ6: 35.16035809 | AK6: 35.16035809 | AL6: 35.16035809 | AM6: 35.16035809 | AN6: 35.16035809 | AO6: 35.16035809 | AP6: BU | AR6: 9999 | AT6: 6.783344094 | AU6: 0.9925274261
A7: =A6+1 -> 2019 | B7: =K7*(1+$N$2) -> 24.89719114 | C7: =I7 -> 24.89719114 | D7: 2223 | E7: 2009 | F7: 0.106520657 | H7: =VLOOKUP($A$1, $Q$3:$AO$54, MATCH($A7,$Q$2:$AO$2,0), FALSE) -> 27.5492563 | I7: =H7/(1+F7) -> 24.89719114 | J7: =(H7-H6)/H6 -> 0.1550352072 | K7: =IF($N$4=0.1,H7,I7) -> 24.89719114 | L7: 3 | N7: =(D8-D7)/D7 -> -0.01794868267 | O7: =(E8-E7)/E7 -> -0.02988527704 | P7: =P6*(1-$O$23) -> 5.211302361 | Q7: BW | R7: 22.96460172 | S7: 24.1653552 | T7: 24.73394078 | U7: 25.09854379 | V7: 25.3999218 | W7: 25.78746116 | X7: 25.62933773 | Y7: 25.67687428 | Z7: 26.27639071 | AA7: 26.67872555 | AB7: 26.8422579 | AC7: 26.97231582 | AD7: 27.21431245 | AE7: =AD7 -> 27.21431245 | AF7: 27.21431245 | AG7: 27.21431245 | AH7: 27.21431245 | AI7: 27.21431245 | AJ7: 27.21431245 | AK7: 27.21431245 | AL7: 27.21431245 | AM7: 27.21431245 | AN7: 27.21431245 | AO7: 27.21431245 | AP7: BW | AR7: 9999 | AT7: 4.405892033 | AU7: 0.9976218681
A8: 2020 | B8: 18.28575915 | C8: 18.28575915 | D8: 2183.100078 | E8: 1948.960478 | F8: 0.1201356326 | H8: 20.4825304 | I8: 18.28575915 | J8: =(H8-H7)/H7 -> -0.2565124019 | K8: 18.28575915 | L8: 4 | N8: =(D9-D8)/D8 -> -0.02108798381 | O8: -0.02402657316 | P8: =P7*(1-$O$23) -> 5.195771922 | Q8: CDA | R8: 35.68322179 | S8: 35.02334931 | T8: 26.0358358 | U8: 26.77257447 | V8: 27.18489583 | W8: 27.81468509 | X8: 28.18309031 | Y8: 28.61062476 | Z8: 29.20658109 | AA8: 29.50198209 | AB8: 29.5176018 | AC8: 29.51017196 | AD8: 29.60869059 | AE8: =AD8 -> 29.60869059 | AF8: 29.60869059 | AG8: 29.60869059 | AH8: 29.60869059 | AI8: 29.60869059 | AJ8: 29.60869059 | AK8: 29.60869059 | AL8: 29.60869059 | AM8: 29.60869059 | AN8: 29.60869059 | AO8: 29.60869059 | AP8: CDA | AR8: 9999 | AT8: 22.07073612 | AU8: 0.9963200374
A9: 2021 | B9: 18.91730794 | C9: 18.91730794 | D9: 2137.062899 | E9: 1902.133637 | F9: 0.1235082845 | H9: 21.25375219 | I9: 18.91730794 | J9: =(H9-H8)/H8 -> 0.0376526619 | K9: 18.91730794 | L9: 5 | N9: 0.01712845228 | O9: 0.02269050063 | P9: =P8*(1-$O$23) -> 5.180287765 | Q9: CFD | R9: 47.99338883 | S9: 53.91698645 | T9: 52.5302589 | U9: 54.73015027 | V9: 55.92143292 | W9: 56.94260977 | X9: 56.89276225 | Y9: 57.39356059 | Z9: 58.92521548 | AA9: 59.83694248 | AB9: 60.18958352 | AC9: 60.53912735 | AD9: 61.08919563 | AE9: =AD9 -> 61.08919563 | AF9: 61.08919563 | AG9: 61.08919563 | AH9: 61.08919563 | AI9: 61.08919563 | AJ9: 61.08919563 | AK9: 61.08919563 | AL9: 61.08919563 | AM9: 61.08919563 | AN9: 61.08919563 | AO9: 61.08919563 | AP9: CFD | AR9: 9999 | AT9: 12.2317 | AU9: 0.9966429499
A10: 2022 | B10: 19.55199935 | C10: 19.55199935 | D10: 2173.667479 | E10: 1945.294001 | F10: 0.1173979242 | H10: 21.84736349 | I10: 19.55199935 | J10: 0.0279297179 | K10: 19.55199935 | L10: 6 | N10: 0.01929846347 | O10: 0.0177832391 | P10: 5.164849754 | Q10: CM | R10: 23.85144291 | S10: 27.5492563 | T10: 20.4825304 | U10: 21.25375219 | V10: 21.84736349 | W10: 22.4861529 | X10: 22.81109413 | Y10: 23.0636888 | Z10: 23.5497413 | AA10: 23.77669511 | AB10: 23.78617621 | AC10: 23.80124483 | AD10: 23.88787976 | AE10: =AD10 -> 23.88787976 | AF10: 23.88787976 | AG10: 23.88787976 | AH10: 23.88787976 | AI10: 23.88787976 | AJ10: 23.88787976 | AK10: 23.88787976 | AL10: 23.88787976 | AM10: 23.88787976 | AN10: 23.88787976 | AO10: 23.88787976 | AP10: CM | AR10: 9999 | AT10: 5.226879221 | AU10: 0.9912680354
A11: 2023 | B11: 20.09376063 | C11: 20.09376063 | D11: 2215.615922 | E11: 1979.88763 | F11: 0.1190614499 | H11: 22.4861529 | I11: 20.09376063 | J11: 0.0292387415 | K11: 20.09376063 | L11: 7 | N11: -0.001221596215 | O11: -0.006601798415 | P11: 5.14945775 | Q11: CRM | R11: 73.46415056 | S11: 88.29618692 | T11: 75.0388606 | U11: 78.61880379 | V11: 80.3097202 | W11: 82.18474225 | X11: 82.2866081 | Y11: 82.74408539 | Z11: 84.69496992 | AA11: 85.98897525 | AB11: 86.49460652 | AC11: 86.98986693 | AD11: 87.73798102 | AE11: =AD11 -> 87.73798102 | AF11: 87.73798102 | AG11: 87.73798102 | AH11: 87.73798102 | AI11: 87.73798102 | AJ11: 87.73798102 | AK11: 87.73798102 | AL11: 87.73798102 | AM11: 87.73798102 | AN11: 87.73798102 | AO11: 87.73798102 | AP11: CRM | AR11: 9999 | AT11: 14.39723415 | AU11: 0.9998205237
A12: 2024 | B12: 20.27432517 | C12: 20.27432517 | D12: 2212.909334 | E12: 1966.816811 | F12: 0.1251222389 | H12: 22.81109413 | I12: 20.27432517 | J12: 0.01445072546 | K12: 20.27432517 | L12: 8 | N12: 0.005515950219 | O12: 0.003144719539 | P12: 5.134111617 | Q12: DC | R12: 81.72715048 | S12: 93.90688064 | T12: 91.02424137 | U12: 95.33704623 | V12: 96.77850135 | W12: 98.48411809 | X12: 97.9889865 | Y12: 98.36440417 | Z12: 100.5778853 | AA12: 102.0126125 | AB12: 102.5028465 | AC12: 102.8446367 | AD12: 103.5731871 | AE12: =AD12 -> 103.5731871 | AF12: 103.5731871 | AG12: 103.5731871 | AH12: 103.5731871 | AI12: 103.5731871 | AJ12: 103.5731871 | AK12: 103.5731871 | AL12: 103.5731871 | AM12: 103.5731871 | AN12: 103.5731871 | AO12: 103.5731871 | AP12: DC | AR12: 9999 | AT12: 14.1 | AU12: 0.9989029261
A13: 2025 | B13: 20.45048857 | C13: 20.45048857 | D13: 2225.115631 | E13: 1973.001898 | F13: 0.1277817997 | H13: 23.0636888 | I13: =H13/(1+F13) -> 20.45048857 | J13: 0.01107332575 | K13: 20.45048857 | L13: 9 | N13: 0.02334231516 | O13: 0.0240049287 | P13: 5.118811218 | Q13: DMA | R13: 40.56616143 | S13: 46.62718426 | T13: 37.84376317 | U13: 45.21090293 | V13: 46.41012281 | W13: 47.77161213 | X13: 48.31006513 | Y13: 49.14239428 | Z13: 50.87980422 | AA13: 52.19362489 | AB13: 53.03102041 | AC13: 53.80899534 | AD13: 54.77009641 | AE13: =AD13 -> 54.77009641 | AF13: 54.77009641 | AG13: 54.77009641 | AH13: 54.77009641 | AI13: 54.77009641 | AJ13: 54.77009641 | AK13: 54.77009641 | AL13: 54.77009641 | AM13: 54.77009641 | AN13: 54.77009641 | AO13: 54.77009641 | AP13: DMA | AR13: 9999 | AT13: 21.46728537 | AU13: 0.9989307666
A14: 2026 | B14: 20.89499028 | C14: 20.89499028 | D14: 2277.054982 | E14: 2020.363668 | F14: 0.1270520342 | H14: 23.5497413 | I14: =H14/(1+F14) -> 20.89499028 | J14: 0.02107436077 | K14: 20.89499028 | L14: 10 | N14: 0.01326614724 | O14: 0.008704318121 | P14: 5.103556415 | Q14: DN | R14: 69.43740435 | S14: 85.22128217 | T14: 71.58041366 | U14: 72.47766098 | V14: 73.35396129 | W14: 74.48399304 | X14: 74.21179015 | Y14: 74.42109632 | Z14: 75.98464672 | AA14: 76.83462374 | AB14: 76.93681304 | AC14: 77.1359225 | AD14: 77.55349378 | AE14: =AD14 -> 77.55349378 | AF14: 77.55349378 | AG14: 77.55349378 | AH14: 77.55349378 | AI14: 77.55349378 | AJ14: 77.55349378 | AK14: 77.55349378 | AL14: 77.55349378 | AM14: 77.55349378 | AN14: 77.55349378 | AO14: 77.55349378 | AP14: DN | AR14: 9999 | AT14: 15.97979688 | AU14: 0.9967156198
A15: 2027 | B15: 21.0013817 | C15: 21.0013817 | D15: 2307.262728 | E15: 2037.949556 | F15: 0.1321490866 | H15: 23.77669511 | I15: 21.0013817 | J15: =(H15-H14)/H14 -> 0.009637210221 | K15: 21.0013817 | L15: 11 | N15: 0.003480325344 | O15: 0.004459930301 | P15: 5.088347075 | Q15: DSH | R15: 62.79772511 | S15: 69.35790194 | T15: 59.68365716 | U15: 61.66577102 | V15: 62.83476159 | W15: 63.72690131 | X15: 63.5119444 | Y15: 63.67722896 | Z15: 64.91259603 | AA15: 65.58464445 | AB15: 65.66546419 | AC15: 65.82294984 | AD15: 66.15328516 | AE15: =AD15 -> 66.15328516 | AF15: 66.15328516 | AG15: 66.15328516 | AH15: 66.15328516 | AI15: 66.15328516 | AJ15: 66.15328516 | AK15: 66.15328516 | AL15: 66.15328516 | AM15: 66.15328516 | AN15: 66.15328516 | AO15: 66.15328516 | AP15: DSH | AR15: 9999 | AT15: 18.23139113 | AU15: 0.9925783789
A16: 2028 | B16: 21.03026601 | C16: 21.03026601 | D16: 2315.292753 | E16: 2047.038669 | F16: 0.1310449521 | H16: 23.78617621 | I16: =H16/(1+F16) -> 21.03026601 | J16: =(H16-H15)/H15 -> 0.0003987560888 | K16: 21.03026601 | L16: 12 | N16: 0.003052029592 | O16: 0.003088624641 | P16: 5.07318306 | Q16: DVY | R16: 79.44673253 | S16: 86.49165099 | T16: 76.28300918 | U16: 79.37431098 | V16: 82.10991494 | W16: 84.42309737 | X16: 84.10904287 | Y16: 84.35054123 | Z16: 86.15229925 | AA16: 87.13015385 | AB16: 87.24764353 | AC16: 87.47652006 | AD16: 87.95632862 | AE16: =AD16 -> 87.95632862 | AF16: 87.95632862 | AG16: 87.95632862 | AH16: 87.95632862 | AI16: 87.95632862 | AJ16: 87.95632862 | AK16: 87.95632862 | AL16: 87.95632862 | AM16: 87.95632862 | AN16: 87.95632862 | AO16: 87.95632862 | AP16: DVY | AR16: 9999 | AT16: 17.4191466 | AU16: 0.9786280732
A17: 2029 | B17: 21.04435649 | C17: 21.04435649 | D17: 2322.359095 | E17: 2053.361203 | F17: 0.1310036889 | H17: 23.80124483 | I17: 21.04435649 | J17: =(H16-H15)/H15 -> 0.0003987560888 | K17: =IF($N$4=0.1,H17,I17) -> 21.04435649 | L17: =MATCH(A17, $Q$2:$AC$2,0) -> 13 | M17: Avg | N17: =AVERAGE(N7:N16) -> 0.004482542061 | O17: =AVERAGE(O7:O16) -> 0.002336261241 | P17: 5.058064237 | Q17: EB | R17: 57.51023621 | S17: 63.48812538 | T17: 62.94679661 | U17: 64.27734358 | V17: 65.13244774 | W17: 66.32684441 | X17: 66.13798397 | Y17: 66.31115869 | Z17: 67.56848389 | AA17: 68.19166359 | AB17: 68.22461423 | AC17: 68.20894058 | AD17: 68.41676968 | AE17: =AD17 -> 68.41676968 | AF17: 68.41676968 | AG17: 68.41676968 | AH17: 68.41676968 | AI17: 68.41676968 | AJ17: 68.41676968 | AK17: 68.41676968 | AL17: 68.41676968 | AM17: 68.41676968 | AN17: 68.41676968 | AO17: 68.41676968 | AP17: EB | AR17: 9999 | AT17: 14.82629143 | AU17: 0.9794816133
A18: 2030 | B18: 21.12095654 | C18: 21.12095654 | D18: 2337.545838 | E18: 2065.081196 | F18: =F17 -> 0.1310036889 | H18: 23.88787976 | I18: =H18/(1+F18) -> 21.12095654 | J18: =(H17-H16)/H16 -> 0.0006335031188 | K18: 21.12095654 | P18: 5.042990469 | Q18: EL | R18: 30.67519365 | S18: 34.8738965 | T18: 36.07489883 | U18: 37.52083793 | V18: 38.30974286 | W18: 38.95757412 | X18: 39.08595001 | Y18: 39.44480451 | Z18: 40.28801297 | AA18: 40.88059677 | AB18: 41.10989297 | AC18: 41.33722599 | AD18: 41.69507451 | AE18: =AD18 -> 41.69507451 | AF18: 41.69507451 | AG18: 41.69507451 | AH18: 41.69507451 | AI18: 41.69507451 | AJ18: 41.69507451 | AK18: 41.69507451 | AL18: 41.69507451 | AM18: 41.69507451 | AN18: 41.69507451 | AO18: 41.69507451 | AP18: EL | AR18: 9999 | AT18: 7.508802535 | AU18: 0.9932634922
A19: 2031 | B19: 21.12095654 | C19: 21.12095654 | D19: 2365.909824 | E19: 2090.697974 | F19: 0.1310036889 | G19: =AVERAGE(J10:J19) -> 0.01184750299 | H19: 23.88787976 | I19: 21.12095654 | J19: =(H18-H17)/H17 -> 0.003639933046 | K19: 21.12095654 | N19: PoE | O19: Weighting | P19: 5.027961624 | Q19: EM | R19: 31.27103743 | S19: 35.06197328 | T19: 35.90111747 | U19: 37.72136499 | V19: 38.53377227 | W19: 39.20027736 | X19: 39.1689865 | Y19: 39.48342193 | Z19: 40.44601668 | AA19: 41.0196348 | AB19: 41.24162131 | AC19: 41.46172287 | AD19: 41.80821925 | AE19: =AD19 -> 41.80821925 | AF19: 41.80821925 | AG19: 41.80821925 | AH19: 41.80821925 | AI19: 41.80821925 | AJ19: 41.80821925 | AK19: 41.80821925 | AL19: 41.80821925 | AM19: 41.80821925 | AN19: 41.80821925 | AO19: 41.80821925 | AP19: EM | AR19: 9999 | AT19: 5.8 | AU19: 0.9753995964
A20: 2032 | B20: 21.12095654 | C20: 21.12095654 | F20: 0.1310036889 | G20: 0.01184750299 | H20: 23.88787976 | I20: 21.12095654 | K20: =IF($N$4=0.1,H20,I20) -> 21.12095654 | N20: 0.1 | O20: ='ZSS Summary'!N10 -> 0.3 | P20: 5.012977567 | Q20: EW | R20: 24.85777933 | S20: 26.47525369 | T20: 22.32695429 | U20: 23.98024176 | V20: 24.37182996 | W20: 24.78235472 | X20: 24.72463797 | Y20: 24.84629616 | Z20: 25.41664932 | AA20: 25.76845698 | AB20: 25.89235285 | AC20: 25.9951058 | AD20: 26.19096672 | AE20: =AD20 -> 26.19096672 | AF20: 26.19096672 | AG20: 26.19096672 | AH20: 26.19096672 | AI20: 26.19096672 | AJ20: 26.19096672 | AK20: 26.19096672 | AL20: 26.19096672 | AM20: 26.19096672 | AN20: 26.19096672 | AO20: 26.19096672 | AP20: EW | AR20: 9999 | AT20: 5.384667242 | AU20: 0.9993923822
A21: 2033 | B21: 21.12095654 | C21: 21.12095654 | F21: 0.1310036889 | G21: 0.01184750299 | H21: 23.88787976 | I21: 21.12095654 | K21: 21.12095654 | N21: 0.5 | O21: ='ZSS Summary'!N11 -> 0.7 | P21: 4.998038164 | Q21: FSH | R21: 67.26972371 | S21: 74.50140729 | T21: 65.87388485 | U21: 68.09666422 | V21: 68.84598421 | W21: 69.88663707 | X21: 69.78219058 | Y21: 70.00612834 | Z21: 71.38231332 | AA21: 72.23565916 | AB21: 72.48878138 | AC21: 72.64114228 | AD21: 73.0566129 | AE21: =AD21 -> 73.0566129 | AF21: 73.0566129 | AG21: 73.0566129 | AH21: 73.0566129 | AI21: 73.0566129 | AJ21: 73.0566129 | AK21: 73.0566129 | AL21: 73.0566129 | AM21: 73.0566129 | AN21: 73.0566129 | AO21: 73.0566129 | AP21: FSH | AR21: 9999 | AT21: 21.06759486 | AU21: 0.9539095389
A22: 2034 | B22: 21.12095654 | C22: 21.12095654 | F22: 0.1310036889 | G22: 0.01184750299 | H22: 23.88787976 | I22: 21.12095654 | K22: 21.12095654 | P22: 4.983143284 | Q22: FTN | R22: 51.86764786 | S22: 57.18367 | T22: 54.45690007 | U22: 55.53946141 | V22: 56.05153733 | W22: 56.74647886 | X22: 56.51508995 | Y22: 56.5422398 | Z22: 57.58538857 | AA22: 58.23116322 | AB22: 58.28269978 | AC22: 58.32549117 | AD22: 58.53411691 | AE22: =AD22 -> 58.53411691 | AF22: 58.53411691 | AG22: 58.53411691 | AH22: 58.53411691 | AI22: 58.53411691 | AJ22: 58.53411691 | AK22: 58.53411691 | AL22: 58.53411691 | AM22: 58.53411691 | AN22: 58.53411691 | AO22: 58.53411691 | AP22: FTN | AR22: 9999 | AT22: 17.85449055 | AU22: 0.9997902304
A23: 2035 | B23: 21.12095654 | C23: 21.12095654 | F23: 0.1310036889 | G23: 0.01184750299 | H23: 23.88787976 | I23: 21.12095654 | K23: 21.12095654 | N23: Avg Load growth | O23: =O20*N17+O17*O21 -> 0.002980145487 | P23: 4.968292792 | Q23: GW | R23: 63.49617246 | S23: 71.19507644 | T23: 67.49560453 | U23: 69.54753195 | V23: 70.38599088 | W23: 71.21413116 | X23: 71.08988755 | Y23: 71.61072624 | Z23: 72.993045 | AA23: 73.67850788 | AB23: 73.71475766 | AC23: 73.69751463 | AD23: 73.92616409 | AE23: =AD23 -> 73.92616409 | AF23: 73.92616409 | AG23: 73.92616409 | AH23: 73.92616409 | AI23: 73.92616409 | AJ23: 73.92616409 | AK23: 73.92616409 | AL23: 73.92616409 | AM23: 73.92616409 | AN23: 73.92616409 | AO23: 73.92616409 | AP23: GW | AR23: 9999 | AT23: 19.07911978 | AU23: 0.9917231322
A24: 2036 | B24: 21.12095654 | C24: 21.12095654 | F24: 0.1310036889 | G24: 0.01184750299 | H24: 23.88787976 | I24: 21.12095654 | K24: 21.12095654 | P24: 4.953486556 | Q24: HGS | R24: 47.52007611 | S24: 50.44775236 | T24: 47.3593454 | U24: 49.62505179 | V24: 50.48355808 | W24: 51.48020394 | X24: 51.33221967 | Y24: 51.39610772 | Z24: 52.42323668 | AA24: 53.05991294 | AB24: 53.24873376 | AC24: 53.36238299 | AD24: 53.67226507 | AE24: =AD24 -> 53.67226507 | AF24: 53.67226507 | AG24: 53.67226507 | AH24: 53.67226507 | AI24: 53.67226507 | AJ24: 53.67226507 | AK24: 53.67226507 | AL24: 53.67226507 | AM24: 53.67226507 | AN24: 53.67226507 | AO24: 53.67226507 | AP24: HGS | AR24: 9999 | AT24: 13.74778393 | AU24: 0.9593298322
A25: 2037 | B25: 21.12095654 | C25: 21.12095654 | F25: 0.1310036889 | G25: 0.01184750299 | H25: 23.88787976 | I25: 21.12095654 | K25: 21.12095654 | P25: 4.938724446 | Q25: HT | R25: 45.81897483 | S25: 52.47517468 | T25: 51.56105696 | U25: 53.56041326 | V25: 54.62718048 | W25: 56.24750962 | X25: 56.80887934 | Y25: 57.03415333 | Z25: 58.20301019 | AA25: 58.74976353 | AB25: 58.77261745 | AC25: 58.80894205 | AD25: 59.01783567 | AE25: =AD25 -> 59.01783567 | AF25: 59.01783567 | AG25: 59.01783567 | AH25: 59.01783567 | AI25: 59.01783567 | AJ25: 59.01783567 | AK25: 59.01783567 | AL25: 59.01783567 | AM25: 59.01783567 | AN25: 59.01783567 | AO25: 59.01783567 | AP25: HT | AR25: 9999 | AT25: 19.00112894 | AU25: 0.9868338019
A26: 2038 | B26: =K26*(1+$N$2) -> 21.12095654 | C26: =I26 -> 21.12095654 | F26: 0.1310036889 | G26: 0.01184750299 | H26: 23.88787976 | I26: =H26/(1+F26) -> 21.12095654 | K26: =IF($N$4=0.1,H26,I26) -> 21.12095654 | P26: 4.924006328 | Q26: K | R26: 37.10086384 | S26: 45.70709999 | T26: 42.28028908 | U26: 45.00152125 | V26: 46.43737972 | W26: 47.75960592 | X26: 47.91437548 | Y26: 48.51796015 | Z26: 49.99269009 | AA26: 51.055481 | AB26: 51.69290543 | AC26: 52.30374508 | AD26: 53.11352962 | AE26: =AD26 -> 53.11352962 | AF26: 53.11352962 | AG26: 53.11352962 | AH26: 53.11352962 | AI26: 53.11352962 | AJ26: 53.11352962 | AK26: 53.11352962 | AL26: 53.11352962 | AM26: 53.11352962 | AN26: 53.11352962 | AO26: 53.11352962 | AP26: K | AR26: 9999 | AT26: 7.62129 | AU26: 0.9941808344
A27: 2039 | B27: =K27*(1+$N$2) -> 21.12095654 | C27: =I27 -> 21.12095654 | F27: 0.1310036889 | G27: 0.01184750299 | H27: 23.88787976 | I27: =H27/(1+F27) -> 21.12095654 | K27: =IF($N$4=0.1,H27,I27) -> 21.12095654 | P27: 4.909332073 | Q27: KBH | R27: 26.26998242 | S27: 35.35657047 | T27: 32.25073337 | U27: 36.85430672 | V27: 37.81413561 | W27: 38.8148441 | X27: 38.94886234 | Y27: 39.21488376 | Z27: 40.1080581 | AA27: 40.73342537 | AB27: 41.08800817 | AC27: 41.45575198 | AD27: 41.96194386 | AE27: =AD27 -> 41.96194386 | AF27: 41.96194386 | AG27: 41.96194386 | AH27: 41.96194386 | AI27: 41.96194386 | AJ27: 41.96194386 | AK27: 41.96194386 | AL27: 41.96194386 | AM27: 41.96194386 | AN27: 41.96194386 | AO27: 41.96194386 | AP27: KBH | AR27: 9999 | AT27: 34 | AU27: 0.9911558847
A28: 2040 | B28: =K28*(1+$N$2) -> 21.12095654 | C28: =I28 -> 21.12095654 | F28: 0.1310036889 | G28: 0.01184750299 | H28: 23.88787976 | I28: =H28/(1+F28) -> 21.12095654 | K28: =IF($N$4=0.1,H28,I28) -> 21.12095654 | P28: 4.894701549 | Q28: LD | R28: 48.61070108 | S28: 58.49552093 | T28: 54.18394032 | U28: 54.58121875 | V28: 55.16007991 | W28: 55.90647015 | X28: 55.72668662 | Y28: 55.76756929 | Z28: 56.79790284 | AA28: 57.35796694 | AB28: 57.42529933 | AC28: 57.55649122 | AD28: 57.8316218 | AE28: =AD28 -> 57.8316218 | AF28: 57.8316218 | AG28: 57.8316218 | AH28: 57.8316218 | AI28: 57.8316218 | AJ28: 57.8316218 | AK28: 57.8316218 | AL28: 57.8316218 | AM28: 57.8316218 | AN28: 57.8316218 | AO28: 57.8316218 | AP28: LD | AR28: 9999 | AT28: 29.84742235 | AU28: 0.9683886159
P29: 4.880114626 | Q29: LWN | R29: 45.73231417 | S29: 47.82265378 | T29: 49.7710952 | U29: 50.70215977 | V29: 51.18643935 | W29: 52.06285155 | X29: 51.89554572 | Y29: 51.92133837 | Z29: 52.91187963 | AA29: 53.52465032 | AB29: 53.57353905 | AC29: 53.61413035 | AD29: 53.81200986 | AE29: =AD29 -> 53.81200986 | AF29: 53.81200986 | AG29: 53.81200986 | AH29: 53.81200986 | AI29: 53.81200986 | AJ29: 53.81200986 | AK29: 53.81200986 | AL29: 53.81200986 | AM29: 53.81200986 | AN29: 53.81200986 | AO29: 53.81200986 | AP29: LWN | AR29: 9999 | AT29: 27.26047757 | AU29: 0.9805978732
A30: 1 | B30: =A30+1 -> 2 | C30: =B30+1 -> 3 | D30: 4 | E30: 5 | F30: 6 | G30: 7 | H30: 8 | I30: 9 | J30: 10 | K30: 11 | L30: 12 | Q30: M | R30: 35.29742516 | S30: 42.05004829 | T30: 38.59882062 | U30: 39.10441599 | V30: 39.48615366 | W30: 39.98955451 | X30: 39.8773281 | Y30: 39.9325269 | Z30: 40.74882047 | AA30: 41.12964697 | AB30: 41.14555182 | AC30: 41.17082919 | AD30: 41.31614118 | AE30: =AD30 -> 41.31614118 | AF30: 41.31614118 | AG30: 41.31614118 | AH30: 41.31614118 | AI30: 41.31614118 | AJ30: 41.31614118 | AK30: 41.31614118 | AL30: 41.31614118 | AM30: 41.31614118 | AN30: 41.31614118 | AO30: 41.31614118 | AP30: M | AR30: 9999 | AT30: 4.119745339 | AU30: 0.9833784004
Q31: MC | R31: 58.49528585 | S31: 64.05578783 | T31: 55.5170821 | U31: 56.55610508 | V31: 57.45330253 | W31: 58.5961121 | X31: 58.48913502 | Y31: 58.83460947 | Z31: 60.10360523 | AA31: 60.69492515 | AB31: 60.71961159 | AC31: 60.7588439 | AD31: 60.98434209 | AE31: =AD31 -> 60.98434209 | AF31: 60.98434209 | AG31: 60.98434209 | AH31: 60.98434209 | AI31: 60.98434209 | AJ31: 60.98434209 | AK31: 60.98434209 | AL31: 60.98434209 | AM31: 60.98434209 | AN31: 60.98434209 | AO31: 60.98434209 | AP31: MC | AR31: 9999 | AT31: 18.67635319 | AU31: 0.9973463949
Q32: MGE | R32: 73.40290302 | S32: 84.33264925 | T32: 81.94174501 | U32: 83.08140443 | V32: 84.05793515 | W32: 85.31591277 | X32: 85.01302097 | Y32: 85.22396431 | Z32: 86.96187378 | AA32: 87.90557803 | AB32: 88.01898754 | AC32: 88.23992964 | AD32: 88.70316416 | AE32: =AD32 -> 88.70316416 | AF32: 88.70316416 | AG32: 88.70316416 | AH32: 88.70316416 | AI32: 88.70316416 | AJ32: 88.70316416 | AK32: 88.70316416 | AL32: 88.70316416 | AM32: 88.70316416 | AN32: 88.70316416 | AO32: 88.70316416 | AP32: MGE | AR32: 9999 | AT32: 23.23529577 | AU32: 0.999999657
Q33: MR | R33: 46.80194564 | S33: 50.0842359 | T33: 51.2014193 | U33: 52.20885922 | V33: 52.80489417 | W33: 53.53287791 | X33: 53.37066922 | Y33: 53.45045797 | Z33: 54.62905535 | AA33: 55.17807949 | AB33: 55.20099786 | AC33: 55.23741993 | AD33: 55.44675657 | AE33: =AD33 -> 55.44675657 | AF33: 55.44675657 | AG33: 55.44675657 | AH33: 55.44675657 | AI33: 55.44675657 | AJ33: 55.44675657 | AK33: 55.44675657 | AL33: 55.44675657 | AM33: 55.44675657 | AN33: 55.44675657 | AO33: 55.44675657 | AP33: MR | AR33: 9999 | AT33: 14.03126761 | AU33: 0.9999807792
Q34: MTN | R34: 63.10496373 | S34: 66.82666021 | T34: 64.31589806 | U34: 68.0329497 | V34: 69.35302928 | W34: 70.92127396 | X34: 71.0499106 | Y34: 71.86334141 | Z34: 73.9946784 | AA34: 75.55566155 | AB34: 76.4448649 | AC34: 77.22689149 | AD34: 78.32447626 | AE34: =AD34 -> 78.32447626 | AF34: 78.32447626 | AG34: 78.32447626 | AH34: 78.32447626 | AI34: 78.32447626 | AJ34: 78.32447626 | AK34: 78.32447626 | AL34: 78.32447626 | AM34: 78.32447626 | AN34: 78.32447626 | AO34: 78.32447626 | AP34: MTN | AR34: 9999 | AT34: 14.9 | AU34: 0.9988551512
Q35: NB | R35: 46.44646643 | S35: 50.69603901 | T35: 46.3997645 | U35: 47.06768131 | V35: 47.5824857 | W35: 48.26026155 | X35: 48.10926668 | Y35: 48.21063053 | Z35: 49.30798239 | AA35: 49.81890324 | AB35: 49.8402276 | AC35: 49.8741159 | AD35: 50.06887636 | AE35: =AD35 -> 50.06887636 | AF35: 50.06887636 | AG35: 50.06887636 | AH35: 50.06887636 | AI35: 50.06887636 | AJ35: 50.06887636 | AK35: 50.06887636 | AL35: 50.06887636 | AM35: 50.06887636 | AN35: 50.06887636 | AO35: 50.06887636 | AP35: =Q35 -> NB | AR35: 9999 | AT35: 9.602295974 | AU35: 0.9865376181
Q36: NO | R36: 51.69962822 | S36: 60.5169245 | T36: 42.67059771 | U36: 45.81316055 | V36: 46.48960312 | W36: 47.15832849 | X36: 47.15459288 | Y36: 47.35712305 | Z36: 48.16062469 | AA36: 48.56088872 | AB36: 48.58208889 | AC36: 48.57200414 | AD36: 48.70579167 | AE36: =AD36 -> 48.70579167 | AF36: 48.70579167 | AG36: 48.70579167 | AH36: 48.70579167 | AI36: 48.70579167 | AJ36: 48.70579167 | AK36: 48.70579167 | AL36: 48.70579167 | AM36: 48.70579167 | AN36: 48.70579167 | AO36: 48.70579167 | AP36: NO | AR36: 9999 | AT36: 9.709564724 | AU36: 0.9609421078
Q37: NP | R37: 56.02439955 | S37: 63.90335365 | T37: 57.76415494 | U37: 60.08293741 | V37: 60.9703919 | W37: 61.74886266 | X37: 61.39048317 | Y37: 61.55987916 | Z37: 62.79116368 | AA37: 63.40231251 | AB37: 63.43464263 | AC37: 63.41926395 | AD37: 63.62321024 | AE37: =AD37 -> 63.62321024 | AF37: 63.62321024 | AG37: 63.62321024 | AH37: 63.62321024 | AI37: 63.62321024 | AJ37: 63.62321024 | AK37: 63.62321024 | AL37: 63.62321024 | AM37: 63.62321024 | AN37: 63.62321024 | AO37: 63.62321024 | AP37: NP | AR37: 9999 | AT37: 21.8491586 | AU37: 0.9996091751
Q38: NW | R38: 58.68175358 | S38: 66.80011234 | T38: 66.739481 | U38: 67.73219613 | V38: 68.28318056 | W38: 69.04231858 | X38: 68.67159188 | Y38: 68.86341817 | Z38: 70.14771579 | AA38: 70.74024509 | AB38: 70.70249774 | AC38: 70.60885275 | AD38: 70.73824352 | AE38: =AD38 -> 70.73824352 | AF38: 70.73824352 | AG38: 70.73824352 | AH38: 70.73824352 | AI38: 70.73824352 | AJ38: 70.73824352 | AK38: 70.73824352 | AL38: 70.73824352 | AM38: 70.73824352 | AN38: 70.73824352 | AO38: 70.73824352 | AP38: NW | AR38: 9999 | AT38: 23.48028682 | AU38: 0.9815238404
Q39: O | R39: 0 | S39: 0 | T39: 0 | U39: 0 | V39: 0 | W39: 0 | X39: 0 | Y39: 0 | Z39: 0 | AA39: 0 | AB39: 0 | AC39: 0 | AD39: 0 | AE39: =AD39 -> 0 | AF39: 0 | AG39: 0 | AH39: 0 | AI39: 0 | AJ39: 0 | AK39: 0 | AL39: 0 | AM39: 0 | AN39: 0 | AO39: 0 | AP39: O | AR39: 9999 | AU39: 0
Q40: OAK | R40: 38.94117764 | S40: 44.41110505 | T40: 41.49597646 | U40: 42.41600563 | V40: 43.19839634 | W40: 44.08687427 | X40: 44.04894944 | Y40: 44.20944516 | Z40: 45.14330645 | AA40: 45.64725806 | AB40: 45.72861331 | AC40: 45.76056523 | AD40: 45.93920586 | AE40: =AD40 -> 45.93920586 | AF40: 45.93920586 | AG40: 45.93920586 | AH40: 45.93920586 | AI40: 45.93920586 | AJ40: 45.93920586 | AK40: 45.93920586 | AL40: 45.93920586 | AM40: 45.93920586 | AN40: 45.93920586 | AO40: 45.93920586 | AP40: OAK | AR40: 9999 | AT40: 2.998833721 | AU40: 0.9999887309
Q41: OE | R41: 15.12472983 | S41: 16.73142508 | T41: 16.29519792 | U41: 16.78828815 | V41: 16.89905403 | W41: 17.05055035 | X41: 16.97348991 | Y41: 17.00795858 | Z41: 17.25915418 | AA41: 17.38425249 | AB41: 17.39087781 | AC41: 17.3877262 | AD41: 17.42953537 | AE41: =AD41 -> 17.42953537 | AF41: 17.42953537 | AG41: 17.42953537 | AH41: 17.42953537 | AI41: 17.42953537 | AJ41: 17.42953537 | AK41: 17.42953537 | AL41: 17.42953537 | AM41: 17.42953537 | AN41: 17.42953537 | AO41: 17.42953537 | AP41: OE | AR41: 9999 | AT41: 4.203097226 | AU41: 0.8964804633
Q42: OR | R42: 36.05647336 | S42: 39.29783918 | T42: 35.07795387 | U42: 36.3821587 | V42: 36.85322599 | W42: 37.43794216 | X42: 37.40935237 | Y42: 37.69679943 | Z42: 38.57883349 | AA42: 39.1058521 | AB42: 39.31007442 | AC42: 39.5127073 | AD42: 39.83198966 | AE42: =AD42 -> 39.83198966 | AF42: 39.83198966 | AG42: 39.83198966 | AH42: 39.83198966 | AI42: 39.83198966 | AJ42: 39.83198966 | AK42: 39.83198966 | AL42: 39.83198966 | AM42: 39.83198966 | AN42: 39.83198966 | AO42: 39.83198966 | AP42: OR | AR42: 9999 | AT42: 5.619144318 | AU42: 0.9710637143
Q43: RBD | R43: 40.30484388 | S43: 46.81619496 | T43: 36.93438419 | U43: 45.37043766 | V43: 46.30653894 | W43: 47.54820657 | X43: 47.82543765 | Y43: 48.36105741 | Z43: 49.76613971 | AA43: 50.79665097 | AB43: 51.38418433 | AC43: 51.90119451 | AD43: 52.62727123 | AE43: =AD43 -> 52.62727123 | AF43: 52.62727123 | AG43: 52.62727123 | AH43: 52.62727123 | AI43: 52.62727123 | AJ43: 52.62727123 | AK43: 52.62727123 | AL43: 52.62727123 | AM43: 52.62727123 | AN43: 52.62727123 | AO43: 52.62727123 | AP43: RBD | AR43: 9999 | AT43: 14.69339316 | AU43: 0.9935263826
Q44: RWT | R44: 32.82479605 | S44: 39.01116288 | T44: 33.47380172 | U44: 34.07936589 | V44: 34.45012645 | W44: 34.93592088 | X44: 34.67950139 | Y44: 34.79421787 | Z44: 35.56940196 | AA44: 36.05827924 | AB44: 36.21234898 | AC44: 36.31934953 | AD44: 36.56865816 | AE44: =AD44 -> 36.56865816 | AF44: 36.56865816 | AG44: 36.56865816 | AH44: 36.56865816 | AI44: 36.56865816 | AJ44: 36.56865816 | AK44: 36.56865816 | AL44: 36.56865816 | AM44: 36.56865816 | AN44: 36.56865816 | AO44: 36.56865816 | AP44: RWT | AR44: 9999 | AU44: 0.9980825536
Q45: SCY | R45: 0 | S45: 0 | T45: 0 | U45: 0 | V45: 0 | W45: 0 | X45: 0 | Y45: 0 | Z45: 0 | AA45: 0 | AB45: 0 | AC45: 0 | AD45: 0 | AE45: =AD45 -> 0 | AF45: 0 | AG45: 0 | AH45: 0 | AI45: 0 | AJ45: 0 | AK45: 0 | AL45: 0 | AM45: 0 | AN45: 0 | AO45: 0 | AP45: SCY | AR45: 9999 | AU45: 0
Q46: SH | R46: 7.354585182 | S46: 8.165291743 | T46: 7.606481009 | U46: 7.774642724 | V46: 7.866554176 | W46: 7.984666984 | X46: 7.997277905 | Y46: 8.035794175 | Z46: 8.220336847 | AA46: 8.344078694 | AB46: 8.394351686 | AC46: 8.434324792 | AD46: 8.50868084 | AE46: =AD46 -> 8.50868084 | AF46: 8.50868084 | AG46: 8.50868084 | AH46: 8.50868084 | AI46: 8.50868084 | AJ46: 8.50868084 | AK46: 8.50868084 | AL46: 8.50868084 | AM46: 8.50868084 | AN46: 8.50868084 | AO46: 8.50868084 | AP46: SH | AR46: 9999 | AT46: 0 | AU46: 0.9745861709
Q47: SR | R47: 31.67423035 | S47: 35.09767552 | T47: 30.31279009 | U47: 33.13526641 | V47: 33.56439987 | W47: 34.08181931 | X47: 34.10265723 | Y47: 34.30207034 | Z47: 35.03460302 | AA47: 35.40557491 | AB47: 35.46224833 | AC47: 35.48494937 | AD47: 35.62553044 | AE47: =AD47 -> 35.62553044 | AF47: 35.62553044 | AG47: 35.62553044 | AH47: 35.62553044 | AI47: 35.62553044 | AJ47: 35.62553044 | AK47: 35.62553044 | AL47: 35.62553044 | AM47: 35.62553044 | AN47: 35.62553044 | AO47: 35.62553044 | AP47: SR | AR47: 9999 | AT47: 13.34307578 | AU47: 0.994872235
Q48: SS | R48: 29.53152769 | S48: 40.65899064 | T48: 33.48409555 | U48: 34.6234482 | V48: 34.90218091 | W48: 35.28610553 | X48: 35.09043651 | Y48: 35.17786178 | Z48: 35.81958384 | AA48: 36.14204696 | AB48: 36.15917597 | AC48: 36.15102723 | AD48: 36.25922122 | AE48: =AD48 -> 36.25922122 | AF48: 36.25922122 | AG48: 36.25922122 | AH48: 36.25922122 | AI48: 36.25922122 | AJ48: 36.25922122 | AK48: 36.25922122 | AL48: 36.25922122 | AM48: 36.25922122 | AN48: 36.25922122 | AO48: 36.25922122 | AP48: SS | AR48: 9999 | AT48: 15.7688523 | AU48: 0.9475247974
Q49: STO | R49: 42.06543738 | S49: 47.15579827 | T49: 41.58020169 | U49: 48.08970091 | V49: 48.9447356 | W49: 49.96233339 | X49: 50.04588715 | Y49: 50.57452413 | Z49: 51.9619075 | AA49: 52.97998045 | AB49: 53.56061774 | AC49: 54.07167303 | AD49: 54.78956094 | AE49: =AD49 -> 54.78956094 | AF49: 54.78956094 | AG49: 54.78956094 | AH49: 54.78956094 | AI49: 54.78956094 | AJ49: 54.78956094 | AK49: 54.78956094 | AL49: 54.78956094 | AM49: 54.78956094 | AN49: 54.78956094 | AO49: 54.78956094 | AP49: STO | AR49: 9999 | AT49: 12.71718817 | AU49: 0.9552241177
Q50: SV | R50: 49.98174457 | S50: 57.21890657 | T50: 47.89043936 | U50: 48.8463852 | V50: 49.23290827 | W50: 49.75992746 | X50: 49.49208491 | Y50: 49.61194814 | Z50: 50.48264391 | AA50: 50.91447133 | AB50: 50.9373092 | AC50: 50.92644583 | AD50: 51.07050065 | AE50: =AD50 -> 51.07050065 | AF50: 51.07050065 | AG50: 51.07050065 | AH50: 51.07050065 | AI50: 51.07050065 | AJ50: 51.07050065 | AK50: 51.07050065 | AL50: 51.07050065 | AM50: 51.07050065 | AN50: 51.07050065 | AO50: 51.07050065 | AP50: SV | AR50: 9999 | AT50: 16.85212479 | AU50: 0.9355936593
Q51: SVW | R51: 49.11355997 | S51: 57.63892146 | T51: 53.88014521 | U51: 55.21561011 | V51: 55.8923539 | W51: 56.95328106 | X51: 57.06268546 | Y51: 57.25294519 | Z51: 58.35263329 | AA51: 58.89820293 | AB51: 58.92705924 | AC51: 58.91333302 | AD51: 59.09535653 | AE51: =AD51 -> 59.09535653 | AF51: 59.09535653 | AG51: 59.09535653 | AH51: 59.09535653 | AI51: 59.09535653 | AJ51: 59.09535653 | AK51: 59.09535653 | AL51: 59.09535653 | AM51: 59.09535653 | AN51: 59.09535653 | AO51: 59.09535653 | AP51: SVW | AR51: 9999 | AU51: 0.9911076996
Q52: T | R52: 0 | S52: 0 | T52: 0 | U52: 0 | V52: 0 | W52: 0 | X52: 0 | Y52: 0 | Z52: 0 | AA52: 0 | AB52: 0 | AC52: 0 | AD52: 0 | AE52: =AD52 -> 0 | AF52: 0 | AG52: 0 | AH52: 0 | AI52: 0 | AJ52: 0 | AK52: 0 | AL52: 0 | AM52: 0 | AN52: 0 | AO52: 0 | AP52: T | AR52: 9999 | AU52: 0
Q53: TSE | R53: 0 | S53: 0 | T53: 0 | U53: 0 | V53: 0 | W53: 0 | X53: 0 | Y53: 0 | Z53: 0 | AA53: 0 | AB53: 0 | AC53: 0 | AD53: 0 | AE53: =AD53 -> 0 | AF53: 0 | AG53: 0 | AH53: 0 | AI53: 0 | AJ53: 0 | AK53: 0 | AL53: 0 | AM53: 0 | AN53: 0 | AO53: 0 | AP53: TSE | AR53: 9999 | AU53: 0
Q54: WD | R54: 49.78236677 | S54: 55.14210122 | T54: 52.27443511 | U54: 53.89716377 | V54: 54.51148016 | W54: 55.30705009 | X54: 55.0034458 | Y54: 55.21665574 | Z54: 56.47278406 | AA54: 57.28613066 | AB54: 57.56389822 | AC54: 57.75751424 | AD54: 58.17010489 | AE54: =AD54 -> 58.17010489 | AF54: 58.17010489 | AG54: 58.17010489 | AH54: 58.17010489 | AI54: 58.17010489 | AJ54: 58.17010489 | AK54: 58.17010489 | AL54: 58.17010489 | AM54: 58.17010489 | AN54: 58.17010489 | AO54: 58.17010489 | AP54: WD | AR54: 9999 | AT54: 6.519998925 | AU54: 0.9999999761
Q57: ZSS
Q58: BH | R58: BH:-:66/22kV:Trans Summation:MW | Y58: EM Augmentation | AA58: TRUE
Q59: BR | R59: BR:-:66/11kV:Trans Summation:MW | Y59: EM Load forecast | Z59: Post-Augex | AA59: Pre-Augex
Q60: BT | R60: BT:-:66/11kV:Trans Summation:MW | Y60: Summer | Z60: 10PoE | AA60: 10PoE
Q61: BU | R61: BU:-:66/11kV:Trans Summation:MW | Y61: 2021 | Z61: 49.2 | AA61: 37.19445216 | AB61: 2021 | AC61: 37.19445216
Q62: BW | R62: BW:-:22/11kV:Trans Summation:MW | Y62: 2022 | Z62: 50.3 | AA62: 38.14305976 | AB62: 2022 | AC62: 38.14305976
Q63: CDA | R63: CDA:-:66/22kV:Trans Summation:MW | Y63: 2023 | Z63: 51.1 | AA63: 38.60016936 | AB63: 2023 | AC63: 38.60016936
Q64: CFD | R64: CFD:-:66/11kV:Trans Summation:MW | Y64: 2024 | Z64: 51.5 | AA64: 38.69584903 | AB64: 2024 | AC64: 51.5
Q65: CM | R65: CM:-:66/11kV:Trans Summation:MW | Y65: 2025 | Z65: 52.9 | AA65: 39.42464756 | AB65: 2025 | AC65: 52.9
Q66: CRM | R66: CRM:-:66/22kV:Trans Summation:MW | Y66: 2026 | Z66: 54.3 | AA66: 40.16924432 | AB66: 2026 | AC66: 54.3
Q67: DC | R67: DC:-:66/22kV:Trans Summation:MW | Y67: 2027 | Z67: 55.5 | AA67: 41.04963537 | AB67: 2027 | AC67: 55.5
Q68: DMA | R68: DMA:#1:66/22kV:Trans:MW | Y68: 2028 | Z68: 56.2 | AA68: 41.33405288 | AB68: 2028 | AC68: 56.2
Q69: DN | R69: DN:-:66/22kV:Trans Summation:MW | Y69: 2029 | Z69: 56.5 | AB69: 2029 | AC69: 56.5
Q70: DSH | R70: DSH:-:-:Station:MW | Y70: 2030 | Z70: 56.7 | AB70: 2030 | AC70: 56.7
Q71: DVY | R71: DVY:-:66/22kV:Trans Summation:MW | Y71: 2031 | Z71: 56.9 | AB71: 2031 | AC71: 56.9
Q72: EB | R72: EB:-:66/22kV:Trans Summation:MW | Y72: 2032 | Z72: 57
Q73: EL | R73: EL:-:-:Station:MW | Y73: 2033 | Z73: 57.2
Q74: EM | R74: EM:-:66/11kV:Trans Summation:MW | Y74: 2034 | Z74: 57.3
Q75: EW | R75: EW:-:-:Station:MW | Y75: 2035 | Z75: 57.4
Q76: FSH | R76: FSH:-:66/22kV:Trans Summation:MW | Y76: 2036 | Z76: 57.5
Q77: FTN | R77: FTN:-:66/22kV:Trans Summation:MW | Y77: 2037 | Z77: 57.6
Q78: GW | R78: GW:-:66/22kV:Trans Summation:MW | Y78: 2038 | Z78: 57.7
Q79: HGS | R79: HGS:-:66/22kV:Trans Summation:MW
Q80: HT | R80: HT:-:66/22kV:Trans Summation:MW
Q81: K | R81: K:-:11kV:Trans Summation:MW
Q82: KBH | R82: KBH:-:-:Station:MW
Q83: LD | R83: LD:-:66/22kV:Trans Summation:MW
Q84: LWN | R84: LWN:-:66/22kV:Trans Summation:MW
Q85: M | R85: M:-:66/11kV:Trans Summation:MW
Q86: MC | R86: MC:-:66/22kV:Trans Summation:MW
Q87: MGE | R87: MGE:-:66/22kV:Trans Summation:MW
Q88: MR | R88: MR:-:66/11kV:Trans Summation:MW
Q89: MTN | R89: MTN:-:66/22kV:Trans Summation:MW
Q90: NB | R90: NB:-:66/11kV:Trans Summation:MW
Q91: NO | R91: NO:-:66/22kV:Trans Summation:MW
Q92: NP | R92: NP:-:66/22kV:Trans Summation:MW
Q93: NW | R93: NW:-:66/22kV:Trans Summation:MW
Q95: OAK | R95: OAK:-:66/11kV:Trans Summation:MW
Q96: OE | R96: OE:-:66/11kV:Trans Summation:MW
Q97: OR | R97: OR:-:66/11kV:Trans Summation:MW
Q98: RBD | R98: RBD:-:66/22kV:Trans Summation:MW
Q101: SH | R101: SH:-:22/6.6kV:Trans Summation:MW
Q102: SR | R102: SR:-:66/11kV:Trans Summation:MW
Q103: SS | R103: SS:-:66/22kV:Trans Summation:MW
Q104: STO | R104: STO:-:66/22kV:Trans Summation:MW
Q105: SV | R105: SV:-:66/22kV:Trans Summation:MW
Q106: SVW | R106: SVW:-:66/22kV:Trans Summation:MW
R107: T_1.STNMW
Q109: WD | R109: WD:-:66/11kV:Trans Summation:MW
R110: SVW:-:66/22kV:Trans Summation:MW
R111: DN:-:66/22kV:Trans Summation:MW
R112: SS:-:66/22kV:Trans Summation:MW

Sheet VCR
A2: ZSS | B2: VCR
A3: AR | B3: 46.61325609
A4: BC | B4: 30.82652697
A5: BH | B5: 52.80667544
A6: BR | B6: 28.67398913
A7: BRA | B7: 31.74834267
A8: BT | B8: 32.48185216
A9: BU | B9: 31.72505477
A10: BW | B10: 34.24606846
A11: CDA | B11: 44.95206782
A12: CFD | B12: 37.99579826
A13: CM | B13: 53.25405323
A14: CRM | B14: 47.26663794
A15: DC | B15: 34.52152974
A16: DMA | B16: 30.51501327
A17: DN | B17: 49.70043483
A18: DSH | B18: 60.81962441
A19: DVY | B19: 58.4312003
A20: EB | B20: 42.9637455
A21: EL | B21: 34.57021337
A22: EM | B22: 37.59276128
A23: EW | B23: 29.14618402
A24: FGY | B24: 51.8838833
A25: FSH | B25: 37.36699067
A26: FTN | B26: 39.94166569
A27: GW | B27: 43.04994825
A28: HGS | B28: 42.2997609
A29: HPK | B29: 44.52
A30: HT | B30: 50.41513954
A31: K | B31: 37.55774261
A32: KBH | B32: 44.44449708
A33: LD | B33: 42.66625889
A34: LWN | B34: 34.74403309
A35: LYD | B35: 62.64350577
A36: M | B36: 36.16516431
A37: MC | B37: 49.75064756
A38: MGE | B38: 48.47435257
A39: MR | B39: 37.2997972
A40: MTN | B40: 37.92718438
A41: MTS | B41: 63.79
A42: NB | B42: 34.91516553
A43: NO | B43: 56.4811505
A44: NP | B44: 38.56875408
A45: NW | B45: 37.64258646
A46: OAK | B46: 44.86673418
A47: OE | B47: 41.39516015
A48: OR | B48: 32.37107769
A49: RBD | B49: 36.46010138
A50: RD | B50: 29.20361923
A51: RWT | B51: 37.62044029
A52: SH | B52: 28.00247243
A53: SK | B53: 47.17711279
A54: SR | B54: 34.64094134
A55: SS | B55: 47.43438415
A56: STO | B56: 30.30235712
A57: SV | B57: 56.01895635
A58: SVW | B58: 56.67502048
A59: WD | B59: 37.19355467

Sheet Assets
A1: ZSS | B1: =Engine!C1 -> CM
A2: Asset Number | B2: Type | C2: Starting Year | D2: Modified Year | E2: 2018 | F2: 2019 | G2: 2020 | H2: 2021 | I2: 2022 | J2: 2023 | K2: 2024 | L2: 2025 | M2: 2026 | N2: 2027 | O2: 2028 | P2: 2029 | Q2: 2030 | R2: 2031 | S2: 2032 | T2: 2033 | U2: 2034 | V2: 2035 | W2: 2036 | X2: 2037 | Y2: 2038 | Z2: 2039 | AA2: 2040 | AC2: Cyclic Rating | AD2: 2Hr Rating | AF2: Ratings Selected | AG2: PR
A3: =$B$1&" #1" -> CM #1 | B3: =AssetType -> Transformer | C3: =IFERROR(VLOOKUP(A3, $C$170:$E$320,IF(B3="Transformer", 2,3),FALSE),9999) -> 1961 | D3: =IFERROR(VLOOKUP(A3, $C$170:$H$320,6,FALSE),9999) -> 9999 | E3: =IF($D3>=E$2,IF($C3=9999,TRUE,VLOOKUP(E$2-$C3,$A$39:$D$156,3,FALSE)),VLOOKUP(E$2-$D3,$A$39:$D$156,3,FALSE)) -> 0.005351936619 | F3: 0.005599498339 | G3: 0.005853984486 | H3: 0.006115466449 | I3: 0.006384015134 | J3: 0.006659700976 | K3: 0.006942593949 | L3: 0.007232763577 | M3: 0.007530278945 | N3: 0.007835208706 | O3: =IF($D3>=O$2,IF($C3=9999,TRUE,VLOOKUP(O$2-$C3,$A$39:$D$156,3,FALSE)),VLOOKUP(O$2-$D3,$A$39:$D$156,3,FALSE)) -> 0.008147621094 | P3: 0.008467583927 | Q3: 0.008795164623 | R3: 0.009130430203 | S3: 0.0094734473 | T3: 0.009824282168 | U3: 0.01018300069 | V3: 0.01054966838 | W3: 0.0109243504 | X3: 0.01130711155 | Y3: 0.0116980163 | Z3: 0.01209712878 | AA3: 0.01250451276 | AB3: =A3 -> CM #1 | AC3: =IFERROR(VLOOKUP(AB3, $C$170:$G$320,4,FALSE),42) -> 29.5 | AD3: =IFERROR(VLOOKUP(AB3, $C$170:$G$320,5,FALSE),42) -> 32.42 | AG3: Planning Ratings
A4: =$B$1&" #2" -> CM #2 | B4: =AssetType -> Transformer | C4: =IFERROR(VLOOKUP(A4, $C$170:$E$320,IF(B4="Transformer", 2,3),FALSE),9999) -> 1961 | D4: =IFERROR(VLOOKUP(A4, $C$170:$H$320,6,FALSE),9999) -> 9999 | E4: 0.005351936619 | F4: 0.005599498339 | G4: 0.005853984486 | H4: 0.006115466449 | I4: 0.006384015134 | J4: 0.006659700976 | K4: 0.006942593949 | L4: 0.007232763577 | M4: 0.007530278945 | N4: 0.007835208706 | O4: 0.008147621094 | P4: 0.008467583927 | Q4: 0.008795164623 | R4: 0.009130430203 | S4: 0.0094734473 | T4: 0.009824282168 | U4: 0.01018300069 | V4: 0.01054966838 | W4: 0.0109243504 | X4: 0.01130711155 | Y4: 0.0116980163 | Z4: 0.01209712878 | AA4: 0.01250451276 | AB4: =A4 -> CM #2 | AC4: =IFERROR(VLOOKUP(AB4, $C$170:$G$320,4,FALSE),42) -> 29.5 | AD4: =IFERROR(VLOOKUP(AB4, $C$170:$G$320,5,FALSE),42) -> 32.42 | AF4: Float Voltage | AG4: =VLOOKUP(ZSS,K170:M216,3,FALSE) -> 1.045454545
A5: =$B$1&" #3" -> CM #3 | B5: =AssetType -> Transformer | C5: =IFERROR(VLOOKUP(A5, $C$170:$E$320,IF(B5="Transformer", 2,3),FALSE),9999) -> 9999 | D5: =IFERROR(VLOOKUP(A5, $C$170:$H$320,6,FALSE),9999) -> 9999 | E5: TRUE | F5: TRUE | G5: TRUE | H5: TRUE | I5: TRUE | J5: TRUE | K5: TRUE | L5: TRUE | M5: TRUE | N5: TRUE | O5: TRUE | P5: TRUE | Q5: TRUE | R5: TRUE | S5: TRUE | T5: TRUE | U5: TRUE | V5: TRUE | W5: TRUE | X5: TRUE | Y5: TRUE | Z5: TRUE | AA5: TRUE | AB5: =A5 -> CM #3 | AC5: =IFERROR(VLOOKUP(AB5, $C$170:$G$320,4,FALSE),42) -> 42 | AD5: =IFERROR(VLOOKUP(AB5, $C$170:$G$320,5,FALSE),42) -> 42
A6: =$B$1&" #4" -> CM #4 | B6: =AssetType -> Transformer | C6: =IFERROR(VLOOKUP(A6, $C$170:$E$320,IF(B6="Transformer", 2,3),FALSE),9999) -> 9999 | D6: =IFERROR(VLOOKUP(A6, $C$170:$H$320,6,FALSE),9999) -> 9999 | E6: =IF($D6>=E$2,IF($C6>=E2,TRUE,VLOOKUP(E$2-$C6,$A$39:$D$156,3,FALSE)),VLOOKUP(E$2-$D6,$A$39:$D$156,3,FALSE)) -> TRUE | F6: =IF($D6>=F$2,IF($C6>=F2,TRUE,VLOOKUP(F$2-$C6,$A$39:$D$156,3,FALSE)),VLOOKUP(F$2-$D6,$A$39:$D$156,3,FALSE)) -> TRUE | G6: TRUE | H6: TRUE | I6: TRUE | J6: TRUE | K6: TRUE | L6: TRUE | M6: TRUE | N6: TRUE | O6: TRUE | P6: TRUE | Q6: TRUE | R6: TRUE | S6: TRUE | T6: TRUE | U6: TRUE | V6: TRUE | W6: TRUE | X6: TRUE | Y6: TRUE | Z6: TRUE | AA6: TRUE | AB6: =A6 -> CM #4 | AC6: =IFERROR(VLOOKUP(AB6, $C$170:$G$320,4,FALSE),42) -> 42 | AD6: 44
A7: =$B$1&" #1" -> CM #1 | E7: =IF(E3=TRUE,9999, IF($D3>E$2, $C3, $D3)) -> 1961 | F7: 1961 | G7: 1961 | H7: 1961 | I7: 1961 | J7: 1961 | K7: 1961 | L7: 1961 | M7: 1961 | N7: 1961 | O7: 1961 | P7: 1961 | Q7: 1961 | R7: 1961 | S7: 1961 | T7: 1961 | U7: 1961 | V7: 1961 | W7: 1961 | X7: 1961 | Y7: 1961 | Z7: 1961 | AA7: 1961
A8: =$B$1&" #2" -> CM #2 | E8: =IF(E4=TRUE,9999, IF($D4>E$2, $C4, $D4)) -> 1961 | F8: 1961 | G8: 1961 | H8: 1961 | I8: 1961 | J8: 1961 | K8: 1961 | L8: 1961 | M8: 1961 | N8: 1961 | O8: 1961 | P8: 1961 | Q8: 1961 | R8: 1961 | S8: 1961 | T8: 1961 | U8: 1961 | V8: 1961 | W8: 1961 | X8: 1961 | Y8: 1961 | Z8: 1961 | AA8: 1961
A9: =$B$1&" #3" -> CM #3 | E9: =IF(E5=TRUE,9999, IF($D5>E$2, $C5, $D5)) -> 9999 | F9: 9999 | G9: 9999 | H9: 9999 | I9: 9999 | J9: 9999 | K9: 9999 | L9: 9999 | M9: 9999 | N9: 9999 | O9: 9999 | P9: 9999 | Q9: 9999 | R9: 9999 | S9: 9999 | T9: 9999 | U9: 9999 | V9: 9999 | W9: 9999 | X9: 9999 | Y9: 9999 | Z9: 9999 | AA9: 9999
A10: =$B$1&" #4" -> CM #4 | E10: =IF(E6=TRUE,9999, IF($D6>E$2, $C6, $D6)) -> 9999 | F10: 9999 | G10: 9999 | H10: 9999 | I10: 9999 | J10: 9999 | K10: 9999 | L10: 9999 | M10: 9999 | N10: 9999 | O10: 9999 | P10: 9999 | Q10: 9999 | R10: 9999 | S10: 9999 | T10: 9999 | U10: 9999 | V10: 9999 | W10: 9999 | X10: 9999 | Y10: 9999 | Z10: 9999 | AA10: 9999
A11: Count of Assets | D11: Row | E11: =COUNTIF(E7:E10,"<"&E2) -> 2 | F11: =COUNTIF(F7:F10,"<"&F2) -> 2 | G11: =COUNTIF(G7:G10,"<"&G2) -> 2 | H11: 2 | I11: 2 | J11: 2 | K11: 2 | L11: 2 | M11: 2 | N11: 2 | O11: 2 | P11: 2 | Q11: 2 | R11: 2 | S11: 2 | T11: 2 | U11: 2 | V11: 2 | W11: 2 | X11: 2 | Y11: 2 | Z11: 2 | AA11: 2
A12: N cyclic Rating | D12: 11 | E12: =IF($AG$2="PR",MIN(IF(E$7:E$10<E$2,$AC$3:$AC$6))*$AG$4*E$11,SUMPRODUCT((E$7:E$10<E$2)*($AC$3:$AC$6))) -> 61.68181818 | F12: =IF($AG$2="PR",MIN(IF(F$7:F$10<F$2,$AC$3:$AC$6))*$AG$4*F$11,SUMPRODUCT((F$7:F$10<F$2)*($AC$3:$AC$6))) -> 61.68181818 | G12: =IF($AG$2="PR",MIN(IF(G$7:G$10<G$2,$AC$3:$AC$6))*$AG$4*G$11,SUMPRODUCT((G$7:G$10<G$2)*($AC$3:$AC$6))) -> 61.68181818 | H12: =IF($AG$2="PR",MIN(IF(H$7:H$10<H$2,$AC$3:$AC$6))*$AG$4*H$11,SUMPRODUCT((H$7:H$10<H$2)*($AC$3:$AC$6))) -> 61.68181818 | I12: =IF($AG$2="PR",MIN(IF(I$7:I$10<I$2,$AC$3:$AC$6))*$AG$4*I$11,SUMPRODUCT((I$7:I$10<I$2)*($AC$3:$AC$6))) -> 61.68181818 | J12: =IF($AG$2="PR",MIN(IF(J$7:J$10<J$2,$AC$3:$AC$6))*$AG$4*J$11,SUMPRODUCT((J$7:J$10<J$2)*($AC$3:$AC$6))) -> 61.68181818 | K12: =IF($AG$2="PR",MIN(IF(K$7:K$10<K$2,$AC$3:$AC$6))*$AG$4*K$11,SUMPRODUCT((K$7:K$10<K$2)*($AC$3:$AC$6))) -> 61.68181818 | L12: =IF($AG$2="PR",MIN(IF(L$7:L$10<L$2,$AC$3:$AC$6))*$AG$4*L$11,SUMPRODUCT((L$7:L$10<L$2)*($AC$3:$AC$6))) -> 61.68181818 | M12: =IF($AG$2="PR",MIN(IF(M$7:M$10<M$2,$AC$3:$AC$6))*$AG$4*M$11,SUMPRODUCT((M$7:M$10<M$2)*($AC$3:$AC$6))) -> 61.68181818 | N12: =IF($AG$2="PR",MIN(IF(N$7:N$10<N$2,$AC$3:$AC$6))*$AG$4*N$11,SUMPRODUCT((N$7:N$10<N$2)*($AC$3:$AC$6))) -> 61.68181818 | O12: =IF($AG$2="PR",MIN(IF(O$7:O$10<O$2,$AC$3:$AC$6))*$AG$4*O$11,SUMPRODUCT((O$7:O$10<O$2)*($AC$3:$AC$6))) -> 61.68181818 | P12: =IF($AG$2="PR",MIN(IF(P$7:P$10<P$2,$AC$3:$AC$6))*$AG$4*P$11,SUMPRODUCT((P$7:P$10<P$2)*($AC$3:$AC$6))) -> 61.68181818 | Q12: =IF($AG$2="PR",MIN(IF(Q$7:Q$10<Q$2,$AC$3:$AC$6))*$AG$4*Q$11,SUMPRODUCT((Q$7:Q$10<Q$2)*($AC$3:$AC$6))) -> 61.68181818 | R12: =IF($AG$2="PR",MIN(IF(R$7:R$10<R$2,$AC$3:$AC$6))*$AG$4*R$11,SUMPRODUCT((R$7:R$10<R$2)*($AC$3:$AC$6))) -> 61.68181818 | S12: =IF($AG$2="PR",MIN(IF(S$7:S$10<S$2,$AC$3:$AC$6))*$AG$4*S$11,SUMPRODUCT((S$7:S$10<S$2)*($AC$3:$AC$6))) -> 61.68181818 | T12: =IF($AG$2="PR",MIN(IF(T$7:T$10<T$2,$AC$3:$AC$6))*$AG$4*T$11,SUMPRODUCT((T$7:T$10<T$2)*($AC$3:$AC$6))) -> 61.68181818 | U12: =IF($AG$2="PR",MIN(IF(U$7:U$10<U$2,$AC$3:$AC$6))*$AG$4*U$11,SUMPRODUCT((U$7:U$10<U$2)*($AC$3:$AC$6))) -> 61.68181818 | V12: =IF($AG$2="PR",MIN(IF(V$7:V$10<V$2,$AC$3:$AC$6))*$AG$4*V$11,SUMPRODUCT((V$7:V$10<V$2)*($AC$3:$AC$6))) -> 61.68181818 | W12: =IF($AG$2="PR",MIN(IF(W$7:W$10<W$2,$AC$3:$AC$6))*$AG$4*W$11,SUMPRODUCT((W$7:W$10<W$2)*($AC$3:$AC$6))) -> 61.68181818 | X12: =IF($AG$2="PR",MIN(IF(X$7:X$10<X$2,$AC$3:$AC$6))*$AG$4*X$11,SUMPRODUCT((X$7:X$10<X$2)*($AC$3:$AC$6))) -> 61.68181818 | Y12: =IF($AG$2="PR",MIN(IF(Y$7:Y$10<Y$2,$AC$3:$AC$6))*$AG$4*Y$11,SUMPRODUCT((Y$7:Y$10<Y$2)*($AC$3:$AC$6))) -> 61.68181818 | Z12: =IF($AG$2="PR",MIN(IF(Z$7:Z$10<Z$2,$AC$3:$AC$6))*$AG$4*Z$11,SUMPRODUCT((Z$7:Z$10<Z$2)*($AC$3:$AC$6))) -> 61.68181818 | AA12: =IF($AG$2="PR",MIN(IF(AA$7:AA$10<AA$2,$AC$3:$AC$6))*$AG$4*AA$11,SUMPRODUCT((AA$7:AA$10<AA$2)*($AC$3:$AC$6))) -> 61.68181818
A13: N 2hR Rating | D13: 12 | E13: =IF($AG$2="PR",MIN(IF(E$7:E$10<E$2,$AD$3:$AD$6))*$AG$4*E$11,SUMPRODUCT((E$7:E$10<E$2)*($AD$3:$AD$6))) -> 67.78727273 | F13: =IF($AG$2="PR",MIN(IF(F$7:F$10<F$2,$AD$3:$AD$6))*$AG$4*F$11,SUMPRODUCT((F$7:F$10<F$2)*($AD$3:$AD$6))) -> 67.78727273 | G13: =IF($AG$2="PR",MIN(IF(G$7:G$10<G$2,$AD$3:$AD$6))*$AG$4*G$11,SUMPRODUCT((G$7:G$10<G$2)*($AD$3:$AD$6))) -> 67.78727273 | H13: =IF($AG$2="PR",MIN(IF(H$7:H$10<H$2,$AD$3:$AD$6))*$AG$4*H$11,SUMPRODUCT((H$7:H$10<H$2)*($AD$3:$AD$6))) -> 67.78727273 | I13: =IF($AG$2="PR",MIN(IF(I$7:I$10<I$2,$AD$3:$AD$6))*$AG$4*I$11,SUMPRODUCT((I$7:I$10<I$2)*($AD$3:$AD$6))) -> 67.78727273 | J13: =IF($AG$2="PR",MIN(IF(J$7:J$10<J$2,$AD$3:$AD$6))*$AG$4*J$11,SUMPRODUCT((J$7:J$10<J$2)*($AD$3:$AD$6))) -> 67.78727273 | K13: =IF($AG$2="PR",MIN(IF(K$7:K$10<K$2,$AD$3:$AD$6))*$AG$4*K$11,SUMPRODUCT((K$7:K$10<K$2)*($AD$3:$AD$6))) -> 67.78727273 | L13: =IF($AG$2="PR",MIN(IF(L$7:L$10<L$2,$AD$3:$AD$6))*$AG$4*L$11,SUMPRODUCT((L$7:L$10<L$2)*($AD$3:$AD$6))) -> 67.78727273 | M13: =IF($AG$2="PR",MIN(IF(M$7:M$10<M$2,$AD$3:$AD$6))*$AG$4*M$11,SUMPRODUCT((M$7:M$10<M$2)*($AD$3:$AD$6))) -> 67.78727273 | N13: =IF($AG$2="PR",MIN(IF(N$7:N$10<N$2,$AD$3:$AD$6))*$AG$4*N$11,SUMPRODUCT((N$7:N$10<N$2)*($AD$3:$AD$6))) -> 67.78727273 | O13: =IF($AG$2="PR",MIN(IF(O$7:O$10<O$2,$AD$3:$AD$6))*$AG$4*O$11,SUMPRODUCT((O$7:O$10<O$2)*($AD$3:$AD$6))) -> 67.78727273 | P13: =IF($AG$2="PR",MIN(IF(P$7:P$10<P$2,$AD$3:$AD$6))*$AG$4*P$11,SUMPRODUCT((P$7:P$10<P$2)*($AD$3:$AD$6))) -> 67.78727273 | Q13: =IF($AG$2="PR",MIN(IF(Q$7:Q$10<Q$2,$AD$3:$AD$6))*$AG$4*Q$11,SUMPRODUCT((Q$7:Q$10<Q$2)*($AD$3:$AD$6))) -> 67.78727273 | R13: =IF($AG$2="PR",MIN(IF(R$7:R$10<R$2,$AD$3:$AD$6))*$AG$4*R$11,SUMPRODUCT((R$7:R$10<R$2)*($AD$3:$AD$6))) -> 67.78727273 | S13: =IF($AG$2="PR",MIN(IF(S$7:S$10<S$2,$AD$3:$AD$6))*$AG$4*S$11,SUMPRODUCT((S$7:S$10<S$2)*($AD$3:$AD$6))) -> 67.78727273 | T13: =IF($AG$2="PR",MIN(IF(T$7:T$10<T$2,$AD$3:$AD$6))*$AG$4*T$11,SUMPRODUCT((T$7:T$10<T$2)*($AD$3:$AD$6))) -> 67.78727273 | U13: =IF($AG$2="PR",MIN(IF(U$7:U$10<U$2,$AD$3:$AD$6))*$AG$4*U$11,SUMPRODUCT((U$7:U$10<U$2)*($AD$3:$AD$6))) -> 67.78727273 | V13: =IF($AG$2="PR",MIN(IF(V$7:V$10<V$2,$AD$3:$AD$6))*$AG$4*V$11,SUMPRODUCT((V$7:V$10<V$2)*($AD$3:$AD$6))) -> 67.78727273 | W13: =IF($AG$2="PR",MIN(IF(W$7:W$10<W$2,$AD$3:$AD$6))*$AG$4*W$11,SUMPRODUCT((W$7:W$10<W$2)*($AD$3:$AD$6))) -> 67.78727273 | X13: =IF($AG$2="PR",MIN(IF(X$7:X$10<X$2,$AD$3:$AD$6))*$AG$4*X$11,SUMPRODUCT((X$7:X$10<X$2)*($AD$3:$AD$6))) -> 67.78727273 | Y13: =IF($AG$2="PR",MIN(IF(Y$7:Y$10<Y$2,$AD$3:$AD$6))*$AG$4*Y$11,SUMPRODUCT((Y$7:Y$10<Y$2)*($AD$3:$AD$6))) -> 67.78727273 | Z13: =IF($AG$2="PR",MIN(IF(Z$7:Z$10<Z$2,$AD$3:$AD$6))*$AG$4*Z$11,SUMPRODUCT((Z$7:Z$10<Z$2)*($AD$3:$AD$6))) -> 67.78727273 | AA13: =IF($AG$2="PR",MIN(IF(AA$7:AA$10<AA$2,$AD$3:$AD$6))*$AG$4*AA$11,SUMPRODUCT((AA$7:AA$10<AA$2)*($AD$3:$AD$6))) -> 67.78727273
A14: N-1 2Hr Rating (Probability weighted) | D14: 13 | E14: =IF($AG$2="PR",E13*(E11-1)/E11,E13-SUMPRODUCT(($E$7:$E$10<E$2)*($AD$3:$AD$6)*(E3:E6))/SUMPRODUCT(($E$7:$E$10<E$2)*(E3:E6))) -> 33.89363636 | F14: =IF($AG$2="PR",F13*(F11-1)/F11,F13-SUMPRODUCT(($E$7:$E$10<F$2)*($AD$3:$AD$6)*(F3:F6))/SUMPRODUCT(($E$7:$E$10<F$2)*(F3:F6))) -> 33.89363636 | G14: 33.89363636 | H14: 33.89363636 | I14: 33.89363636 | J14: 33.89363636 | K14: 33.89363636 | L14: 33.89363636 | M14: 33.89363636 | N14: 33.89363636 | O14: 33.89363636 | P14: 33.89363636 | Q14: 33.89363636 | R14: 33.89363636 | S14: 33.89363636 | T14: 33.89363636 | U14: 33.89363636 | V14: 33.89363636 | W14: 33.89363636 | X14: 33.89363636 | Y14: 33.89363636 | Z14: 33.89363636 | AA14: 33.89363636
A15: N-1 Cyclic Rating (Probability weighted) | D15: 14 | E15: =IF($AG$2="PR",E12*(E11-1)/E11,E12-SUMPRODUCT(($E$7:$E$10<E$2)*($AC$3:$AC$6)*(E3:E6))/SUMPRODUCT(($E$7:$E$10<E$2)*(E3:E6))) -> 30.84090909 | F15: 30.84090909 | G15: 30.84090909 | H15: 30.84090909 | I15: 30.84090909 | J15: 30.84090909 | K15: 30.84090909 | L15: 30.84090909 | M15: 30.84090909 | N15: 30.84090909 | O15: 30.84090909 | P15: 30.84090909 | Q15: 30.84090909 | R15: 30.84090909 | S15: 30.84090909 | T15: 30.84090909 | U15: 30.84090909 | V15: 30.84090909 | W15: 30.84090909 | X15: 30.84090909 | Y15: 30.84090909 | Z15: 30.84090909 | AA15: 30.84090909
A16: N-2 Cyclic (Residual Rating) | D16: 15 | E16: =IF($AG$2="PR",IF((E$11-2)<0,0,E$12*(E$11-2)/E$11),IFERROR(E$15-(E$15/(COUNTIF(E$7:E$10,"<"&E$2)-1)),0)) -> 0 | F16: 0 | G16: 0 | H16: 0 | I16: 0 | J16: 0 | K16: 0 | L16: 0 | M16: 0 | N16: 0 | O16: 0 | P16: 0 | Q16: 0 | R16: 0 | S16: 0 | T16: 0 | U16: 0 | V16: 0 | W16: 0 | X16: 0 | Y16: 0 | Z16: 0 | AA16: 0
A17: N-3 Cyclic (Residual Rating) | D17: 16 | E17: =IF($AG$2="PR",IF((E$11-3)<0,0,E$12*(E$11-3)/E$11),IFERROR(E$15-(E$15/(COUNTIF(E$7:E$10,"<"&E$2)-2)),0)) -> 0 | F17: 0 | G17: 0 | H17: 0 | I17: 0 | J17: 0 | K17: 0 | L17: 0 | M17: 0 | N17: 0 | O17: 0 | P17: 0 | Q17: 0 | R17: 0 | S17: 0 | T17: 0 | U17: 0 | V17: 0 | W17: 0 | X17: 0 | Y17: 0 | Z17: 0 | AA17: 0
A18: N-4 Cyclic (Residual Rating) | D18: 17 | E18: 0 | F18: 0 | G18: 0 | H18: 0 | I18: 0 | J18: 0 | K18: 0 | L18: 0 | M18: 0 | N18: 0 | O18: 0 | P18: 0 | Q18: 0 | R18: 0 | S18: 0 | T18: 0 | U18: 0 | V18: 0 | W18: 0 | X18: 0 | Y18: 0 | Z18: 0 | AA18: 0
A20: Feeder Risk | B20: Switchgear Only | D20: Base Load | E20: =VLOOKUP(E21, Load!$A$6:$K$28,11,FALSE) -> 21.7307916 | F20: =VLOOKUP(F21, Load!$A$6:$K$28,11,FALSE) -> 24.89719114 | G20: =VLOOKUP(G21, Load!$A$6:$K$28,11,FALSE) -> 18.28575915 | H20: =VLOOKUP(H21, Load!$A$6:$K$28,11,FALSE) -> 18.91730794 | I20: =VLOOKUP(I21, Load!$A$6:$K$28,11,FALSE) -> 19.55199935 | J20: =VLOOKUP(J21, Load!$A$6:$K$28,11,FALSE) -> 20.09376063 | K20: =VLOOKUP(K21, Load!$A$6:$K$28,11,FALSE) -> 20.27432517 | L20: =VLOOKUP(L21, Load!$A$6:$K$28,11,FALSE) -> 20.45048857 | M20: =VLOOKUP(M21, Load!$A$6:$K$28,11,FALSE) -> 20.89499028 | N20: =VLOOKUP(N21, Load!$A$6:$K$28,11,FALSE) -> 21.0013817 | O20: =VLOOKUP(O21, Load!$A$6:$K$28,11,FALSE) -> 21.03026601 | P20: =VLOOKUP(P21, Load!$A$6:$K$28,11,FALSE) -> 21.04435649 | Q20: =VLOOKUP(Q21, Load!$A$6:$K$28,11,FALSE) -> 21.12095654 | R20: =VLOOKUP(R21, Load!$A$6:$K$28,11,FALSE) -> 21.12095654 | S20: =VLOOKUP(S21, Load!$A$6:$K$28,11,FALSE) -> 21.12095654 | T20: =VLOOKUP(T21, Load!$A$6:$K$28,11,FALSE) -> 21.12095654 | U20: =VLOOKUP(U21, Load!$A$6:$K$28,11,FALSE) -> 21.12095654 | V20: =VLOOKUP(V21, Load!$A$6:$K$28,11,FALSE) -> 21.12095654 | W20: =VLOOKUP(W21, Load!$A$6:$K$28,11,FALSE) -> 21.12095654 | X20: =VLOOKUP(X21, Load!$A$6:$K$28,11,FALSE) -> 21.12095654 | Y20: =VLOOKUP(Y21, Load!$A$6:$K$28,11,FALSE) -> 21.12095654 | Z20: =VLOOKUP(Z21, Load!$A$6:$K$28,11,FALSE) -> 21.12095654 | AA20: =VLOOKUP(AA21, Load!$A$6:$K$28,11,FALSE) -> 21.12095654
A21: Bus # | B21: # Feeder Bays | C21: Average Load' | E21: =E2 -> 2018 | F21: 2019 | G21: 2020 | H21: 2021 | I21: 2022 | J21: 2023 | K21: 2024 | L21: 2025 | M21: 2026 | N21: 2027 | O21: 2028 | P21: 2029 | Q21: 2030 | R21: 2031 | S21: 2032 | T21: 2033 | U21: 2034 | V21: 2035 | W21: 2036 | X21: 2037 | Y21: 2038 | Z21: 2039 | AA21: 2040
A22: 1 | B22: =COUNTIFS(Feeders!$B:$B,ZSS, Feeders!$E:$E,A22) -> 5 | C22: =SUMPRODUCT((Feeders!$B2:$B518=ZSS)*(Feeders!$E2:$E518=A22)*(Feeders!$I2:$I518)) -> 6.291981405 | E22: =C22 -> 6.291981405 | F22: =F$20/$E$20*$E22 -> 7.208787724 | G22: =G$20/$E$20*$E22 -> 5.2944991 | H22: 5.47735913 | I22: 5.661129085 | J22: 5.817991842 | K22: 5.870272898 | L22: 5.921279637 | M22: 6.049981645 | N22: 6.080786452 | O22: 6.089149678 | P22: 6.093229469 | Q22: 6.115408416 | R22: 6.115408416 | S22: 6.115408416 | T22: 6.115408416 | U22: 6.115408416 | V22: 6.115408416 | W22: 6.115408416 | X22: 6.115408416 | Y22: 6.115408416 | Z22: 6.115408416 | AA22: 6.115408416
A23: 2 | B23: =COUNTIFS(Feeders!$B:$B,ZSS, Feeders!$E:$E,A23) -> 5 | C23: =SUMPRODUCT((Feeders!$B3:$B519=ZSS)*(Feeders!$E3:$E519=A23)*(Feeders!$I3:$I519)) -> 6.494381272 | E23: =C23 -> 6.494381272 | F23: =F$20/$E$20*$E23 -> 7.44067933 | G23: =G$20/$E$20*$E23 -> 5.46481205 | H23: 5.653554305 | I23: 5.843235754 | J23: 6.005144457 | K23: 6.059107285 | L23: 6.111754805 | M23: 6.244596887 | N23: 6.276392619 | O23: 6.285024873 | P23: 6.289235902 | Q23: 6.3121283 | R23: 6.3121283 | S23: 6.3121283 | T23: 6.3121283 | U23: 6.3121283 | V23: 6.3121283 | W23: 6.3121283 | X23: 6.3121283 | Y23: 6.3121283 | Z23: 6.3121283 | AA23: 6.3121283
A24: 3 | B24: =COUNTIFS(Feeders!$B:$B,ZSS, Feeders!$E:$E,A24) -> 0 | C24: =SUMPRODUCT((Feeders!$B4:$B520=ZSS)*(Feeders!$E4:$E520=A24)*(Feeders!$I4:$I520)) -> 0 | E24: 0 | F24: 0 | G24: 0 | H24: 0 | I24: 0 | J24: 0 | K24: 0 | L24: 0 | M24: 0 | N24: 0 | O24: 0 | P24: 0 | Q24: 0 | R24: 0 | S24: 0 | T24: 0 | U24: 0 | V24: 0 | W24: 0 | X24: 0 | Y24: 0 | Z24: 0 | AA24: 0
A25: 4 | B25: =COUNTIFS(Feeders!$B:$B,ZSS, Feeders!$E:$E,A25) -> 0 | C25: =SUMPRODUCT((Feeders!$B5:$B521=ZSS)*(Feeders!$E5:$E521=A25)*(Feeders!$I5:$I521)) -> 0 | E25: 0 | F25: 0 | G25: 0 | H25: 0 | I25: 0 | J25: 0 | K25: 0 | L25: 0 | M25: 0 | N25: 0 | O25: 0 | P25: 0 | Q25: 0 | R25: 0 | S25: 0 | T25: 0 | U25: 0 | V25: 0 | W25: 0 | X25: 0 | Y25: 0 | Z25: 0 | AA25: 0
A26: 1 | B26: =IF(AssetType="Transformer", FALSE, B22) -> FALSE | E26: =E3*$B26*E22*OUTAGE_DUR*1000 -> 0 | F26: 0 | G26: =G3*$B26*G22*OUTAGE_DUR*1000 -> 0 | H26: 0 | I26: 0 | J26: 0 | K26: 0 | L26: 0 | M26: 0 | N26: 0 | O26: 0 | P26: 0 | Q26: 0 | R26: 0 | S26: 0 | T26: 0 | U26: 0 | V26: 0 | W26: 0 | X26: 0 | Y26: 0 | Z26: 0 | AA26: 0
A27: 2 | B27: =IF(AssetType="Transformer", FALSE, B23) -> FALSE | E27: =E4*$B27*E23*OUTAGE_DUR*1000 -> 0 | F27: 0 | G27: 0 | H27: 0 | I27: 0 | J27: 0 | K27: 0 | L27: 0 | M27: 0 | N27: 0 | O27: 0 | P27: 0 | Q27: 0 | R27: 0 | S27: 0 | T27: 0 | U27: 0 | V27: 0 | W27: 0 | X27: 0 | Y27: 0 | Z27: 0 | AA27: 0
A28: 3 | B28: =IF(AssetType="Transformer", FALSE, B24) -> FALSE | E28: =E5*$B28*E24*OUTAGE_DUR*1000 -> 0 | F28: 0 | G28: 0 | H28: 0 | I28: 0 | J28: 0 | K28: 0 | L28: 0 | M28: 0 | N28: 0 | O28: 0 | P28: 0 | Q28: 0 | R28: 0 | S28: 0 | T28: 0 | U28: 0 | V28: 0 | W28: 0 | X28: 0 | Y28: 0 | Z28: 0 | AA28: 0
A29: 4 | B29: =IF(AssetType="Transformer", FALSE, B25) -> FALSE | E29: =E6*$B29*E25*OUTAGE_DUR*1000 -> 0 | F29: 0 | G29: 0 | H29: 0 | I29: 0 | J29: 0 | K29: 0 | L29: 0 | M29: 0 | N29: 0 | O29: 0 | P29: 0 | Q29: 0 | R29: 0 | S29: 0 | T29: 0 | U29: 0 | V29: 0 | W29: 0 | X29: 0 | Y29: 0 | Z29: 0 | AA29: 0
D30: Total kWh | E30: =SUM(E26:E29) -> 0 | F30: =SUM(F26:F29) -> 0 | G30: 0 | H30: 0 | I30: 0 | J30: 0 | K30: 0 | L30: 0 | M30: 0 | N30: 0 | O30: 0 | P30: 0 | Q30: 0 | R30: 0 | S30: 0 | T30: 0 | U30: 0 | V30: 0 | W30: 0 | X30: 0 | Y30: 0 | Z30: 0 | AA30: 0
A32: Reliability Functions | B32: A | C32: B | D32: Chosen Asset | E32: =AssetType -> Transformer
A33: Transformer | B33: 3.6 | C33: 85 | D33: A | E33: =VLOOKUP($E$32,$A$33:$C$35,2,FALSE) -> 3.6
A34: Indoor CB | B34: 9.8 | C34: 80 | D34: B | E34: =VLOOKUP($E$32,$A$33:$C$35,3,FALSE) -> 85
A35: Outdoor CB | B35: 9.8 | C35: 80 | D35: Major | E35: =IF($E$32="Transformer",POC_TX_MAJOR,IF($E$32="Indoor CB",POC_INDOOR_MAJOR,POC_OUTDOOR_MAJOR)) -> 0.2
D36: Minor | E36: =IF($E$32="Transformer",POC_TX_MINOR,IF($E$32="Indoor CB",POC_INDOOR_MINOR,POC_OUTDOOR_MINOR)) -> 0.8
A37: Hazard function | H37: Sensitivity Analysis Limits | I37: PoF- Lower | J37: PoF - Upper
A38: Age | B38: Base Failure Hazard Function | C38: Major Failure | D38: Minor Failure | E38: 1 in.. | H38: Transformer
A39: 1 | B39: =IF(_xlfn.WEIBULL.DIST(A39,$E$33,$E$34,FALSE)/(1-_xlfn.WEIBULL.DIST(A39,$E$33,$E$34,TRUE))<0.0001,0.0001,_xlfn.WEIBULL.DIST(A39,$E$33,$E$34,FALSE)/(1-_xlfn.WEIBULL.DIST(A39,$E$33,$E$34,TRUE))) -> 0.0001 | C39: =IF($E$32="TRANSFORMER",(_xlfn.WEIBULL.DIST(A39,$E$33,$E$34,FALSE)/(1-_xlfn.WEIBULL.DIST(A39,$E$33,$E$34,TRUE))/$B$160)*$E$35,B39*$E$35) -> 1.456251336e-07 | D39: =IF($E$32="TRANSFORMER",(C39/$B$160)*$E$36,$E$36*B39) -> 2.080359052e-07 | E39: =1/B39 -> 10000 | H39: Indoor CB
A40: 2 | B40: =IF(_xlfn.WEIBULL.DIST(A40,$E$33,$E$34,FALSE)/(1-_xlfn.WEIBULL.DIST(A40,$E$33,$E$34,TRUE))<0.0001,0.0001,_xlfn.WEIBULL.DIST(A40,$E$33,$E$34,FALSE)/(1-_xlfn.WEIBULL.DIST(A40,$E$33,$E$34,TRUE))) -> 0.0001 | C40: =IF($E$32="TRANSFORMER",(_xlfn.WEIBULL.DIST(A40,$E$33,$E$34,FALSE)/(1-_xlfn.WEIBULL.DIST(A40,$E$33,$E$34,TRUE))/$B$160)*$E$35,B40*$E$35) -> 8.829057101e-07 | D40: =IF($E$32="TRANSFORMER",(C40/$B$160)*$E$36,$E$36*B40) -> 1.261293872e-06 | E40: =1/B40 -> 10000 | H40: Outdoor CB
A41: 3 | B41: 0.0001 | C41: 2.533679042e-06 | D41: 3.619541489e-06 | E41: 10000
A42: 4 | B42: 0.0001 | C42: 5.352939246e-06 | D42: 7.647056065e-06 | E42: 10000
A43: 5 | B43: 0.0001 | C43: 9.562211562e-06 | D43: 1.366030223e-05 | E43: 10000
A44: 6 | B44: 0.0001 | C44: 1.53613572e-05 | D44: 2.194479599e-05 | E44: 10000 | H44: Conditional Probability
A45: 7 | B45: 0.0001 | C45: 2.293460374e-05 | D45: 3.276371963e-05 | E45: 10000 | H45: Scenario | I45: β
A46: 8 | B46: 0.0001 | C46: 3.245415478e-05 | D46: 4.636307825e-05 | E46: 10000 | H46: 6 Month | I46: =IF(AND($B$1="BR",$E$32="TRANSFORMER"),(0.24-0.05)/2+0.05,0.24) -> 0.24
A47: 9 | B47: 0.0001234311834 | C47: 4.408256549e-05 | D47: 6.297509356e-05 | E47: 8101.680407 | H47: 4 Month | I47: =IF(AND($B$1="BR",$E$32="TRANSFORMER"),(0.22-0.05)/2+0.05,0.22) -> 0.22
A48: 10 | B48: 0.0001623283477 | C48: =IF($E$32="TRANSFORMER",(_xlfn.WEIBULL.DIST(A48,$E$33,$E$34,FALSE)/(1-_xlfn.WEIBULL.DIST(A48,$E$33,$E$34,TRUE))/$B$160)*$E$35,B48*$E$35) -> 5.797440991e-05 | D48: =IF($E$32="TRANSFORMER",(C48/$B$160)*$E$36,$E$36*B48) -> 8.282058558e-05 | E48: 6160.353468 | H48: 1 Month | I48: =IF(AND($B$1="BR",$E$32="TRANSFORMER"),(0.15-0.05)/2+0.05,0.15) -> 0.15
A49: 11 | B49: 0.0002079770193 | C49: =IF($E$32="TRANSFORMER",(_xlfn.WEIBULL.DIST(A49,$E$33,$E$34,FALSE)/(1-_xlfn.WEIBULL.DIST(A49,$E$33,$E$34,TRUE))/$B$160)*$E$35,B49*$E$35) -> 7.427750688e-05 | D49: 0.0001061107241 | E49: 4808.223541 | H49: 1 week | I49: =IF(AND($B$1="BR",$E$32="TRANSFORMER"),(0.08-0.05)/2+0.05,0.08) -> 0.08
A50: 12 | B50: 0.0002607747921 | C50: 9.313385434e-05 | D50: 0.0001330483633 | E50: 3834.726477 | H50: Nil | I50: 0.05
A51: 13 | B51: 0.0003211050119 | C51: 0.0001146803614 | D51: 0.0001638290877 | E51: 3114.246004
A52: 14 | B52: 0.000389338419 | C52: 0.0001390494353 | D52: 0.0001986420505 | E52: 2568.4596
A53: 15 | B53: 0.0004658344917 | C53: 0.0001663694613 | D53: 0.000237670659 | E53: 2146.685181
A54: 16 | B54: 0.0005509425605 | C54: 0.0001967652002 | D54: 0.0002810931431 | E54: 1815.071246
A55: 17 | B55: 0.0006450027463 | C55: 0.0002303581237 | D55: 0.0003290830338 | E55: 1550.380996
A56: 18 | B56: 0.0007483467579 | C56: 0.0002672666992 | D56: 0.0003818095703 | E56: 1336.278923
A57: 19 | B57: 0.0008612985789 | C57: 0.0003076066353 | D57: 0.0004394380505 | E57: 1161.037559
A58: 20 | B58: 0.0009841750635 | C58: 0.0003514910941 | D58: 0.0005021301344 | E58: 1016.079392
A59: 21 | B59: 0.001117286457 | C59: 0.0003990308774 | D59: 0.0005700441106 | E59: 895.0256167
A60: 22 | B60: 0.001260936854 | C60: 0.0004503345908 | D60: 0.0006433351297 | E60: 793.0611248
A61: 23 | B61: 0.001415424608 | C61: 0.0005055087886 | D61: 0.0007221554123 | E61: 706.5017764
A62: 24 | B62: 0.00158104269 | C62: 0.0005646581037 | D62: 0.0008066544339 | E62: 632.4939903
A63: 25 | B63: 0.001758079018 | C63: 0.0006278853635 | D63: 0.0008969790907 | E63: 568.8026476
A64: 26 | B64: 0.001946816744 | C64: 0.0006952916944 | D64: 0.0009932738492 | E64: 513.6590297
A65: 27 | B65: 0.002147534527 | C65: 0.0007669766169 | D65: 0.001095680881 | E65: 465.6502549
A66: 28 | B66: 0.002360506766 | C66: 0.0008430381309 | D66: 0.001204340187 | E66: 423.6378451
A67: 29 | B67: 0.002586003824 | C67: 0.0009235727943 | D67: 0.001319389706 | E67: 386.6970307
A68: 30 | B68: 0.002824292225 | C68: 0.001008675795 | D68: 0.001440965421 | E68: 354.0710098
A69: 31 | B69: 0.003075634842 | C69: 0.001098441015 | D69: 0.00156920145 | E69: 325.1361268
A70: 32 | B70: 0.003340291065 | C70: 0.001192961095 | D70: 0.001704230135 | E70: 299.3751085
A71: 33 | B71: 0.003618516955 | C71: 0.001292327484 | D71: 0.00184618212 | E71: 276.3563119
A72: 34 | B72: 0.003910565392 | C72: 0.001396630497 | D72: 0.001995186424 | E72: 255.7174986
A73: 35 | B73: 0.004216686209 | C73: 0.00150595936 | D73: 0.002151370515 | E73: 237.1530511
A74: 36 | B74: 0.004537126314 | C74: 0.001620402255 | D74: 0.002314860364 | E74: 220.4038263
A75: 37 | B75: 0.004872129809 | C75: 0.00174004636 | D75: 0.002485780515 | E75: 205.249047
A76: 38 | B76: 0.005221938099 | C76: 0.001864977893 | D76: 0.002664254132 | E76: 191.4997805
A77: 39 | B77: 0.005586789992 | C77: 0.00199528214 | D77: 0.002850403057 | E77: 178.9936621
A78: 40 | B78: 0.005966921792 | C78: 0.002131043497 | D78: 0.003044347853 | E78: 167.5905994
A79: 41 | B79: 0.006362567396 | C79: 0.002272345499 | D79: 0.003246207855 | E79: 157.1692585
A80: 42 | B80: 0.006773958369 | C80: 0.002419270846 | D80: 0.003456101208 | E80: 147.6241727
A81: 43 | B81: 0.007201324028 | C81: 0.002571901439 | D81: 0.003674144912 | E81: 138.8633529
A82: 44 | B82: 0.007644891517 | C82: 0.002730318399 | D82: 0.003900454856 | E82: 130.8063035
A83: 45 | B83: 0.008104885877 | C83: 0.002894602099 | D83: 0.004135145855 | E83: 123.3823665
A84: 46 | B84: 0.008581530109 | C84: 0.003064832182 | D84: 0.004378331688 | E84: 116.5293354
A85: 47 | B85: 0.009075045242 | C85: 0.003241087587 | D85: 0.004630125124 | E85: 110.1922881
A86: 48 | B86: 0.009585650393 | C86: 0.003423446569 | D86: 0.004890637955 | E86: 104.322603
A87: 49 | B87: 0.01011356282 | C87: 0.00361198672 | D87: 0.005159981029 | E87: 98.87712353
A88: 50 | B88: 0.01065899797 | C88: 0.003806784989 | D88: 0.00543826427 | E88: 93.81744915
A89: 51 | B89: 0.01122216955 | C89: 0.004007917697 | D89: 0.005725596711 | E89: 89.10932911
A90: 52 | B90: 0.01180328957 | C90: 0.004215460559 | D90: 0.006022086513 | E90: 84.72214415
A91: 53 | B91: 0.01240256835 | C91: 0.004429488697 | D91: 0.006327840996 | E91: 80.62846111
A92: 54 | B92: 0.01302021464 | C92: 0.004650076658 | D92: 0.006642966654 | E92: 76.80364937
A93: 55 | B93: 0.01365643559 | C93: 0.004877298427 | D93: 0.006967569181 | E93: 73.22554945
A94: 56 | B94: 0.01431143685 | C94: 0.005111227445 | D94: 0.007301753492 | E94: 69.874186
A95: 57 | B95: 0.01498542253 | C95: 0.005351936619 | D95: 0.007645623741 | E95: 66.73151843
A96: 58 | B96: 0.01567859535 | C96: 0.005599498339 | D96: 0.007999283341 | E96: 63.78122388
A97: 59 | B97: 0.01639115656 | C97: 0.005853984486 | D97: 0.00836283498 | E97: 61.00850763
A98: 60 | B98: 0.01712330606 | C98: 0.006115466449 | D98: 0.008736380641 | E98: 58.3999373
A99: 61 | B99: 0.01787524238 | C99: 0.006384015134 | D99: 0.00912002162 | E99: 55.94329738
A100: 62 | B100: 0.01864716273 | C100: 0.006659700976 | D100: 0.009513858537 | E100: 53.62746142
A101: 63 | B101: 0.01943926306 | C101: 0.006942593949 | D101: 0.009917991355 | E101: 51.44227932
A102: 64 | B102: 0.02025173802 | C102: 0.007232763577 | D102: 0.0103325194 | E102: 49.378478
A103: 65 | B103: 0.02108478105 | C103: 0.007530278945 | D103: 0.01075754135 | E103: 47.42757337
A104: 66 | B104: =IF(_xlfn.WEIBULL.DIST(A104,$E$33,$E$34,FALSE)/(1-_xlfn.WEIBULL.DIST(A104,$E$33,$E$34,TRUE))<0.0001,0.0001,_xlfn.WEIBULL.DIST(A104,$E$33,$E$34,FALSE)/(1-_xlfn.WEIBULL.DIST(A104,$E$33,$E$34,TRUE))) -> 0.02193858438 | C104: =IF($E$32="TRANSFORMER",(_xlfn.WEIBULL.DIST(A104,$E$33,$E$34,FALSE)/(1-_xlfn.WEIBULL.DIST(A104,$E$33,$E$34,TRUE))/$B$160)*$E$35,B104*$E$35) -> 0.007835208706 | D104: =IF($E$32="TRANSFORMER",(C104/$B$160)*$E$36,$E$36*B104) -> 0.01119315529 | E104: =1/B104 -> 45.58179246
A105: 67 | B105: 0.02281333906 | C105: 0.008147621094 | D105: 0.01163945871 | E105: 43.83400419
A106: 68 | B106: 0.023709235 | C106: 0.008467583927 | D106: 0.01209654847 | E106: 42.17765778
A107: 69 | B107: 0.02462646095 | C107: 0.008795164623 | D107: 0.01256452089 | E107: 40.60672795
A108: 70 | B108: 0.02556520457 | C108: 0.009130430203 | D108: 0.01304347172 | E108: 39.11566588
A109: 71 | B109: 0.02652565244 | C109: 0.0094734473 | D109: 0.01353349614 | E109: 37.69935545
A110: 72 | B110: 0.02750799007 | C110: 0.009824282168 | D110: 0.01403468881 | E110: 36.35307405
A111: 73 | B111: 0.02851240193 | C111: 0.01018300069 | D111: 0.01454714384 | E111: 35.07245733
A112: 74 | B112: 0.02953907146 | C112: 0.01054966838 | D112: 0.01507095483 | E112: 33.85346764
A113: 75 | B113: 0.03058818111 | C113: 0.0109243504 | D113: 0.01560621485 | E113: 32.6923656
A114: 76 | B114: 0.03165991235 | C114: 0.01130711155 | D114: 0.0161530165 | E114: 31.58568442
A115: 77 | B115: 0.03275444565 | C115: 0.0116980163 | D115: 0.01671145186 | E115: 30.53020682
A116: 78 | B116: 0.03387196058 | C116: 0.01209712878 | D116: 0.01728161254 | E116: 29.52294414
A117: 79 | B117: 0.03501263574 | C117: 0.01250451276 | D117: 0.01786358966 | E117: 28.5611174
A118: 80 | B118: 0.03617664885 | C118: 0.01292023173 | D118: 0.0184574739 | E118: 27.64214022
A119: 81 | B119: 0.0373641767 | C119: 0.01334434882 | D119: 0.01906335546 | E119: 26.76360322
A120: 82 | B120: 0.03857539523 | C120: 0.01377692687 | D120: 0.0196813241 | E120: 25.92326
A121: 83 | B121: 0.03981047949 | C121: 0.01421802839 | D121: 0.02031146913 | E121: 25.11901421
A122: 84 | B122: 0.04106960368 | C122: 0.0146677156 | D122: 0.02095387943 | E122: 24.34890796
A123: 85 | B123: 0.04235294118 | C123: 0.01512605042 | D123: 0.02160864346 | E123: 23.61111111
A124: 86 | B124: 0.04366066452 | C124: 0.01559309447 | D124: 0.02227584924 | E124: 22.90391159
A125: 87 | B125: 0.04499294544 | C125: 0.01606890909 | D125: 0.02295558441 | E125: 22.2257065
A126: 88 | B126: 0.04634995489 | C126: 0.01655355532 | D126: 0.02364793617 | E126: 21.57499403
A127: 89 | B127: 0.047731863 | C127: 0.01704709393 | D127: 0.02435299133 | E127: 20.950366
A128: 90 | B128: 0.04913883917 | C128: 0.01754958542 | D128: 0.02507083631 | E128: 20.35050109
A129: 91 | B129: 0.05057105202 | C129: 0.01806109001 | D129: 0.02580155715 | E129: 19.77415854
A130: 92 | B130: 0.05202866941 | C130: 0.01858166765 | D130: 0.02654523949 | E130: 19.22017248
A131: 93 | B131: 0.05351185849 | C131: 0.01911137803 | D131: 0.02730196862 | E131: 18.68744664
A132: 94 | B132: 0.05502078566 | C132: 0.01965028059 | D132: 0.02807182942 | E132: 18.17494948
A133: 95 | B133: 0.05655561664 | C133: 0.02019843451 | D133: 0.02885490645 | E133: 17.68170978
A134: 96 | B134: 0.0581165164 | C134: 0.02075589872 | D134: 0.02965128388 | E134: 17.20681248
A135: 97 | B135: 0.05970364926 | C135: 0.02132273188 | D135: 0.03046104554 | E135: 16.74939493
A136: 98 | B136: 0.06131717883 | C136: 0.02189899244 | D136: 0.03128427491 | E136: 16.30864334
A137: 99 | B137: 0.06295726806 | C137: 0.02248473859 | D137: 0.03212105513 | E137: 15.88378961
A138: 100 | B138: 0.06462407922 | C138: 0.02308002829 | D138: 0.03297146899 | E138: 15.47410829
A139: 101 | B139: 0.06631777394 | C139: 0.02368491927 | D139: 0.03383559895 | E139: 15.07891385
A140: 102 | B140: 0.06803851321 | C140: 0.024299469 | D140: 0.03471352715 | E140: 14.69755809
A141: 103 | B141: 0.06978645737 | C141: 0.02492373478 | D141: 0.03560533539 | E141: 14.32942777
A142: 104 | B142: 0.07156176614 | C142: 0.02555777362 | D142: 0.03651110517 | E142: 13.97394243
A143: 105 | B143: 0.07336459861 | C143: 0.02620164236 | D143: 0.03743091766 | E143: 13.63055232
A144: 106 | B144: 0.07519511327 | C144: 0.0268553976 | D144: 0.03836485371 | E144: 13.29873653
A145: 107 | B145: 0.07705346801 | C145: 0.02751909572 | D145: 0.03931299389 | E145: 12.9780012
A146: 108 | B146: 0.07893982012 | C146: 0.0281927929 | D146: 0.04027541843 | E146: 12.66787786
A147: 109 | B147: 0.08085432631 | C147: 0.02887654511 | D147: 0.0412522073 | E147: 12.36792199
A148: 110 | B148: 0.08279714268 | C148: 0.0295704081 | D148: 0.04224344014 | E148: 12.07771147
A149: 111 | B149: 0.08476842481 | C149: 0.03027443743 | D149: 0.04324919633 | E149: 11.79684537
A150: 112 | B150: 0.08676832767 | C150: 0.03098868845 | D150: 0.04426955493 | E150: 11.52494265
A151: 113 | B151: 0.08879700569 | C151: 0.03171321632 | D151: 0.04530459474 | E151: 11.261641
A152: 114 | B152: 0.09085461276 | C152: 0.03244807599 | D152: 0.04635439426 | E152: 11.00659581
A153: 115 | B153: 0.09294130221 | C153: 0.03319332222 | D153: 0.04741903174 | E153: 10.75947911
A154: 116 | B154: 0.09505722683 | C154: 0.03394900958 | D154: 0.04849858512 | E154: 10.51997868
A155: 117 | B155: 0.09720253891 | C155: 0.03471519247 | D155: 0.04959313209 | E155: 10.28779712
A156: 118 | B156: 0.09937739017 | C156: 0.03549192506 | D156: 0.05070275009 | E156: 10.06265105
A158: UQ Research
A159: Ratio of Failure Modes | C159: Major | D159: Minor
A160: Winding | B160: 0.56 | C160: 1 | D160: 0 | F160: << No longer used
A161: Bushing | B161: 0.04 | C161: 0.2 | D161: 0.8
A162: OLTC | B162: 0.16 | C162: 0.5 | D162: 0.5
A163: Other | B163: 0.24 | C163: 0.5 | D163: 0.5
A165: Total Major Failure | C165: 0.2
A166: Total Minor Failure | C166: 0.8
A169: Station | B169: Trans/Bus # | C169: REF | D169: Transformer Yr | E169: CB Yr | F169: Cyclic Rating | G169: 2Hr Rating | H169: Modified Year | K169: ZSS | L169: Substation Float | M169: % of Nominal
A170: BH | B170: 1 | C170: BH #1 | D170: 1981 | E170: 1984 | F170: 35.15 | G170: 42.44 | H170: =IF(OR(ISREPLACE,ISREPLACE2DIFF,ISREPLACE2SAME),2018,9999) -> 9999 | K170: BH | L170: 22.7 | M170: =IF(L170>16,L170/22,IF(L170>8,L170/11,L170/6.6)) -> 1.031818182
A171: BH | B171: 2 | C171: BH #2 | D171: 1981 | E171: 1984 | F171: 35.15 | G171: 42.44 | H171: =IF(OR(ISREPLACE2DIFF,ISREPLACE2SAME),2018,9999) -> 9999 | K171: BR | L171: 11.7 | M171: =IF(L171>16,L171/22,IF(L171>8,L171/11,L171/6.6)) -> 1.063636364
A172: BH | B172: 3 | C172: BH #3 | D172: 2013 | E172: 2013 | F172: 45.14 | G172: 47.58 | H172: =IF($B$3="Transformer",D172,E172) -> 2013 | K172: BT | L172: 11.65 | M172: 1.059090909
A173: BH | B173: 4 | C173: BH #4 | D173: 9999 | E173: 9999 | F173: 42 | G173: 44 | H173: =IF(ISADDITIONAL, 2018,9999) -> 9999 | K173: BU | L173: 11.3 | M173: 1.027272727
A174: BR | B174: 1 | C174: BR #1 | D174: 1966 | E174: 1967 | F174: 29.59 | G174: 30.45 | H174: =IF(OR(ISREPLACE,ISREPLACE2DIFF,ISREPLACE2SAME),2018,9999) -> 9999 | K174: BW | L174: 11.32 | M174: 1.029090909
A175: BR | B175: 2 | C175: BR #2 | D175: 1968 | E175: 1967 | F175: 29.63 | G175: 30.45 | H175: =IF(OR(ISREPLACE2DIFF,ISREPLACE2SAME),2018,9999) -> 9999 | K175: CDA | L175: 22.4 | M175: 1.018181818
A176: BR | B176: 3 | C176: BR #3 | D176: 9999 | E176: 9999 | F176: 42 | G176: 44 | H176: =IF(ISADDITIONAL, 2018,9999) -> 9999 | K176: CFD | L176: 11.5 | M176: 1.045454545
A177: BT | B177: 1 | C177: BT #1 | D177: 1969 | E177: 1969 | F177: 29.31 | G177: 30.45 | H177: =IF(OR(ISREPLACE,ISREPLACE2DIFF,ISREPLACE2SAME),2018,9999) -> 9999 | K177: CM | L177: 11.5 | M177: 1.045454545
A178: BT | B178: 2 | C178: BT #2 | D178: 1969 | E178: 1969 | F178: 29.31 | G178: 30.45 | H178: =IF(OR(ISREPLACE2DIFF,ISREPLACE2SAME),2018,9999) -> 9999 | K178: CRM | L178: 22.3 | M178: 1.013636364
A179: BT | B179: 3 | C179: BT #3 | D179: 9999 | E179: 9999 | F179: 42 | G179: 44 | H179: =IF(ISADDITIONAL, 2018,9999) -> 9999 | K179: DC | L179: 22.8 | M179: 1.036363636
A180: BU | B180: 2 | C180: BU #2 | D180: 1972 | E180: 1972 | F180: 28.93 | G180: 30.45 | H180: =IF(OR(ISREPLACE,ISREPLACE2DIFF,ISREPLACE2SAME),2018,9999) -> 9999 | K180: DMA | L180: 22.2 | M180: 1.009090909
A181: BU | B181: 1 | C181: BU #1 | D181: 1972 | E181: 1972 | F181: 28.93 | G181: 30.45 | H181: =IF(OR(ISREPLACE2DIFF,ISREPLACE2SAME),2018,9999) -> 9999 | K181: DN | L181: 22.33 | M181: 1.015
A182: BU | B182: 3 | C182: BU #3 | D182: 9999 | E182: 9999 | F182: 42 | G182: 44 | H182: =IF(ISADDITIONAL, 2018,9999) -> 9999 | K182: DSH | L182: 22.3 | M182: 1.013636364
A183: BW | B183: 1 | C183: BW #1 | D183: 2015 | E183: 9999 | F183: 18.78 | G183: 18.97 | H183: =IF(B14="Transformer",D183,E183) -> 9999 | K183: DVY | L183: 22.4 | M183: 1.018181818
A184: BW | B184: 2 | C184: BW #2 | D184: 2014 | E184: 2011 | F184: 18.78 | G184: 18.97 | H184: =IF(B15="Transformer",D184,E184) -> 2011 | K184: EB | L184: 22.5 | M184: 1.022727273
A185: BW | B185: 3 | C185: BW #3 | D185: 1962 | E185: 2011 | F185: 12.34 | G185: 12.33 | H185: =IF(B16="Transformer",D185,E185) -> 2011 | K185: EL | L185: 11.4 | M185: 1.036363636
A186: BW | B186: 4 | C186: BW #4 | D186: 9999 | E186: 9999 | F186: 18.78 | G186: 18.97 | H186: =IF(ISADDITIONAL, 2018,9999) -> 9999 | K186: EM | L186: 11.5 | M186: 1.045454545
A187: CDA | B187: 2 | C187: CDA #2 | D187: 1999 | E187: 2002 | F187: 25.31 | G187: 28.59 | H187: =IF($B$3="Transformer",D187,E187) -> 1999 | K187: EW | L187: 11.7 | M187: 1.063636364
A188: CDA | B188: 1 | C188: CDA #1 | D188: 2002 | E188: 2013 | F188: 45.82 | G188: 49.82 | H188: =IF($B$3="Transformer",D188,E188) -> 2002 | K188: FSH | L188: 22.7 | M188: 1.031818182
A189: CDA | B189: 3 | C189: CDA #3 | D189: 9999 | E189: 9999 | F189: 42 | G189: 44 | H189: =IF(ISADDITIONAL, 2018,9999) -> 9999 | K189: FTN | L189: 22.5 | M189: 1.022727273
A190: CFD | B190: 1 | C190: CFD #1 | D190: 2007 | E190: 2007 | F190: 40.38 | G190: 46.81 | H190: =IF(OR(ISREPLACE,ISREPLACE2DIFF,ISREPLACE2SAME),2018,9999) -> 9999 | K190: GW | L190: 22.35 | M190: 1.015909091
A191: CFD | B191: 2 | C191: CFD #2 | D191: 2007 | E191: 2008 | F191: 40.23 | G191: 46.81 | H191: =IF(OR(ISREPLACE2DIFF,ISREPLACE2SAME),2018,9999) -> 9999 | K191: HGS | L191: 22.9 | M191: 1.040909091
A192: CM | B192: 2 | C192: CM #2 | D192: 1961 | E192: 2005 | F192: 29.5 | G192: 32.42 | H192: =IF(OR(ISREPLACE,ISREPLACE2DIFF,ISREPLACE2SAME),2018,9999) -> 9999 | K192: HT | L192: 22.6 | M192: 1.027272727
A193: CM | B193: 1 | C193: CM #1 | D193: 1961 | E193: 2005 | F193: 29.5 | G193: 32.42 | H193: =IF(OR(ISREPLACE2DIFF,ISREPLACE2SAME),2018,9999) -> 9999 | K193: K | L193: 11.5 | M193: 1.045454545
A194: CRM | B194: 1 | C194: CRM #1 | D194: 1969 | E194: 1963 | F194: 36.39 | G194: 40.8 | H194: =IF(OR(ISREPLACE,ISREPLACE2DIFF,ISREPLACE2SAME),2018,9999) -> 9999 | K194: KBH | L194: 22.5 | M194: 1.022727273
A195: CRM | B195: 2 | C195: CRM #2 | D195: 1976 | E195: 1976 | F195: 36.39 | G195: 45.67 | H195: =IF(OR(ISREPLACE2DIFF,ISREPLACE2SAME),2018,9999) -> 9999 | K195: LD | L195: 22.5 | M195: 1.022727273
A196: CRM | B196: 3 | C196: CRM #3 | D196: 2009 | E196: 2009 | F196: 45.9 | G196: 45.9 | H196: =IF($B$3="Transformer",D196,E196) -> 2009 | K196: LWN | L196: 22.3 | M196: 1.013636364
A197: CRM | B197: 4 | C197: CRM #4 | D197: 9999 | E197: 9999 | F197: 42 | G197: 44 | H197: =IF(ISADDITIONAL, 2018,9999) -> 9999 | K197: M | L197: 11.465 | M197: 1.042272727
A198: DC | B198: 1 | C198: DC #1 | D198: 1963 | E198: 1963 | F198: 35.46 | G198: 40.14 | H198: =IF(OR(ISREPLACE,ISREPLACE2DIFF,ISREPLACE2SAME),2018,9999) -> 9999 | K198: MC | L198: 22.5 | M198: 1.022727273
A199: DC | B199: 3 | C199: DC #3 | D199: 1963 | E199: 1963 | F199: 35.46 | G199: 40.14 | H199: =IF(OR(ISREPLACE2DIFF,ISREPLACE2SAME),2018,9999) -> 9999 | K199: MGE | L199: 22.2 | M199: 1.009090909
A200: DC | B200: 2 | C200: DC #2 | D200: 1968 | E200: 1969 | F200: 36.54 | G200: 39.2 | H200: =IF($B$3="Transformer",D200,E200) -> 1968 | K200: MR | L200: 11.4 | M200: 1.036363636
A201: DC | B201: 4 | C201: DC #4 | D201: 2024 | E201: 9999 | F201: 42 | G201: 44 | H201: =IF(ISADDITIONAL, 2018,9999) -> 9999 | K201: MTN | L201: 22.6 | M201: 1.027272727
A202: DMA | B202: 1 | C202: DMA #1 | D202: 2005 | E202: 2005 | F202: 44.34 | G202: 47.58 | H202: =IF($B$3="Transformer",D202,E202) -> 2005 | K202: NB | L202: 11.5 | M202: 1.045454545
A203: DMA | B203: 2 | C203: DMA #2 | D203: 2016 | E203: 2015 | F203: 44.34 | G203: 47.58 | H203: =IF($B$3="Transformer",D203,E203) -> 2016 | K203: NO | L203: 22.6 | M203: 1.027272727
A204: DMA | B204: 3 | C204: DMA #3 | D204: 9999 | E204: 9999 | F204: 42 | G204: 44 | H204: =IF(ISADDITIONAL, 2018,9999) -> 9999 | K204: NP | L204: 22.75 | M204: 1.034090909
A205: DN | B205: 1 | C205: DN #1 | D205: 1949 | E205: 1960 | F205: 43.86 | G205: 45.67 | H205: =IF($B$3="Transformer",D205,E205) -> 1949 | K205: NW | L205: 22.5 | M205: 1.022727273
A206: DN | B206: 2 | C206: DN #2 | D206: 2006 | E206: 2006 | F206: 41.41 | G206: 45.52 | H206: =IF($B$3="Transformer",D206,E206) -> 2006 | K206: OAK | L206: 11.5 | M206: 1.045454545
... 114 more rows

Sheet Feeders
A1: Feeder | B1: ZSS | C1: Amps | D1: kV | E1: Bus # | F1: 2018MD | G1: MVA MD | H1: MVA Rating | I1: Average MVA | J1: Year | K1: ID/OD | L1: Class | M1: Customers | N1: Transfers to
A2: BH 11 | B2: BH | C2: 300 | D2: 22 | E2: 1 | F2: 164.0867356 | G2: =1.73*F2*D2/1000 -> 6.245141157 | H2: =1.73*D2*C2/1000 -> 11.418 | I2: =0.5*G2 -> 3.122570579
A3: BH 12 | B3: BH | C3: 280 | D3: 22 | E3: 1 | F3: 70.07152699 | G3: =1.73*F3*D3/1000 -> 2.666922317 | H3: =1.73*D3*C3/1000 -> 10.6568 | I3: =0.5*G3 -> 1.333461159
A4: BH 14 | B4: BH | C4: 550 | D4: 22 | E4: 1 | F4: 176.0852376 | G4: 6.701804144 | H4: 20.933 | I4: 3.350902072
A5: BH 21 | B5: BH | C5: 285 | D5: 22 | E5: 2 | F5: 141.9656074 | G5: 5.403211018 | H5: 10.8471 | I5: =0.5*G5 -> 2.701605509
A6: BH 22 | B6: BH | C6: 265 | D6: 22 | E6: 2 | F6: 111.4090814 | G6: 4.240229639 | H6: 10.0859 | I6: 2.12011482
A7: BH 23 | B7: BH | C7: 350 | D7: 22 | E7: 2 | F7: 203.1238047 | G7: 7.730892007 | H7: 13.321 | I7: 3.865446004
A8: BH 24 | B8: BH | C8: 565 | D8: 22 | E8: 2 | F8: 341.6527023 | G8: 13.00330185 | H8: 21.5039 | I8: 6.501650925
A9: BH 31 | B9: BH | C9: 265 | D9: 22 | E9: 3 | F9: 94.88376823 | G9: 3.611276219 | H9: 10.0859 | I9: 1.805638109
A10: BH 34 | B10: BH | C10: 350 | D10: 22 | E10: 3 | F10: 81.43481926 | G10: 3.099409221 | H10: 13.321 | I10: 1.54970461
A11: BR 1 | B11: BR | C11: 290 | D11: 11 | E11: 1 | F11: 259.535452 | G11: 4.938959652 | H11: 5.5187 | I11: 2.469479826
A12: BR 4 | B12: BR | C12: 300 | D12: 11 | E12: 1 | F12: 233.100091 | G12: 4.435894732 | H12: 5.709 | I12: 2.217947366
A13: BR 6 | B13: BR | C13: 295 | D13: 11 | E13: 1 | F13: 192.6912583 | G13: 3.666914646 | H13: 5.61385 | I13: 1.833457323
A14: BR 9 | B14: BR | C14: 350 | D14: 11 | E14: 2 | F14: 298.9198164 | G14: 5.688444105 | H14: 6.6605 | I14: 2.844222053
A15: BR 10 | B15: BR | C15: 290 | D15: 11 | E15: 2 | F15: 188.6546216 | G15: 3.590097448 | H15: 5.5187 | I15: 1.795048724
A16: BR 13 | B16: BR | C16: 295 | D16: 11 | E16: 2 | F16: 217.1725762 | G16: 4.132794125 | H16: 5.61385 | I16: 2.066397062
A17: BR 15 | B17: BR | C17: 265 | D17: 11 | E17: 2 | F17: 211.915491 | G17: 4.032751794 | H17: 5.04295 | I17: 2.016375897
A18: BT 2 | B18: BT | C18: 275 | D18: 11 | E18: 1 | F18: 205.3104422 | G18: 3.907057716 | H18: 5.23325 | I18: 1.953528858
A19: BT 4 | B19: BT | C19: 335 | D19: 11 | E19: 1 | F19: 254.5824347 | G19: 4.844703732 | H19: 6.37505 | I19: 2.422351866
A20: BT 5 | B20: BT | C20: 285 | D20: 11 | E20: 1 | F20: 106.7007396 | G20: 2.030515074 | H20: 5.42355 | I20: 1.015257537
A21: BT 6 | B21: BT | C21: 270 | D21: 11 | E21: 1 | F21: 136.2065545 | G21: 2.592010733 | H21: 5.1381 | I21: 1.296005366
A22: BT 9 | B22: BT | C22: 280 | D22: 11 | E22: 2 | F22: 157.3240474 | G22: 2.993876621 | H22: 5.3284 | I22: 1.496938311
A23: BT 10 | B23: BT | C23: 310 | D23: 11 | E23: 2 | F23: 307.1489124 | G23: 5.845043803 | H23: 5.8993 | I23: 2.922521901
A24: BT 14 | B24: BT | C24: 270 | D24: 11 | E24: 2 | F24: 190.7712983 | G24: 3.630377806 | H24: 5.1381 | I24: 1.815188903
A25: BT 15 | B25: BT | C25: 305 | D25: 11 | E25: 2 | F25: 208.4503547 | G25: 3.966810249 | H25: 5.80415 | I25: 1.983405125
A26: BU 1 | B26: BU | C26: 295 | D26: 11 | E26: 1 | F26: 204.4191849 | G26: 3.890097088 | H26: 5.61385 | I26: 1.945048544
A27: BU 2 | B27: BU | C27: 305 | D27: 11 | E27: 1 | F27: 240.683562 | G27: 4.580208184 | H27: 5.80415 | I27: 2.290104092
A28: BU 4 | B28: BU | C28: 305 | D28: 11 | E28: 1 | F28: 199.7282487 | G28: 3.800828572 | H28: 5.80415 | I28: 1.900414286
A29: BU 6 | B29: BU | C29: 235 | D29: 11 | E29: 1 | F29: 212.7872496 | G29: 4.04934136 | H29: 4.47205 | I29: 2.02467068
A30: BU 9 | B30: BU | C30: 295 | D30: 11 | E30: 2 | F30: 220.7318494 | G30: 4.200527093 | H30: 5.61385 | I30: 2.100263547
A31: BU 10 | B31: BU | C31: 305 | D31: 11 | E31: 2 | F31: 237.1222771 | G31: 4.512436932 | H31: 5.80415 | I31: 2.256218466
A32: BU 13 | B32: BU | C32: 350 | D32: 11 | E32: 2 | F32: 118.7622864 | G32: 2.26004631 | H32: 6.6605 | I32: 1.130023155
A33: BU 14 | B33: BU | C33: 290 | D33: 11 | E33: 2 | F33: 252.1097784 | G33: 4.797649083 | H33: 5.5187 | I33: 2.398824541
A34: BW 21 | B34: BW | C34: 290 | D34: 11 | E34: 2 | F34: 242.3216137 | G34: 4.611380309 | H34: 5.5187 | I34: 2.305690154
A35: BW 22 | B35: BW | C35: 300 | D35: 11 | E35: 2 | F35: 146.2055248 | G35: 2.782291136 | H35: 5.709 | I35: 1.391145568
A36: BW 23 | B36: BW | C36: 300 | D36: 11 | E36: 2 | F36: 132.2983657 | G36: 2.517637899 | H36: 5.709 | I36: 1.25881895
A37: BW 32 | B37: BW | C37: 265 | D37: 11 | E37: 3 | F37: 134.8226674 | G37: 2.565675361 | H37: 5.04295 | I37: 1.28283768
A38: BW 33 | B38: BW | C38: 295 | D38: 11 | E38: 3 | F38: 188.398021 | G38: 3.58521434 | H38: 5.61385 | I38: 1.79260717
A39: BW 34 | B39: BW | C39: 350 | D39: 11 | E39: 3 | F39: 199.2860632 | G39: 3.792413784 | H39: 6.6605 | I39: 1.896206892
A40: BW 35 | B40: BW | C40: 350 | D40: 11 | E40: 3 | F40: 259.9456839 | G40: 4.946766365 | H40: 6.6605 | I40: 2.473383183
A41: CDA 11 | B41: CDA | C41: 350 | D41: 22 | E41: 1 | F41: 122.3542968 | G41: 4.656804535 | H41: 13.321 | I41: 2.328402267
A42: CDA 21 | B42: CDA | C42: 350 | D42: 22 | E42: 2 | F42: 49.5837118 | G42: 1.887156071 | H42: 13.321 | I42: 0.9435780355
A43: CDA 22 | B43: CDA | C43: 400 | D43: 22 | E43: 2 | F43: 220.7247537 | G43: 8.400784124 | H43: 15.224 | I43: 4.200392062
A44: CDA 23 | B44: CDA | C44: 350 | D44: 22 | E44: 2 | F44: 282.1047324 | G44: 10.73690611 | H44: 13.321 | I44: 5.368453057
A45: CDA 24 | B45: CDA | C45: 365 | D45: 22 | E45: 2 | F45: 273.4111958 | G45: 10.40603011 | H45: 13.8919 | I45: 5.203015056
A46: CFD 11 | B46: CFD | C46: 300 | D46: 11 | E46: 1 | F46: 176.3093506 | G46: 3.355166943 | H46: 5.709 | I46: 1.677583471
A47: CFD 12 | B47: CFD | C47: 350 | D47: 11 | E47: 1 | F47: 243.6401441 | G47: 4.636471943 | H47: 6.6605 | I47: 2.318235971
A48: CFD 13 | B48: CFD | C48: 350 | D48: 11 | E48: 1 | F48: 236.4203667 | G48: 4.499079578 | H48: 6.6605 | I48: 2.249539789
A49: CFD 14 | B49: CFD | C49: 630 | D49: 11 | E49: 1 | F49: 458.6069062 | G49: 8.727289425 | H49: 11.9889 | I49: 4.363644713
A50: CFD 15 | B50: CFD | C50: 280 | D50: 11 | E50: 1 | F50: 189.6690905 | G50: 3.609402793 | H50: 5.3284 | I50: 1.804701396
A51: CFD 16 | B51: CFD | C51: 340 | D51: 11 | E51: 1 | F51: 218.2824959 | G51: 4.153915898 | H51: 6.4702 | I51: 2.076957949
A52: CFD 21 | B52: CFD | C52: 160 | D52: 11 | E52: 2 | F52: 40.89299001 | G52: 0.7781935998 | H52: 3.0448 | I52: 0.3890967999
A53: CFD 22 | B53: CFD | C53: 300 | D53: 11 | E53: 2 | F53: 173.7082267 | G53: 3.305667554 | H53: 5.709 | I53: 1.652833777
A54: CFD 23 | B54: CFD | C54: 350 | D54: 11 | E54: 2 | F54: 293.6462782 | G54: 5.588088675 | H54: 6.6605 | I54: 2.794044337
A55: CFD 24 | B55: CFD | C55: 350 | D55: 11 | E55: 2 | F55: 200.2050459 | G55: 3.809902023 | H55: 6.6605 | I55: 1.904951011
A56: CFD 25 | B56: CFD | C56: 300 | D56: 11 | E56: 2 | F56: 160.5907554 | G56: 3.056042076 | H56: 5.709 | I56: 1.528021038
A57: CFD 26 | B57: CFD | C57: 300 | D57: 11 | E57: 2 | F57: 226.2741087 | G57: 4.305996288 | H57: 5.709 | I57: 2.152998144
A58: CM 11 | B58: CM | C58: 315 | D58: 11 | E58: 1 | F58: 116.1679407 | G58: 2.210675912 | H58: 5.99445 | I58: 1.105337956
A59: CM 12 | B59: CM | C59: 300 | D59: 11 | E59: 1 | F59: 209.7699485 | G59: 3.99192212 | H59: 5.709 | I59: 1.99596106
A60: CM 13 | B60: CM | C60: 335 | D60: 11 | E60: 1 | F60: 140.8591883 | G60: 2.680550354 | H60: 6.37505 | I60: 1.340275177
A61: CM 14 | B61: CM | C61: 300 | D61: 11 | E61: 1 | F61: 120.4636784 | G61: 2.2924238 | H61: 5.709 | I61: 1.1462119
A62: CM 15 | B62: CM | C62: 300 | D62: 11 | E62: 1 | F62: 74.00896606 | G62: 1.408390624 | H62: 5.709 | I62: 0.7041953121
A63: CM 21 | B63: CM | C63: 330 | D63: 11 | E63: 2 | F63: 185.5200468 | G63: 3.530446491 | H63: 6.2799 | I63: 1.765223246
A64: CM 22 | B64: CM | C64: 315 | D64: 11 | E64: 2 | F64: 68.33994749 | G64: 1.300509201 | H64: 5.99445 | I64: 0.6502546004
A65: CM 23 | B65: CM | C65: 335 | D65: 11 | E65: 2 | F65: 114.825935 | G65: 2.185137542 | H65: 6.37505 | I65: 1.092568771
A66: CM 24 | B66: CM | C66: 315 | D66: 11 | E66: 2 | F66: 150.7793413 | G66: 2.869330866 | H66: 5.99445 | I66: 1.434665433
A67: CM 25 | B67: CM | C67: 315 | D67: 11 | E67: 2 | F67: 163.0761137 | G67: =1.73*F67*D67/1000 -> 3.103338444 | H67: =1.73*D67*C67/1000 -> 5.99445 | I67: =0.5*G67 -> 1.551669222
A68: CRM 11 | B68: CRM | C68: 390 | D68: 22 | E68: 1 | F68: 367.4959998 | G68: 13.98689775 | H68: 14.8434 | I68: 6.993448877
A69: CRM 12 | B69: CRM | C69: 310 | D69: 22 | E69: 1 | F69: 174.9503023 | G69: 6.658608507 | H69: 11.7986 | I69: 3.329304254
A70: CRM 13 | B70: CRM | C70: 295 | D70: 22 | E70: 1 | F70: 188.6166494 | G70: 7.178749676 | H70: 11.2277 | I70: 3.589374838
A71: CRM 14 | B71: CRM | C71: 315 | D71: 22 | E71: 1 | F71: 257.7964716 | G71: 9.811733709 | H71: 11.9889 | I71: 4.905866855
A72: CRM 21 | B72: CRM | C72: 300 | D72: 22 | E72: 2 | F72: 257.9374966 | G72: 9.817101121 | H72: 11.418 | I72: 4.90855056
A73: CRM 22 | B73: CRM | C73: 350 | D73: 22 | E73: 2 | F73: 318.6698735 | G73: 12.12857538 | H73: 13.321 | I73: 6.064287692
A74: CRM 24 | B74: CRM | C74: 280 | D74: 22 | E74: 2 | F74: 120.5694231 | G74: 4.588872242 | H74: 10.6568 | I74: 2.294436121
A75: CRM 32 | B75: CRM | C75: 390 | D75: 22 | E75: 3 | F75: 218.326852 | G75: 8.309519989 | H75: 14.8434 | I75: 4.154759995
A76: CRM 33 | B76: CRM | C76: 290 | D76: 22 | E76: 3 | F76: 166.2957045 | G76: 6.329214513 | H76: 11.0374 | I76: 3.164607256
A77: CRM 34 | B77: CRM | C77: 320 | D77: 22 | E77: 3 | F77: 189.5522058 | G77: 7.214356952 | H77: 12.1792 | I77: 3.607178476
A78: CRM 35 | B78: CRM | C78: 350 | D78: 22 | E78: 3 | F78: 271.4246923 | G78: 10.33042379 | H78: 13.321 | I78: 5.165211894
A79: DC 1 | B79: DC | C79: 350 | D79: 22 | E79: 1 | F79: 231.4514648 | G79: 8.809042752 | H79: 13.321 | I79: 4.404521376
A80: DC 2 | B80: DC | C80: 350 | D80: 22 | E80: 3 | F80: 296.9475951 | G80: 11.30182547 | H80: 13.321 | I80: 5.650912736
A81: DC 3 | B81: DC | C81: 350 | D81: 22 | E81: 1 | F81: 278.5379372 | G81: 10.60115389 | H81: 13.321 | I81: 5.300576944
A82: DC 4 | B82: DC | C82: 350 | D82: 22 | E82: 3 | F82: 218.0001237 | G82: 8.297084709 | H82: 13.321 | I82: 4.148542354
A83: DC 5 | B83: DC | C83: 350 | D83: 22 | E83: 1 | F83: 272.5449827 | G83: 10.37306204 | H83: 13.321 | I83: 5.186531021
A84: DC 6 | B84: DC | C84: 350 | D84: 22 | E84: 3 | F84: 220.9610273 | G84: 8.409776698 | H84: 13.321 | I84: 4.204888349
A85: DC 7 | B85: DC | C85: 265 | D85: 22 | E85: 1 | F85: 137.4483596 | G85: 5.231284566 | H85: 10.0859 | I85: 2.615642283
A86: DC 8 | B86: DC | C86: 265 | D86: 22 | E86: 3 | F86: 154.1484662 | G86: 5.866890622 | H86: 10.0859 | I86: 2.933445311
A87: DC 10 | B87: DC | C87: 330 | D87: 22 | E87: 3 | F87: 234.847094 | G87: 8.938280396 | H87: 12.5598 | I87: 4.469140198
A88: DC 12 | B88: DC | C88: 350 | D88: 22 | E88: 3 | F88: 215.8422464 | G88: 8.214955898 | H88: 13.321 | I88: 4.107477949
A89: DMA 21 | B89: DMA | C89: 260 | D89: 22 | E89: 2 | F89: 182.565033 | G89: 6.948425155 | H89: 9.8956 | I89: 3.474212577
A90: DMA 12 | B90: DMA | C90: 315 | D90: 22 | E90: 1 | F90: 146.5385755 | G90: 5.577258185 | H90: 11.9889 | I90: 2.788629093
A91: DMA 13 | B91: DMA | C91: 350 | D91: 22 | E91: 1 | F91: 130.2061149 | G91: 4.955644733 | H91: 13.321 | I91: 2.477822367
A92: DMA 14 | B92: DMA | C92: 315 | D92: 22 | E92: 1 | F92: 233.8940234 | G92: 8.902006532 | H92: 11.9889 | I92: 4.451003266
A93: DMA 15 | B93: DMA | C93: 310 | D93: 22 | E93: 1 | F93: 78.07018413 | G93: 2.971351208 | H93: 11.7986 | I93: 1.485675604
A94: DMA 23 | B94: DMA | C94: 275 | D94: 22 | E94: 2 | F94: 179.2585458 | G94: 6.822580253 | H94: 10.4665 | I94: 3.411290126
A95: DMA 24 | B95: DMA | C95: 320 | D95: 22 | E95: 2 | F95: 172.6344846 | G95: 6.570468485 | H95: 12.1792 | I95: 3.285234243
A96: DN 2 | B96: DN | C96: 340 | D96: 22 | E96: 3 | F96: 181.0579171 | G96: 6.891064325 | H96: 12.9404 | I96: 3.445532163
A97: DN 4 | B97: DN | C97: 260 | D97: 22 | E97: 3 | F97: 116.5422223 | G97: 4.43559698 | H97: 9.8956 | I97: 2.21779849
A98: DN 6 | B98: DN | C98: 350 | D98: 22 | E98: 3 | F98: 134.638515 | G98: 5.124341881 | H98: 13.321 | I98: 2.562170941
A99: DN 7 | B99: DN | C99: 350 | D99: 22 | E99: 1 | F99: 225.4513898 | G99: 8.580679895 | H99: 13.321 | I99: 4.290339948
A100: DN 8 | B100: DN | C100: 350 | D100: 22 | E100: 3 | F100: 121.8385871 | G100: 4.637176625 | H100: 13.321 | I100: 2.318588313
A101: DN 9 | B101: DN | C101: 350 | D101: 22 | E101: 1 | F101: 195.1430859 | G101: 7.427145848 | H101: 13.321 | I101: 3.713572924
A102: DN 10 | B102: DN | C102: 260 | D102: 22 | E102: 3 | F102: 237.877821 | G102: 9.053629866 | H102: 9.8956 | I102: 4.526814933
A103: DN 11 | B103: DN | C103: 265 | D103: 22 | E103: 1 | F103: 205.4923065 | G103: 7.821037186 | H103: 10.0859 | I103: 3.910518593
A104: DN 13 | B104: DN | C104: 350 | D104: 22 | E104: 1 | F104: 259.8562447 | G104: 9.890128673 | H104: 13.321 | I104: 4.945064336
A105: DN 21 | B105: DN | C105: 260 | D105: 22 | E105: 2 | F105: 173.2930493 | G105: 6.595533458 | H105: 9.8956 | I105: 3.297766729
A106: DN 22 | B106: DN | C106: 350 | D106: 22 | E106: 2 | F106: 239.1160699 | G106: 9.100757619 | H106: 13.321 | I106: 4.550378809
A107: DN 23 | B107: DN | C107: 400 | D107: 22 | E107: 2 | F107: 61.5505215 | G107: 2.342612848 | H107: 15.224 | I107: 1.171306424
A108: DN 24 | B108: DN | C108: 300 | D108: 22 | E108: 2 | F108: 151.2248767 | G108: 5.755618806 | H108: 11.418 | I108: 2.877809403
A109: DN 25 | B109: DN | C109: 360 | D109: 22 | E109: 2 | F109: 169.1513905 | G109: 6.437901923 | H109: 13.7016 | I109: 3.218950962
A110: DSH 13 | B110: DSH | C110: 344 | D110: 22 | E110: 1 | F110: 306.7418588 | G110: 11.67459515 | H110: 13.09264 | I110: 5.837297573
A111: DSH 14 | B111: DSH | C111: 350 | D111: 22 | E111: 1 | F111: 210.6803326 | G111: 8.01849346 | H111: 13.321 | I111: 4.00924673
A112: DSH 21 | B112: DSH | C112: 350 | D112: 22 | E112: 2 | F112: 289.3004794 | G112: 11.01077625 | H112: 13.321 | I112: 5.505388123
A113: DSH 22 | B113: DSH | C113: 345 | D113: 22 | E113: 2 | F113: 148.2495058 | G113: 5.642376192 | H113: 13.1307 | I113: 2.821188096
A114: DSH 23 | B114: DSH | C114: 335 | D114: 22 | E114: 2 | F114: 69.73979199 | G114: 2.654296483 | H114: 12.7501 | I114: 1.327148242
A115: DSH 24 | B115: DSH | C115: 350 | D115: 22 | E115: 2 | F115: 72.62395971 | G115: 2.764067906 | H115: 13.321 | I115: 1.382033953
A116: DSH 31 | B116: DSH | C116: 350 | D116: 22 | E116: 3 | F116: 191.3235668 | G116: 7.281774952 | H116: 13.321 | I116: 3.640887476
A117: DSH 32 | B117: DSH | C117: 325 | D117: 22 | E117: 3 | F117: 170.4744993 | G117: 6.488259442 | H117: 12.3695 | I117: 3.244129721
A118: DSH 33 | B118: DSH | C118: 550 | D118: 22 | E118: 3 | F118: 316.527578 | G118: 12.04703962 | H118: 20.933 | I118: 6.023519809
A119: DSH 34 | B119: DSH | C119: 325 | D119: 22 | E119: 3 | F119: 128.9871852 | G119: 4.909252269 | H119: 12.3695 | I119: 2.454626135
A120: DVY 11 | B120: DVY | C120: 350 | D120: 22 | E120: 1 | F120: 130.1582538 | G120: 4.953823139 | H120: 13.321 | I120: 2.47691157
A121: DVY 13 | B121: DVY | C121: 350 | D121: 22 | E121: 1 | F121: 223.1493227 | G121: 8.493063221 | H121: 13.321 | I121: 4.246531611
A122: DVY 14 | B122: DVY | C122: 350 | D122: 22 | E122: 1 | F122: 193.1469631 | G122: 7.351173415 | H122: 13.321 | I122: 3.675586707
A123: DVY 21 | B123: DVY | C123: 350 | D123: 22 | E123: 2 | F123: 242.4062336 | G123: 9.225981252 | H123: 13.321 | I123: 4.612990626
A124: DVY 22 | B124: DVY | C124: 300 | D124: 22 | E124: 2 | F124: 164.9086881 | G124: 6.276424671 | H124: 11.418 | I124: 3.138212335
A125: DVY 23 | B125: DVY | C125: 330 | D125: 22 | E125: 2 | F125: 213.1902764 | G125: 8.11402192 | H125: 12.5598 | I125: 4.05701096
A126: DVY 24 | B126: DVY | C126: 305 | D126: 22 | E126: 2 | F126: 200.2903382 | G126: 7.623050271 | H126: 11.6083 | I126: 3.811525136
A127: DVY 31 | B127: DVY | C127: 310 | D127: 22 | E127: 3 | F127: 206.8091252 | G127: 7.871155306 | H127: 11.7986 | I127: 3.935577653
A128: DVY 32 | B128: DVY | C128: 260 | D128: 22 | E128: 3 | F128: 169.8995516 | G128: 6.466376934 | H128: 9.8956 | I128: 3.233188467
A129: DVY 33 | B129: DVY | C129: 330 | D129: 22 | E129: 3 | F129: 155.094389 | G129: 5.902892447 | H129: 12.5598 | I129: 2.951446223
A130: DVY 34 | B130: DVY | C130: 340 | D130: 22 | E130: 3 | F130: 306.5042851 | G130: 11.66555309 | H130: 12.9404 | I130: 5.832776545
A131: EB 11 | B131: EB | C131: 350 | D131: 22 | E131: 1 | F131: 201.3281823 | G131: =1.73*F131*D131/1000 -> 7.662550619 | H131: =1.73*D131*C131/1000 -> 13.321 | I131: =0.5*G131 -> 3.83127531
A132: EB 12 | B132: EB | C132: 260 | D132: 22 | E132: 1 | F132: 106.8450889 | G132: 4.066524084 | H132: 9.8956 | I132: 2.033262042
A133: EB 13 | B133: EB | C133: 270 | D133: 22 | E133: 1 | F133: 100.6523075 | G133: 3.830826824 | H133: 10.2762 | I133: 1.915413412
A134: EB 14 | B134: EB | C134: 280 | D134: 22 | E134: 1 | F134: 121.86302 | G134: 4.63810654 | H134: 10.6568 | I134: 2.31905327
A135: EB 21 | B135: EB | C135: 270 | D135: 22 | E135: 2 | F135: 101.9230826 | G135: 3.879192525 | H135: 10.2762 | I135: 1.939596262
A136: EB 22 | B136: EB | C136: 270 | D136: 22 | E136: 2 | F136: 154.2953308 | G136: 5.872480292 | H136: 10.2762 | I136: 2.936240146
A137: EB 23 | B137: EB | C137: 350 | D137: 22 | E137: 2 | F137: 159.4452871 | G137: 6.068487627 | H137: 13.321 | I137: 3.034243814
A138: EB 24 | B138: EB | C138: 350 | D138: 22 | E138: 2 | F138: 69.55237674 | G138: 2.647163459 | H138: 13.321 | I138: 1.323581729
A139: EB 31 | B139: EB | C139: 350 | D139: 22 | E139: 3 | F139: 163.528881 | G139: 6.223909211 | H139: 13.321 | I139: 3.111954606
A140: EB 32 | B140: EB | C140: 290 | D140: 22 | E140: 3 | F140: 237.551477 | G140: 9.041209216 | H140: 11.0374 | I140: 4.520604608
A141: EB 33 | B141: EB | C141: 265 | D141: 22 | E141: 3 | F141: 193.4183559 | G141: 7.361502624 | H141: 10.0859 | I141: 3.680751312
A142: EL 5 | B142: EL | C142: 265 | D142: 11 | E142: 1 | F142: 147.2550653 | G142: 2.802263892 | H142: 5.04295 | I142: 1.401131946
A143: EL 6 | B143: EL | C143: 285 | D143: 11 | E143: 1 | F143: 209.5928873 | G143: 3.988552645 | H143: 5.42355 | I143: 1.994276323
A144: EL 7 | B144: EL | C144: 275 | D144: 11 | E144: 2 | F144: 132.2824146 | G144: 2.51733435 | H144: 5.23325 | I144: 1.258667175
A145: EL 8 | B145: EL | C145: 265 | D145: 11 | E145: 2 | F145: 220.9818407 | G145: 4.205284429 | H145: 5.04295 | I145: 2.102642214
A146: EL 9 | B146: EL | C146: 350 | D146: 11 | E146: 2 | F146: 171.4848196 | G146: 3.263356118 | H146: 6.6605 | I146: 1.631678059
A147: EL 10 | B147: EL | C147: 350 | D147: 11 | E147: 2 | F147: 142.6230873 | G147: 2.714117352 | H147: 6.6605 | I147: 1.357058676
A148: EL 11 | B148: EL | C148: 350 | D148: 11 | E148: 2 | F148: 234.4502807 | G148: 4.461588841 | H148: 6.6605 | I148: 2.230794421
A149: EL 12 | B149: EL | C149: 260 | D149: 11 | E149: 3 | F149: 153.441632 | G149: 2.919994256 | H149: 4.9478 | I149: 1.459997128
A150: EL 13 | B150: EL | C150: 260 | D150: 11 | E150: 3 | F150: 160.4274409 | G150: 3.052934201 | H150: 4.9478 | I150: 1.5264671
A151: EL 14 | B151: EL | C151: 285 | D151: 11 | E151: 3 | F151: 143.4269232 | G151: 2.729414348 | H151: 5.42355 | I151: 1.364707174
A152: EM 1 | B152: EM | C152: 265 | D152: 11 | E152: 1 | F152: 75.58618106 | G152: 1.438405026 | H152: 5.04295 | I152: 0.7192025128
A153: EM 2 | B153: EM | C153: 305 | D153: 11 | E153: 1 | F153: 172.9952321 | G153: 3.292099267 | H153: 5.80415 | I153: 1.646049633
A154: EM 3 | B154: EM | C154: 325 | D154: 11 | E154: 1 | F154: 133.6837627 | G154: 2.544002005 | H154: 6.18475 | I154: 1.272001002
A155: EM 5 | B155: EM | C155: 350 | D155: 11 | E155: 1 | F155: 261.7535224 | G155: 4.981169532 | H155: 6.6605 | I155: 2.490584766
A156: EM 6 | B156: EM | C156: 255 | D156: 11 | E156: 1 | F156: 205.5175856 | G156: 3.910999653 | H156: 4.85265 | I156: 1.955499827
A157: EM 7 | B157: EM | C157: 285 | D157: 11 | E157: 2 | F157: 203.3459294 | G157: 3.869673037 | H157: 5.42355 | I157: 1.934836518
A158: EM 8 | B158: EM | C158: 265 | D158: 11 | E158: 2 | F158: 249.8487952 | G158: 4.754622572 | H158: 5.04295 | I158: 2.377311286
A159: EM 9 | B159: EM | C159: 255 | D159: 11 | E159: 2 | F159: 156.1594977 | G159: 2.971715242 | H159: 4.85265 | I159: 1.485857621
A160: EM 10 | B160: EM | C160: 315 | D160: 11 | E160: 2 | F160: 196.5904688 | G160: 3.741116622 | H160: 5.99445 | I160: 1.870558311
A161: EM 11 | B161: EM | C161: 285 | D161: 11 | E161: 2 | F161: 140.3882103 | G161: 2.671587642 | H161: 5.42355 | I161: 1.335793821
A162: EW 1 | B162: EW | C162: 350 | D162: 11 | E162: 1 | F162: 239.9729963 | G162: 4.566686119 | H162: 6.6605 | I162: 2.283343059
A163: EW 2 | B163: EW | C163: 270 | D163: 11 | E163: 1 | F163: 173.8858522 | G163: 3.309047767 | H163: 5.1381 | I163: 1.654523883
A164: EW 3 | B164: EW | C164: 250 | D164: 11 | E164: 1 | F164: 115.2333643 | G164: 2.192890922 | H164: 4.7575 | I164: 1.096445461
A165: EW 8 | B165: EW | C165: 265 | D165: 11 | E165: 2 | F165: 105.6810481 | G165: 2.011110346 | H165: 5.04295 | I165: 1.005555173
A166: EW 9 | B166: EW | C166: 270 | D166: 11 | E166: 2 | F166: 193.2739156 | G166: 3.678002615 | H166: 5.1381 | I166: 1.839001307
A167: EW 12 | B167: EW | C167: 265 | D167: 11 | E167: 2 | F167: 226.0318014 | G167: 4.30138518 | H167: 5.04295 | I167: 2.15069259
A168: EW 14 | B168: EW | C168: 295 | D168: 11 | E168: 2 | F168: 276.492289 | G168: 5.26164826 | H168: 5.61385 | I168: 2.63082413
A169: FSH 11 | B169: FSH | C169: 350 | D169: 22 | E169: 1 | F169: 169.6709336 | G169: 6.457675732 | H169: 13.321 | I169: 3.228837866
A170: FSH 12 | B170: FSH | C170: 260 | D170: 22 | E170: 1 | F170: 202.7495045 | G170: 7.716646143 | H170: 9.8956 | I170: 3.858323072
A171: FSH 13 | B171: FSH | C171: 335 | D171: 22 | E171: 1 | F171: 268.3234002 | G171: 10.21238861 | H171: 12.7501 | I171: 5.106194306
A172: FSH 21 | B172: FSH | C172: 350 | D172: 22 | E172: 2 | F172: 142.4194669 | G172: 5.420484909 | H172: 13.321 | I172: 2.710242454
A173: FSH 22 | B173: FSH | C173: 365 | D173: 22 | E173: 2 | F173: 224.464909 | G173: 8.543134435 | H173: 13.8919 | I173: 4.271567217
A174: FSH 23 | B174: FSH | C174: 260 | D174: 22 | E174: 2 | F174: 91.90934578 | G174: 3.498069701 | H174: 9.8956 | I174: 1.74903485
A175: FSH 31 | B175: FSH | C175: 260 | D175: 22 | E175: 3 | F175: 226.3802231 | G175: 8.61603129 | H175: 9.8956 | I175: 4.308015645
A176: FSH 32 | B176: FSH | C176: 335 | D176: 22 | E176: 3 | F176: 211.4883806 | G176: 8.049247766 | H176: 12.7501 | I176: 4.024623883
A177: FSH 33 | B177: FSH | C177: 310 | D177: 22 | E177: 3 | F177: 273.2492101 | G177: 10.39986494 | H177: 11.7986 | I177: 5.199932469
A178: FSH 34 | B178: FSH | C178: 350 | D178: 22 | E178: 3 | F178: 163.2600745 | G178: 6.213678437 | H178: 13.321 | I178: 3.106839218
A179: FTN 11 | B179: FTN | C179: 350 | D179: 22 | E179: 1 | F179: 211.010084 | G179: 8.031043795 | H179: 13.321 | I179: 4.015521898
A180: FTN 12 | B180: FTN | C180: 350 | D180: 22 | E180: 1 | F180: 145.7990146 | G180: 5.549110494 | H180: 13.321 | I180: 2.774555247
A181: FTN 13 | B181: FTN | C181: 260 | D181: 22 | E181: 1 | F181: 99.64021897 | G181: 3.792306734 | H181: 9.8956 | I181: 1.896153367
A182: FTN 14 | B182: FTN | C182: 260 | D182: 22 | E182: 1 | F182: 128.8868881 | G182: 4.905434959 | H182: 9.8956 | I182: 2.45271748
A183: FTN 21 | B183: FTN | C183: 260 | D183: 22 | E183: 2 | F183: 114.5983386 | G183: 4.361612766 | H183: 9.8956 | I183: 2.180806383
A184: FTN 22 | B184: FTN | C184: 350 | D184: 22 | E184: 2 | F184: 200.8140147 | G184: 7.642981398 | H184: 13.321 | I184: 3.821490699
A185: FTN 23 | B185: FTN | C185: 260 | D185: 22 | E185: 2 | F185: 180.884389 | G185: 6.884459844 | H185: 9.8956 | I185: 3.442229922
A186: FTN 24 | B186: FTN | C186: 260 | D186: 22 | E186: 2 | F186: 203.5885443 | G186: 7.748579995 | H186: 9.8956 | I186: 3.874289997
A187: FTN 25 | B187: FTN | C187: 260 | D187: 22 | E187: 2 | F187: 225.0468621 | G187: 8.565283573 | H187: 9.8956 | I187: 4.282641786
A188: GW 1 | B188: GW | C188: 350 | D188: 22 | E188: 1 | F188: 179.2331593 | G188: 6.821614043 | H188: 13.321 | I188: 3.410807021 | N188: GW4,11
A189: GW 2 | B189: GW | C189: 290 | D189: 22 | E189: 3 | F189: 186.4723964 | G189: 7.097139407 | H189: 11.0374 | I189: 3.548569703
A190: GW 3 | B190: GW | C190: 335 | D190: 22 | E190: 1 | F190: 147.5717422 | G190: 5.616580506 | H190: 12.7501 | I190: 2.808290253 | N190: GW3 and 8 go to EB12.
A191: GW 4 | B191: GW | C191: 345 | D191: 22 | E191: 3 | F191: 158.9216838 | G191: 6.048559285 | H191: 13.1307 | I191: 3.024279642
A192: GW 5 | B192: GW | C192: 260 | D192: 22 | E192: 1 | F192: 208.6429256 | G192: 7.94094975 | H192: 9.8956 | I192: 3.970474875
A193: GW 6 | B193: GW | C193: 350 | D193: 22 | E193: 3 | F193: 180.1458751 | G193: 6.856352008 | H193: 13.321 | I193: 3.428176004
A194: GW 7 | B194: GW | C194: 280 | D194: 22 | E194: 1 | F194: 135.4180439 | G194: 5.154010752 | H194: 10.6568 | I194: 2.577005376
A195: GW 8 | B195: GW | C195: 260 | D195: 22 | E195: 3 | F195: 124.2140279 | G195: =1.73*F195*D195/1000 -> 4.727585901 | H195: =1.73*D195*C195/1000 -> 9.8956 | I195: =0.5*G195 -> 2.363792951 | N195: GW11
A196: GW 10 | B196: GW | C196: 350 | D196: 22 | E196: 3 | F196: 86.11767677 | G196: 3.277638778 | H196: 13.321 | I196: 1.638819389
A197: GW 11 | B197: GW | C197: 335 | D197: 22 | E197: 1 | F197: 186.2026532 | G197: 7.08687298 | H197: 12.7501 | I197: 3.54343649
A198: GW 12 | B198: GW | C198: 345 | D198: 22 | E198: 3 | F198: 160.0014713 | G198: 6.089655997 | H198: 13.1307 | I198: 3.044827999
A199: HGS 21 | B199: HGS | C199: 530 | D199: 22 | E199: 2 | F199: 237.4069032 | G199: 9.035706734 | H199: 20.1718 | I199: 4.517853367
A200: HGS 22 | B200: HGS | C200: 260 | D200: 22 | E200: 2 | F200: 212.6017086 | G200: 8.091621031 | H200: 9.8956 | I200: 4.045810515
... 253 more rows

Sheet Prices
A1: Option Costing | C1: Unit Price | D1: ZSS | E1: Asset Type | G1: Convert from: | H1: 2018
A2: Additional Path | C2: =IF($E$2="Transformer",IFERROR(VLOOKUP($D$2,$A$13:$G$59,7,FALSE),G60),(VLOOKUP($D$2,$A$13:$O$59,14,FALSE)))*CPI -> 5103884.372 | D2: =ZSS -> CM | E2: =AssetType -> Transformer | G2: Convert to : | H2: 2019
A3: 1 Replacement | C3: =IF($E$2="Transformer",IFERROR(VLOOKUP($D$2,$A$13:$G$59,4,FALSE),D60),(VLOOKUP($D$2,$A$13:$O$59,11,FALSE)))*CPI -> 2595487.507 | G3: Multiply by | H3: 1.020776874
A4: 2 Replacements - Same Make | C4: =IF($E$2="Transformer",IFERROR(VLOOKUP($D$2,$A$13:$G$59,5,FALSE),E60),(VLOOKUP($D$2,$A$13:$O$59,12,FALSE)))*CPI -> 5190975.014
A5: 2 Replacements - Different Make | C5: =IF($E$2="Transformer",IFERROR(VLOOKUP($D$2,$A$13:$G$59,6,FALSE),F60),(VLOOKUP($D$2,$A$13:$O$59,13,FALSE)))*CPI -> 5282844.932
A6: System spare available | C6: =IF($E$2="Transformer",IFERROR(VLOOKUP($D$2,$A$13:$G$59,2,FALSE),B60),(VLOOKUP($D$2,$A$13:$O$59,9,FALSE)))*CPI -> 204155.3749
A7: Non-network Solution
A8: Online Monitoring System | C8: =IF($E$2="Transformer",IFERROR(VLOOKUP($D$2,$A$13:$G$59,3,FALSE),C60),(VLOOKUP($D$2,$A$13:$O$59,10,FALSE)))*CPI -> 683034.4715
B11: Transformer | H11: Circuit Breakers
A12: ZSS | B12: Spare | C12: Online Monitor | D12: 1 Replacement | E12: 2 Replacements - Same | F12: 2 Replacements - Different | G12: Additional Path | H12: Comment | I12: Spare | J12: Online Monitor | K12: 1 Replacement | L12: 2 Replacements - Same | M12: 2 Replacements - Different | N12: Additional Path | O12: Comment | P12: Transformer | Q12: CM | R12: 2542659 | S12: CM #1 Transformer replacement (2020)
A13: BH | B13: 200000 | C13: 669132 | G13: 5000000 | P13: Transformer | Q13: EL | R13: 2402794 | S13: EL #2 Transformer replacement (2021)
A14: BR | B14: 200000 | C14: 669132 | D14: 2412203 | E14: =D14*2 -> 4824406 | F14: =E14+90000 -> 4914406 | G14: 5000000 | H14: SD Provided | I14: 1000000 | J14: 1000000 | K14: =L14 -> 2551101 | L14: 2551101 | M14: =L14+90000 -> 2641101 | N14: =M14*1.5 -> 3961651.5 | O14: As per BT | P14: Transformer | Q14: OR | R14: 2542659 | S14: OR #2 Transformer replacement (2021
A15: BT | B15: 200000 | C15: 669132 | D15: 2489090 | E15: 4978180 | F15: 5068180 | G15: 5000000 | H15: SD Provided | I15: 1000000 | J15: 1000000 | K15: =L15 -> 2551101 | L15: 2551101 | M15: =L15+90000 -> 2641101 | N15: =M15*1.5 -> 3961651.5 | O15: SD Provided | P15: Transformer | Q15: EM | R15: 2489090 | S15: EM #1 Transformer replacement (2022)
A16: BU | B16: 200000 | C16: 669132 | G16: 5000000 | I16: 1000000 | J16: 1000000 | K16: =L16 -> 2738134 | L16: 2738134 | M16: =L16+90000 -> 2828134 | N16: 4242201 | O16: SD Provided | P16: Transformer | Q16: EW | R16: 2266348 | S16: EW #2 Transformer replacement (2022)
A17: BW | B17: 200000 | C17: 669132 | D17: 1881489 | E17: 3762978 | F17: 3852978 | G17: 4000000 | H17: Based on SH | O17: Average | P17: Transformer | Q17: SR | R17: 2257594 | S17: SR #3 Transformer replacement (2023)
A18: CDA | B18: 200000 | C18: 669132 | G18: 5000000 | P18: Transformer | Q18: K | R18: 2542659 | S18: K #3 Transformer replacement (2023)
A19: CFD | B19: 200000 | C19: 669132 | G19: 5000000 | P19: Transformer | Q19: BT | R19: 2489090 | S19: BT #X Transformer Replacement (2024)
A20: CM | B20: 200000 | C20: 669132 | D20: 2542659 | E20: 5085318 | F20: 5175318 | G20: 5000000 | H20: SD Provided | P20: Transformer | Q20: WD | R20: 2274094 | S20: WD 1X Transformer Replacement (2025)
A21: CRM | B21: 200000 | C21: 669132 | D21: 2274094 | E21: =D21*2 -> 4548188 | F21: =E21+90000 -> 4638188 | G21: 5000000 | H21: Based on WD | S21: HGSX Transformer Replacementn (2025)
A22: DC | B22: 200000 | C22: 669132 | D22: 2274094 | E22: =D22*2 -> 4548188 | F22: =E22+90000 -> 4638188 | G22: 5000000 | H22: Based on WD | I22: 1000000 | J22: 1000000 | K22: 1567857 | L22: =K22*2*0.9 -> 2822142.6 | M22: =L22+90000 -> 2912142.6 | N22: =M22*1.5 -> 4368213.9 | O22: SD Provided | P22: Transformer | Q22: BR | R22: 2412203 | S22: BR #X Transformer Replacement (2025)
A23: DMA | B23: 200000 | C23: 669132 | G23: 5000000 | P23: Transformer | Q23: OE | R23: 2489090 | S23: OE #X Transformer Replacement (2025)
A24: DN | B24: 200000 | C24: 669132 | G24: 5000000 | I24: 1000000 | J24: 1000000 | K24: 1567857 | L24: =K24*2*0.9 -> 2822142.6 | M24: =L24+90000 -> 2912142.6 | N24: 4368213.9 | O24: Based on DC | R24: 669132 | S24: Online Monitoring System (Any transformer)
A25: DSH | B25: 200000 | C25: 669132 | G25: 5000000 | P25: Transformer | Q25: Average | R25: =AVERAGE(R12:R23) -> 2428025.455 | S25: Average unit price (33MVA)
A26: DVY | B26: 200000 | C26: 669132 | G26: 5000000 | P26: Transformer | Q26: SH | R26: 1881489 | S26: SH #3 Transformer replacement (2020)
A27: EB | B27: 200000 | C27: 669132 | G27: 5000000 | P27: Indoor CB | Q27: SR | R27: 3061268 | S27: SR 11kV Switchboard Replacement (2021)
A28: EL | B28: 200000 | C28: 669132 | D28: 2402794 | E28: 4805588 | F28: 4895588 | G28: 5000000 | H28: SD Provided | P28: Indoor CB | Q28: BT | R28: 2551101 | S28: BT 11kV switchboard replacement (2022)
A29: EM | B29: 200000 | C29: 669132 | D29: 2489090 | E29: 4978180 | F29: 5068180 | G29: 5000000 | H29: SD Provided | I29: 1000000 | J29: 1000000 | K29: =L29 -> 2903633 | L29: 2903633 | M29: =L29+90000 -> 2993633 | N29: =M29*1.5 -> 4490449.5 | O29: SD Provided | P29: Indoor CB | Q29: EM | R29: 2903633 | S29: EM 11kV switchboard replacement (2023)
A30: EW | B30: 200000 | C30: 669132 | D30: 2266348 | E30: 4532696 | F30: 4622696 | G30: 5000000 | H30: SD Provided | I30: 1000000 | J30: 1000000 | K30: =L30 -> 2551101 | L30: 2551101 | M30: 2641101 | N30: 3961651.5 | O30: SD Provided | P30: Indoor CB | Q30: EW | R30: 2551101 | S30: EW 11kV switchboard replacement (2024)
A31: FSH | B31: 200000 | C31: 669132 | G31: 5000000 | P31: Indoor CB | Q31: BU | R31: 2738134 | S31: BU 11kV switchboard replacement (2025)
A32: FTN | B32: 200000 | C32: 669132 | G32: 5000000 | P32: Indoor CB | Q32: Average | R32: =AVERAGE(R27:R31) -> 2761047.4 | S32: DN 22kV #3 Trans outdoor CB Replacement (2021)
A33: GW | B33: 200000 | C33: 669132 | D33: 2274094 | E33: =D33*2 -> 4548188 | F33: =E33+90000 -> 4638188 | G33: 5000000 | H33: Based on WD | I33: 1000000 | J33: 1000000 | K33: 1567857 | L33: =K33*2*0.9 -> 2822142.6 | M33: =L33+90000 -> 2912142.6 | N33: =M33*1.5 -> 4368213.9 | P33: Outdoor CB | Q33: DN | R33: 237105 | S33: DN 22kV #3 Trans outdoor CB Replacement (2021)
A34: HGS | B34: 200000 | C34: 669132 | G34: 5000000 | Q34: HT | R34: 1099171 | S34: HT 22kV Switchyard Improvement (2023)
A35: HT | B35: 200000 | C35: 669132 | G35: 5000000 | I35: 1000000 | J35: 1000000 | K35: 1099171 | L35: =K35*2*0.9 -> 1978507.8 | M35: =2*K35 -> 2198342 | N35: =M35*1.5 -> 3297513 | O35: Based on HT | Q35: GW | R35: 780171 | S35: GW 22kV Switchyard Improvement (2024)
A36: K | B36: 200000 | C36: 669132 | D36: 2542659 | E36: 5085318 | F36: 5175318 | G36: 5000000 | H36: SD Provided | I36: 1000000 | J36: 1000000 | Q36: DC | R36: 1567857 | S36: DC 22kV Switchyard Improvement (2024)
A37: KBH | B37: 200000 | C37: 669132 | G37: 5000000 | Q37: Average | R37: =AVERAGE(R34:R36) -> 1149066.333
A38: LD | B38: 200000 | C38: 669132 | G38: 5000000
A39: LWN | B39: 200000 | C39: 669132 | G39: 5000000
A40: M | B40: 200000 | C40: 669132 | G40: 5000000
A41: MC | B41: 200000 | C41: 669132 | D41: 2274094 | E41: =D41*2 -> 4548188 | F41: =E41+90000 -> 4638188 | G41: 5000000 | H41: Based on WD
A42: MGE | B42: 200000 | C42: 669132 | G42: 5000000
A43: MR | B43: 200000 | C43: 669132 | G43: 5000000
A44: MTN | B44: 200000 | C44: 669132 | G44: 5000000
A45: NB | B45: 200000 | C45: 669132 | G45: 5000000
A46: NO | B46: 200000 | C46: 669132 | G46: 5000000
A47: NP | B47: 200000 | C47: 669132 | G47: 5000000
A48: NW | B48: 200000 | C48: 669132 | G48: 5000000
A49: OAK | B49: 200000 | C49: 669132 | G49: 5000000
A50: OE | B50: 200000 | C50: 669132 | D50: 2489090 | E50: 4978180 | F50: 5068180 | G50: 5000000 | H50: SD Provided | I50: 1000000 | J50: 1000000 | K50: =L50 -> 3061268 | L50: 3061268 | M50: =L50+90000 -> 3151268 | N50: =M50*1.5 -> 4726902 | O50: Based on SR
A51: OR | B51: 200000 | C51: 669132 | D51: 2542659 | E51: 5085318 | F51: 5175318 | G51: 5000000 | H51: SD Provided
A52: RBD | B52: 200000 | C52: 669132 | G52: 5000000
A53: SH | B53: 500000 | C53: 669132 | D53: 1881489 | E53: 3762978 | F53: 3852978 | G53: 3600000 | H53: SD Provided
